Workbook

Sheet Home
B1: ='Match Day'!I4 -> UK Womens League | K1: =CONCATENATE('Match Day'!I8," ",'Match Day'!I10," - ",'Match Day'!I12) -> Division 1 Match 3 - Winchester | AG1: ='Match Day'!I6 -> Saturday, 6th August
B2: DECLARATIONS | K2: START LISTS, FIELD CARDS AND RESULTS | AG2: POINTS AT A GLANCE
B3: Select from the list below | K3: To PRINT out START LISTS or FIELD CARDS click on a YELLOW or ORANGE coloured box | AG3: Click coloured box
B4: the club whose athletes | K4: To VIEW START LISTS, FIELD CARDS or RESULTS click on the appropriate BLUE box | AG4: below to
B5: you wish to DECLARE | K5: To process RESULTS click on X to access the Results Area or Field Card | AG5: sort Clubs in
B6: or AMEND | K6: EVENT | O6: Start Lists | S6: View | W6: Process | Z6: Prints | AD6: View | AG6: descending order
B7: Teams | O7: Field Cards | S7: Start Lists | W7: Results | AG7: of points
O8: Women's Match | W8: Women | AG8: 1 | AH8: =Scores!B6 -> Blackheath & Bromley H | AK8: =Scores!C6 -> 204
B9: FEMALE TEAMS | K9: 100m | W9: X | X9: =IF(OR(Results!G4<>"",Results!D4<>""),"þ","") -> þ | AG9: 2 | AH9: =Scores!B7 -> Swansea H | AK9: =Scores!C7 -> 185
K10: 200m | W10: X | X10: =IF(OR(Results!G14<>"",Results!D14<>""),"þ","") -> þ | AG10: 3 | AH10: =Scores!B8 -> Thames Valley H | AK10: =Scores!C8 -> 168
B11: ='Match Day'!C4 -> Bedford & County AC | K11: 400m | W11: X | X11: =IF(OR(Results!G24<>"",Results!D24<>""),"þ","") -> þ | AG11: 4 | AH11: =Scores!B9 -> Southampton AC | AK11: =Scores!C9 -> 162
K12: 800m | W12: X | X12: =IF(OR(Results!G34<>"",Results!D34<>""),"þ","") -> þ | AG12: 5 | AH12: =Scores!B10 -> Shaftesbury Barnet H | AK12: =Scores!C10 -> 149
B13: ='Match Day'!C6 -> Blackheath & Bromley H | K13: 1500m | W13: X | X13: =IF(OR(Results!G44<>"",Results!D44<>""),"þ","") -> þ | AG13: 6 | AH13: =Scores!B11 -> Marshall Milton Keynes AC | AK13: =Scores!C11 -> 148
K14: 2000m S/Chase | W14: X | X14: =IF(OR(Results!G54<>"",Results!D54<>""),"þ","") -> þ | AG14: 7 | AH14: =Scores!B12 -> Bedford & County AC | AK14: =Scores!C12 -> 106
B15: ='Match Day'!C8 -> Marshall Milton Keynes AC | K15: 3000m | W15: X | X15: =IF(OR(Results!G64<>"",Results!D64<>""),"þ","") -> þ | AG15: 8 | AH15: =Scores!B13 -> Newham & Essex Beagles AC | AK15: =Scores!C13 -> 110
K16: 400m Hurdles | W16: X | X16: =IF(OR(Results!G74<>"",Results!D74<>""),"þ","") -> þ | AH16: Unused Team | AK16: =Points!$S$49 -> 174
B17: ='Match Day'!C10 -> Newham & Essex Beagles AC | K17: 100m Hurdles | W17: X | X17: =IF(OR(Results!G84<>"",Results!D84<>""),"þ","") -> þ | AH17: Officials Points | AK17: =Points!$S$50 -> 0
K18: Hammer | W18: X | X18: =IF(OR(Results!G94<>"",Results!D94<>""),"þ","") -> þ | AH18: TOTAL | AK18: =Points!$U$51 -> 1556
B19: ='Match Day'!C12 -> Shaftesbury Barnet H | K19: Discus | W19: X | X19: =IF(OR(Results!G104<>"",Results!D104<>""),"þ","") -> þ
K20: Javelin | W20: X | X20: =IF(OR(Results!G114<>"",Results!D114<>""),"þ","") -> þ
B21: ='Match Day'!C14 -> Southampton AC | K21: Shot | W21: X | X21: =IF(OR(Results!G124<>"",Results!D124<>""),"þ","") -> þ | AG21: EVENTS
K22: Long Jump | W22: X | X22: =IF(OR(Results!G134<>"",Results!D134<>""),"þ","") -> þ | AG22: Scored
B23: ='Match Day'!C16 -> Swansea H | K23: Triple Jump | W23: X | X23: =IF(OR(Results!G144<>"",Results!D144<>""),"þ","") -> þ | AG23: =Points!$X$24 -> 19
K24: High Jump | W24: X | X24: =IF(OR(Results!G154<>"",Results!D154<>""),"þ","") -> þ | AG24: Events Left
B25: ='Match Day'!C18 -> Thames Valley H | K25: Pole Vault | W25: X | X25: =IF(OR(Results!G164<>"",Results!D164<>""),"þ","") -> þ | AG25: =19-AG23 -> 0
K26: 4x 100m Relay | W26: X | X26: =IF(OR(Results!G174<>"",Results!D174<>""),"þ","") -> þ | AG26: 9
K27: 4x 400m Relay | W27: X | X27: =IF(OR(Results!G184<>"",Results!D184<>""),"þ","") -> þ
K28: ALL
B29: IN CASE OF EMERGENCY
B30: call 07973 827735 | K30: Completed Results Pages (Composite Sheets for Result Packs)
B31: Click box below to enter | K31: Results Page 1W | O31: =IF(OR(Results!F4="",Results!F14="",Results!F24="",Results!F34="",Results!F44="",Results!F54=""),"","þ") -> þ
K32: Results Page 2W | O32: =IF(OR(Results!F64="",Results!F74="",Results!F84="",Results!F94="",Results!F104="",Results!F114=""),"","þ") -> þ
K33: Results Page 3W | O33: =IF(OR(Results!F124="",Results!F134="",Results!F144="",Results!F154="",Results!F164="",Results!F174=""),"","þ") -> þ
K34: Results Page 4W | O34: =IF(OR(Results!F184=""),"","þ") -> þ
K35: Results Women's
K36: Scorecard

Sheet Points
B1: Home | S1: Home
B2: =CONCATENATE('Match Day'!I8," ",'Match Day'!I10," - ",'Match Day'!I12) -> Division 1 Match 3 - Winchester
B3: ='Match Day'!I6 -> Saturday, 6th August | AE3: Row
B4: Events | C4: ='Match Day'!F4 -> BFD | E4: ='Match Day'!F6 -> B&B | G4: ='Match Day'!F8 -> MKN | I4: ='Match Day'!F10 -> NEB | K4: ='Match Day'!F12 -> SBH | M4: ='Match Day'!F14 -> STN | O4: ='Match Day'!F16 -> SWA | Q4: ='Match Day'!F18 -> TVH | S4: UNUSED | U4: TOTAL | AE4: $ab XX:$ac XX | AF4: $ad XX:$ae XX
A5: =Results!A$4 -> 3 | B5: =VLOOKUP(A5,Handbook!$A$4:$C$24,3,FALSE) -> Women's 100m | C5: =IF(ISERROR(VLOOKUP('Match Day'!$B$4,Results!$AH$4:$AI$11,2,FALSE))=TRUE,0,VLOOKUP('Match Day'!$B$4,Results!$AH$4:$AI$11,2,FALSE)) -> 5 | D5: =IF(ISERROR(VLOOKUP('Match Day'!$B$4,Results!$AJ$4:$AK$11,2,FALSE))=TRUE,0,VLOOKUP('Match Day'!$B$4,Results!$AJ$4:$AK$11,2,FALSE)) -> 0 | E5: =IF(ISERROR(VLOOKUP('Match Day'!$B$6,Results!$AH$4:$AI$11,2,FALSE))=TRUE,0,VLOOKUP('Match Day'!$B$6,Results!$AH$4:$AI$11,2,FALSE)) -> 6 | F5: =IF(ISERROR(VLOOKUP('Match Day'!$B$6,Results!$AJ$4:$AK$11,2,FALSE))=TRUE,0,VLOOKUP('Match Day'!$B$6,Results!$AJ$4:$AK$11,2,FALSE)) -> 4 | G5: =IF(ISERROR(VLOOKUP('Match Day'!$B$8,Results!$AH$4:$AI$11,2,FALSE))=TRUE,0,VLOOKUP('Match Day'!$B$8,Results!$AH$4:$AI$11,2,FALSE)) -> 7 | H5: =IF(ISERROR(VLOOKUP('Match Day'!$B$8,Results!$AJ$4:$AK$11,2,FALSE))=TRUE,0,VLOOKUP('Match Day'!$B$8,Results!$AJ$4:$AK$11,2,FALSE)) -> 9 | I5: =IF(ISERROR(VLOOKUP('Match Day'!$B$10,Results!$AH$4:$AI$11,2,FALSE))=TRUE,0,VLOOKUP('Match Day'!$B$10,Results!$AH$4:$AI$11,2,FALSE)) -> 9 | J5: =IF(ISERROR(VLOOKUP('Match Day'!$B$10,Results!$AJ$4:$AK$11,2,FALSE))=TRUE,0,VLOOKUP('Match Day'!$B$10,Results!$AJ$4:$AK$11,2,FALSE)) -> 6 | K5: =IF(ISERROR(VLOOKUP('Match Day'!$B$12,Results!$AH$4:$AI$11,2,FALSE))=TRUE,0,VLOOKUP('Match Day'!$B$12,Results!$AH$4:$AI$11,2,FALSE)) -> 1 | L5: =IF(ISERROR(VLOOKUP('Match Day'!$B$12,Results!$AJ$4:$AK$11,2,FALSE))=TRUE,0,VLOOKUP('Match Day'!$B$12,Results!$AJ$4:$AK$11,2,FALSE)) -> 2 | M5: =IF(ISERROR(VLOOKUP('Match Day'!$B$14,Results!$AH$4:$AI$11,2,FALSE))=TRUE,0,VLOOKUP('Match Day'!$B$14,Results!$AH$4:$AI$11,2,FALSE)) -> 3 | N5: =IF(ISERROR(VLOOKUP('Match Day'!$B$14,Results!$AJ$4:$AK$11,2,FALSE))=TRUE,0,VLOOKUP('Match Day'!$B$14,Results!$AJ$4:$AK$11,2,FALSE)) -> 5 | O5: =IF(ISERROR(VLOOKUP('Match Day'!$B$16,Results!$AH$4:$AI$11,2,FALSE))=TRUE,0,VLOOKUP('Match Day'!$B$16,Results!$AH$4:$AI$11,2,FALSE)) -> 2 | P5: =IF(ISERROR(VLOOKUP('Match Day'!$B$16,Results!$AJ$4:$AK$11,2,FALSE))=TRUE,0,VLOOKUP('Match Day'!$B$16,Results!$AJ$4:$AK$11,2,FALSE)) -> 3 | Q5: =IF(ISERROR(VLOOKUP('Match Day'!$B$18,Results!$AH$4:$AI$11,2,FALSE))=TRUE,0,VLOOKUP('Match Day'!$B$18,Results!$AH$4:$AI$11,2,FALSE)) -> 4 | R5: =IF(ISERROR(VLOOKUP('Match Day'!$B$18,Results!$AJ$4:$AK$11,2,FALSE))=TRUE,0,VLOOKUP('Match Day'!$B$18,Results!$AJ$4:$AK$11,2,FALSE)) -> 7 | S5: =IF(Home!X9="",0,Results!$AW$12-AG5) -> 0 | T5: =IF(Home!X9="",0,Results!$AX$12-AH5) -> 1 | U5: =C5+E5+G5+I5+K5+M5+O5+Q5+S5 -> 37 | V5: =D5+F5+H5+J5+L5+N5+P5+R5+T5 -> 37 | X5: =IF(U5>0,1,0) -> 1 | AE5: =IF(A5="","",VLOOKUP(A5,Results!$A$4:$AL$191,36,FALSE)) -> 3 | AF5: =AE5+7 -> 10 | AG5: =C5+E5+G5+I5+K5+M5+O5+Q5 -> 37 | AH5: =D5+F5+H5+J5+L5+N5+P5+R5 -> 36
A6: =Results!A$14 -> 7 | B6: =VLOOKUP(A6,Handbook!$A$4:$C$24,3,FALSE) -> Women's 200m | C6: =IF(ISERROR(VLOOKUP('Match Day'!$B$4,Results!$AH$14:$AI$21,2,FALSE))=TRUE,0,VLOOKUP('Match Day'!$B$4,Results!$AH$14:$AI$21,2,FALSE)) -> 3 | D6: =IF(ISERROR(VLOOKUP('Match Day'!$B$4,Results!$AJ$14:$AK$21,2,FALSE))=TRUE,0,VLOOKUP('Match Day'!$B$4,Results!$AJ$14:$AK$21,2,FALSE)) -> 0 | E6: =IF(ISERROR(VLOOKUP('Match Day'!$B$6,Results!$AH$14:$AI$21,2,FALSE))=TRUE,0,VLOOKUP('Match Day'!$B$6,Results!$AH$14:$AI$21,2,FALSE)) -> 1 | F6: =IF(ISERROR(VLOOKUP('Match Day'!$B$6,Results!$AJ$14:$AK$21,2,FALSE))=TRUE,0,VLOOKUP('Match Day'!$B$6,Results!$AJ$14:$AK$21,2,FALSE)) -> 5 | G6: =IF(ISERROR(VLOOKUP('Match Day'!$B$8,Results!$AH$14:$AI$21,2,FALSE))=TRUE,0,VLOOKUP('Match Day'!$B$8,Results!$AH$14:$AI$21,2,FALSE)) -> 9 | H6: =IF(ISERROR(VLOOKUP('Match Day'!$B$8,Results!$AJ$14:$AK$21,2,FALSE))=TRUE,0,VLOOKUP('Match Day'!$B$8,Results!$AJ$14:$AK$21,2,FALSE)) -> 9 | I6: =IF(ISERROR(VLOOKUP('Match Day'!$B$10,Results!$AH$14:$AI$21,2,FALSE))=TRUE,0,VLOOKUP('Match Day'!$B$10,Results!$AH$14:$AI$21,2,FALSE)) -> 7 | J6: =IF(ISERROR(VLOOKUP('Match Day'!$B$10,Results!$AJ$14:$AK$21,2,FALSE))=TRUE,0,VLOOKUP('Match Day'!$B$10,Results!$AJ$14:$AK$21,2,FALSE)) -> 6 | K6: =IF(ISERROR(VLOOKUP('Match Day'!$B$12,Results!$AH$14:$AI$21,2,FALSE))=TRUE,0,VLOOKUP('Match Day'!$B$12,Results!$AH$14:$AI$21,2,FALSE)) -> 5 | L6: =IF(ISERROR(VLOOKUP('Match Day'!$B$12,Results!$AJ$14:$AK$21,2,FALSE))=TRUE,0,VLOOKUP('Match Day'!$B$12,Results!$AJ$14:$AK$21,2,FALSE)) -> 3 | M6: =IF(ISERROR(VLOOKUP('Match Day'!$B$14,Results!$AH$14:$AI$21,2,FALSE))=TRUE,0,VLOOKUP('Match Day'!$B$14,Results!$AH$14:$AI$21,2,FALSE)) -> 2 | N6: =IF(ISERROR(VLOOKUP('Match Day'!$B$14,Results!$AJ$14:$AK$21,2,FALSE))=TRUE,0,VLOOKUP('Match Day'!$B$14,Results!$AJ$14:$AK$21,2,FALSE)) -> 7 | O6: =IF(ISERROR(VLOOKUP('Match Day'!$B$16,Results!$AH$14:$AI$21,2,FALSE))=TRUE,0,VLOOKUP('Match Day'!$B$16,Results!$AH$14:$AI$21,2,FALSE)) -> 4 | P6: =IF(ISERROR(VLOOKUP('Match Day'!$B$16,Results!$AJ$14:$AK$21,2,FALSE))=TRUE,0,VLOOKUP('Match Day'!$B$16,Results!$AJ$14:$AK$21,2,FALSE)) -> 4 | Q6: =IF(ISERROR(VLOOKUP('Match Day'!$B$18,Results!$AH$14:$AI$21,2,FALSE))=TRUE,0,VLOOKUP('Match Day'!$B$18,Results!$AH$14:$AI$21,2,FALSE)) -> 6 | R6: =IF(ISERROR(VLOOKUP('Match Day'!$B$18,Results!$AJ$14:$AK$21,2,FALSE))=TRUE,0,VLOOKUP('Match Day'!$B$18,Results!$AJ$14:$AK$21,2,FALSE)) -> 0 | S6: =IF(Home!X10="",0,Results!$AW$12-AG6) -> 0 | T6: =IF(Home!X10="",0,Results!$AX$12-AH6) -> 3 | U6: 37 | V6: 37 | X6: =IF(U6>0,1,0) -> 1 | AE6: =IF(A6="","",VLOOKUP(A6,Results!$A$4:$AL$191,36,FALSE)) -> 3 | AF6: =AE6+7 -> 10 | AG6: 37 | AH6: 34
A7: =Results!A$24 -> 4 | B7: =VLOOKUP(A7,Handbook!$A$4:$C$24,3,FALSE) -> Women's 400m | C7: =IF(ISERROR(VLOOKUP('Match Day'!$B$4,Results!$AH$24:$AI$31,2,FALSE))=TRUE,0,VLOOKUP('Match Day'!$B$4,Results!$AH$24:$AI$31,2,FALSE)) -> 0 | D7: =IF(ISERROR(VLOOKUP('Match Day'!$B$4,Results!$AJ$24:$AK$31,2,FALSE))=TRUE,0,VLOOKUP('Match Day'!$B$4,Results!$AJ$24:$AK$31,2,FALSE)) -> 0 | E7: =IF(ISERROR(VLOOKUP('Match Day'!$B$6,Results!$AH$24:$AI$31,2,FALSE))=TRUE,0,VLOOKUP('Match Day'!$B$6,Results!$AH$24:$AI$31,2,FALSE)) -> 7 | F7: =IF(ISERROR(VLOOKUP('Match Day'!$B$6,Results!$AJ$24:$AK$31,2,FALSE))=TRUE,0,VLOOKUP('Match Day'!$B$6,Results!$AJ$24:$AK$31,2,FALSE)) -> 7 | G7: =IF(ISERROR(VLOOKUP('Match Day'!$B$8,Results!$AH$24:$AI$31,2,FALSE))=TRUE,0,VLOOKUP('Match Day'!$B$8,Results!$AH$24:$AI$31,2,FALSE)) -> 2 | H7: =IF(ISERROR(VLOOKUP('Match Day'!$B$8,Results!$AJ$24:$AK$31,2,FALSE))=TRUE,0,VLOOKUP('Match Day'!$B$8,Results!$AJ$24:$AK$31,2,FALSE)) -> 0 | I7: =IF(ISERROR(VLOOKUP('Match Day'!$B$10,Results!$AH$24:$AI$31,2,FALSE))=TRUE,0,VLOOKUP('Match Day'!$B$10,Results!$AH$24:$AI$31,2,FALSE)) -> 4 | J7: =IF(ISERROR(VLOOKUP('Match Day'!$B$10,Results!$AJ$24:$AK$31,2,FALSE))=TRUE,0,VLOOKUP('Match Day'!$B$10,Results!$AJ$24:$AK$31,2,FALSE)) -> 6 | K7: =IF(ISERROR(VLOOKUP('Match Day'!$B$12,Results!$AH$24:$AI$31,2,FALSE))=TRUE,0,VLOOKUP('Match Day'!$B$12,Results!$AH$24:$AI$31,2,FALSE)) -> 3 | L7: =IF(ISERROR(VLOOKUP('Match Day'!$B$12,Results!$AJ$24:$AK$31,2,FALSE))=TRUE,0,VLOOKUP('Match Day'!$B$12,Results!$AJ$24:$AK$31,2,FALSE)) -> 0 | M7: =IF(ISERROR(VLOOKUP('Match Day'!$B$14,Results!$AH$24:$AI$31,2,FALSE))=TRUE,0,VLOOKUP('Match Day'!$B$14,Results!$AH$24:$AI$31,2,FALSE)) -> 6 | N7: =IF(ISERROR(VLOOKUP('Match Day'!$B$14,Results!$AJ$24:$AK$31,2,FALSE))=TRUE,0,VLOOKUP('Match Day'!$B$14,Results!$AJ$24:$AK$31,2,FALSE)) -> 9 | O7: =IF(ISERROR(VLOOKUP('Match Day'!$B$16,Results!$AH$24:$AI$31,2,FALSE))=TRUE,0,VLOOKUP('Match Day'!$B$16,Results!$AH$24:$AI$31,2,FALSE)) -> 5 | P7: =IF(ISERROR(VLOOKUP('Match Day'!$B$16,Results!$AJ$24:$AK$31,2,FALSE))=TRUE,0,VLOOKUP('Match Day'!$B$16,Results!$AJ$24:$AK$31,2,FALSE)) -> 4 | Q7: =IF(ISERROR(VLOOKUP('Match Day'!$B$18,Results!$AH$24:$AI$31,2,FALSE))=TRUE,0,VLOOKUP('Match Day'!$B$18,Results!$AH$24:$AI$31,2,FALSE)) -> 9 | R7: =IF(ISERROR(VLOOKUP('Match Day'!$B$18,Results!$AJ$24:$AK$31,2,FALSE))=TRUE,0,VLOOKUP('Match Day'!$B$18,Results!$AJ$24:$AK$31,2,FALSE)) -> 5 | S7: =IF(Home!X11="",0,Results!$AW$12-AG7) -> 1 | T7: =IF(Home!X11="",0,Results!$AX$12-AH7) -> 6 | U7: 37 | V7: 37 | X7: 1 | AE7: =IF(A7="","",VLOOKUP(A7,Results!$A$4:$AL$191,36,FALSE)) -> 6 | AF7: 13 | AG7: 36 | AH7: 31
A8: =Results!A$34 -> 2 | B8: =VLOOKUP(A8,Handbook!$A$4:$C$24,3,FALSE) -> Women's 800m | C8: =IF(ISERROR(VLOOKUP('Match Day'!$B$4,Results!$AH$34:$AI$41,2,FALSE))=TRUE,0,VLOOKUP('Match Day'!$B$4,Results!$AH$34:$AI$41,2,FALSE)) -> 3 | D8: =IF(ISERROR(VLOOKUP('Match Day'!$B$4,Results!$AJ$34:$AK$41,2,FALSE))=TRUE,0,VLOOKUP('Match Day'!$B$4,Results!$AJ$34:$AK$41,2,FALSE)) -> 3 | E8: =IF(ISERROR(VLOOKUP('Match Day'!$B$6,Results!$AH$34:$AI$41,2,FALSE))=TRUE,0,VLOOKUP('Match Day'!$B$6,Results!$AH$34:$AI$41,2,FALSE)) -> 4 | F8: =IF(ISERROR(VLOOKUP('Match Day'!$B$6,Results!$AJ$34:$AK$41,2,FALSE))=TRUE,0,VLOOKUP('Match Day'!$B$6,Results!$AJ$34:$AK$41,2,FALSE)) -> 5 | G8: =IF(ISERROR(VLOOKUP('Match Day'!$B$8,Results!$AH$34:$AI$41,2,FALSE))=TRUE,0,VLOOKUP('Match Day'!$B$8,Results!$AH$34:$AI$41,2,FALSE)) -> 2 | H8: =IF(ISERROR(VLOOKUP('Match Day'!$B$8,Results!$AJ$34:$AK$41,2,FALSE))=TRUE,0,VLOOKUP('Match Day'!$B$8,Results!$AJ$34:$AK$41,2,FALSE)) -> 0 | I8: =IF(ISERROR(VLOOKUP('Match Day'!$B$10,Results!$AH$34:$AI$41,2,FALSE))=TRUE,0,VLOOKUP('Match Day'!$B$10,Results!$AH$34:$AI$41,2,FALSE)) -> 0 | J8: =IF(ISERROR(VLOOKUP('Match Day'!$B$10,Results!$AJ$34:$AK$41,2,FALSE))=TRUE,0,VLOOKUP('Match Day'!$B$10,Results!$AJ$34:$AK$41,2,FALSE)) -> 0 | K8: =IF(ISERROR(VLOOKUP('Match Day'!$B$12,Results!$AH$34:$AI$41,2,FALSE))=TRUE,0,VLOOKUP('Match Day'!$B$12,Results!$AH$34:$AI$41,2,FALSE)) -> 9 | L8: =IF(ISERROR(VLOOKUP('Match Day'!$B$12,Results!$AJ$34:$AK$41,2,FALSE))=TRUE,0,VLOOKUP('Match Day'!$B$12,Results!$AJ$34:$AK$41,2,FALSE)) -> 6 | M8: =IF(ISERROR(VLOOKUP('Match Day'!$B$14,Results!$AH$34:$AI$41,2,FALSE))=TRUE,0,VLOOKUP('Match Day'!$B$14,Results!$AH$34:$AI$41,2,FALSE)) -> 7 | N8: =IF(ISERROR(VLOOKUP('Match Day'!$B$14,Results!$AJ$34:$AK$41,2,FALSE))=TRUE,0,VLOOKUP('Match Day'!$B$14,Results!$AJ$34:$AK$41,2,FALSE)) -> 7 | O8: =IF(ISERROR(VLOOKUP('Match Day'!$B$16,Results!$AH$34:$AI$41,2,FALSE))=TRUE,0,VLOOKUP('Match Day'!$B$16,Results!$AH$34:$AI$41,2,FALSE)) -> 6 | P8: =IF(ISERROR(VLOOKUP('Match Day'!$B$16,Results!$AJ$34:$AK$41,2,FALSE))=TRUE,0,VLOOKUP('Match Day'!$B$16,Results!$AJ$34:$AK$41,2,FALSE)) -> 4 | Q8: =IF(ISERROR(VLOOKUP('Match Day'!$B$18,Results!$AH$34:$AI$41,2,FALSE))=TRUE,0,VLOOKUP('Match Day'!$B$18,Results!$AH$34:$AI$41,2,FALSE)) -> 5 | R8: =IF(ISERROR(VLOOKUP('Match Day'!$B$18,Results!$AJ$34:$AK$41,2,FALSE))=TRUE,0,VLOOKUP('Match Day'!$B$18,Results!$AJ$34:$AK$41,2,FALSE)) -> 9 | S8: =IF(Home!X12="",0,Results!$AW$12-AG8) -> 1 | T8: =IF(Home!X12="",0,Results!$AX$12-AH8) -> 3 | U8: 37 | V8: 37 | X8: 1 | AE8: =IF(A8="","",VLOOKUP(A8,Results!$A$4:$AL$191,36,FALSE)) -> 8 | AF8: 15 | AG8: 36 | AH8: 34
A9: =Results!A$44 -> 8 | B9: =VLOOKUP(A9,Handbook!$A$4:$C$24,3,FALSE) -> Women's 1500m | C9: =IF(ISERROR(VLOOKUP('Match Day'!$B$4,Results!$AH$44:$AI$51,2,FALSE))=TRUE,0,VLOOKUP('Match Day'!$B$4,Results!$AH$44:$AI$51,2,FALSE)) -> 6 | D9: =IF(ISERROR(VLOOKUP('Match Day'!$B$4,Results!$AJ$44:$AK$51,2,FALSE))=TRUE,0,VLOOKUP('Match Day'!$B$4,Results!$AJ$44:$AK$51,2,FALSE)) -> 6 | E9: =IF(ISERROR(VLOOKUP('Match Day'!$B$6,Results!$AH$44:$AI$51,2,FALSE))=TRUE,0,VLOOKUP('Match Day'!$B$6,Results!$AH$44:$AI$51,2,FALSE)) -> 3 | F9: =IF(ISERROR(VLOOKUP('Match Day'!$B$6,Results!$AJ$44:$AK$51,2,FALSE))=TRUE,0,VLOOKUP('Match Day'!$B$6,Results!$AJ$44:$AK$51,2,FALSE)) -> 3 | G9: =IF(ISERROR(VLOOKUP('Match Day'!$B$8,Results!$AH$44:$AI$51,2,FALSE))=TRUE,0,VLOOKUP('Match Day'!$B$8,Results!$AH$44:$AI$51,2,FALSE)) -> 1 | H9: =IF(ISERROR(VLOOKUP('Match Day'!$B$8,Results!$AJ$44:$AK$51,2,FALSE))=TRUE,0,VLOOKUP('Match Day'!$B$8,Results!$AJ$44:$AK$51,2,FALSE)) -> 2 | I9: =IF(ISERROR(VLOOKUP('Match Day'!$B$10,Results!$AH$44:$AI$51,2,FALSE))=TRUE,0,VLOOKUP('Match Day'!$B$10,Results!$AH$44:$AI$51,2,FALSE)) -> 2 | J9: =IF(ISERROR(VLOOKUP('Match Day'!$B$10,Results!$AJ$44:$AK$51,2,FALSE))=TRUE,0,VLOOKUP('Match Day'!$B$10,Results!$AJ$44:$AK$51,2,FALSE)) -> 1 | K9: =IF(ISERROR(VLOOKUP('Match Day'!$B$12,Results!$AH$44:$AI$51,2,FALSE))=TRUE,0,VLOOKUP('Match Day'!$B$12,Results!$AH$44:$AI$51,2,FALSE)) -> 9 | L9: =IF(ISERROR(VLOOKUP('Match Day'!$B$12,Results!$AJ$44:$AK$51,2,FALSE))=TRUE,0,VLOOKUP('Match Day'!$B$12,Results!$AJ$44:$AK$51,2,FALSE)) -> 5 | M9: =IF(ISERROR(VLOOKUP('Match Day'!$B$14,Results!$AH$44:$AI$51,2,FALSE))=TRUE,0,VLOOKUP('Match Day'!$B$14,Results!$AH$44:$AI$51,2,FALSE)) -> 4 | N9: =IF(ISERROR(VLOOKUP('Match Day'!$B$14,Results!$AJ$44:$AK$51,2,FALSE))=TRUE,0,VLOOKUP('Match Day'!$B$14,Results!$AJ$44:$AK$51,2,FALSE)) -> 4 | O9: =IF(ISERROR(VLOOKUP('Match Day'!$B$16,Results!$AH$44:$AI$51,2,FALSE))=TRUE,0,VLOOKUP('Match Day'!$B$16,Results!$AH$44:$AI$51,2,FALSE)) -> 7 | P9: =IF(ISERROR(VLOOKUP('Match Day'!$B$16,Results!$AJ$44:$AK$51,2,FALSE))=TRUE,0,VLOOKUP('Match Day'!$B$16,Results!$AJ$44:$AK$51,2,FALSE)) -> 9 | Q9: =IF(ISERROR(VLOOKUP('Match Day'!$B$18,Results!$AH$44:$AI$51,2,FALSE))=TRUE,0,VLOOKUP('Match Day'!$B$18,Results!$AH$44:$AI$51,2,FALSE)) -> 5 | R9: =IF(ISERROR(VLOOKUP('Match Day'!$B$18,Results!$AJ$44:$AK$51,2,FALSE))=TRUE,0,VLOOKUP('Match Day'!$B$18,Results!$AJ$44:$AK$51,2,FALSE)) -> 7 | S9: =IF(Home!X13="",0,Results!$AW$12-AG9) -> 0 | T9: =IF(Home!X13="",0,Results!$AX$12-AH9) -> 0 | U9: 37 | V9: 37 | X9: 1 | AE9: =IF(A9="","",VLOOKUP(A9,Results!$A$4:$AL$191,36,FALSE)) -> 7 | AF9: 14 | AG9: 37 | AH9: 37
A10: =Results!A$54 -> 5 | B10: =VLOOKUP(A10,Handbook!$A$4:$C$24,3,FALSE) -> Women's 2000 S/Chase | C10: =IF(ISERROR(VLOOKUP('Match Day'!$B$4,Results!$AH$54:$AI$61,2,FALSE))=TRUE,0,VLOOKUP('Match Day'!$B$4,Results!$AH$54:$AI$61,2,FALSE)) -> 4 | D10: =IF(ISERROR(VLOOKUP('Match Day'!$B$4,Results!$AJ$54:$AK$61,2,FALSE))=TRUE,0,VLOOKUP('Match Day'!$B$4,Results!$AJ$54:$AK$61,2,FALSE)) -> 0 | E10: =IF(ISERROR(VLOOKUP('Match Day'!$B$6,Results!$AH$54:$AI$61,2,FALSE))=TRUE,0,VLOOKUP('Match Day'!$B$6,Results!$AH$54:$AI$61,2,FALSE)) -> 3 | F10: =IF(ISERROR(VLOOKUP('Match Day'!$B$6,Results!$AJ$54:$AK$61,2,FALSE))=TRUE,0,VLOOKUP('Match Day'!$B$6,Results!$AJ$54:$AK$61,2,FALSE)) -> 0 | G10: =IF(ISERROR(VLOOKUP('Match Day'!$B$8,Results!$AH$54:$AI$61,2,FALSE))=TRUE,0,VLOOKUP('Match Day'!$B$8,Results!$AH$54:$AI$61,2,FALSE)) -> 2 | H10: =IF(ISERROR(VLOOKUP('Match Day'!$B$8,Results!$AJ$54:$AK$61,2,FALSE))=TRUE,0,VLOOKUP('Match Day'!$B$8,Results!$AJ$54:$AK$61,2,FALSE)) -> 0 | I10: =IF(ISERROR(VLOOKUP('Match Day'!$B$10,Results!$AH$54:$AI$61,2,FALSE))=TRUE,0,VLOOKUP('Match Day'!$B$10,Results!$AH$54:$AI$61,2,FALSE)) -> 0 | J10: =IF(ISERROR(VLOOKUP('Match Day'!$B$10,Results!$AJ$54:$AK$61,2,FALSE))=TRUE,0,VLOOKUP('Match Day'!$B$10,Results!$AJ$54:$AK$61,2,FALSE)) -> 0 | K10: =IF(ISERROR(VLOOKUP('Match Day'!$B$12,Results!$AH$54:$AI$61,2,FALSE))=TRUE,0,VLOOKUP('Match Day'!$B$12,Results!$AH$54:$AI$61,2,FALSE)) -> 9 | L10: =IF(ISERROR(VLOOKUP('Match Day'!$B$12,Results!$AJ$54:$AK$61,2,FALSE))=TRUE,0,VLOOKUP('Match Day'!$B$12,Results!$AJ$54:$AK$61,2,FALSE)) -> 0 | M10: =IF(ISERROR(VLOOKUP('Match Day'!$B$14,Results!$AH$54:$AI$61,2,FALSE))=TRUE,0,VLOOKUP('Match Day'!$B$14,Results!$AH$54:$AI$61,2,FALSE)) -> 5 | N10: =IF(ISERROR(VLOOKUP('Match Day'!$B$14,Results!$AJ$54:$AK$61,2,FALSE))=TRUE,0,VLOOKUP('Match Day'!$B$14,Results!$AJ$54:$AK$61,2,FALSE)) -> 0 | O10: =IF(ISERROR(VLOOKUP('Match Day'!$B$16,Results!$AH$54:$AI$61,2,FALSE))=TRUE,0,VLOOKUP('Match Day'!$B$16,Results!$AH$54:$AI$61,2,FALSE)) -> 7 | P10: =IF(ISERROR(VLOOKUP('Match Day'!$B$16,Results!$AJ$54:$AK$61,2,FALSE))=TRUE,0,VLOOKUP('Match Day'!$B$16,Results!$AJ$54:$AK$61,2,FALSE)) -> 0 | Q10: =IF(ISERROR(VLOOKUP('Match Day'!$B$18,Results!$AH$54:$AI$61,2,FALSE))=TRUE,0,VLOOKUP('Match Day'!$B$18,Results!$AH$54:$AI$61,2,FALSE)) -> 6 | R10: =IF(ISERROR(VLOOKUP('Match Day'!$B$18,Results!$AJ$54:$AK$61,2,FALSE))=TRUE,0,VLOOKUP('Match Day'!$B$18,Results!$AJ$54:$AK$61,2,FALSE)) -> 0 | S10: =IF(Home!X14="",0,Results!$AW$12-AG10) -> 1 | T10: =IF(Home!X14="",0,Results!$AX$12-AH10) -> 37 | U10: 37 | V10: 37 | X10: 1 | AE10: =IF(A10="","",VLOOKUP(A10,Results!$A$4:$AL$191,36,FALSE)) ->  | AG10: 36 | AH10: 0
A11: =Results!A$64 -> 21 | B11: =VLOOKUP(A11,Handbook!$A$4:$C$24,3,FALSE) -> Women's 3000m | C11: =IF(ISERROR(VLOOKUP('Match Day'!$B$4,Results!$AH$64:$AI$71,2,FALSE))=TRUE,0,VLOOKUP('Match Day'!$B$4,Results!$AH$64:$AI$71,2,FALSE)) -> 6 | D11: =IF(ISERROR(VLOOKUP('Match Day'!$B$4,Results!$AJ$64:$AK$71,2,FALSE))=TRUE,0,VLOOKUP('Match Day'!$B$4,Results!$AJ$64:$AK$71,2,FALSE)) -> 6 | E11: =IF(ISERROR(VLOOKUP('Match Day'!$B$6,Results!$AH$64:$AI$71,2,FALSE))=TRUE,0,VLOOKUP('Match Day'!$B$6,Results!$AH$64:$AI$71,2,FALSE)) -> 2 | F11: =IF(ISERROR(VLOOKUP('Match Day'!$B$6,Results!$AJ$64:$AK$71,2,FALSE))=TRUE,0,VLOOKUP('Match Day'!$B$6,Results!$AJ$64:$AK$71,2,FALSE)) -> 5 | G11: =IF(ISERROR(VLOOKUP('Match Day'!$B$8,Results!$AH$64:$AI$71,2,FALSE))=TRUE,0,VLOOKUP('Match Day'!$B$8,Results!$AH$64:$AI$71,2,FALSE)) -> 5 | H11: =IF(ISERROR(VLOOKUP('Match Day'!$B$8,Results!$AJ$64:$AK$71,2,FALSE))=TRUE,0,VLOOKUP('Match Day'!$B$8,Results!$AJ$64:$AK$71,2,FALSE)) -> 0 | I11: =IF(ISERROR(VLOOKUP('Match Day'!$B$10,Results!$AH$64:$AI$71,2,FALSE))=TRUE,0,VLOOKUP('Match Day'!$B$10,Results!$AH$64:$AI$71,2,FALSE)) -> 1 | J11: =IF(ISERROR(VLOOKUP('Match Day'!$B$10,Results!$AJ$64:$AK$71,2,FALSE))=TRUE,0,VLOOKUP('Match Day'!$B$10,Results!$AJ$64:$AK$71,2,FALSE)) -> 0 | K11: =IF(ISERROR(VLOOKUP('Match Day'!$B$12,Results!$AH$64:$AI$71,2,FALSE))=TRUE,0,VLOOKUP('Match Day'!$B$12,Results!$AH$64:$AI$71,2,FALSE)) -> 3 | L11: =IF(ISERROR(VLOOKUP('Match Day'!$B$12,Results!$AJ$64:$AK$71,2,FALSE))=TRUE,0,VLOOKUP('Match Day'!$B$12,Results!$AJ$64:$AK$71,2,FALSE)) -> 0 | M11: =IF(ISERROR(VLOOKUP('Match Day'!$B$14,Results!$AH$64:$AI$71,2,FALSE))=TRUE,0,VLOOKUP('Match Day'!$B$14,Results!$AH$64:$AI$71,2,FALSE)) -> 4 | N11: =IF(ISERROR(VLOOKUP('Match Day'!$B$14,Results!$AJ$64:$AK$71,2,FALSE))=TRUE,0,VLOOKUP('Match Day'!$B$14,Results!$AJ$64:$AK$71,2,FALSE)) -> 0 | O11: =IF(ISERROR(VLOOKUP('Match Day'!$B$16,Results!$AH$64:$AI$71,2,FALSE))=TRUE,0,VLOOKUP('Match Day'!$B$16,Results!$AH$64:$AI$71,2,FALSE)) -> 9 | P11: =IF(ISERROR(VLOOKUP('Match Day'!$B$16,Results!$AJ$64:$AK$71,2,FALSE))=TRUE,0,VLOOKUP('Match Day'!$B$16,Results!$AJ$64:$AK$71,2,FALSE)) -> 9 | Q11: =IF(ISERROR(VLOOKUP('Match Day'!$B$18,Results!$AH$64:$AI$71,2,FALSE))=TRUE,0,VLOOKUP('Match Day'!$B$18,Results!$AH$64:$AI$71,2,FALSE)) -> 7 | R11: =IF(ISERROR(VLOOKUP('Match Day'!$B$18,Results!$AJ$64:$AK$71,2,FALSE))=TRUE,0,VLOOKUP('Match Day'!$B$18,Results!$AJ$64:$AK$71,2,FALSE)) -> 7 | S11: =IF(Home!X15="",0,Results!$AW$12-AG11) -> 0 | T11: =IF(Home!X15="",0,Results!$AX$12-AH11) -> 10 | U11: 37 | V11: 37 | X11: 1 | AE11: =IF(A11="","",VLOOKUP(A11,Results!$A$4:$AL$191,36,FALSE)) -> 7 | AF11: 14 | AG11: 37 | AH11: 27
A12: 1 | B12: =VLOOKUP(A12,Handbook!$A$4:$C$24,3,FALSE) -> Women's 400 Hurdles | C12: =IF(ISERROR(VLOOKUP('Match Day'!$B$4,Results!$AH$74:$AI$81,2,FALSE))=TRUE,0,VLOOKUP('Match Day'!$B$4,Results!$AH$74:$AI$81,2,FALSE)) -> 3 | D12: =IF(ISERROR(VLOOKUP('Match Day'!$B$4,Results!$AJ$74:$AK$81,2,FALSE))=TRUE,0,VLOOKUP('Match Day'!$B$4,Results!$AJ$74:$AK$81,2,FALSE)) -> 0 | E12: =IF(ISERROR(VLOOKUP('Match Day'!$B$6,Results!$AH$74:$AI$81,2,FALSE))=TRUE,0,VLOOKUP('Match Day'!$B$6,Results!$AH$74:$AI$81,2,FALSE)) -> 6 | F12: =IF(ISERROR(VLOOKUP('Match Day'!$B$6,Results!$AJ$74:$AK$81,2,FALSE))=TRUE,0,VLOOKUP('Match Day'!$B$6,Results!$AJ$74:$AK$81,2,FALSE)) -> 6 | G12: =IF(ISERROR(VLOOKUP('Match Day'!$B$8,Results!$AH$74:$AI$81,2,FALSE))=TRUE,0,VLOOKUP('Match Day'!$B$8,Results!$AH$74:$AI$81,2,FALSE)) -> 2 | H12: =IF(ISERROR(VLOOKUP('Match Day'!$B$8,Results!$AJ$74:$AK$81,2,FALSE))=TRUE,0,VLOOKUP('Match Day'!$B$8,Results!$AJ$74:$AK$81,2,FALSE)) -> 0 | I12: =IF(ISERROR(VLOOKUP('Match Day'!$B$10,Results!$AH$74:$AI$81,2,FALSE))=TRUE,0,VLOOKUP('Match Day'!$B$10,Results!$AH$74:$AI$81,2,FALSE)) -> 5 | J12: =IF(ISERROR(VLOOKUP('Match Day'!$B$10,Results!$AJ$74:$AK$81,2,FALSE))=TRUE,0,VLOOKUP('Match Day'!$B$10,Results!$AJ$74:$AK$81,2,FALSE)) -> 0 | K12: =IF(ISERROR(VLOOKUP('Match Day'!$B$12,Results!$AH$74:$AI$81,2,FALSE))=TRUE,0,VLOOKUP('Match Day'!$B$12,Results!$AH$74:$AI$81,2,FALSE)) -> 1 | L12: =IF(ISERROR(VLOOKUP('Match Day'!$B$12,Results!$AJ$74:$AK$81,2,FALSE))=TRUE,0,VLOOKUP('Match Day'!$B$12,Results!$AJ$74:$AK$81,2,FALSE)) -> 0 | M12: =IF(ISERROR(VLOOKUP('Match Day'!$B$14,Results!$AH$74:$AI$81,2,FALSE))=TRUE,0,VLOOKUP('Match Day'!$B$14,Results!$AH$74:$AI$81,2,FALSE)) -> 7 | N12: =IF(ISERROR(VLOOKUP('Match Day'!$B$14,Results!$AJ$74:$AK$81,2,FALSE))=TRUE,0,VLOOKUP('Match Day'!$B$14,Results!$AJ$74:$AK$81,2,FALSE)) -> 7 | O12: =IF(ISERROR(VLOOKUP('Match Day'!$B$16,Results!$AH$74:$AI$81,2,FALSE))=TRUE,0,VLOOKUP('Match Day'!$B$16,Results!$AH$74:$AI$81,2,FALSE)) -> 9 | P12: =IF(ISERROR(VLOOKUP('Match Day'!$B$16,Results!$AJ$74:$AK$81,2,FALSE))=TRUE,0,VLOOKUP('Match Day'!$B$16,Results!$AJ$74:$AK$81,2,FALSE)) -> 9 | Q12: =IF(ISERROR(VLOOKUP('Match Day'!$B$18,Results!$AH$74:$AI$81,2,FALSE))=TRUE,0,VLOOKUP('Match Day'!$B$18,Results!$AH$74:$AI$81,2,FALSE)) -> 4 | R12: =IF(ISERROR(VLOOKUP('Match Day'!$B$18,Results!$AJ$74:$AK$81,2,FALSE))=TRUE,0,VLOOKUP('Match Day'!$B$18,Results!$AJ$74:$AK$81,2,FALSE)) -> 5 | S12: =IF(Home!X16="",0,Results!$AW$12-AG12) -> 0 | T12: =IF(Home!X16="",0,Results!$AX$12-AH12) -> 10 | U12: 37 | V12: 37 | X12: 1 | AE12: =IF(A12="","",VLOOKUP(A12,Results!$A$4:$AL$191,36,FALSE)) -> 7 | AF12: 14 | AG12: 37 | AH12: 27
A13: 6 | B13: =VLOOKUP(A13,Handbook!$A$4:$C$24,3,FALSE) -> Women's 100 Hurdles | C13: =IF(ISERROR(VLOOKUP('Match Day'!$B$4,Results!$AH$84:$AI$91,2,FALSE))=TRUE,0,VLOOKUP('Match Day'!$B$4,Results!$AH$84:$AI$91,2,FALSE)) -> 0 | D13: =IF(ISERROR(VLOOKUP('Match Day'!$B$4,Results!$AJ$84:$AK$91,2,FALSE))=TRUE,0,VLOOKUP('Match Day'!$B$4,Results!$AJ$84:$AK$91,2,FALSE)) -> 0 | E13: =IF(ISERROR(VLOOKUP('Match Day'!$B$6,Results!$AH$84:$AI$91,2,FALSE))=TRUE,0,VLOOKUP('Match Day'!$B$6,Results!$AH$84:$AI$91,2,FALSE)) -> 7 | F13: =IF(ISERROR(VLOOKUP('Match Day'!$B$6,Results!$AJ$84:$AK$91,2,FALSE))=TRUE,0,VLOOKUP('Match Day'!$B$6,Results!$AJ$84:$AK$91,2,FALSE)) -> 9 | G13: =IF(ISERROR(VLOOKUP('Match Day'!$B$8,Results!$AH$84:$AI$91,2,FALSE))=TRUE,0,VLOOKUP('Match Day'!$B$8,Results!$AH$84:$AI$91,2,FALSE)) -> 4 | H13: =IF(ISERROR(VLOOKUP('Match Day'!$B$8,Results!$AJ$84:$AK$91,2,FALSE))=TRUE,0,VLOOKUP('Match Day'!$B$8,Results!$AJ$84:$AK$91,2,FALSE)) -> 0 | I13: =IF(ISERROR(VLOOKUP('Match Day'!$B$10,Results!$AH$84:$AI$91,2,FALSE))=TRUE,0,VLOOKUP('Match Day'!$B$10,Results!$AH$84:$AI$91,2,FALSE)) -> 6 | J13: =IF(ISERROR(VLOOKUP('Match Day'!$B$10,Results!$AJ$84:$AK$91,2,FALSE))=TRUE,0,VLOOKUP('Match Day'!$B$10,Results!$AJ$84:$AK$91,2,FALSE)) -> 5 | K13: =IF(ISERROR(VLOOKUP('Match Day'!$B$12,Results!$AH$84:$AI$91,2,FALSE))=TRUE,0,VLOOKUP('Match Day'!$B$12,Results!$AH$84:$AI$91,2,FALSE)) -> 0 | L13: =IF(ISERROR(VLOOKUP('Match Day'!$B$12,Results!$AJ$84:$AK$91,2,FALSE))=TRUE,0,VLOOKUP('Match Day'!$B$12,Results!$AJ$84:$AK$91,2,FALSE)) -> 0 | M13: =IF(ISERROR(VLOOKUP('Match Day'!$B$14,Results!$AH$84:$AI$91,2,FALSE))=TRUE,0,VLOOKUP('Match Day'!$B$14,Results!$AH$84:$AI$91,2,FALSE)) -> 9 | N13: =IF(ISERROR(VLOOKUP('Match Day'!$B$14,Results!$AJ$84:$AK$91,2,FALSE))=TRUE,0,VLOOKUP('Match Day'!$B$14,Results!$AJ$84:$AK$91,2,FALSE)) -> 6 | O13: =IF(ISERROR(VLOOKUP('Match Day'!$B$16,Results!$AH$84:$AI$91,2,FALSE))=TRUE,0,VLOOKUP('Match Day'!$B$16,Results!$AH$84:$AI$91,2,FALSE)) -> 5 | P13: =IF(ISERROR(VLOOKUP('Match Day'!$B$16,Results!$AJ$84:$AK$91,2,FALSE))=TRUE,0,VLOOKUP('Match Day'!$B$16,Results!$AJ$84:$AK$91,2,FALSE)) -> 7 | Q13: =IF(ISERROR(VLOOKUP('Match Day'!$B$18,Results!$AH$84:$AI$91,2,FALSE))=TRUE,0,VLOOKUP('Match Day'!$B$18,Results!$AH$84:$AI$91,2,FALSE)) -> 3 | R13: =IF(ISERROR(VLOOKUP('Match Day'!$B$18,Results!$AJ$84:$AK$91,2,FALSE))=TRUE,0,VLOOKUP('Match Day'!$B$18,Results!$AJ$84:$AK$91,2,FALSE)) -> 4 | S13: =IF(Home!X17="",0,Results!$AW$12-AG13) -> 3 | T13: =IF(Home!X17="",0,Results!$AX$12-AH13) -> 6 | U13: 37 | V13: 37 | X13: 1 | AE13: =IF(A13="","",VLOOKUP(A13,Results!$A$4:$AL$191,36,FALSE)) -> 2 | AF13: 9 | AG13: 34 | AH13: 31
A14: =Results!A$94 -> 11 | B14: =VLOOKUP(A14,Handbook!$A$4:$C$24,3,FALSE) -> Women's Hammer | C14: =IF(ISERROR(VLOOKUP('Match Day'!$B$4,Results!$AH$94:$AI$101,2,FALSE))=TRUE,0,VLOOKUP('Match Day'!$B$4,Results!$AH$94:$AI$101,2,FALSE)) -> 5 | D14: =IF(ISERROR(VLOOKUP('Match Day'!$B$4,Results!$AJ$94:$AK$101,2,FALSE))=TRUE,0,VLOOKUP('Match Day'!$B$4,Results!$AJ$94:$AK$101,2,FALSE)) -> 5 | E14: =IF(ISERROR(VLOOKUP('Match Day'!$B$6,Results!$AH$94:$AI$101,2,FALSE))=TRUE,0,VLOOKUP('Match Day'!$B$6,Results!$AH$94:$AI$101,2,FALSE)) -> 7 | F14: =IF(ISERROR(VLOOKUP('Match Day'!$B$6,Results!$AJ$94:$AK$101,2,FALSE))=TRUE,0,VLOOKUP('Match Day'!$B$6,Results!$AJ$94:$AK$101,2,FALSE)) -> 7 | G14: =IF(ISERROR(VLOOKUP('Match Day'!$B$8,Results!$AH$94:$AI$101,2,FALSE))=TRUE,0,VLOOKUP('Match Day'!$B$8,Results!$AH$94:$AI$101,2,FALSE)) -> 6 | H14: =IF(ISERROR(VLOOKUP('Match Day'!$B$8,Results!$AJ$94:$AK$101,2,FALSE))=TRUE,0,VLOOKUP('Match Day'!$B$8,Results!$AJ$94:$AK$101,2,FALSE)) -> 9 | I14: =IF(ISERROR(VLOOKUP('Match Day'!$B$10,Results!$AH$94:$AI$101,2,FALSE))=TRUE,0,VLOOKUP('Match Day'!$B$10,Results!$AH$94:$AI$101,2,FALSE)) -> 2 | J14: =IF(ISERROR(VLOOKUP('Match Day'!$B$10,Results!$AJ$94:$AK$101,2,FALSE))=TRUE,0,VLOOKUP('Match Day'!$B$10,Results!$AJ$94:$AK$101,2,FALSE)) -> 2 | K14: =IF(ISERROR(VLOOKUP('Match Day'!$B$12,Results!$AH$94:$AI$101,2,FALSE))=TRUE,0,VLOOKUP('Match Day'!$B$12,Results!$AH$94:$AI$101,2,FALSE)) -> 4 | L14: =IF(ISERROR(VLOOKUP('Match Day'!$B$12,Results!$AJ$94:$AK$101,2,FALSE))=TRUE,0,VLOOKUP('Match Day'!$B$12,Results!$AJ$94:$AK$101,2,FALSE)) -> 4 | M14: =IF(ISERROR(VLOOKUP('Match Day'!$B$14,Results!$AH$94:$AI$101,2,FALSE))=TRUE,0,VLOOKUP('Match Day'!$B$14,Results!$AH$94:$AI$101,2,FALSE)) -> 1 | N14: =IF(ISERROR(VLOOKUP('Match Day'!$B$14,Results!$AJ$94:$AK$101,2,FALSE))=TRUE,0,VLOOKUP('Match Day'!$B$14,Results!$AJ$94:$AK$101,2,FALSE)) -> 1 | O14: =IF(ISERROR(VLOOKUP('Match Day'!$B$16,Results!$AH$94:$AI$101,2,FALSE))=TRUE,0,VLOOKUP('Match Day'!$B$16,Results!$AH$94:$AI$101,2,FALSE)) -> 9 | P14: =IF(ISERROR(VLOOKUP('Match Day'!$B$16,Results!$AJ$94:$AK$101,2,FALSE))=TRUE,0,VLOOKUP('Match Day'!$B$16,Results!$AJ$94:$AK$101,2,FALSE)) -> 3 | Q14: =IF(ISERROR(VLOOKUP('Match Day'!$B$18,Results!$AH$94:$AI$101,2,FALSE))=TRUE,0,VLOOKUP('Match Day'!$B$18,Results!$AH$94:$AI$101,2,FALSE)) -> 3 | R14: =IF(ISERROR(VLOOKUP('Match Day'!$B$18,Results!$AJ$94:$AK$101,2,FALSE))=TRUE,0,VLOOKUP('Match Day'!$B$18,Results!$AJ$94:$AK$101,2,FALSE)) -> 6 | S14: =IF(Home!X18="",0,Results!$AW$12-AG14) -> 0 | T14: =IF(Home!X18="",0,Results!$AX$12-AH14) -> 0 | U14: 37 | V14: 37 | X14: 1 | AE14: =IF(A14="","",VLOOKUP(A14,Results!$A$4:$AL$191,36,FALSE)) -> 3 | AF14: 10 | AG14: 37 | AH14: 37
A15: =Results!A$104 -> 15 | B15: =VLOOKUP(A15,Handbook!$A$4:$C$24,3,FALSE) -> Women's Discus | C15: =IF(ISERROR(VLOOKUP('Match Day'!$B$4,Results!$AH$104:$AI$111,2,FALSE))=TRUE,0,VLOOKUP('Match Day'!$B$4,Results!$AH$104:$AI$111,2,FALSE)) -> 4 | D15: =IF(ISERROR(VLOOKUP('Match Day'!$B$4,Results!$AJ$104:$AK$111,2,FALSE))=TRUE,0,VLOOKUP('Match Day'!$B$4,Results!$AJ$104:$AK$111,2,FALSE)) -> 5 | E15: =IF(ISERROR(VLOOKUP('Match Day'!$B$6,Results!$AH$104:$AI$111,2,FALSE))=TRUE,0,VLOOKUP('Match Day'!$B$6,Results!$AH$104:$AI$111,2,FALSE)) -> 9 | F15: =IF(ISERROR(VLOOKUP('Match Day'!$B$6,Results!$AJ$104:$AK$111,2,FALSE))=TRUE,0,VLOOKUP('Match Day'!$B$6,Results!$AJ$104:$AK$111,2,FALSE)) -> 9 | G15: =IF(ISERROR(VLOOKUP('Match Day'!$B$8,Results!$AH$104:$AI$111,2,FALSE))=TRUE,0,VLOOKUP('Match Day'!$B$8,Results!$AH$104:$AI$111,2,FALSE)) -> 7 | H15: =IF(ISERROR(VLOOKUP('Match Day'!$B$8,Results!$AJ$104:$AK$111,2,FALSE))=TRUE,0,VLOOKUP('Match Day'!$B$8,Results!$AJ$104:$AK$111,2,FALSE)) -> 7 | I15: =IF(ISERROR(VLOOKUP('Match Day'!$B$10,Results!$AH$104:$AI$111,2,FALSE))=TRUE,0,VLOOKUP('Match Day'!$B$10,Results!$AH$104:$AI$111,2,FALSE)) -> 3 | J15: =IF(ISERROR(VLOOKUP('Match Day'!$B$10,Results!$AJ$104:$AK$111,2,FALSE))=TRUE,0,VLOOKUP('Match Day'!$B$10,Results!$AJ$104:$AK$111,2,FALSE)) -> 1 | K15: =IF(ISERROR(VLOOKUP('Match Day'!$B$12,Results!$AH$104:$AI$111,2,FALSE))=TRUE,0,VLOOKUP('Match Day'!$B$12,Results!$AH$104:$AI$111,2,FALSE)) -> 2 | L15: =IF(ISERROR(VLOOKUP('Match Day'!$B$12,Results!$AJ$104:$AK$111,2,FALSE))=TRUE,0,VLOOKUP('Match Day'!$B$12,Results!$AJ$104:$AK$111,2,FALSE)) -> 2 | M15: =IF(ISERROR(VLOOKUP('Match Day'!$B$14,Results!$AH$104:$AI$111,2,FALSE))=TRUE,0,VLOOKUP('Match Day'!$B$14,Results!$AH$104:$AI$111,2,FALSE)) -> 5 | N15: =IF(ISERROR(VLOOKUP('Match Day'!$B$14,Results!$AJ$104:$AK$111,2,FALSE))=TRUE,0,VLOOKUP('Match Day'!$B$14,Results!$AJ$104:$AK$111,2,FALSE)) -> 3 | O15: =IF(ISERROR(VLOOKUP('Match Day'!$B$16,Results!$AH$104:$AI$111,2,FALSE))=TRUE,0,VLOOKUP('Match Day'!$B$16,Results!$AH$104:$AI$111,2,FALSE)) -> 1 | P15: =IF(ISERROR(VLOOKUP('Match Day'!$B$16,Results!$AJ$104:$AK$111,2,FALSE))=TRUE,0,VLOOKUP('Match Day'!$B$16,Results!$AJ$104:$AK$111,2,FALSE)) -> 4 | Q15: =IF(ISERROR(VLOOKUP('Match Day'!$B$18,Results!$AH$104:$AI$111,2,FALSE))=TRUE,0,VLOOKUP('Match Day'!$B$18,Results!$AH$104:$AI$111,2,FALSE)) -> 6 | R15: =IF(ISERROR(VLOOKUP('Match Day'!$B$18,Results!$AJ$104:$AK$111,2,FALSE))=TRUE,0,VLOOKUP('Match Day'!$B$18,Results!$AJ$104:$AK$111,2,FALSE)) -> 6 | S15: =IF(Home!X19="",0,Results!$AW$12-AG15) -> 0 | T15: =IF(Home!X19="",0,Results!$AX$12-AH15) -> 0 | U15: 37 | V15: 37 | X15: 1 | AE15: =IF(A15="","",VLOOKUP(A15,Results!$A$4:$AL$191,36,FALSE)) -> 2 | AF15: 9 | AG15: 37 | AH15: 37
A16: =Results!A$114 -> 18 | B16: =VLOOKUP(A16,Handbook!$A$4:$C$24,3,FALSE) -> Women's Javelin | C16: =IF(ISERROR(VLOOKUP('Match Day'!$B$4,Results!$AH$114:$AI$121,2,FALSE))=TRUE,0,VLOOKUP('Match Day'!$B$4,Results!$AH$114:$AI$121,2,FALSE)) -> 3 | D16: =IF(ISERROR(VLOOKUP('Match Day'!$B$4,Results!$AJ$114:$AK$121,2,FALSE))=TRUE,0,VLOOKUP('Match Day'!$B$4,Results!$AJ$114:$AK$121,2,FALSE)) -> 6 | E16: =IF(ISERROR(VLOOKUP('Match Day'!$B$6,Results!$AH$114:$AI$121,2,FALSE))=TRUE,0,VLOOKUP('Match Day'!$B$6,Results!$AH$114:$AI$121,2,FALSE)) -> 2 | F16: =IF(ISERROR(VLOOKUP('Match Day'!$B$6,Results!$AJ$114:$AK$121,2,FALSE))=TRUE,0,VLOOKUP('Match Day'!$B$6,Results!$AJ$114:$AK$121,2,FALSE)) -> 2 | G16: =IF(ISERROR(VLOOKUP('Match Day'!$B$8,Results!$AH$114:$AI$121,2,FALSE))=TRUE,0,VLOOKUP('Match Day'!$B$8,Results!$AH$114:$AI$121,2,FALSE)) -> 7 | H16: =IF(ISERROR(VLOOKUP('Match Day'!$B$8,Results!$AJ$114:$AK$121,2,FALSE))=TRUE,0,VLOOKUP('Match Day'!$B$8,Results!$AJ$114:$AK$121,2,FALSE)) -> 4 | I16: =IF(ISERROR(VLOOKUP('Match Day'!$B$10,Results!$AH$114:$AI$121,2,FALSE))=TRUE,0,VLOOKUP('Match Day'!$B$10,Results!$AH$114:$AI$121,2,FALSE)) -> 1 | J16: =IF(ISERROR(VLOOKUP('Match Day'!$B$10,Results!$AJ$114:$AK$121,2,FALSE))=TRUE,0,VLOOKUP('Match Day'!$B$10,Results!$AJ$114:$AK$121,2,FALSE)) -> 0 | K16: =IF(ISERROR(VLOOKUP('Match Day'!$B$12,Results!$AH$114:$AI$121,2,FALSE))=TRUE,0,VLOOKUP('Match Day'!$B$12,Results!$AH$114:$AI$121,2,FALSE)) -> 5 | L16: =IF(ISERROR(VLOOKUP('Match Day'!$B$12,Results!$AJ$114:$AK$121,2,FALSE))=TRUE,0,VLOOKUP('Match Day'!$B$12,Results!$AJ$114:$AK$121,2,FALSE)) -> 7 | M16: =IF(ISERROR(VLOOKUP('Match Day'!$B$14,Results!$AH$114:$AI$121,2,FALSE))=TRUE,0,VLOOKUP('Match Day'!$B$14,Results!$AH$114:$AI$121,2,FALSE)) -> 9 | N16: =IF(ISERROR(VLOOKUP('Match Day'!$B$14,Results!$AJ$114:$AK$121,2,FALSE))=TRUE,0,VLOOKUP('Match Day'!$B$14,Results!$AJ$114:$AK$121,2,FALSE)) -> 9 | O16: =IF(ISERROR(VLOOKUP('Match Day'!$B$16,Results!$AH$114:$AI$121,2,FALSE))=TRUE,0,VLOOKUP('Match Day'!$B$16,Results!$AH$114:$AI$121,2,FALSE)) -> 6 | P16: =IF(ISERROR(VLOOKUP('Match Day'!$B$16,Results!$AJ$114:$AK$121,2,FALSE))=TRUE,0,VLOOKUP('Match Day'!$B$16,Results!$AJ$114:$AK$121,2,FALSE)) -> 5 | Q16: =IF(ISERROR(VLOOKUP('Match Day'!$B$18,Results!$AH$114:$AI$121,2,FALSE))=TRUE,0,VLOOKUP('Match Day'!$B$18,Results!$AH$114:$AI$121,2,FALSE)) -> 4 | R16: =IF(ISERROR(VLOOKUP('Match Day'!$B$18,Results!$AJ$114:$AK$121,2,FALSE))=TRUE,0,VLOOKUP('Match Day'!$B$18,Results!$AJ$114:$AK$121,2,FALSE)) -> 3 | S16: =IF(Home!X20="",0,Results!$AW$12-AG16) -> 0 | T16: =IF(Home!X20="",0,Results!$AX$12-AH16) -> 1 | U16: 37 | V16: 37 | X16: 1 | AE16: =IF(A16="","",VLOOKUP(A16,Results!$A$4:$AL$191,36,FALSE)) -> 6 | AF16: 13 | AG16: 37 | AH16: 36
A17: =Results!A$124 -> 17 | B17: =VLOOKUP(A17,Handbook!$A$4:$C$24,3,FALSE) -> Women's Shot Putt | C17: =IF(ISERROR(VLOOKUP('Match Day'!$B$4,Results!$AH$124:$AI$131,2,FALSE))=TRUE,0,VLOOKUP('Match Day'!$B$4,Results!$AH$124:$AI$131,2,FALSE)) -> 4 | D17: =IF(ISERROR(VLOOKUP('Match Day'!$B$4,Results!$AJ$124:$AK$131,2,FALSE))=TRUE,0,VLOOKUP('Match Day'!$B$4,Results!$AJ$124:$AK$131,2,FALSE)) -> 6 | E17: =IF(ISERROR(VLOOKUP('Match Day'!$B$6,Results!$AH$124:$AI$131,2,FALSE))=TRUE,0,VLOOKUP('Match Day'!$B$6,Results!$AH$124:$AI$131,2,FALSE)) -> 9 | F17: =IF(ISERROR(VLOOKUP('Match Day'!$B$6,Results!$AJ$124:$AK$131,2,FALSE))=TRUE,0,VLOOKUP('Match Day'!$B$6,Results!$AJ$124:$AK$131,2,FALSE)) -> 9 | G17: =IF(ISERROR(VLOOKUP('Match Day'!$B$8,Results!$AH$124:$AI$131,2,FALSE))=TRUE,0,VLOOKUP('Match Day'!$B$8,Results!$AH$124:$AI$131,2,FALSE)) -> 3 | H17: =IF(ISERROR(VLOOKUP('Match Day'!$B$8,Results!$AJ$124:$AK$131,2,FALSE))=TRUE,0,VLOOKUP('Match Day'!$B$8,Results!$AJ$124:$AK$131,2,FALSE)) -> 4 | I17: =IF(ISERROR(VLOOKUP('Match Day'!$B$10,Results!$AH$124:$AI$131,2,FALSE))=TRUE,0,VLOOKUP('Match Day'!$B$10,Results!$AH$124:$AI$131,2,FALSE)) -> 1 | J17: =IF(ISERROR(VLOOKUP('Match Day'!$B$10,Results!$AJ$124:$AK$131,2,FALSE))=TRUE,0,VLOOKUP('Match Day'!$B$10,Results!$AJ$124:$AK$131,2,FALSE)) -> 1 | K17: =IF(ISERROR(VLOOKUP('Match Day'!$B$12,Results!$AH$124:$AI$131,2,FALSE))=TRUE,0,VLOOKUP('Match Day'!$B$12,Results!$AH$124:$AI$131,2,FALSE)) -> 5 | L17: =IF(ISERROR(VLOOKUP('Match Day'!$B$12,Results!$AJ$124:$AK$131,2,FALSE))=TRUE,0,VLOOKUP('Match Day'!$B$12,Results!$AJ$124:$AK$131,2,FALSE)) -> 3 | M17: =IF(ISERROR(VLOOKUP('Match Day'!$B$14,Results!$AH$124:$AI$131,2,FALSE))=TRUE,0,VLOOKUP('Match Day'!$B$14,Results!$AH$124:$AI$131,2,FALSE)) -> 6 | N17: =IF(ISERROR(VLOOKUP('Match Day'!$B$14,Results!$AJ$124:$AK$131,2,FALSE))=TRUE,0,VLOOKUP('Match Day'!$B$14,Results!$AJ$124:$AK$131,2,FALSE)) -> 5 | O17: =IF(ISERROR(VLOOKUP('Match Day'!$B$16,Results!$AH$124:$AI$131,2,FALSE))=TRUE,0,VLOOKUP('Match Day'!$B$16,Results!$AH$124:$AI$131,2,FALSE)) -> 2 | P17: =IF(ISERROR(VLOOKUP('Match Day'!$B$16,Results!$AJ$124:$AK$131,2,FALSE))=TRUE,0,VLOOKUP('Match Day'!$B$16,Results!$AJ$124:$AK$131,2,FALSE)) -> 2 | Q17: =IF(ISERROR(VLOOKUP('Match Day'!$B$18,Results!$AH$124:$AI$131,2,FALSE))=TRUE,0,VLOOKUP('Match Day'!$B$18,Results!$AH$124:$AI$131,2,FALSE)) -> 7 | R17: =IF(ISERROR(VLOOKUP('Match Day'!$B$18,Results!$AJ$124:$AK$131,2,FALSE))=TRUE,0,VLOOKUP('Match Day'!$B$18,Results!$AJ$124:$AK$131,2,FALSE)) -> 7 | S17: =IF(Home!X21="",0,Results!$AW$12-AG17) -> 0 | T17: =IF(Home!X21="",0,Results!$AX$12-AH17) -> 0 | U17: 37 | V17: 37 | X17: 1 | AE17: =IF(A17="","",VLOOKUP(A17,Results!$A$4:$AL$191,36,FALSE)) -> 2 | AF17: 9 | AG17: 37 | AH17: 37
A18: =Results!A$134 -> 13 | B18: =VLOOKUP(A18,Handbook!$A$4:$C$24,3,FALSE) -> Women's Long Jump | C18: =IF(ISERROR(VLOOKUP('Match Day'!$B$4,Results!$AH$134:$AI$141,2,FALSE))=TRUE,0,VLOOKUP('Match Day'!$B$4,Results!$AH$134:$AI$141,2,FALSE)) -> 1 | D18: =IF(ISERROR(VLOOKUP('Match Day'!$B$4,Results!$AJ$134:$AK$141,2,FALSE))=TRUE,0,VLOOKUP('Match Day'!$B$4,Results!$AJ$134:$AK$141,2,FALSE)) -> 0 | E18: =IF(ISERROR(VLOOKUP('Match Day'!$B$6,Results!$AH$134:$AI$141,2,FALSE))=TRUE,0,VLOOKUP('Match Day'!$B$6,Results!$AH$134:$AI$141,2,FALSE)) -> 4 | F18: =IF(ISERROR(VLOOKUP('Match Day'!$B$6,Results!$AJ$134:$AK$141,2,FALSE))=TRUE,0,VLOOKUP('Match Day'!$B$6,Results!$AJ$134:$AK$141,2,FALSE)) -> 7 | G18: =IF(ISERROR(VLOOKUP('Match Day'!$B$8,Results!$AH$134:$AI$141,2,FALSE))=TRUE,0,VLOOKUP('Match Day'!$B$8,Results!$AH$134:$AI$141,2,FALSE)) -> 6 | H18: =IF(ISERROR(VLOOKUP('Match Day'!$B$8,Results!$AJ$134:$AK$141,2,FALSE))=TRUE,0,VLOOKUP('Match Day'!$B$8,Results!$AJ$134:$AK$141,2,FALSE)) -> 3 | I18: =IF(ISERROR(VLOOKUP('Match Day'!$B$10,Results!$AH$134:$AI$141,2,FALSE))=TRUE,0,VLOOKUP('Match Day'!$B$10,Results!$AH$134:$AI$141,2,FALSE)) -> 3 | J18: =IF(ISERROR(VLOOKUP('Match Day'!$B$10,Results!$AJ$134:$AK$141,2,FALSE))=TRUE,0,VLOOKUP('Match Day'!$B$10,Results!$AJ$134:$AK$141,2,FALSE)) -> 6 | K18: =IF(ISERROR(VLOOKUP('Match Day'!$B$12,Results!$AH$134:$AI$141,2,FALSE))=TRUE,0,VLOOKUP('Match Day'!$B$12,Results!$AH$134:$AI$141,2,FALSE)) -> 7 | L18: =IF(ISERROR(VLOOKUP('Match Day'!$B$12,Results!$AJ$134:$AK$141,2,FALSE))=TRUE,0,VLOOKUP('Match Day'!$B$12,Results!$AJ$134:$AK$141,2,FALSE)) -> 9 | M18: =IF(ISERROR(VLOOKUP('Match Day'!$B$14,Results!$AH$134:$AI$141,2,FALSE))=TRUE,0,VLOOKUP('Match Day'!$B$14,Results!$AH$134:$AI$141,2,FALSE)) -> 5 | N18: =IF(ISERROR(VLOOKUP('Match Day'!$B$14,Results!$AJ$134:$AK$141,2,FALSE))=TRUE,0,VLOOKUP('Match Day'!$B$14,Results!$AJ$134:$AK$141,2,FALSE)) -> 2 | O18: =IF(ISERROR(VLOOKUP('Match Day'!$B$16,Results!$AH$134:$AI$141,2,FALSE))=TRUE,0,VLOOKUP('Match Day'!$B$16,Results!$AH$134:$AI$141,2,FALSE)) -> 2 | P18: =IF(ISERROR(VLOOKUP('Match Day'!$B$16,Results!$AJ$134:$AK$141,2,FALSE))=TRUE,0,VLOOKUP('Match Day'!$B$16,Results!$AJ$134:$AK$141,2,FALSE)) -> 5 | Q18: =IF(ISERROR(VLOOKUP('Match Day'!$B$18,Results!$AH$134:$AI$141,2,FALSE))=TRUE,0,VLOOKUP('Match Day'!$B$18,Results!$AH$134:$AI$141,2,FALSE)) -> 9 | R18: =IF(ISERROR(VLOOKUP('Match Day'!$B$18,Results!$AJ$134:$AK$141,2,FALSE))=TRUE,0,VLOOKUP('Match Day'!$B$18,Results!$AJ$134:$AK$141,2,FALSE)) -> 4 | S18: =IF(Home!X22="",0,Results!$AW$12-AG18) -> 0 | T18: =IF(Home!X22="",0,Results!$AX$12-AH18) -> 1 | U18: 37 | V18: 37 | X18: 1 | AE18: =IF(A18="","",VLOOKUP(A18,Results!$A$4:$AL$191,36,FALSE)) -> 5 | AF18: 12 | AG18: 37 | AH18: 36
A19: =Results!A$144 -> 16 | B19: =VLOOKUP(A19,Handbook!$A$4:$C$24,3,FALSE) -> Women's Triple Jump | C19: =IF(ISERROR(VLOOKUP('Match Day'!$B$4,Results!$AH$144:$AI$151,2,FALSE))=TRUE,0,VLOOKUP('Match Day'!$B$4,Results!$AH$144:$AI$151,2,FALSE)) -> 1 | D19: =IF(ISERROR(VLOOKUP('Match Day'!$B$4,Results!$AJ$144:$AK$151,2,FALSE))=TRUE,0,VLOOKUP('Match Day'!$B$4,Results!$AJ$144:$AK$151,2,FALSE)) -> 0 | E19: =IF(ISERROR(VLOOKUP('Match Day'!$B$6,Results!$AH$144:$AI$151,2,FALSE))=TRUE,0,VLOOKUP('Match Day'!$B$6,Results!$AH$144:$AI$151,2,FALSE)) -> 6 | F19: =IF(ISERROR(VLOOKUP('Match Day'!$B$6,Results!$AJ$144:$AK$151,2,FALSE))=TRUE,0,VLOOKUP('Match Day'!$B$6,Results!$AJ$144:$AK$151,2,FALSE)) -> 7 | G19: =IF(ISERROR(VLOOKUP('Match Day'!$B$8,Results!$AH$144:$AI$151,2,FALSE))=TRUE,0,VLOOKUP('Match Day'!$B$8,Results!$AH$144:$AI$151,2,FALSE)) -> 4 | H19: =IF(ISERROR(VLOOKUP('Match Day'!$B$8,Results!$AJ$144:$AK$151,2,FALSE))=TRUE,0,VLOOKUP('Match Day'!$B$8,Results!$AJ$144:$AK$151,2,FALSE)) -> 5 | I19: =IF(ISERROR(VLOOKUP('Match Day'!$B$10,Results!$AH$144:$AI$151,2,FALSE))=TRUE,0,VLOOKUP('Match Day'!$B$10,Results!$AH$144:$AI$151,2,FALSE)) -> 7 | J19: =IF(ISERROR(VLOOKUP('Match Day'!$B$10,Results!$AJ$144:$AK$151,2,FALSE))=TRUE,0,VLOOKUP('Match Day'!$B$10,Results!$AJ$144:$AK$151,2,FALSE)) -> 0 | K19: =IF(ISERROR(VLOOKUP('Match Day'!$B$12,Results!$AH$144:$AI$151,2,FALSE))=TRUE,0,VLOOKUP('Match Day'!$B$12,Results!$AH$144:$AI$151,2,FALSE)) -> 9 | L19: =IF(ISERROR(VLOOKUP('Match Day'!$B$12,Results!$AJ$144:$AK$151,2,FALSE))=TRUE,0,VLOOKUP('Match Day'!$B$12,Results!$AJ$144:$AK$151,2,FALSE)) -> 9 | M19: =IF(ISERROR(VLOOKUP('Match Day'!$B$14,Results!$AH$144:$AI$151,2,FALSE))=TRUE,0,VLOOKUP('Match Day'!$B$14,Results!$AH$144:$AI$151,2,FALSE)) -> 2 | N19: =IF(ISERROR(VLOOKUP('Match Day'!$B$14,Results!$AJ$144:$AK$151,2,FALSE))=TRUE,0,VLOOKUP('Match Day'!$B$14,Results!$AJ$144:$AK$151,2,FALSE)) -> 3 | O19: =IF(ISERROR(VLOOKUP('Match Day'!$B$16,Results!$AH$144:$AI$151,2,FALSE))=TRUE,0,VLOOKUP('Match Day'!$B$16,Results!$AH$144:$AI$151,2,FALSE)) -> 5 | P19: =IF(ISERROR(VLOOKUP('Match Day'!$B$16,Results!$AJ$144:$AK$151,2,FALSE))=TRUE,0,VLOOKUP('Match Day'!$B$16,Results!$AJ$144:$AK$151,2,FALSE)) -> 6 | Q19: =IF(ISERROR(VLOOKUP('Match Day'!$B$18,Results!$AH$144:$AI$151,2,FALSE))=TRUE,0,VLOOKUP('Match Day'!$B$18,Results!$AH$144:$AI$151,2,FALSE)) -> 3 | R19: =IF(ISERROR(VLOOKUP('Match Day'!$B$18,Results!$AJ$144:$AK$151,2,FALSE))=TRUE,0,VLOOKUP('Match Day'!$B$18,Results!$AJ$144:$AK$151,2,FALSE)) -> 4 | S19: =IF(Home!X23="",0,Results!$AW$12-AG19) -> 0 | T19: =IF(Home!X23="",0,Results!$AX$12-AH19) -> 3 | U19: 37 | V19: 37 | X19: 1 | AE19: =IF(A19="","",VLOOKUP(A19,Results!$A$4:$AL$191,36,FALSE)) -> 5 | AF19: 12 | AG19: 37 | AH19: 34
A20: =Results!A$154 -> 14 | B20: =VLOOKUP(A20,Handbook!$A$4:$C$24,3,FALSE) -> Women's High Jump | C20: =IF(ISERROR(VLOOKUP('Match Day'!$B$4,Results!$AH$154:$AI$161,2,FALSE))=TRUE,0,VLOOKUP('Match Day'!$B$4,Results!$AH$154:$AI$161,2,FALSE)) -> 4 | D20: =IF(ISERROR(VLOOKUP('Match Day'!$B$4,Results!$AJ$154:$AK$161,2,FALSE))=TRUE,0,VLOOKUP('Match Day'!$B$4,Results!$AJ$154:$AK$161,2,FALSE)) -> 5 | E20: =IF(ISERROR(VLOOKUP('Match Day'!$B$6,Results!$AH$154:$AI$161,2,FALSE))=TRUE,0,VLOOKUP('Match Day'!$B$6,Results!$AH$154:$AI$161,2,FALSE)) -> 9 | F20: =IF(ISERROR(VLOOKUP('Match Day'!$B$6,Results!$AJ$154:$AK$161,2,FALSE))=TRUE,0,VLOOKUP('Match Day'!$B$6,Results!$AJ$154:$AK$161,2,FALSE)) -> 6 | G20: =IF(ISERROR(VLOOKUP('Match Day'!$B$8,Results!$AH$154:$AI$161,2,FALSE))=TRUE,0,VLOOKUP('Match Day'!$B$8,Results!$AH$154:$AI$161,2,FALSE)) -> 3 | H20: =IF(ISERROR(VLOOKUP('Match Day'!$B$8,Results!$AJ$154:$AK$161,2,FALSE))=TRUE,0,VLOOKUP('Match Day'!$B$8,Results!$AJ$154:$AK$161,2,FALSE)) -> 8 | I20: =IF(ISERROR(VLOOKUP('Match Day'!$B$10,Results!$AH$154:$AI$161,2,FALSE))=TRUE,0,VLOOKUP('Match Day'!$B$10,Results!$AH$154:$AI$161,2,FALSE)) -> 2 | J20: =IF(ISERROR(VLOOKUP('Match Day'!$B$10,Results!$AJ$154:$AK$161,2,FALSE))=TRUE,0,VLOOKUP('Match Day'!$B$10,Results!$AJ$154:$AK$161,2,FALSE)) -> 0 | K20: =IF(ISERROR(VLOOKUP('Match Day'!$B$12,Results!$AH$154:$AI$161,2,FALSE))=TRUE,0,VLOOKUP('Match Day'!$B$12,Results!$AH$154:$AI$161,2,FALSE)) -> 7 | L20: =IF(ISERROR(VLOOKUP('Match Day'!$B$12,Results!$AJ$154:$AK$161,2,FALSE))=TRUE,0,VLOOKUP('Match Day'!$B$12,Results!$AJ$154:$AK$161,2,FALSE)) -> 8 | M20: =IF(ISERROR(VLOOKUP('Match Day'!$B$14,Results!$AH$154:$AI$161,2,FALSE))=TRUE,0,VLOOKUP('Match Day'!$B$14,Results!$AH$154:$AI$161,2,FALSE)) -> 6 | N20: =IF(ISERROR(VLOOKUP('Match Day'!$B$14,Results!$AJ$154:$AK$161,2,FALSE))=TRUE,0,VLOOKUP('Match Day'!$B$14,Results!$AJ$154:$AK$161,2,FALSE)) -> 3 | O20: =IF(ISERROR(VLOOKUP('Match Day'!$B$16,Results!$AH$154:$AI$161,2,FALSE))=TRUE,0,VLOOKUP('Match Day'!$B$16,Results!$AH$154:$AI$161,2,FALSE)) -> 5 | P20: =IF(ISERROR(VLOOKUP('Match Day'!$B$16,Results!$AJ$154:$AK$161,2,FALSE))=TRUE,0,VLOOKUP('Match Day'!$B$16,Results!$AJ$154:$AK$161,2,FALSE)) -> 4 | Q20: =IF(ISERROR(VLOOKUP('Match Day'!$B$18,Results!$AH$154:$AI$161,2,FALSE))=TRUE,0,VLOOKUP('Match Day'!$B$18,Results!$AH$154:$AI$161,2,FALSE)) -> 1 | R20: =IF(ISERROR(VLOOKUP('Match Day'!$B$18,Results!$AJ$154:$AK$161,2,FALSE))=TRUE,0,VLOOKUP('Match Day'!$B$18,Results!$AJ$154:$AK$161,2,FALSE)) -> 2 | S20: =IF(Home!X24="",0,Results!$AW$12-AG20) -> 0 | T20: =IF(Home!X24="",0,Results!$AX$12-AH20) -> 1 | U20: 37 | V20: 37 | X20: 1 | AE20: =IF(A20="","",VLOOKUP(A20,Results!$A$4:$AL$191,36,FALSE)) -> 3 | AF20: 10 | AG20: 37 | AH20: 36
A21: =Results!A$164 -> 12 | B21: =VLOOKUP(A21,Handbook!$A$4:$C$24,3,FALSE) -> Women's Pole Vault | C21: =IF(ISERROR(VLOOKUP('Match Day'!$B$4,Results!$AH$164:$AI$171,2,FALSE))=TRUE,0,VLOOKUP('Match Day'!$B$4,Results!$AH$164:$AI$171,2,FALSE)) -> 4 | D21: =IF(ISERROR(VLOOKUP('Match Day'!$B$4,Results!$AJ$164:$AK$171,2,FALSE))=TRUE,0,VLOOKUP('Match Day'!$B$4,Results!$AJ$164:$AK$171,2,FALSE)) -> 6 | E21: =IF(ISERROR(VLOOKUP('Match Day'!$B$6,Results!$AH$164:$AI$171,2,FALSE))=TRUE,0,VLOOKUP('Match Day'!$B$6,Results!$AH$164:$AI$171,2,FALSE)) -> 7 | F21: =IF(ISERROR(VLOOKUP('Match Day'!$B$6,Results!$AJ$164:$AK$171,2,FALSE))=TRUE,0,VLOOKUP('Match Day'!$B$6,Results!$AJ$164:$AK$171,2,FALSE)) -> 9 | G21: =IF(ISERROR(VLOOKUP('Match Day'!$B$8,Results!$AH$164:$AI$171,2,FALSE))=TRUE,0,VLOOKUP('Match Day'!$B$8,Results!$AH$164:$AI$171,2,FALSE)) -> 6 | H21: =IF(ISERROR(VLOOKUP('Match Day'!$B$8,Results!$AJ$164:$AK$171,2,FALSE))=TRUE,0,VLOOKUP('Match Day'!$B$8,Results!$AJ$164:$AK$171,2,FALSE)) -> 0 | I21: =IF(ISERROR(VLOOKUP('Match Day'!$B$10,Results!$AH$164:$AI$171,2,FALSE))=TRUE,0,VLOOKUP('Match Day'!$B$10,Results!$AH$164:$AI$171,2,FALSE)) -> 3 | J21: =IF(ISERROR(VLOOKUP('Match Day'!$B$10,Results!$AJ$164:$AK$171,2,FALSE))=TRUE,0,VLOOKUP('Match Day'!$B$10,Results!$AJ$164:$AK$171,2,FALSE)) -> 7 | K21: =IF(ISERROR(VLOOKUP('Match Day'!$B$12,Results!$AH$164:$AI$171,2,FALSE))=TRUE,0,VLOOKUP('Match Day'!$B$12,Results!$AH$164:$AI$171,2,FALSE)) -> 9 | L21: =IF(ISERROR(VLOOKUP('Match Day'!$B$12,Results!$AJ$164:$AK$171,2,FALSE))=TRUE,0,VLOOKUP('Match Day'!$B$12,Results!$AJ$164:$AK$171,2,FALSE)) -> 0 | M21: =IF(ISERROR(VLOOKUP('Match Day'!$B$14,Results!$AH$164:$AI$171,2,FALSE))=TRUE,0,VLOOKUP('Match Day'!$B$14,Results!$AH$164:$AI$171,2,FALSE)) -> 0 | N21: =IF(ISERROR(VLOOKUP('Match Day'!$B$14,Results!$AJ$164:$AK$171,2,FALSE))=TRUE,0,VLOOKUP('Match Day'!$B$14,Results!$AJ$164:$AK$171,2,FALSE)) -> 0 | O21: =IF(ISERROR(VLOOKUP('Match Day'!$B$16,Results!$AH$164:$AI$171,2,FALSE))=TRUE,0,VLOOKUP('Match Day'!$B$16,Results!$AH$164:$AI$171,2,FALSE)) -> 5 | P21: =IF(ISERROR(VLOOKUP('Match Day'!$B$16,Results!$AJ$164:$AK$171,2,FALSE))=TRUE,0,VLOOKUP('Match Day'!$B$16,Results!$AJ$164:$AK$171,2,FALSE)) -> 5 | Q21: =IF(ISERROR(VLOOKUP('Match Day'!$B$18,Results!$AH$164:$AI$171,2,FALSE))=TRUE,0,VLOOKUP('Match Day'!$B$18,Results!$AH$164:$AI$171,2,FALSE)) -> 2 | R21: =IF(ISERROR(VLOOKUP('Match Day'!$B$18,Results!$AJ$164:$AK$171,2,FALSE))=TRUE,0,VLOOKUP('Match Day'!$B$18,Results!$AJ$164:$AK$171,2,FALSE)) -> 0 | S21: =IF(Home!X25="",0,Results!$AW$12-AG21) -> 1 | T21: =IF(Home!X25="",0,Results!$AX$12-AH21) -> 10 | U21: 37 | V21: 37 | X21: 1 | AE21: =IF(A21="","",VLOOKUP(A21,Results!$A$4:$AL$191,36,FALSE)) -> 2 | AF21: 9 | AG21: 36 | AH21: 27
A22: =Results!A$174 -> 9 | B22: =VLOOKUP(A22,Handbook!$A$4:$C$24,3,FALSE) -> Women's 4x100m Relay | C22: =IF(ISERROR(VLOOKUP('Match Day'!$B$4,Results!$AH$174:$AI$181,2,FALSE))=TRUE,0,VLOOKUP('Match Day'!$B$4,Results!$AH$174:$AI$181,2,FALSE)) -> 2 | D22: =IF(ISERROR(VLOOKUP('Match Day'!$B$4,Results!$AJ$174:$AK$181,2,FALSE))=TRUE,0,VLOOKUP('Match Day'!$B$4,Results!$AJ$174:$AK$181,2,FALSE)) -> 0 | E22: =IF(ISERROR(VLOOKUP('Match Day'!$B$6,Results!$AH$174:$AI$181,2,FALSE))=TRUE,0,VLOOKUP('Match Day'!$B$6,Results!$AH$174:$AI$181,2,FALSE)) -> 6 | F22: =IF(ISERROR(VLOOKUP('Match Day'!$B$6,Results!$AJ$174:$AK$181,2,FALSE))=TRUE,0,VLOOKUP('Match Day'!$B$6,Results!$AJ$174:$AK$181,2,FALSE)) -> 0 | G22: =IF(ISERROR(VLOOKUP('Match Day'!$B$8,Results!$AH$174:$AI$181,2,FALSE))=TRUE,0,VLOOKUP('Match Day'!$B$8,Results!$AH$174:$AI$181,2,FALSE)) -> 7 | H22: =IF(ISERROR(VLOOKUP('Match Day'!$B$8,Results!$AJ$174:$AK$181,2,FALSE))=TRUE,0,VLOOKUP('Match Day'!$B$8,Results!$AJ$174:$AK$181,2,FALSE)) -> 0 | I22: =IF(ISERROR(VLOOKUP('Match Day'!$B$10,Results!$AH$174:$AI$181,2,FALSE))=TRUE,0,VLOOKUP('Match Day'!$B$10,Results!$AH$174:$AI$181,2,FALSE)) -> 9 | J22: =IF(ISERROR(VLOOKUP('Match Day'!$B$10,Results!$AJ$174:$AK$181,2,FALSE))=TRUE,0,VLOOKUP('Match Day'!$B$10,Results!$AJ$174:$AK$181,2,FALSE)) -> 0 | K22: =IF(ISERROR(VLOOKUP('Match Day'!$B$12,Results!$AH$174:$AI$181,2,FALSE))=TRUE,0,VLOOKUP('Match Day'!$B$12,Results!$AH$174:$AI$181,2,FALSE)) -> 1 | L22: =IF(ISERROR(VLOOKUP('Match Day'!$B$12,Results!$AJ$174:$AK$181,2,FALSE))=TRUE,0,VLOOKUP('Match Day'!$B$12,Results!$AJ$174:$AK$181,2,FALSE)) -> 0 | M22: =IF(ISERROR(VLOOKUP('Match Day'!$B$14,Results!$AH$174:$AI$181,2,FALSE))=TRUE,0,VLOOKUP('Match Day'!$B$14,Results!$AH$174:$AI$181,2,FALSE)) -> 3 | N22: =IF(ISERROR(VLOOKUP('Match Day'!$B$14,Results!$AJ$174:$AK$181,2,FALSE))=TRUE,0,VLOOKUP('Match Day'!$B$14,Results!$AJ$174:$AK$181,2,FALSE)) -> 0 | O22: =IF(ISERROR(VLOOKUP('Match Day'!$B$16,Results!$AH$174:$AI$181,2,FALSE))=TRUE,0,VLOOKUP('Match Day'!$B$16,Results!$AH$174:$AI$181,2,FALSE)) -> 4 | P22: =IF(ISERROR(VLOOKUP('Match Day'!$B$16,Results!$AJ$174:$AK$181,2,FALSE))=TRUE,0,VLOOKUP('Match Day'!$B$16,Results!$AJ$174:$AK$181,2,FALSE)) -> 0 | Q22: =IF(ISERROR(VLOOKUP('Match Day'!$B$18,Results!$AH$174:$AI$181,2,FALSE))=TRUE,0,VLOOKUP('Match Day'!$B$18,Results!$AH$174:$AI$181,2,FALSE)) -> 5 | R22: =IF(ISERROR(VLOOKUP('Match Day'!$B$18,Results!$AJ$174:$AK$181,2,FALSE))=TRUE,0,VLOOKUP('Match Day'!$B$18,Results!$AJ$174:$AK$181,2,FALSE)) -> 0 | S22: =IF(Home!X26="",0,Results!$AW$12-AG22) -> 0 | T22: =IF(Home!X26="",0,Results!$AX$12-AH22) -> 37 | U22: 37 | V22: 37 | X22: 1 | AE22: =IF(A22="","",VLOOKUP(A22,Results!$A$4:$AL$191,36,FALSE)) ->  | AG22: 37 | AH22: 0
A23: =Results!A$184 -> 10 | B23: =VLOOKUP(A23,Handbook!$A$4:$C$24,3,FALSE) -> Women's 4x400m Relay | C23: =IF(ISERROR(VLOOKUP('Match Day'!$B$4,Results!$AH$184:$AI$191,2,FALSE))=TRUE,0,VLOOKUP('Match Day'!$B$4,Results!$AH$184:$AI$191,2,FALSE)) -> 0 | D23: =IF(ISERROR(VLOOKUP('Match Day'!$B$4,Results!$AJ$184:$AK$191,2,FALSE))=TRUE,0,VLOOKUP('Match Day'!$B$4,Results!$AJ$184:$AK$191,2,FALSE)) -> 0 | E23: =IF(ISERROR(VLOOKUP('Match Day'!$B$6,Results!$AH$184:$AI$191,2,FALSE))=TRUE,0,VLOOKUP('Match Day'!$B$6,Results!$AH$184:$AI$191,2,FALSE)) -> 6 | F23: =IF(ISERROR(VLOOKUP('Match Day'!$B$6,Results!$AJ$184:$AK$191,2,FALSE))=TRUE,0,VLOOKUP('Match Day'!$B$6,Results!$AJ$184:$AK$191,2,FALSE)) -> 0 | G23: =IF(ISERROR(VLOOKUP('Match Day'!$B$8,Results!$AH$184:$AI$191,2,FALSE))=TRUE,0,VLOOKUP('Match Day'!$B$8,Results!$AH$184:$AI$191,2,FALSE)) -> 5 | H23: =IF(ISERROR(VLOOKUP('Match Day'!$B$8,Results!$AJ$184:$AK$191,2,FALSE))=TRUE,0,VLOOKUP('Match Day'!$B$8,Results!$AJ$184:$AK$191,2,FALSE)) -> 0 | I23: =IF(ISERROR(VLOOKUP('Match Day'!$B$10,Results!$AH$184:$AI$191,2,FALSE))=TRUE,0,VLOOKUP('Match Day'!$B$10,Results!$AH$184:$AI$191,2,FALSE)) -> 4 | J23: =IF(ISERROR(VLOOKUP('Match Day'!$B$10,Results!$AJ$184:$AK$191,2,FALSE))=TRUE,0,VLOOKUP('Match Day'!$B$10,Results!$AJ$184:$AK$191,2,FALSE)) -> 0 | K23: =IF(ISERROR(VLOOKUP('Match Day'!$B$12,Results!$AH$184:$AI$191,2,FALSE))=TRUE,0,VLOOKUP('Match Day'!$B$12,Results!$AH$184:$AI$191,2,FALSE)) -> 2 | L23: =IF(ISERROR(VLOOKUP('Match Day'!$B$12,Results!$AJ$184:$AK$191,2,FALSE))=TRUE,0,VLOOKUP('Match Day'!$B$12,Results!$AJ$184:$AK$191,2,FALSE)) -> 0 | M23: =IF(ISERROR(VLOOKUP('Match Day'!$B$14,Results!$AH$184:$AI$191,2,FALSE))=TRUE,0,VLOOKUP('Match Day'!$B$14,Results!$AH$184:$AI$191,2,FALSE)) -> 7 | N23: =IF(ISERROR(VLOOKUP('Match Day'!$B$14,Results!$AJ$184:$AK$191,2,FALSE))=TRUE,0,VLOOKUP('Match Day'!$B$14,Results!$AJ$184:$AK$191,2,FALSE)) -> 0 | O23: =IF(ISERROR(VLOOKUP('Match Day'!$B$16,Results!$AH$184:$AI$191,2,FALSE))=TRUE,0,VLOOKUP('Match Day'!$B$16,Results!$AH$184:$AI$191,2,FALSE)) -> 9 | P23: =IF(ISERROR(VLOOKUP('Match Day'!$B$16,Results!$AJ$184:$AK$191,2,FALSE))=TRUE,0,VLOOKUP('Match Day'!$B$16,Results!$AJ$184:$AK$191,2,FALSE)) -> 0 | Q23: =IF(ISERROR(VLOOKUP('Match Day'!$B$18,Results!$AH$184:$AI$191,2,FALSE))=TRUE,0,VLOOKUP('Match Day'!$B$18,Results!$AH$184:$AI$191,2,FALSE)) -> 3 | R23: =IF(ISERROR(VLOOKUP('Match Day'!$B$18,Results!$AJ$184:$AK$191,2,FALSE))=TRUE,0,VLOOKUP('Match Day'!$B$18,Results!$AJ$184:$AK$191,2,FALSE)) -> 0 | S23: =IF(Home!X27="",0,Results!$AW$12-AG23) -> 1 | T23: =IF(Home!X27="",0,Results!$AX$12-AH23) -> 37 | U23: 37 | V23: 37 | X23: 1 | AE23: =IF(A23="","",VLOOKUP(A23,Results!$A$4:$AL$191,36,FALSE)) -> 0 | AF23: 7 | AG23: 36 | AH23: 0
B24: =IF($A24="","",CONCATENATE(VLOOKUP($A24,#REF!,4,FALSE)," ",VLOOKUP($A24,#REF!,5,FALSE))) ->  | C24: =SUM(C5:C23) -> 58 | D24: =SUM(D5:D23) -> 48 | E24: 104 | F24: 100 | G24: 88 | H24: 60 | I24: 69 | J24: 41 | K24: =SUM(K5:K23) -> 91 | L24: 58 | M24: 91 | N24: 71 | O24: 102 | P24: 83 | Q24: 92 | R24: 76 | S24: 8 | T24: 166 | U24: 703 | V24: 703 | X24: =SUM(X5:X23) -> 19 | AE24: =IF(A24="","",VLOOKUP(A24,Results!$A$93:$AL$182,32,FALSE)) -> 
A26: =ResultsF!A$4 -> 3 | B26: =VLOOKUP(A26,Handbook!$A$26:$AK$46,3,FALSE) -> Women's 100m | C26: =IF(ISERROR(VLOOKUP('Match Day'!$B$4,ResultsF!$AF$4:$AG$11,2,FALSE))=TRUE,0,VLOOKUP('Match Day'!$B$4,ResultsF!$AF$4:$AG$11,2,FALSE)) -> 0 | D26: =IF(ISERROR(VLOOKUP('Match Day'!$B$4,ResultsF!$AH$4:$AI$11,2,FALSE))=TRUE,0,VLOOKUP('Match Day'!$B$4,ResultsF!$AH$4:$AI$11,2,FALSE)) -> 0 | E26: =IF(ISERROR(VLOOKUP('Match Day'!$B$6,ResultsF!$AF$4:$AG$11,2,FALSE))=TRUE,0,VLOOKUP('Match Day'!$B$6,ResultsF!$AF$4:$AG$11,2,FALSE)) -> 0 | F26: =IF(ISERROR(VLOOKUP('Match Day'!$B$6,ResultsF!$AH$4:$AI$11,2,FALSE))=TRUE,0,VLOOKUP('Match Day'!$B$6,ResultsF!$AH$4:$AI$11,2,FALSE)) -> 0 | G26: =IF(ISERROR(VLOOKUP('Match Day'!$B$8,ResultsF!$AF$4:$AG$11,2,FALSE))=TRUE,0,VLOOKUP('Match Day'!$B$8,ResultsF!$AF$4:$AG$11,2,FALSE)) -> 0 | H26: =IF(ISERROR(VLOOKUP('Match Day'!$B$8,ResultsF!$AH$4:$AI$11,2,FALSE))=TRUE,0,VLOOKUP('Match Day'!$B$8,ResultsF!$AH$4:$AI$11,2,FALSE)) -> 0 | I26: =IF(ISERROR(VLOOKUP('Match Day'!$B$10,ResultsF!$AF$4:$AG$11,2,FALSE))=TRUE,0,VLOOKUP('Match Day'!$B$10,ResultsF!$AF$4:$AG$11,2,FALSE)) -> 0 | J26: =IF(ISERROR(VLOOKUP('Match Day'!$B$10,ResultsF!$AH$4:$AI$11,2,FALSE))=TRUE,0,VLOOKUP('Match Day'!$B$10,ResultsF!$AH$4:$AI$11,2,FALSE)) -> 0 | K26: =IF(ISERROR(VLOOKUP('Match Day'!$B$12,ResultsF!$AF$4:$AG$11,2,FALSE))=TRUE,0,VLOOKUP('Match Day'!$B$12,ResultsF!$AF$4:$AG$11,2,FALSE)) -> 0 | L26: =IF(ISERROR(VLOOKUP('Match Day'!$B$12,ResultsF!$AH$4:$AI$11,2,FALSE))=TRUE,0,VLOOKUP('Match Day'!$B$12,ResultsF!$AH$4:$AI$11,2,FALSE)) -> 0 | M26: =IF(ISERROR(VLOOKUP('Match Day'!$B$14,ResultsF!$AF$4:$AG$11,2,FALSE))=TRUE,0,VLOOKUP('Match Day'!$B$14,ResultsF!$AF$4:$AG$11,2,FALSE)) -> 0 | N26: =IF(ISERROR(VLOOKUP('Match Day'!$B$14,ResultsF!$AH$4:$AI$11,2,FALSE))=TRUE,0,VLOOKUP('Match Day'!$B$14,ResultsF!$AH$4:$AI$11,2,FALSE)) -> 0 | O26: =IF(ISERROR(VLOOKUP('Match Day'!$B$16,ResultsF!$AF$4:$AG$11,2,FALSE))=TRUE,0,VLOOKUP('Match Day'!$B$16,ResultsF!$AF$4:$AG$11,2,FALSE)) -> 0 | P26: =IF(ISERROR(VLOOKUP('Match Day'!$B$16,ResultsF!$AH$4:$AI$11,2,FALSE))=TRUE,0,VLOOKUP('Match Day'!$B$16,ResultsF!$AH$4:$AI$11,2,FALSE)) -> 0 | Q26: =IF(ISERROR(VLOOKUP('Match Day'!$B$18,ResultsF!$AF$4:$AG$11,2,FALSE))=TRUE,0,VLOOKUP('Match Day'!$B$18,ResultsF!$AF$4:$AG$11,2,FALSE)) -> 0 | R26: =IF(ISERROR(VLOOKUP('Match Day'!$B$18,ResultsF!$AH$4:$AI$11,2,FALSE))=TRUE,0,VLOOKUP('Match Day'!$B$18,ResultsF!$AH$4:$AI$11,2,FALSE)) -> 0 | S26: =IF(Home!#REF!="",0,ResultsF!$AT$12-AG26) ->  | T26: =IF(Home!#REF!="",0,ResultsF!$AU$12-AH26) ->  | U26: =C26+E26+G26+I26+K26+M26+O26+Q26+S26 ->  | V26: =D26+F26+H26+J26+L26+N26+P26+R26+T26 ->  | X26: =IF(U26>0,1,0) ->  | AE26: =IF(A26="","",VLOOKUP(A26,ResultsF!$A$4:$AJ$191,36,FALSE)) -> 4 | AF26: =AE26+7 -> 11 | AG26: =C26+E26+G26+I26+K26+M26+O26+Q26 -> 0 | AH26: =D26+F26+H26+J26+L26+N26+P26+R26 -> 0
A27: =ResultsF!A$14 -> 7 | B27: =VLOOKUP(A27,Handbook!$A$26:$AK$46,3,FALSE) -> Women's 200m | C27: =IF(ISERROR(VLOOKUP('Match Day'!$B$4,ResultsF!$AF$14:$AG$21,2,FALSE))=TRUE,0,VLOOKUP('Match Day'!$B$4,ResultsF!$AF$14:$AG$21,2,FALSE)) -> 0 | D27: =IF(ISERROR(VLOOKUP('Match Day'!$B$4,ResultsF!$AH$14:$AI$21,2,FALSE))=TRUE,0,VLOOKUP('Match Day'!$B$4,ResultsF!$AH$14:$AI$21,2,FALSE)) -> 0 | E27: =IF(ISERROR(VLOOKUP('Match Day'!$B$6,ResultsF!$AF$14:$AG$21,2,FALSE))=TRUE,0,VLOOKUP('Match Day'!$B$6,ResultsF!$AF$14:$AG$21,2,FALSE)) -> 0 | F27: =IF(ISERROR(VLOOKUP('Match Day'!$B$6,ResultsF!$AH$14:$AI$21,2,FALSE))=TRUE,0,VLOOKUP('Match Day'!$B$6,ResultsF!$AH$14:$AI$21,2,FALSE)) -> 0 | G27: =IF(ISERROR(VLOOKUP('Match Day'!$B$8,ResultsF!$AF$14:$AG$21,2,FALSE))=TRUE,0,VLOOKUP('Match Day'!$B$8,ResultsF!$AF$14:$AG$21,2,FALSE)) -> 0 | H27: =IF(ISERROR(VLOOKUP('Match Day'!$B$8,ResultsF!$AH$14:$AI$21,2,FALSE))=TRUE,0,VLOOKUP('Match Day'!$B$8,ResultsF!$AH$14:$AI$21,2,FALSE)) -> 0 | I27: =IF(ISERROR(VLOOKUP('Match Day'!$B$10,ResultsF!$AF$14:$AG$21,2,FALSE))=TRUE,0,VLOOKUP('Match Day'!$B$10,ResultsF!$AF$14:$AG$21,2,FALSE)) -> 0 | J27: =IF(ISERROR(VLOOKUP('Match Day'!$B$10,ResultsF!$AH$14:$AI$21,2,FALSE))=TRUE,0,VLOOKUP('Match Day'!$B$10,ResultsF!$AH$14:$AI$21,2,FALSE)) -> 0 | K27: =IF(ISERROR(VLOOKUP('Match Day'!$B$12,ResultsF!$AF$14:$AG$21,2,FALSE))=TRUE,0,VLOOKUP('Match Day'!$B$12,ResultsF!$AF$14:$AG$21,2,FALSE)) -> 0 | L27: =IF(ISERROR(VLOOKUP('Match Day'!$B$12,ResultsF!$AH$14:$AI$21,2,FALSE))=TRUE,0,VLOOKUP('Match Day'!$B$12,ResultsF!$AH$14:$AI$21,2,FALSE)) -> 0 | M27: =IF(ISERROR(VLOOKUP('Match Day'!$B$14,ResultsF!$AF$14:$AG$21,2,FALSE))=TRUE,0,VLOOKUP('Match Day'!$B$14,ResultsF!$AF$14:$AG$21,2,FALSE)) -> 0 | N27: =IF(ISERROR(VLOOKUP('Match Day'!$B$14,ResultsF!$AH$14:$AI$21,2,FALSE))=TRUE,0,VLOOKUP('Match Day'!$B$14,ResultsF!$AH$14:$AI$21,2,FALSE)) -> 0 | O27: =IF(ISERROR(VLOOKUP('Match Day'!$B$16,ResultsF!$AF$14:$AG$21,2,FALSE))=TRUE,0,VLOOKUP('Match Day'!$B$16,ResultsF!$AF$14:$AG$21,2,FALSE)) -> 0 | P27: =IF(ISERROR(VLOOKUP('Match Day'!$B$16,ResultsF!$AH$14:$AI$21,2,FALSE))=TRUE,0,VLOOKUP('Match Day'!$B$16,ResultsF!$AH$14:$AI$21,2,FALSE)) -> 0 | Q27: =IF(ISERROR(VLOOKUP('Match Day'!$B$18,ResultsF!$AF$14:$AG$21,2,FALSE))=TRUE,0,VLOOKUP('Match Day'!$B$18,ResultsF!$AF$14:$AG$21,2,FALSE)) -> 0 | R27: =IF(ISERROR(VLOOKUP('Match Day'!$B$18,ResultsF!$AH$14:$AI$21,2,FALSE))=TRUE,0,VLOOKUP('Match Day'!$B$18,ResultsF!$AH$14:$AI$21,2,FALSE)) -> 0 | S27: =IF(Home!#REF!="",0,ResultsF!$AT$12-AG27) ->  | T27: =IF(Home!#REF!="",0,ResultsF!$AU$12-AH27) ->  | X27: =IF(U27>0,1,0) ->  | AE27: =IF(A27="","",VLOOKUP(A27,ResultsF!$A$4:$AJ$191,36,FALSE)) -> 14 | AF27: =AE27+7 -> 21 | AG27: 0 | AH27: 0
A28: =ResultsF!A$24 -> 4 | B28: =VLOOKUP(A28,Handbook!$A$26:$AK$46,3,FALSE) -> Women's 400m | C28: =IF(ISERROR(VLOOKUP('Match Day'!$B$4,ResultsF!$AF$24:$AG$31,2,FALSE))=TRUE,0,VLOOKUP('Match Day'!$B$4,ResultsF!$AF$24:$AG$31,2,FALSE)) -> 0 | D28: =IF(ISERROR(VLOOKUP('Match Day'!$B$4,ResultsF!$AH$24:$AI$31,2,FALSE))=TRUE,0,VLOOKUP('Match Day'!$B$4,ResultsF!$AH$24:$AI$31,2,FALSE)) -> 0 | E28: =IF(ISERROR(VLOOKUP('Match Day'!$B$6,ResultsF!$AF$24:$AG$31,2,FALSE))=TRUE,0,VLOOKUP('Match Day'!$B$6,ResultsF!$AF$24:$AG$31,2,FALSE)) -> 0 | F28: =IF(ISERROR(VLOOKUP('Match Day'!$B$6,ResultsF!$AH$24:$AI$31,2,FALSE))=TRUE,0,VLOOKUP('Match Day'!$B$6,ResultsF!$AH$24:$AI$31,2,FALSE)) -> 0 | G28: =IF(ISERROR(VLOOKUP('Match Day'!$B$8,ResultsF!$AF$24:$AG$31,2,FALSE))=TRUE,0,VLOOKUP('Match Day'!$B$8,ResultsF!$AF$24:$AG$31,2,FALSE)) -> 0 | H28: =IF(ISERROR(VLOOKUP('Match Day'!$B$8,ResultsF!$AH$24:$AI$31,2,FALSE))=TRUE,0,VLOOKUP('Match Day'!$B$8,ResultsF!$AH$24:$AI$31,2,FALSE)) -> 0 | I28: =IF(ISERROR(VLOOKUP('Match Day'!$B$10,ResultsF!$AF$24:$AG$31,2,FALSE))=TRUE,0,VLOOKUP('Match Day'!$B$10,ResultsF!$AF$24:$AG$31,2,FALSE)) -> 0 | J28: =IF(ISERROR(VLOOKUP('Match Day'!$B$10,ResultsF!$AH$24:$AI$31,2,FALSE))=TRUE,0,VLOOKUP('Match Day'!$B$10,ResultsF!$AH$24:$AI$31,2,FALSE)) -> 0 | K28: =IF(ISERROR(VLOOKUP('Match Day'!$B$12,ResultsF!$AF$24:$AG$31,2,FALSE))=TRUE,0,VLOOKUP('Match Day'!$B$12,ResultsF!$AF$24:$AG$31,2,FALSE)) -> 0 | L28: =IF(ISERROR(VLOOKUP('Match Day'!$B$12,ResultsF!$AH$24:$AI$31,2,FALSE))=TRUE,0,VLOOKUP('Match Day'!$B$12,ResultsF!$AH$24:$AI$31,2,FALSE)) -> 0 | M28: =IF(ISERROR(VLOOKUP('Match Day'!$B$14,ResultsF!$AF$24:$AG$31,2,FALSE))=TRUE,0,VLOOKUP('Match Day'!$B$14,ResultsF!$AF$24:$AG$31,2,FALSE)) -> 0 | N28: =IF(ISERROR(VLOOKUP('Match Day'!$B$14,ResultsF!$AH$24:$AI$31,2,FALSE))=TRUE,0,VLOOKUP('Match Day'!$B$14,ResultsF!$AH$24:$AI$31,2,FALSE)) -> 0 | O28: =IF(ISERROR(VLOOKUP('Match Day'!$B$16,ResultsF!$AF$24:$AG$31,2,FALSE))=TRUE,0,VLOOKUP('Match Day'!$B$16,ResultsF!$AF$24:$AG$31,2,FALSE)) -> 0 | P28: =IF(ISERROR(VLOOKUP('Match Day'!$B$16,ResultsF!$AH$24:$AI$31,2,FALSE))=TRUE,0,VLOOKUP('Match Day'!$B$16,ResultsF!$AH$24:$AI$31,2,FALSE)) -> 0 | Q28: =IF(ISERROR(VLOOKUP('Match Day'!$B$18,ResultsF!$AF$24:$AG$31,2,FALSE))=TRUE,0,VLOOKUP('Match Day'!$B$18,ResultsF!$AF$24:$AG$31,2,FALSE)) -> 0 | R28: =IF(ISERROR(VLOOKUP('Match Day'!$B$18,ResultsF!$AH$24:$AI$31,2,FALSE))=TRUE,0,VLOOKUP('Match Day'!$B$18,ResultsF!$AH$24:$AI$31,2,FALSE)) -> 0 | S28: =IF(Home!#REF!="",0,ResultsF!$AT$12-AG28) ->  | T28: =IF(Home!#REF!="",0,ResultsF!$AU$12-AH28) ->  | AE28: =IF(A28="","",VLOOKUP(A28,ResultsF!$A$4:$AJ$191,36,FALSE)) -> 24 | AF28: 31 | AG28: 0 | AH28: 0
A29: =ResultsF!A$34 -> 2 | B29: =VLOOKUP(A29,Handbook!$A$26:$AK$46,3,FALSE) -> Women's 800m | C29: =IF(ISERROR(VLOOKUP('Match Day'!$B$4,ResultsF!$AF$34:$AG$41,2,FALSE))=TRUE,0,VLOOKUP('Match Day'!$B$4,ResultsF!$AF$34:$AG$41,2,FALSE)) -> 0 | D29: =IF(ISERROR(VLOOKUP('Match Day'!$B$4,ResultsF!$AH$34:$AI$41,2,FALSE))=TRUE,0,VLOOKUP('Match Day'!$B$4,ResultsF!$AH$34:$AI$41,2,FALSE)) -> 0 | E29: =IF(ISERROR(VLOOKUP('Match Day'!$B$6,ResultsF!$AF$34:$AG$41,2,FALSE))=TRUE,0,VLOOKUP('Match Day'!$B$6,ResultsF!$AF$34:$AG$41,2,FALSE)) -> 0 | F29: =IF(ISERROR(VLOOKUP('Match Day'!$B$6,ResultsF!$AH$34:$AI$41,2,FALSE))=TRUE,0,VLOOKUP('Match Day'!$B$6,ResultsF!$AH$34:$AI$41,2,FALSE)) -> 0 | G29: =IF(ISERROR(VLOOKUP('Match Day'!$B$8,ResultsF!$AF$34:$AG$41,2,FALSE))=TRUE,0,VLOOKUP('Match Day'!$B$8,ResultsF!$AF$34:$AG$41,2,FALSE)) -> 0 | H29: =IF(ISERROR(VLOOKUP('Match Day'!$B$8,ResultsF!$AH$34:$AI$41,2,FALSE))=TRUE,0,VLOOKUP('Match Day'!$B$8,ResultsF!$AH$34:$AI$41,2,FALSE)) -> 0 | I29: =IF(ISERROR(VLOOKUP('Match Day'!$B$10,ResultsF!$AF$34:$AG$41,2,FALSE))=TRUE,0,VLOOKUP('Match Day'!$B$10,ResultsF!$AF$34:$AG$41,2,FALSE)) -> 0 | J29: =IF(ISERROR(VLOOKUP('Match Day'!$B$10,ResultsF!$AH$34:$AI$41,2,FALSE))=TRUE,0,VLOOKUP('Match Day'!$B$10,ResultsF!$AH$34:$AI$41,2,FALSE)) -> 0 | K29: =IF(ISERROR(VLOOKUP('Match Day'!$B$12,ResultsF!$AF$34:$AG$41,2,FALSE))=TRUE,0,VLOOKUP('Match Day'!$B$12,ResultsF!$AF$34:$AG$41,2,FALSE)) -> 0 | L29: =IF(ISERROR(VLOOKUP('Match Day'!$B$12,ResultsF!$AH$34:$AI$41,2,FALSE))=TRUE,0,VLOOKUP('Match Day'!$B$12,ResultsF!$AH$34:$AI$41,2,FALSE)) -> 0 | M29: =IF(ISERROR(VLOOKUP('Match Day'!$B$14,ResultsF!$AF$34:$AG$41,2,FALSE))=TRUE,0,VLOOKUP('Match Day'!$B$14,ResultsF!$AF$34:$AG$41,2,FALSE)) -> 0 | N29: =IF(ISERROR(VLOOKUP('Match Day'!$B$14,ResultsF!$AH$34:$AI$41,2,FALSE))=TRUE,0,VLOOKUP('Match Day'!$B$14,ResultsF!$AH$34:$AI$41,2,FALSE)) -> 0 | O29: =IF(ISERROR(VLOOKUP('Match Day'!$B$16,ResultsF!$AF$34:$AG$41,2,FALSE))=TRUE,0,VLOOKUP('Match Day'!$B$16,ResultsF!$AF$34:$AG$41,2,FALSE)) -> 0 | P29: =IF(ISERROR(VLOOKUP('Match Day'!$B$16,ResultsF!$AH$34:$AI$41,2,FALSE))=TRUE,0,VLOOKUP('Match Day'!$B$16,ResultsF!$AH$34:$AI$41,2,FALSE)) -> 0 | Q29: =IF(ISERROR(VLOOKUP('Match Day'!$B$18,ResultsF!$AF$34:$AG$41,2,FALSE))=TRUE,0,VLOOKUP('Match Day'!$B$18,ResultsF!$AF$34:$AG$41,2,FALSE)) -> 0 | R29: =IF(ISERROR(VLOOKUP('Match Day'!$B$18,ResultsF!$AH$34:$AI$41,2,FALSE))=TRUE,0,VLOOKUP('Match Day'!$B$18,ResultsF!$AH$34:$AI$41,2,FALSE)) -> 0 | S29: =IF(Home!#REF!="",0,ResultsF!$AT$12-AG29) ->  | T29: =IF(Home!#REF!="",0,ResultsF!$AU$12-AH29) ->  | AE29: =IF(A29="","",VLOOKUP(A29,ResultsF!$A$4:$AJ$191,36,FALSE)) -> 34 | AF29: 41 | AG29: 0 | AH29: 0
A30: =ResultsF!A$44 -> 8 | B30: =VLOOKUP(A30,Handbook!$A$26:$AK$46,3,FALSE) -> Women's 1500m | C30: =IF(ISERROR(VLOOKUP('Match Day'!$B$4,ResultsF!$AF$44:$AG$51,2,FALSE))=TRUE,0,VLOOKUP('Match Day'!$B$4,ResultsF!$AF$44:$AG$51,2,FALSE)) -> 0 | D30: =IF(ISERROR(VLOOKUP('Match Day'!$B$4,ResultsF!$AH$44:$AI$51,2,FALSE))=TRUE,0,VLOOKUP('Match Day'!$B$4,ResultsF!$AH$44:$AI$51,2,FALSE)) -> 0 | E30: =IF(ISERROR(VLOOKUP('Match Day'!$B$6,ResultsF!$AF$44:$AG$51,2,FALSE))=TRUE,0,VLOOKUP('Match Day'!$B$6,ResultsF!$AF$44:$AG$51,2,FALSE)) -> 0 | F30: =IF(ISERROR(VLOOKUP('Match Day'!$B$6,ResultsF!$AH$44:$AI$51,2,FALSE))=TRUE,0,VLOOKUP('Match Day'!$B$6,ResultsF!$AH$44:$AI$51,2,FALSE)) -> 0 | G30: =IF(ISERROR(VLOOKUP('Match Day'!$B$8,ResultsF!$AF$44:$AG$51,2,FALSE))=TRUE,0,VLOOKUP('Match Day'!$B$8,ResultsF!$AF$44:$AG$51,2,FALSE)) -> 0 | H30: =IF(ISERROR(VLOOKUP('Match Day'!$B$8,ResultsF!$AH$44:$AI$51,2,FALSE))=TRUE,0,VLOOKUP('Match Day'!$B$8,ResultsF!$AH$44:$AI$51,2,FALSE)) -> 0 | I30: =IF(ISERROR(VLOOKUP('Match Day'!$B$10,ResultsF!$AF$44:$AG$51,2,FALSE))=TRUE,0,VLOOKUP('Match Day'!$B$10,ResultsF!$AF$44:$AG$51,2,FALSE)) -> 0 | J30: =IF(ISERROR(VLOOKUP('Match Day'!$B$10,ResultsF!$AH$44:$AI$51,2,FALSE))=TRUE,0,VLOOKUP('Match Day'!$B$10,ResultsF!$AH$44:$AI$51,2,FALSE)) -> 0 | K30: =IF(ISERROR(VLOOKUP('Match Day'!$B$12,ResultsF!$AF$44:$AG$51,2,FALSE))=TRUE,0,VLOOKUP('Match Day'!$B$12,ResultsF!$AF$44:$AG$51,2,FALSE)) -> 0 | L30: =IF(ISERROR(VLOOKUP('Match Day'!$B$12,ResultsF!$AH$44:$AI$51,2,FALSE))=TRUE,0,VLOOKUP('Match Day'!$B$12,ResultsF!$AH$44:$AI$51,2,FALSE)) -> 0 | M30: =IF(ISERROR(VLOOKUP('Match Day'!$B$14,ResultsF!$AF$44:$AG$51,2,FALSE))=TRUE,0,VLOOKUP('Match Day'!$B$14,ResultsF!$AF$44:$AG$51,2,FALSE)) -> 0 | N30: =IF(ISERROR(VLOOKUP('Match Day'!$B$14,ResultsF!$AH$44:$AI$51,2,FALSE))=TRUE,0,VLOOKUP('Match Day'!$B$14,ResultsF!$AH$44:$AI$51,2,FALSE)) -> 0 | O30: =IF(ISERROR(VLOOKUP('Match Day'!$B$16,ResultsF!$AF$44:$AG$51,2,FALSE))=TRUE,0,VLOOKUP('Match Day'!$B$16,ResultsF!$AF$44:$AG$51,2,FALSE)) -> 0 | P30: =IF(ISERROR(VLOOKUP('Match Day'!$B$16,ResultsF!$AH$44:$AI$51,2,FALSE))=TRUE,0,VLOOKUP('Match Day'!$B$16,ResultsF!$AH$44:$AI$51,2,FALSE)) -> 0 | Q30: =IF(ISERROR(VLOOKUP('Match Day'!$B$18,ResultsF!$AF$44:$AG$51,2,FALSE))=TRUE,0,VLOOKUP('Match Day'!$B$18,ResultsF!$AF$44:$AG$51,2,FALSE)) -> 0 | R30: =IF(ISERROR(VLOOKUP('Match Day'!$B$18,ResultsF!$AH$44:$AI$51,2,FALSE))=TRUE,0,VLOOKUP('Match Day'!$B$18,ResultsF!$AH$44:$AI$51,2,FALSE)) -> 0 | S30: =IF(Home!#REF!="",0,ResultsF!$AT$12-AG30) ->  | T30: =IF(Home!#REF!="",0,ResultsF!$AU$12-AH30) ->  | AE30: =IF(A30="","",VLOOKUP(A30,ResultsF!$A$4:$AJ$191,36,FALSE)) -> 44 | AF30: 51 | AG30: 0 | AH30: 0
A31: =ResultsF!A$54 -> 5 | B31: =VLOOKUP(A31,Handbook!$A$26:$AK$46,3,FALSE) -> Women's 3000m S/Chase | C31: =IF(ISERROR(VLOOKUP('Match Day'!$B$4,ResultsF!$AF$54:$AG$61,2,FALSE))=TRUE,0,VLOOKUP('Match Day'!$B$4,ResultsF!$AF$54:$AG$61,2,FALSE)) -> 0 | D31: =IF(ISERROR(VLOOKUP('Match Day'!$B$4,ResultsF!$AH$54:$AI$61,2,FALSE))=TRUE,0,VLOOKUP('Match Day'!$B$4,ResultsF!$AH$54:$AI$61,2,FALSE)) -> 0 | E31: =IF(ISERROR(VLOOKUP('Match Day'!$B$6,ResultsF!$AF$54:$AG$61,2,FALSE))=TRUE,0,VLOOKUP('Match Day'!$B$6,ResultsF!$AF$54:$AG$61,2,FALSE)) -> 0 | F31: =IF(ISERROR(VLOOKUP('Match Day'!$B$6,ResultsF!$AH$54:$AI$61,2,FALSE))=TRUE,0,VLOOKUP('Match Day'!$B$6,ResultsF!$AH$54:$AI$61,2,FALSE)) -> 0 | G31: =IF(ISERROR(VLOOKUP('Match Day'!$B$8,ResultsF!$AF$54:$AG$61,2,FALSE))=TRUE,0,VLOOKUP('Match Day'!$B$8,ResultsF!$AF$54:$AG$61,2,FALSE)) -> 0 | H31: =IF(ISERROR(VLOOKUP('Match Day'!$B$8,ResultsF!$AH$54:$AI$61,2,FALSE))=TRUE,0,VLOOKUP('Match Day'!$B$8,ResultsF!$AH$54:$AI$61,2,FALSE)) -> 0 | I31: =IF(ISERROR(VLOOKUP('Match Day'!$B$10,ResultsF!$AF$54:$AG$61,2,FALSE))=TRUE,0,VLOOKUP('Match Day'!$B$10,ResultsF!$AF$54:$AG$61,2,FALSE)) -> 0 | J31: =IF(ISERROR(VLOOKUP('Match Day'!$B$10,ResultsF!$AH$54:$AI$61,2,FALSE))=TRUE,0,VLOOKUP('Match Day'!$B$10,ResultsF!$AH$54:$AI$61,2,FALSE)) -> 0 | K31: =IF(ISERROR(VLOOKUP('Match Day'!$B$12,ResultsF!$AF$54:$AG$61,2,FALSE))=TRUE,0,VLOOKUP('Match Day'!$B$12,ResultsF!$AF$54:$AG$61,2,FALSE)) -> 0 | L31: =IF(ISERROR(VLOOKUP('Match Day'!$B$12,ResultsF!$AH$54:$AI$61,2,FALSE))=TRUE,0,VLOOKUP('Match Day'!$B$12,ResultsF!$AH$54:$AI$61,2,FALSE)) -> 0 | M31: =IF(ISERROR(VLOOKUP('Match Day'!$B$14,ResultsF!$AF$54:$AG$61,2,FALSE))=TRUE,0,VLOOKUP('Match Day'!$B$14,ResultsF!$AF$54:$AG$61,2,FALSE)) -> 0 | N31: =IF(ISERROR(VLOOKUP('Match Day'!$B$14,ResultsF!$AH$54:$AI$61,2,FALSE))=TRUE,0,VLOOKUP('Match Day'!$B$14,ResultsF!$AH$54:$AI$61,2,FALSE)) -> 0 | O31: =IF(ISERROR(VLOOKUP('Match Day'!$B$16,ResultsF!$AF$54:$AG$61,2,FALSE))=TRUE,0,VLOOKUP('Match Day'!$B$16,ResultsF!$AF$54:$AG$61,2,FALSE)) -> 0 | P31: =IF(ISERROR(VLOOKUP('Match Day'!$B$16,ResultsF!$AH$54:$AI$61,2,FALSE))=TRUE,0,VLOOKUP('Match Day'!$B$16,ResultsF!$AH$54:$AI$61,2,FALSE)) -> 0 | Q31: =IF(ISERROR(VLOOKUP('Match Day'!$B$18,ResultsF!$AF$54:$AG$61,2,FALSE))=TRUE,0,VLOOKUP('Match Day'!$B$18,ResultsF!$AF$54:$AG$61,2,FALSE)) -> 0 | R31: =IF(ISERROR(VLOOKUP('Match Day'!$B$18,ResultsF!$AH$54:$AI$61,2,FALSE))=TRUE,0,VLOOKUP('Match Day'!$B$18,ResultsF!$AH$54:$AI$61,2,FALSE)) -> 0 | S31: =IF(Home!AD36="",0,ResultsF!$AT$12-AG31) -> 0 | T31: =IF(Home!AD36="",0,ResultsF!$AU$12-AH31) -> 0 | U31: 0 | V31: 0 | X31: 0 | AE31: =IF(A31="","",VLOOKUP(A31,ResultsF!$A$4:$AJ$191,36,FALSE)) -> 54 | AF31: 61 | AG31: 0 | AH31: 0
A32: =ResultsF!A$64 -> 21 | B32: =VLOOKUP(A32,Handbook!$A$26:$AK$46,3,FALSE) -> Women's 3000m | C32: =IF(ISERROR(VLOOKUP('Match Day'!$B$4,ResultsF!$AF$64:$AG$71,2,FALSE))=TRUE,0,VLOOKUP('Match Day'!$B$4,ResultsF!$AF$64:$AG$71,2,FALSE)) -> 0 | D32: =IF(ISERROR(VLOOKUP('Match Day'!$B$4,ResultsF!$AH$64:$AI$71,2,FALSE))=TRUE,0,VLOOKUP('Match Day'!$B$4,ResultsF!$AH$64:$AI$71,2,FALSE)) -> 0 | E32: =IF(ISERROR(VLOOKUP('Match Day'!$B$6,ResultsF!$AF$64:$AG$71,2,FALSE))=TRUE,0,VLOOKUP('Match Day'!$B$6,ResultsF!$AF$64:$AG$71,2,FALSE)) -> 0 | F32: =IF(ISERROR(VLOOKUP('Match Day'!$B$6,ResultsF!$AH$64:$AI$71,2,FALSE))=TRUE,0,VLOOKUP('Match Day'!$B$6,ResultsF!$AH$64:$AI$71,2,FALSE)) -> 0 | G32: =IF(ISERROR(VLOOKUP('Match Day'!$B$8,ResultsF!$AF$64:$AG$71,2,FALSE))=TRUE,0,VLOOKUP('Match Day'!$B$8,ResultsF!$AF$64:$AG$71,2,FALSE)) -> 0 | H32: =IF(ISERROR(VLOOKUP('Match Day'!$B$8,ResultsF!$AH$64:$AI$71,2,FALSE))=TRUE,0,VLOOKUP('Match Day'!$B$8,ResultsF!$AH$64:$AI$71,2,FALSE)) -> 0 | I32: =IF(ISERROR(VLOOKUP('Match Day'!$B$10,ResultsF!$AF$64:$AG$71,2,FALSE))=TRUE,0,VLOOKUP('Match Day'!$B$10,ResultsF!$AF$64:$AG$71,2,FALSE)) -> 0 | J32: =IF(ISERROR(VLOOKUP('Match Day'!$B$10,ResultsF!$AH$64:$AI$71,2,FALSE))=TRUE,0,VLOOKUP('Match Day'!$B$10,ResultsF!$AH$64:$AI$71,2,FALSE)) -> 0 | K32: =IF(ISERROR(VLOOKUP('Match Day'!$B$12,ResultsF!$AF$64:$AG$71,2,FALSE))=TRUE,0,VLOOKUP('Match Day'!$B$12,ResultsF!$AF$64:$AG$71,2,FALSE)) -> 0 | L32: =IF(ISERROR(VLOOKUP('Match Day'!$B$12,ResultsF!$AH$64:$AI$71,2,FALSE))=TRUE,0,VLOOKUP('Match Day'!$B$12,ResultsF!$AH$64:$AI$71,2,FALSE)) -> 0 | M32: =IF(ISERROR(VLOOKUP('Match Day'!$B$14,ResultsF!$AF$64:$AG$71,2,FALSE))=TRUE,0,VLOOKUP('Match Day'!$B$14,ResultsF!$AF$64:$AG$71,2,FALSE)) -> 0 | N32: =IF(ISERROR(VLOOKUP('Match Day'!$B$14,ResultsF!$AH$64:$AI$71,2,FALSE))=TRUE,0,VLOOKUP('Match Day'!$B$14,ResultsF!$AH$64:$AI$71,2,FALSE)) -> 0 | O32: =IF(ISERROR(VLOOKUP('Match Day'!$B$16,ResultsF!$AF$64:$AG$71,2,FALSE))=TRUE,0,VLOOKUP('Match Day'!$B$16,ResultsF!$AF$64:$AG$71,2,FALSE)) -> 0 | P32: =IF(ISERROR(VLOOKUP('Match Day'!$B$16,ResultsF!$AH$64:$AI$71,2,FALSE))=TRUE,0,VLOOKUP('Match Day'!$B$16,ResultsF!$AH$64:$AI$71,2,FALSE)) -> 0 | Q32: =IF(ISERROR(VLOOKUP('Match Day'!$B$18,ResultsF!$AF$64:$AG$71,2,FALSE))=TRUE,0,VLOOKUP('Match Day'!$B$18,ResultsF!$AF$64:$AG$71,2,FALSE)) -> 0 | R32: =IF(ISERROR(VLOOKUP('Match Day'!$B$18,ResultsF!$AH$64:$AI$71,2,FALSE))=TRUE,0,VLOOKUP('Match Day'!$B$18,ResultsF!$AH$64:$AI$71,2,FALSE)) -> 0 | S32: =IF(Home!#REF!="",0,ResultsF!$AT$12-AG32) ->  | T32: =IF(Home!#REF!="",0,ResultsF!$AU$12-AH32) ->  | AE32: =IF(A32="","",VLOOKUP(A32,ResultsF!$A$4:$AJ$191,36,FALSE)) -> 64 | AF32: 71 | AG32: 0 | AH32: 0
A33: 1 | B33: =VLOOKUP(A33,Handbook!$A$26:$AK$46,3,FALSE) -> Women's 400m Hurdles | C33: =IF(ISERROR(VLOOKUP('Match Day'!$B$4,ResultsF!$AF$74:$AG$81,2,FALSE))=TRUE,0,VLOOKUP('Match Day'!$B$4,ResultsF!$AF$74:$AG$81,2,FALSE)) -> 0 | D33: =IF(ISERROR(VLOOKUP('Match Day'!$B$4,ResultsF!$AH$74:$AI$81,2,FALSE))=TRUE,0,VLOOKUP('Match Day'!$B$4,ResultsF!$AH$74:$AI$81,2,FALSE)) -> 0 | E33: =IF(ISERROR(VLOOKUP('Match Day'!$B$6,ResultsF!$AF$74:$AG$81,2,FALSE))=TRUE,0,VLOOKUP('Match Day'!$B$6,ResultsF!$AF$74:$AG$81,2,FALSE)) -> 0 | F33: =IF(ISERROR(VLOOKUP('Match Day'!$B$6,ResultsF!$AH$74:$AI$81,2,FALSE))=TRUE,0,VLOOKUP('Match Day'!$B$6,ResultsF!$AH$74:$AI$81,2,FALSE)) -> 0 | G33: =IF(ISERROR(VLOOKUP('Match Day'!$B$8,ResultsF!$AF$74:$AG$81,2,FALSE))=TRUE,0,VLOOKUP('Match Day'!$B$8,ResultsF!$AF$74:$AG$81,2,FALSE)) -> 0 | H33: =IF(ISERROR(VLOOKUP('Match Day'!$B$8,ResultsF!$AH$74:$AI$81,2,FALSE))=TRUE,0,VLOOKUP('Match Day'!$B$8,ResultsF!$AH$74:$AI$81,2,FALSE)) -> 0 | I33: =IF(ISERROR(VLOOKUP('Match Day'!$B$10,ResultsF!$AF$74:$AG$81,2,FALSE))=TRUE,0,VLOOKUP('Match Day'!$B$10,ResultsF!$AF$74:$AG$81,2,FALSE)) -> 0 | J33: =IF(ISERROR(VLOOKUP('Match Day'!$B$10,ResultsF!$AH$74:$AI$81,2,FALSE))=TRUE,0,VLOOKUP('Match Day'!$B$10,ResultsF!$AH$74:$AI$81,2,FALSE)) -> 0 | K33: =IF(ISERROR(VLOOKUP('Match Day'!$B$12,ResultsF!$AF$74:$AG$81,2,FALSE))=TRUE,0,VLOOKUP('Match Day'!$B$12,ResultsF!$AF$74:$AG$81,2,FALSE)) -> 0 | L33: =IF(ISERROR(VLOOKUP('Match Day'!$B$12,ResultsF!$AH$74:$AI$81,2,FALSE))=TRUE,0,VLOOKUP('Match Day'!$B$12,ResultsF!$AH$74:$AI$81,2,FALSE)) -> 0 | M33: =IF(ISERROR(VLOOKUP('Match Day'!$B$14,ResultsF!$AF$74:$AG$81,2,FALSE))=TRUE,0,VLOOKUP('Match Day'!$B$14,ResultsF!$AF$74:$AG$81,2,FALSE)) -> 0 | N33: =IF(ISERROR(VLOOKUP('Match Day'!$B$14,ResultsF!$AH$74:$AI$81,2,FALSE))=TRUE,0,VLOOKUP('Match Day'!$B$14,ResultsF!$AH$74:$AI$81,2,FALSE)) -> 0 | O33: =IF(ISERROR(VLOOKUP('Match Day'!$B$16,ResultsF!$AF$74:$AG$81,2,FALSE))=TRUE,0,VLOOKUP('Match Day'!$B$16,ResultsF!$AF$74:$AG$81,2,FALSE)) -> 0 | P33: =IF(ISERROR(VLOOKUP('Match Day'!$B$16,ResultsF!$AH$74:$AI$81,2,FALSE))=TRUE,0,VLOOKUP('Match Day'!$B$16,ResultsF!$AH$74:$AI$81,2,FALSE)) -> 0 | Q33: =IF(ISERROR(VLOOKUP('Match Day'!$B$18,ResultsF!$AF$74:$AG$81,2,FALSE))=TRUE,0,VLOOKUP('Match Day'!$B$18,ResultsF!$AF$74:$AG$81,2,FALSE)) -> 0 | R33: =IF(ISERROR(VLOOKUP('Match Day'!$B$18,ResultsF!$AH$74:$AI$81,2,FALSE))=TRUE,0,VLOOKUP('Match Day'!$B$18,ResultsF!$AH$74:$AI$81,2,FALSE)) -> 0 | S33: =IF(Home!#REF!="",0,ResultsF!$AT$12-AG33) ->  | T33: =IF(Home!#REF!="",0,ResultsF!$AU$12-AH33) ->  | AE33: =IF(A33="","",VLOOKUP(A33,ResultsF!$A$4:$AJ$191,36,FALSE)) -> 74 | AF33: 81 | AG33: 0 | AH33: 0
A34: 6 | B34: =VLOOKUP(A34,Handbook!$A$26:$AK$46,3,FALSE) -> Women's 100m Hurdles | C34: =IF(ISERROR(VLOOKUP('Match Day'!$B$4,ResultsF!$AF$84:$AG$91,2,FALSE))=TRUE,0,VLOOKUP('Match Day'!$B$4,ResultsF!$AF$84:$AG$91,2,FALSE)) -> 0 | D34: =IF(ISERROR(VLOOKUP('Match Day'!$B$4,ResultsF!$AH$84:$AI$91,2,FALSE))=TRUE,0,VLOOKUP('Match Day'!$B$4,ResultsF!$AH$84:$AI$91,2,FALSE)) -> 0 | E34: =IF(ISERROR(VLOOKUP('Match Day'!$B$6,ResultsF!$AF$84:$AG$91,2,FALSE))=TRUE,0,VLOOKUP('Match Day'!$B$6,ResultsF!$AF$84:$AG$91,2,FALSE)) -> 0 | F34: =IF(ISERROR(VLOOKUP('Match Day'!$B$6,ResultsF!$AH$84:$AI$91,2,FALSE))=TRUE,0,VLOOKUP('Match Day'!$B$6,ResultsF!$AH$84:$AI$91,2,FALSE)) -> 0 | G34: =IF(ISERROR(VLOOKUP('Match Day'!$B$8,ResultsF!$AF$84:$AG$91,2,FALSE))=TRUE,0,VLOOKUP('Match Day'!$B$8,ResultsF!$AF$84:$AG$91,2,FALSE)) -> 0 | H34: =IF(ISERROR(VLOOKUP('Match Day'!$B$8,ResultsF!$AH$84:$AI$91,2,FALSE))=TRUE,0,VLOOKUP('Match Day'!$B$8,ResultsF!$AH$84:$AI$91,2,FALSE)) -> 0 | I34: =IF(ISERROR(VLOOKUP('Match Day'!$B$10,ResultsF!$AF$84:$AG$91,2,FALSE))=TRUE,0,VLOOKUP('Match Day'!$B$10,ResultsF!$AF$84:$AG$91,2,FALSE)) -> 0 | J34: =IF(ISERROR(VLOOKUP('Match Day'!$B$10,ResultsF!$AH$84:$AI$91,2,FALSE))=TRUE,0,VLOOKUP('Match Day'!$B$10,ResultsF!$AH$84:$AI$91,2,FALSE)) -> 0 | K34: =IF(ISERROR(VLOOKUP('Match Day'!$B$12,ResultsF!$AF$84:$AG$91,2,FALSE))=TRUE,0,VLOOKUP('Match Day'!$B$12,ResultsF!$AF$84:$AG$91,2,FALSE)) -> 0 | L34: =IF(ISERROR(VLOOKUP('Match Day'!$B$12,ResultsF!$AH$84:$AI$91,2,FALSE))=TRUE,0,VLOOKUP('Match Day'!$B$12,ResultsF!$AH$84:$AI$91,2,FALSE)) -> 0 | M34: =IF(ISERROR(VLOOKUP('Match Day'!$B$14,ResultsF!$AF$84:$AG$91,2,FALSE))=TRUE,0,VLOOKUP('Match Day'!$B$14,ResultsF!$AF$84:$AG$91,2,FALSE)) -> 0 | N34: =IF(ISERROR(VLOOKUP('Match Day'!$B$14,ResultsF!$AH$84:$AI$91,2,FALSE))=TRUE,0,VLOOKUP('Match Day'!$B$14,ResultsF!$AH$84:$AI$91,2,FALSE)) -> 0 | O34: =IF(ISERROR(VLOOKUP('Match Day'!$B$16,ResultsF!$AF$84:$AG$91,2,FALSE))=TRUE,0,VLOOKUP('Match Day'!$B$16,ResultsF!$AF$84:$AG$91,2,FALSE)) -> 0 | P34: =IF(ISERROR(VLOOKUP('Match Day'!$B$16,ResultsF!$AH$84:$AI$91,2,FALSE))=TRUE,0,VLOOKUP('Match Day'!$B$16,ResultsF!$AH$84:$AI$91,2,FALSE)) -> 0 | Q34: =IF(ISERROR(VLOOKUP('Match Day'!$B$18,ResultsF!$AF$84:$AG$91,2,FALSE))=TRUE,0,VLOOKUP('Match Day'!$B$18,ResultsF!$AF$84:$AG$91,2,FALSE)) -> 0 | R34: =IF(ISERROR(VLOOKUP('Match Day'!$B$18,ResultsF!$AH$84:$AI$91,2,FALSE))=TRUE,0,VLOOKUP('Match Day'!$B$18,ResultsF!$AH$84:$AI$91,2,FALSE)) -> 0 | S34: =IF(Home!#REF!="",0,ResultsF!$AT$12-AG34) ->  | T34: =IF(Home!#REF!="",0,ResultsF!$AU$12-AH34) ->  | AE34: =IF(A34="","",VLOOKUP(A34,ResultsF!$A$4:$AJ$191,36,FALSE)) -> 84 | AF34: 91 | AG34: 0 | AH34: 0
A35: =ResultsF!A$94 -> 11 | B35: =VLOOKUP(A35,Handbook!$A$26:$AK$46,3,FALSE) -> Women's Hammer | C35: =IF(ISERROR(VLOOKUP('Match Day'!$B$4,ResultsF!$AF$94:$AG$101,2,FALSE))=TRUE,0,VLOOKUP('Match Day'!$B$4,ResultsF!$AF$94:$AG$101,2,FALSE)) -> 0 | D35: =IF(ISERROR(VLOOKUP('Match Day'!$B$4,ResultsF!$AH$94:$AI$101,2,FALSE))=TRUE,0,VLOOKUP('Match Day'!$B$4,ResultsF!$AH$94:$AI$101,2,FALSE)) -> 0 | E35: =IF(ISERROR(VLOOKUP('Match Day'!$B$6,ResultsF!$AF$94:$AG$101,2,FALSE))=TRUE,0,VLOOKUP('Match Day'!$B$6,ResultsF!$AF$94:$AG$101,2,FALSE)) -> 0 | F35: =IF(ISERROR(VLOOKUP('Match Day'!$B$6,ResultsF!$AH$94:$AI$101,2,FALSE))=TRUE,0,VLOOKUP('Match Day'!$B$6,ResultsF!$AH$94:$AI$101,2,FALSE)) -> 0 | G35: =IF(ISERROR(VLOOKUP('Match Day'!$B$8,ResultsF!$AF$94:$AG$101,2,FALSE))=TRUE,0,VLOOKUP('Match Day'!$B$8,ResultsF!$AF$94:$AG$101,2,FALSE)) -> 0 | H35: =IF(ISERROR(VLOOKUP('Match Day'!$B$8,ResultsF!$AH$94:$AI$101,2,FALSE))=TRUE,0,VLOOKUP('Match Day'!$B$8,ResultsF!$AH$94:$AI$101,2,FALSE)) -> 0 | I35: =IF(ISERROR(VLOOKUP('Match Day'!$B$10,ResultsF!$AF$94:$AG$101,2,FALSE))=TRUE,0,VLOOKUP('Match Day'!$B$10,ResultsF!$AF$94:$AG$101,2,FALSE)) -> 0 | J35: =IF(ISERROR(VLOOKUP('Match Day'!$B$10,ResultsF!$AH$94:$AI$101,2,FALSE))=TRUE,0,VLOOKUP('Match Day'!$B$10,ResultsF!$AH$94:$AI$101,2,FALSE)) -> 0 | K35: =IF(ISERROR(VLOOKUP('Match Day'!$B$12,ResultsF!$AF$94:$AG$101,2,FALSE))=TRUE,0,VLOOKUP('Match Day'!$B$12,ResultsF!$AF$94:$AG$101,2,FALSE)) -> 0 | L35: =IF(ISERROR(VLOOKUP('Match Day'!$B$12,ResultsF!$AH$94:$AI$101,2,FALSE))=TRUE,0,VLOOKUP('Match Day'!$B$12,ResultsF!$AH$94:$AI$101,2,FALSE)) -> 0 | M35: =IF(ISERROR(VLOOKUP('Match Day'!$B$14,ResultsF!$AF$94:$AG$101,2,FALSE))=TRUE,0,VLOOKUP('Match Day'!$B$14,ResultsF!$AF$94:$AG$101,2,FALSE)) -> 0 | N35: =IF(ISERROR(VLOOKUP('Match Day'!$B$14,ResultsF!$AH$94:$AI$101,2,FALSE))=TRUE,0,VLOOKUP('Match Day'!$B$14,ResultsF!$AH$94:$AI$101,2,FALSE)) -> 0 | O35: =IF(ISERROR(VLOOKUP('Match Day'!$B$16,ResultsF!$AF$94:$AG$101,2,FALSE))=TRUE,0,VLOOKUP('Match Day'!$B$16,ResultsF!$AF$94:$AG$101,2,FALSE)) -> 0 | P35: =IF(ISERROR(VLOOKUP('Match Day'!$B$16,ResultsF!$AH$94:$AI$101,2,FALSE))=TRUE,0,VLOOKUP('Match Day'!$B$16,ResultsF!$AH$94:$AI$101,2,FALSE)) -> 0 | Q35: =IF(ISERROR(VLOOKUP('Match Day'!$B$18,ResultsF!$AF$94:$AG$101,2,FALSE))=TRUE,0,VLOOKUP('Match Day'!$B$18,ResultsF!$AF$94:$AG$101,2,FALSE)) -> 0 | R35: =IF(ISERROR(VLOOKUP('Match Day'!$B$18,ResultsF!$AH$94:$AI$101,2,FALSE))=TRUE,0,VLOOKUP('Match Day'!$B$18,ResultsF!$AH$94:$AI$101,2,FALSE)) -> 0 | S35: =IF(Home!#REF!="",0,ResultsF!$AT$12-AG35) ->  | T35: =IF(Home!#REF!="",0,ResultsF!$AU$12-AH35) ->  | AE35: =IF(A35="","",VLOOKUP(A35,ResultsF!$A$4:$AJ$191,36,FALSE)) -> 94 | AF35: 101 | AG35: 0 | AH35: 0
A36: =ResultsF!A$104 -> 15 | B36: =VLOOKUP(A36,Handbook!$A$26:$AK$46,3,FALSE) -> Women's Discus | C36: =IF(ISERROR(VLOOKUP('Match Day'!$B$4,ResultsF!$AF$104:$AG$111,2,FALSE))=TRUE,0,VLOOKUP('Match Day'!$B$4,ResultsF!$AF$104:$AG$111,2,FALSE)) -> 0 | D36: =IF(ISERROR(VLOOKUP('Match Day'!$B$4,ResultsF!$AH$104:$AI$111,2,FALSE))=TRUE,0,VLOOKUP('Match Day'!$B$4,ResultsF!$AH$104:$AI$111,2,FALSE)) -> 0 | E36: =IF(ISERROR(VLOOKUP('Match Day'!$B$6,ResultsF!$AF$104:$AG$111,2,FALSE))=TRUE,0,VLOOKUP('Match Day'!$B$6,ResultsF!$AF$104:$AG$111,2,FALSE)) -> 0 | F36: =IF(ISERROR(VLOOKUP('Match Day'!$B$6,ResultsF!$AH$104:$AI$111,2,FALSE))=TRUE,0,VLOOKUP('Match Day'!$B$6,ResultsF!$AH$104:$AI$111,2,FALSE)) -> 0 | G36: =IF(ISERROR(VLOOKUP('Match Day'!$B$8,ResultsF!$AF$104:$AG$111,2,FALSE))=TRUE,0,VLOOKUP('Match Day'!$B$8,ResultsF!$AF$104:$AG$111,2,FALSE)) -> 0 | H36: =IF(ISERROR(VLOOKUP('Match Day'!$B$8,ResultsF!$AH$104:$AI$111,2,FALSE))=TRUE,0,VLOOKUP('Match Day'!$B$8,ResultsF!$AH$104:$AI$111,2,FALSE)) -> 0 | I36: =IF(ISERROR(VLOOKUP('Match Day'!$B$10,ResultsF!$AF$104:$AG$111,2,FALSE))=TRUE,0,VLOOKUP('Match Day'!$B$10,ResultsF!$AF$104:$AG$111,2,FALSE)) -> 0 | J36: =IF(ISERROR(VLOOKUP('Match Day'!$B$10,ResultsF!$AH$104:$AI$111,2,FALSE))=TRUE,0,VLOOKUP('Match Day'!$B$10,ResultsF!$AH$104:$AI$111,2,FALSE)) -> 0 | K36: =IF(ISERROR(VLOOKUP('Match Day'!$B$12,ResultsF!$AF$104:$AG$111,2,FALSE))=TRUE,0,VLOOKUP('Match Day'!$B$12,ResultsF!$AF$104:$AG$111,2,FALSE)) -> 0 | L36: =IF(ISERROR(VLOOKUP('Match Day'!$B$12,ResultsF!$AH$104:$AI$111,2,FALSE))=TRUE,0,VLOOKUP('Match Day'!$B$12,ResultsF!$AH$104:$AI$111,2,FALSE)) -> 0 | M36: =IF(ISERROR(VLOOKUP('Match Day'!$B$14,ResultsF!$AF$104:$AG$111,2,FALSE))=TRUE,0,VLOOKUP('Match Day'!$B$14,ResultsF!$AF$104:$AG$111,2,FALSE)) -> 0 | N36: =IF(ISERROR(VLOOKUP('Match Day'!$B$14,ResultsF!$AH$104:$AI$111,2,FALSE))=TRUE,0,VLOOKUP('Match Day'!$B$14,ResultsF!$AH$104:$AI$111,2,FALSE)) -> 0 | O36: =IF(ISERROR(VLOOKUP('Match Day'!$B$16,ResultsF!$AF$104:$AG$111,2,FALSE))=TRUE,0,VLOOKUP('Match Day'!$B$16,ResultsF!$AF$104:$AG$111,2,FALSE)) -> 0 | P36: =IF(ISERROR(VLOOKUP('Match Day'!$B$16,ResultsF!$AH$104:$AI$111,2,FALSE))=TRUE,0,VLOOKUP('Match Day'!$B$16,ResultsF!$AH$104:$AI$111,2,FALSE)) -> 0 | Q36: =IF(ISERROR(VLOOKUP('Match Day'!$B$18,ResultsF!$AF$104:$AG$111,2,FALSE))=TRUE,0,VLOOKUP('Match Day'!$B$18,ResultsF!$AF$104:$AG$111,2,FALSE)) -> 0 | R36: =IF(ISERROR(VLOOKUP('Match Day'!$B$18,ResultsF!$AH$104:$AI$111,2,FALSE))=TRUE,0,VLOOKUP('Match Day'!$B$18,ResultsF!$AH$104:$AI$111,2,FALSE)) -> 0 | S36: =IF(Home!#REF!="",0,ResultsF!$AT$12-AG36) ->  | T36: =IF(Home!#REF!="",0,ResultsF!$AU$12-AH36) ->  | AE36: =IF(A36="","",VLOOKUP(A36,ResultsF!$A$4:$AJ$191,36,FALSE)) -> 104 | AF36: 111 | AG36: 0 | AH36: 0
A37: =ResultsF!A$114 -> 18 | B37: =VLOOKUP(A37,Handbook!$A$26:$AK$46,3,FALSE) -> Women's Javelin | C37: =IF(ISERROR(VLOOKUP('Match Day'!$B$4,ResultsF!$AF$114:$AG$121,2,FALSE))=TRUE,0,VLOOKUP('Match Day'!$B$4,ResultsF!$AF$114:$AG$121,2,FALSE)) -> 0 | D37: =IF(ISERROR(VLOOKUP('Match Day'!$B$4,ResultsF!$AH$114:$AI$121,2,FALSE))=TRUE,0,VLOOKUP('Match Day'!$B$4,ResultsF!$AH$114:$AI$121,2,FALSE)) -> 0 | E37: =IF(ISERROR(VLOOKUP('Match Day'!$B$6,ResultsF!$AF$114:$AG$121,2,FALSE))=TRUE,0,VLOOKUP('Match Day'!$B$6,ResultsF!$AF$114:$AG$121,2,FALSE)) -> 0 | F37: =IF(ISERROR(VLOOKUP('Match Day'!$B$6,ResultsF!$AH$114:$AI$121,2,FALSE))=TRUE,0,VLOOKUP('Match Day'!$B$6,ResultsF!$AH$114:$AI$121,2,FALSE)) -> 0 | G37: =IF(ISERROR(VLOOKUP('Match Day'!$B$8,ResultsF!$AF$114:$AG$121,2,FALSE))=TRUE,0,VLOOKUP('Match Day'!$B$8,ResultsF!$AF$114:$AG$121,2,FALSE)) -> 0 | H37: =IF(ISERROR(VLOOKUP('Match Day'!$B$8,ResultsF!$AH$114:$AI$121,2,FALSE))=TRUE,0,VLOOKUP('Match Day'!$B$8,ResultsF!$AH$114:$AI$121,2,FALSE)) -> 0 | I37: =IF(ISERROR(VLOOKUP('Match Day'!$B$10,ResultsF!$AF$114:$AG$121,2,FALSE))=TRUE,0,VLOOKUP('Match Day'!$B$10,ResultsF!$AF$114:$AG$121,2,FALSE)) -> 0 | J37: =IF(ISERROR(VLOOKUP('Match Day'!$B$10,ResultsF!$AH$114:$AI$121,2,FALSE))=TRUE,0,VLOOKUP('Match Day'!$B$10,ResultsF!$AH$114:$AI$121,2,FALSE)) -> 0 | K37: =IF(ISERROR(VLOOKUP('Match Day'!$B$12,ResultsF!$AF$114:$AG$121,2,FALSE))=TRUE,0,VLOOKUP('Match Day'!$B$12,ResultsF!$AF$114:$AG$121,2,FALSE)) -> 0 | L37: =IF(ISERROR(VLOOKUP('Match Day'!$B$12,ResultsF!$AH$114:$AI$121,2,FALSE))=TRUE,0,VLOOKUP('Match Day'!$B$12,ResultsF!$AH$114:$AI$121,2,FALSE)) -> 0 | M37: =IF(ISERROR(VLOOKUP('Match Day'!$B$14,ResultsF!$AF$114:$AG$121,2,FALSE))=TRUE,0,VLOOKUP('Match Day'!$B$14,ResultsF!$AF$114:$AG$121,2,FALSE)) -> 0 | N37: =IF(ISERROR(VLOOKUP('Match Day'!$B$14,ResultsF!$AH$114:$AI$121,2,FALSE))=TRUE,0,VLOOKUP('Match Day'!$B$14,ResultsF!$AH$114:$AI$121,2,FALSE)) -> 0 | O37: =IF(ISERROR(VLOOKUP('Match Day'!$B$16,ResultsF!$AF$114:$AG$121,2,FALSE))=TRUE,0,VLOOKUP('Match Day'!$B$16,ResultsF!$AF$114:$AG$121,2,FALSE)) -> 0 | P37: =IF(ISERROR(VLOOKUP('Match Day'!$B$16,ResultsF!$AH$114:$AI$121,2,FALSE))=TRUE,0,VLOOKUP('Match Day'!$B$16,ResultsF!$AH$114:$AI$121,2,FALSE)) -> 0 | Q37: =IF(ISERROR(VLOOKUP('Match Day'!$B$18,ResultsF!$AF$114:$AG$121,2,FALSE))=TRUE,0,VLOOKUP('Match Day'!$B$18,ResultsF!$AF$114:$AG$121,2,FALSE)) -> 0 | R37: =IF(ISERROR(VLOOKUP('Match Day'!$B$18,ResultsF!$AH$114:$AI$121,2,FALSE))=TRUE,0,VLOOKUP('Match Day'!$B$18,ResultsF!$AH$114:$AI$121,2,FALSE)) -> 0 | S37: =IF(Home!#REF!="",0,ResultsF!$AT$12-AG37) ->  | T37: =IF(Home!#REF!="",0,ResultsF!$AU$12-AH37) ->  | AE37: =IF(A37="","",VLOOKUP(A37,ResultsF!$A$4:$AJ$191,36,FALSE)) -> 114 | AF37: 121 | AG37: 0 | AH37: 0
A38: =ResultsF!A$124 -> 17 | B38: =VLOOKUP(A38,Handbook!$A$26:$AK$46,3,FALSE) -> Women's Shot Putt | C38: =IF(ISERROR(VLOOKUP('Match Day'!$B$4,ResultsF!$AF$124:$AG$131,2,FALSE))=TRUE,0,VLOOKUP('Match Day'!$B$4,ResultsF!$AF$124:$AG$131,2,FALSE)) -> 0 | D38: =IF(ISERROR(VLOOKUP('Match Day'!$B$4,ResultsF!$AH$124:$AI$131,2,FALSE))=TRUE,0,VLOOKUP('Match Day'!$B$4,ResultsF!$AH$124:$AI$131,2,FALSE)) -> 0 | E38: =IF(ISERROR(VLOOKUP('Match Day'!$B$6,ResultsF!$AF$124:$AG$131,2,FALSE))=TRUE,0,VLOOKUP('Match Day'!$B$6,ResultsF!$AF$124:$AG$131,2,FALSE)) -> 0 | F38: =IF(ISERROR(VLOOKUP('Match Day'!$B$6,ResultsF!$AH$124:$AI$131,2,FALSE))=TRUE,0,VLOOKUP('Match Day'!$B$6,ResultsF!$AH$124:$AI$131,2,FALSE)) -> 0 | G38: =IF(ISERROR(VLOOKUP('Match Day'!$B$8,ResultsF!$AF$124:$AG$131,2,FALSE))=TRUE,0,VLOOKUP('Match Day'!$B$8,ResultsF!$AF$124:$AG$131,2,FALSE)) -> 0 | H38: =IF(ISERROR(VLOOKUP('Match Day'!$B$8,ResultsF!$AH$124:$AI$131,2,FALSE))=TRUE,0,VLOOKUP('Match Day'!$B$8,ResultsF!$AH$124:$AI$131,2,FALSE)) -> 0 | I38: =IF(ISERROR(VLOOKUP('Match Day'!$B$10,ResultsF!$AF$124:$AG$131,2,FALSE))=TRUE,0,VLOOKUP('Match Day'!$B$10,ResultsF!$AF$124:$AG$131,2,FALSE)) -> 0 | J38: =IF(ISERROR(VLOOKUP('Match Day'!$B$10,ResultsF!$AH$124:$AI$131,2,FALSE))=TRUE,0,VLOOKUP('Match Day'!$B$10,ResultsF!$AH$124:$AI$131,2,FALSE)) -> 0 | K38: =IF(ISERROR(VLOOKUP('Match Day'!$B$12,ResultsF!$AF$124:$AG$131,2,FALSE))=TRUE,0,VLOOKUP('Match Day'!$B$12,ResultsF!$AF$124:$AG$131,2,FALSE)) -> 0 | L38: =IF(ISERROR(VLOOKUP('Match Day'!$B$12,ResultsF!$AH$124:$AI$131,2,FALSE))=TRUE,0,VLOOKUP('Match Day'!$B$12,ResultsF!$AH$124:$AI$131,2,FALSE)) -> 0 | M38: =IF(ISERROR(VLOOKUP('Match Day'!$B$14,ResultsF!$AF$124:$AG$131,2,FALSE))=TRUE,0,VLOOKUP('Match Day'!$B$14,ResultsF!$AF$124:$AG$131,2,FALSE)) -> 0 | N38: =IF(ISERROR(VLOOKUP('Match Day'!$B$14,ResultsF!$AH$124:$AI$131,2,FALSE))=TRUE,0,VLOOKUP('Match Day'!$B$14,ResultsF!$AH$124:$AI$131,2,FALSE)) -> 0 | O38: =IF(ISERROR(VLOOKUP('Match Day'!$B$16,ResultsF!$AF$124:$AG$131,2,FALSE))=TRUE,0,VLOOKUP('Match Day'!$B$16,ResultsF!$AF$124:$AG$131,2,FALSE)) -> 0 | P38: =IF(ISERROR(VLOOKUP('Match Day'!$B$16,ResultsF!$AH$124:$AI$131,2,FALSE))=TRUE,0,VLOOKUP('Match Day'!$B$16,ResultsF!$AH$124:$AI$131,2,FALSE)) -> 0 | Q38: =IF(ISERROR(VLOOKUP('Match Day'!$B$18,ResultsF!$AF$124:$AG$131,2,FALSE))=TRUE,0,VLOOKUP('Match Day'!$B$18,ResultsF!$AF$124:$AG$131,2,FALSE)) -> 0 | R38: =IF(ISERROR(VLOOKUP('Match Day'!$B$18,ResultsF!$AH$124:$AI$131,2,FALSE))=TRUE,0,VLOOKUP('Match Day'!$B$18,ResultsF!$AH$124:$AI$131,2,FALSE)) -> 0 | S38: =IF(Home!#REF!="",0,ResultsF!$AT$12-AG38) ->  | T38: =IF(Home!#REF!="",0,ResultsF!$AU$12-AH38) ->  | AE38: =IF(A38="","",VLOOKUP(A38,ResultsF!$A$4:$AJ$191,36,FALSE)) -> 124 | AF38: 131 | AG38: 0 | AH38: 0
A39: =ResultsF!A$134 -> 13 | B39: =VLOOKUP(A39,Handbook!$A$26:$AK$46,3,FALSE) -> Women's Long Jump | C39: =IF(ISERROR(VLOOKUP('Match Day'!$B$4,ResultsF!$AF$134:$AG$141,2,FALSE))=TRUE,0,VLOOKUP('Match Day'!$B$4,ResultsF!$AF$134:$AG$141,2,FALSE)) -> 0 | D39: =IF(ISERROR(VLOOKUP('Match Day'!$B$4,ResultsF!$AH$134:$AI$141,2,FALSE))=TRUE,0,VLOOKUP('Match Day'!$B$4,ResultsF!$AH$134:$AI$141,2,FALSE)) -> 0 | E39: =IF(ISERROR(VLOOKUP('Match Day'!$B$6,ResultsF!$AF$134:$AG$141,2,FALSE))=TRUE,0,VLOOKUP('Match Day'!$B$6,ResultsF!$AF$134:$AG$141,2,FALSE)) -> 0 | F39: =IF(ISERROR(VLOOKUP('Match Day'!$B$6,ResultsF!$AH$134:$AI$141,2,FALSE))=TRUE,0,VLOOKUP('Match Day'!$B$6,ResultsF!$AH$134:$AI$141,2,FALSE)) -> 0 | G39: =IF(ISERROR(VLOOKUP('Match Day'!$B$8,ResultsF!$AF$134:$AG$141,2,FALSE))=TRUE,0,VLOOKUP('Match Day'!$B$8,ResultsF!$AF$134:$AG$141,2,FALSE)) -> 0 | H39: =IF(ISERROR(VLOOKUP('Match Day'!$B$8,ResultsF!$AH$134:$AI$141,2,FALSE))=TRUE,0,VLOOKUP('Match Day'!$B$8,ResultsF!$AH$134:$AI$141,2,FALSE)) -> 0 | I39: =IF(ISERROR(VLOOKUP('Match Day'!$B$10,ResultsF!$AF$134:$AG$141,2,FALSE))=TRUE,0,VLOOKUP('Match Day'!$B$10,ResultsF!$AF$134:$AG$141,2,FALSE)) -> 0 | J39: =IF(ISERROR(VLOOKUP('Match Day'!$B$10,ResultsF!$AH$134:$AI$141,2,FALSE))=TRUE,0,VLOOKUP('Match Day'!$B$10,ResultsF!$AH$134:$AI$141,2,FALSE)) -> 0 | K39: =IF(ISERROR(VLOOKUP('Match Day'!$B$12,ResultsF!$AF$134:$AG$141,2,FALSE))=TRUE,0,VLOOKUP('Match Day'!$B$12,ResultsF!$AF$134:$AG$141,2,FALSE)) -> 0 | L39: =IF(ISERROR(VLOOKUP('Match Day'!$B$12,ResultsF!$AH$134:$AI$141,2,FALSE))=TRUE,0,VLOOKUP('Match Day'!$B$12,ResultsF!$AH$134:$AI$141,2,FALSE)) -> 0 | M39: =IF(ISERROR(VLOOKUP('Match Day'!$B$14,ResultsF!$AF$134:$AG$141,2,FALSE))=TRUE,0,VLOOKUP('Match Day'!$B$14,ResultsF!$AF$134:$AG$141,2,FALSE)) -> 0 | N39: =IF(ISERROR(VLOOKUP('Match Day'!$B$14,ResultsF!$AH$134:$AI$141,2,FALSE))=TRUE,0,VLOOKUP('Match Day'!$B$14,ResultsF!$AH$134:$AI$141,2,FALSE)) -> 0 | O39: =IF(ISERROR(VLOOKUP('Match Day'!$B$16,ResultsF!$AF$134:$AG$141,2,FALSE))=TRUE,0,VLOOKUP('Match Day'!$B$16,ResultsF!$AF$134:$AG$141,2,FALSE)) -> 0 | P39: =IF(ISERROR(VLOOKUP('Match Day'!$B$16,ResultsF!$AH$134:$AI$141,2,FALSE))=TRUE,0,VLOOKUP('Match Day'!$B$16,ResultsF!$AH$134:$AI$141,2,FALSE)) -> 0 | Q39: =IF(ISERROR(VLOOKUP('Match Day'!$B$18,ResultsF!$AF$134:$AG$141,2,FALSE))=TRUE,0,VLOOKUP('Match Day'!$B$18,ResultsF!$AF$134:$AG$141,2,FALSE)) -> 0 | R39: =IF(ISERROR(VLOOKUP('Match Day'!$B$18,ResultsF!$AH$134:$AI$141,2,FALSE))=TRUE,0,VLOOKUP('Match Day'!$B$18,ResultsF!$AH$134:$AI$141,2,FALSE)) -> 0 | S39: =IF(Home!#REF!="",0,ResultsF!$AT$12-AG39) ->  | T39: =IF(Home!#REF!="",0,ResultsF!$AU$12-AH39) ->  | AE39: =IF(A39="","",VLOOKUP(A39,ResultsF!$A$4:$AJ$191,36,FALSE)) -> 134 | AF39: 141 | AG39: 0 | AH39: 0
A40: =ResultsF!A$144 -> 16 | B40: =VLOOKUP(A40,Handbook!$A$26:$AK$46,3,FALSE) -> Women's Triple Jump | C40: =IF(ISERROR(VLOOKUP('Match Day'!$B$4,ResultsF!$AF$144:$AG$151,2,FALSE))=TRUE,0,VLOOKUP('Match Day'!$B$4,ResultsF!$AF$144:$AG$151,2,FALSE)) -> 0 | D40: =IF(ISERROR(VLOOKUP('Match Day'!$B$4,ResultsF!$AH$144:$AI$151,2,FALSE))=TRUE,0,VLOOKUP('Match Day'!$B$4,ResultsF!$AH$144:$AI$151,2,FALSE)) -> 0 | E40: =IF(ISERROR(VLOOKUP('Match Day'!$B$6,ResultsF!$AF$144:$AG$151,2,FALSE))=TRUE,0,VLOOKUP('Match Day'!$B$6,ResultsF!$AF$144:$AG$151,2,FALSE)) -> 0 | F40: =IF(ISERROR(VLOOKUP('Match Day'!$B$6,ResultsF!$AH$144:$AI$151,2,FALSE))=TRUE,0,VLOOKUP('Match Day'!$B$6,ResultsF!$AH$144:$AI$151,2,FALSE)) -> 0 | G40: =IF(ISERROR(VLOOKUP('Match Day'!$B$8,ResultsF!$AF$144:$AG$151,2,FALSE))=TRUE,0,VLOOKUP('Match Day'!$B$8,ResultsF!$AF$144:$AG$151,2,FALSE)) -> 0 | H40: =IF(ISERROR(VLOOKUP('Match Day'!$B$8,ResultsF!$AH$144:$AI$151,2,FALSE))=TRUE,0,VLOOKUP('Match Day'!$B$8,ResultsF!$AH$144:$AI$151,2,FALSE)) -> 0 | I40: =IF(ISERROR(VLOOKUP('Match Day'!$B$10,ResultsF!$AF$144:$AG$151,2,FALSE))=TRUE,0,VLOOKUP('Match Day'!$B$10,ResultsF!$AF$144:$AG$151,2,FALSE)) -> 0 | J40: =IF(ISERROR(VLOOKUP('Match Day'!$B$10,ResultsF!$AH$144:$AI$151,2,FALSE))=TRUE,0,VLOOKUP('Match Day'!$B$10,ResultsF!$AH$144:$AI$151,2,FALSE)) -> 0 | K40: =IF(ISERROR(VLOOKUP('Match Day'!$B$12,ResultsF!$AF$144:$AG$151,2,FALSE))=TRUE,0,VLOOKUP('Match Day'!$B$12,ResultsF!$AF$144:$AG$151,2,FALSE)) -> 0 | L40: =IF(ISERROR(VLOOKUP('Match Day'!$B$12,ResultsF!$AH$144:$AI$151,2,FALSE))=TRUE,0,VLOOKUP('Match Day'!$B$12,ResultsF!$AH$144:$AI$151,2,FALSE)) -> 0 | M40: =IF(ISERROR(VLOOKUP('Match Day'!$B$14,ResultsF!$AF$144:$AG$151,2,FALSE))=TRUE,0,VLOOKUP('Match Day'!$B$14,ResultsF!$AF$144:$AG$151,2,FALSE)) -> 0 | N40: =IF(ISERROR(VLOOKUP('Match Day'!$B$14,ResultsF!$AH$144:$AI$151,2,FALSE))=TRUE,0,VLOOKUP('Match Day'!$B$14,ResultsF!$AH$144:$AI$151,2,FALSE)) -> 0 | O40: =IF(ISERROR(VLOOKUP('Match Day'!$B$16,ResultsF!$AF$144:$AG$151,2,FALSE))=TRUE,0,VLOOKUP('Match Day'!$B$16,ResultsF!$AF$144:$AG$151,2,FALSE)) -> 0 | P40: =IF(ISERROR(VLOOKUP('Match Day'!$B$16,ResultsF!$AH$144:$AI$151,2,FALSE))=TRUE,0,VLOOKUP('Match Day'!$B$16,ResultsF!$AH$144:$AI$151,2,FALSE)) -> 0 | Q40: =IF(ISERROR(VLOOKUP('Match Day'!$B$18,ResultsF!$AF$144:$AG$151,2,FALSE))=TRUE,0,VLOOKUP('Match Day'!$B$18,ResultsF!$AF$144:$AG$151,2,FALSE)) -> 0 | R40: =IF(ISERROR(VLOOKUP('Match Day'!$B$18,ResultsF!$AH$144:$AI$151,2,FALSE))=TRUE,0,VLOOKUP('Match Day'!$B$18,ResultsF!$AH$144:$AI$151,2,FALSE)) -> 0 | S40: =IF(Home!#REF!="",0,ResultsF!$AT$12-AG40) ->  | T40: =IF(Home!#REF!="",0,ResultsF!$AU$12-AH40) ->  | AE40: =IF(A40="","",VLOOKUP(A40,ResultsF!$A$4:$AJ$191,36,FALSE)) -> 144 | AF40: 151 | AG40: 0 | AH40: 0
A41: =ResultsF!A$154 -> 14 | B41: =VLOOKUP(A41,Handbook!$A$26:$AK$46,3,FALSE) -> Women's High Jump | C41: =IF(ISERROR(VLOOKUP('Match Day'!$B$4,ResultsF!$AF$154:$AG$161,2,FALSE))=TRUE,0,VLOOKUP('Match Day'!$B$4,ResultsF!$AF$154:$AG$161,2,FALSE)) -> 0 | D41: =IF(ISERROR(VLOOKUP('Match Day'!$B$4,ResultsF!$AH$154:$AI$161,2,FALSE))=TRUE,0,VLOOKUP('Match Day'!$B$4,ResultsF!$AH$154:$AI$161,2,FALSE)) -> 0 | E41: =IF(ISERROR(VLOOKUP('Match Day'!$B$6,ResultsF!$AF$154:$AG$161,2,FALSE))=TRUE,0,VLOOKUP('Match Day'!$B$6,ResultsF!$AF$154:$AG$161,2,FALSE)) -> 0 | F41: =IF(ISERROR(VLOOKUP('Match Day'!$B$6,ResultsF!$AH$154:$AI$161,2,FALSE))=TRUE,0,VLOOKUP('Match Day'!$B$6,ResultsF!$AH$154:$AI$161,2,FALSE)) -> 0 | G41: =IF(ISERROR(VLOOKUP('Match Day'!$B$8,ResultsF!$AF$154:$AG$161,2,FALSE))=TRUE,0,VLOOKUP('Match Day'!$B$8,ResultsF!$AF$154:$AG$161,2,FALSE)) -> 0 | H41: =IF(ISERROR(VLOOKUP('Match Day'!$B$8,ResultsF!$AH$154:$AI$161,2,FALSE))=TRUE,0,VLOOKUP('Match Day'!$B$8,ResultsF!$AH$154:$AI$161,2,FALSE)) -> 0 | I41: =IF(ISERROR(VLOOKUP('Match Day'!$B$10,ResultsF!$AF$154:$AG$161,2,FALSE))=TRUE,0,VLOOKUP('Match Day'!$B$10,ResultsF!$AF$154:$AG$161,2,FALSE)) -> 0 | J41: =IF(ISERROR(VLOOKUP('Match Day'!$B$10,ResultsF!$AH$154:$AI$161,2,FALSE))=TRUE,0,VLOOKUP('Match Day'!$B$10,ResultsF!$AH$154:$AI$161,2,FALSE)) -> 0 | K41: =IF(ISERROR(VLOOKUP('Match Day'!$B$12,ResultsF!$AF$154:$AG$161,2,FALSE))=TRUE,0,VLOOKUP('Match Day'!$B$12,ResultsF!$AF$154:$AG$161,2,FALSE)) -> 0 | L41: =IF(ISERROR(VLOOKUP('Match Day'!$B$12,ResultsF!$AH$154:$AI$161,2,FALSE))=TRUE,0,VLOOKUP('Match Day'!$B$12,ResultsF!$AH$154:$AI$161,2,FALSE)) -> 0 | M41: =IF(ISERROR(VLOOKUP('Match Day'!$B$14,ResultsF!$AF$154:$AG$161,2,FALSE))=TRUE,0,VLOOKUP('Match Day'!$B$14,ResultsF!$AF$154:$AG$161,2,FALSE)) -> 0 | N41: =IF(ISERROR(VLOOKUP('Match Day'!$B$14,ResultsF!$AH$154:$AI$161,2,FALSE))=TRUE,0,VLOOKUP('Match Day'!$B$14,ResultsF!$AH$154:$AI$161,2,FALSE)) -> 0 | O41: =IF(ISERROR(VLOOKUP('Match Day'!$B$16,ResultsF!$AF$154:$AG$161,2,FALSE))=TRUE,0,VLOOKUP('Match Day'!$B$16,ResultsF!$AF$154:$AG$161,2,FALSE)) -> 0 | P41: =IF(ISERROR(VLOOKUP('Match Day'!$B$16,ResultsF!$AH$154:$AI$161,2,FALSE))=TRUE,0,VLOOKUP('Match Day'!$B$16,ResultsF!$AH$154:$AI$161,2,FALSE)) -> 0 | Q41: =IF(ISERROR(VLOOKUP('Match Day'!$B$18,ResultsF!$AF$154:$AG$161,2,FALSE))=TRUE,0,VLOOKUP('Match Day'!$B$18,ResultsF!$AF$154:$AG$161,2,FALSE)) -> 0 | R41: =IF(ISERROR(VLOOKUP('Match Day'!$B$18,ResultsF!$AH$154:$AI$161,2,FALSE))=TRUE,0,VLOOKUP('Match Day'!$B$18,ResultsF!$AH$154:$AI$161,2,FALSE)) -> 0 | S41: =IF(Home!#REF!="",0,ResultsF!$AT$12-AG41) ->  | T41: =IF(Home!#REF!="",0,ResultsF!$AU$12-AH41) ->  | AE41: =IF(A41="","",VLOOKUP(A41,ResultsF!$A$4:$AJ$191,36,FALSE)) -> 154 | AF41: 161 | AG41: 0 | AH41: 0
A42: =ResultsF!A$164 -> 12 | B42: =VLOOKUP(A42,Handbook!$A$26:$AK$46,3,FALSE) -> Women's Pole Vault | C42: =IF(ISERROR(VLOOKUP('Match Day'!$B$4,ResultsF!$AF$164:$AG$171,2,FALSE))=TRUE,0,VLOOKUP('Match Day'!$B$4,ResultsF!$AF$164:$AG$171,2,FALSE)) -> 0 | D42: =IF(ISERROR(VLOOKUP('Match Day'!$B$4,ResultsF!$AH$164:$AI$171,2,FALSE))=TRUE,0,VLOOKUP('Match Day'!$B$4,ResultsF!$AH$164:$AI$171,2,FALSE)) -> 0 | E42: =IF(ISERROR(VLOOKUP('Match Day'!$B$6,ResultsF!$AF$164:$AG$171,2,FALSE))=TRUE,0,VLOOKUP('Match Day'!$B$6,ResultsF!$AF$164:$AG$171,2,FALSE)) -> 0 | F42: =IF(ISERROR(VLOOKUP('Match Day'!$B$6,ResultsF!$AH$164:$AI$171,2,FALSE))=TRUE,0,VLOOKUP('Match Day'!$B$6,ResultsF!$AH$164:$AI$171,2,FALSE)) -> 0 | G42: =IF(ISERROR(VLOOKUP('Match Day'!$B$8,ResultsF!$AF$164:$AG$171,2,FALSE))=TRUE,0,VLOOKUP('Match Day'!$B$8,ResultsF!$AF$164:$AG$171,2,FALSE)) -> 0 | H42: =IF(ISERROR(VLOOKUP('Match Day'!$B$8,ResultsF!$AH$164:$AI$171,2,FALSE))=TRUE,0,VLOOKUP('Match Day'!$B$8,ResultsF!$AH$164:$AI$171,2,FALSE)) -> 0 | I42: =IF(ISERROR(VLOOKUP('Match Day'!$B$10,ResultsF!$AF$164:$AG$171,2,FALSE))=TRUE,0,VLOOKUP('Match Day'!$B$10,ResultsF!$AF$164:$AG$171,2,FALSE)) -> 0 | J42: =IF(ISERROR(VLOOKUP('Match Day'!$B$10,ResultsF!$AH$164:$AI$171,2,FALSE))=TRUE,0,VLOOKUP('Match Day'!$B$10,ResultsF!$AH$164:$AI$171,2,FALSE)) -> 0 | K42: =IF(ISERROR(VLOOKUP('Match Day'!$B$12,ResultsF!$AF$164:$AG$171,2,FALSE))=TRUE,0,VLOOKUP('Match Day'!$B$12,ResultsF!$AF$164:$AG$171,2,FALSE)) -> 0 | L42: =IF(ISERROR(VLOOKUP('Match Day'!$B$12,ResultsF!$AH$164:$AI$171,2,FALSE))=TRUE,0,VLOOKUP('Match Day'!$B$12,ResultsF!$AH$164:$AI$171,2,FALSE)) -> 0 | M42: =IF(ISERROR(VLOOKUP('Match Day'!$B$14,ResultsF!$AF$164:$AG$171,2,FALSE))=TRUE,0,VLOOKUP('Match Day'!$B$14,ResultsF!$AF$164:$AG$171,2,FALSE)) -> 0 | N42: =IF(ISERROR(VLOOKUP('Match Day'!$B$14,ResultsF!$AH$164:$AI$171,2,FALSE))=TRUE,0,VLOOKUP('Match Day'!$B$14,ResultsF!$AH$164:$AI$171,2,FALSE)) -> 0 | O42: =IF(ISERROR(VLOOKUP('Match Day'!$B$16,ResultsF!$AF$164:$AG$171,2,FALSE))=TRUE,0,VLOOKUP('Match Day'!$B$16,ResultsF!$AF$164:$AG$171,2,FALSE)) -> 0 | P42: =IF(ISERROR(VLOOKUP('Match Day'!$B$16,ResultsF!$AH$164:$AI$171,2,FALSE))=TRUE,0,VLOOKUP('Match Day'!$B$16,ResultsF!$AH$164:$AI$171,2,FALSE)) -> 0 | Q42: =IF(ISERROR(VLOOKUP('Match Day'!$B$18,ResultsF!$AF$164:$AG$171,2,FALSE))=TRUE,0,VLOOKUP('Match Day'!$B$18,ResultsF!$AF$164:$AG$171,2,FALSE)) -> 0 | R42: =IF(ISERROR(VLOOKUP('Match Day'!$B$18,ResultsF!$AH$164:$AI$171,2,FALSE))=TRUE,0,VLOOKUP('Match Day'!$B$18,ResultsF!$AH$164:$AI$171,2,FALSE)) -> 0 | S42: =IF(Home!#REF!="",0,ResultsF!$AT$12-AG42) ->  | T42: =IF(Home!#REF!="",0,ResultsF!$AU$12-AH42) ->  | AE42: =IF(A42="","",VLOOKUP(A42,ResultsF!$A$4:$AJ$191,36,FALSE)) -> 164 | AF42: 171 | AG42: 0 | AH42: 0
A43: =ResultsF!A$174 -> 9 | B43: =VLOOKUP(A43,Handbook!$A$26:$AK$46,3,FALSE) -> Women's 4x100m Relay | C43: =IF(ISERROR(VLOOKUP('Match Day'!$B$4,ResultsF!$AF$174:$AG$181,2,FALSE))=TRUE,0,VLOOKUP('Match Day'!$B$4,ResultsF!$AF$174:$AG$181,2,FALSE)) -> 0 | D43: =IF(ISERROR(VLOOKUP('Match Day'!$B$4,ResultsF!$AH$174:$AI$181,2,FALSE))=TRUE,0,VLOOKUP('Match Day'!$B$4,ResultsF!$AH$174:$AI$181,2,FALSE)) -> 0 | E43: =IF(ISERROR(VLOOKUP('Match Day'!$B$6,ResultsF!$AF$174:$AG$181,2,FALSE))=TRUE,0,VLOOKUP('Match Day'!$B$6,ResultsF!$AF$174:$AG$181,2,FALSE)) -> 0 | F43: =IF(ISERROR(VLOOKUP('Match Day'!$B$6,ResultsF!$AH$174:$AI$181,2,FALSE))=TRUE,0,VLOOKUP('Match Day'!$B$6,ResultsF!$AH$174:$AI$181,2,FALSE)) -> 0 | G43: =IF(ISERROR(VLOOKUP('Match Day'!$B$8,ResultsF!$AF$174:$AG$181,2,FALSE))=TRUE,0,VLOOKUP('Match Day'!$B$8,ResultsF!$AF$174:$AG$181,2,FALSE)) -> 0 | H43: =IF(ISERROR(VLOOKUP('Match Day'!$B$8,ResultsF!$AH$174:$AI$181,2,FALSE))=TRUE,0,VLOOKUP('Match Day'!$B$8,ResultsF!$AH$174:$AI$181,2,FALSE)) -> 0 | I43: =IF(ISERROR(VLOOKUP('Match Day'!$B$10,ResultsF!$AF$174:$AG$181,2,FALSE))=TRUE,0,VLOOKUP('Match Day'!$B$10,ResultsF!$AF$174:$AG$181,2,FALSE)) -> 0 | J43: =IF(ISERROR(VLOOKUP('Match Day'!$B$10,ResultsF!$AH$174:$AI$181,2,FALSE))=TRUE,0,VLOOKUP('Match Day'!$B$10,ResultsF!$AH$174:$AI$181,2,FALSE)) -> 0 | K43: =IF(ISERROR(VLOOKUP('Match Day'!$B$12,ResultsF!$AF$174:$AG$181,2,FALSE))=TRUE,0,VLOOKUP('Match Day'!$B$12,ResultsF!$AF$174:$AG$181,2,FALSE)) -> 0 | L43: =IF(ISERROR(VLOOKUP('Match Day'!$B$12,ResultsF!$AH$174:$AI$181,2,FALSE))=TRUE,0,VLOOKUP('Match Day'!$B$12,ResultsF!$AH$174:$AI$181,2,FALSE)) -> 0 | M43: =IF(ISERROR(VLOOKUP('Match Day'!$B$14,ResultsF!$AF$174:$AG$181,2,FALSE))=TRUE,0,VLOOKUP('Match Day'!$B$14,ResultsF!$AF$174:$AG$181,2,FALSE)) -> 0 | N43: =IF(ISERROR(VLOOKUP('Match Day'!$B$14,ResultsF!$AH$174:$AI$181,2,FALSE))=TRUE,0,VLOOKUP('Match Day'!$B$14,ResultsF!$AH$174:$AI$181,2,FALSE)) -> 0 | O43: =IF(ISERROR(VLOOKUP('Match Day'!$B$16,ResultsF!$AF$174:$AG$181,2,FALSE))=TRUE,0,VLOOKUP('Match Day'!$B$16,ResultsF!$AF$174:$AG$181,2,FALSE)) -> 0 | P43: =IF(ISERROR(VLOOKUP('Match Day'!$B$16,ResultsF!$AH$174:$AI$181,2,FALSE))=TRUE,0,VLOOKUP('Match Day'!$B$16,ResultsF!$AH$174:$AI$181,2,FALSE)) -> 0 | Q43: =IF(ISERROR(VLOOKUP('Match Day'!$B$18,ResultsF!$AF$174:$AG$181,2,FALSE))=TRUE,0,VLOOKUP('Match Day'!$B$18,ResultsF!$AF$174:$AG$181,2,FALSE)) -> 0 | R43: =IF(ISERROR(VLOOKUP('Match Day'!$B$18,ResultsF!$AH$174:$AI$181,2,FALSE))=TRUE,0,VLOOKUP('Match Day'!$B$18,ResultsF!$AH$174:$AI$181,2,FALSE)) -> 0 | S43: =IF(Home!#REF!="",0,ResultsF!$AT$12-AG43) ->  | T43: =IF(Home!#REF!="",0,ResultsF!$AU$12-AH43) ->  | AE43: =IF(A43="","",VLOOKUP(A43,ResultsF!$A$4:$AJ$191,36,FALSE)) -> 174 | AF43: 181 | AG43: 0 | AH43: 0
A44: =ResultsF!A$184 -> 10 | B44: =VLOOKUP(A44,Handbook!$A$26:$AK$46,3,FALSE) -> Women's 4x400m Relay | C44: =IF(ISERROR(VLOOKUP('Match Day'!$B$4,ResultsF!$AF$184:$AG$191,2,FALSE))=TRUE,0,VLOOKUP('Match Day'!$B$4,ResultsF!$AF$184:$AG$191,2,FALSE)) -> 0 | D44: =IF(ISERROR(VLOOKUP('Match Day'!$B$4,ResultsF!$AH$184:$AI$191,2,FALSE))=TRUE,0,VLOOKUP('Match Day'!$B$4,ResultsF!$AH$184:$AI$191,2,FALSE)) -> 0 | E44: =IF(ISERROR(VLOOKUP('Match Day'!$B$6,ResultsF!$AF$184:$AG$191,2,FALSE))=TRUE,0,VLOOKUP('Match Day'!$B$6,ResultsF!$AF$184:$AG$191,2,FALSE)) -> 0 | F44: =IF(ISERROR(VLOOKUP('Match Day'!$B$6,ResultsF!$AH$184:$AI$191,2,FALSE))=TRUE,0,VLOOKUP('Match Day'!$B$6,ResultsF!$AH$184:$AI$191,2,FALSE)) -> 0 | G44: =IF(ISERROR(VLOOKUP('Match Day'!$B$8,ResultsF!$AF$184:$AG$191,2,FALSE))=TRUE,0,VLOOKUP('Match Day'!$B$8,ResultsF!$AF$184:$AG$191,2,FALSE)) -> 0 | H44: =IF(ISERROR(VLOOKUP('Match Day'!$B$8,ResultsF!$AH$184:$AI$191,2,FALSE))=TRUE,0,VLOOKUP('Match Day'!$B$8,ResultsF!$AH$184:$AI$191,2,FALSE)) -> 0 | I44: =IF(ISERROR(VLOOKUP('Match Day'!$B$10,ResultsF!$AF$184:$AG$191,2,FALSE))=TRUE,0,VLOOKUP('Match Day'!$B$10,ResultsF!$AF$184:$AG$191,2,FALSE)) -> 0 | J44: =IF(ISERROR(VLOOKUP('Match Day'!$B$10,ResultsF!$AH$184:$AI$191,2,FALSE))=TRUE,0,VLOOKUP('Match Day'!$B$10,ResultsF!$AH$184:$AI$191,2,FALSE)) -> 0 | K44: =IF(ISERROR(VLOOKUP('Match Day'!$B$12,ResultsF!$AF$184:$AG$191,2,FALSE))=TRUE,0,VLOOKUP('Match Day'!$B$12,ResultsF!$AF$184:$AG$191,2,FALSE)) -> 0 | L44: =IF(ISERROR(VLOOKUP('Match Day'!$B$12,ResultsF!$AH$184:$AI$191,2,FALSE))=TRUE,0,VLOOKUP('Match Day'!$B$12,ResultsF!$AH$184:$AI$191,2,FALSE)) -> 0 | M44: =IF(ISERROR(VLOOKUP('Match Day'!$B$14,ResultsF!$AF$184:$AG$191,2,FALSE))=TRUE,0,VLOOKUP('Match Day'!$B$14,ResultsF!$AF$184:$AG$191,2,FALSE)) -> 0 | N44: =IF(ISERROR(VLOOKUP('Match Day'!$B$14,ResultsF!$AH$184:$AI$191,2,FALSE))=TRUE,0,VLOOKUP('Match Day'!$B$14,ResultsF!$AH$184:$AI$191,2,FALSE)) -> 0 | O44: =IF(ISERROR(VLOOKUP('Match Day'!$B$16,ResultsF!$AF$184:$AG$191,2,FALSE))=TRUE,0,VLOOKUP('Match Day'!$B$16,ResultsF!$AF$184:$AG$191,2,FALSE)) -> 0 | P44: =IF(ISERROR(VLOOKUP('Match Day'!$B$16,ResultsF!$AH$184:$AI$191,2,FALSE))=TRUE,0,VLOOKUP('Match Day'!$B$16,ResultsF!$AH$184:$AI$191,2,FALSE)) -> 0 | Q44: =IF(ISERROR(VLOOKUP('Match Day'!$B$18,ResultsF!$AF$184:$AG$191,2,FALSE))=TRUE,0,VLOOKUP('Match Day'!$B$18,ResultsF!$AF$184:$AG$191,2,FALSE)) -> 0 | R44: =IF(ISERROR(VLOOKUP('Match Day'!$B$18,ResultsF!$AH$184:$AI$191,2,FALSE))=TRUE,0,VLOOKUP('Match Day'!$B$18,ResultsF!$AH$184:$AI$191,2,FALSE)) -> 0 | S44: =IF(Home!#REF!="",0,ResultsF!$AT$12-AG44) ->  | T44: =IF(Home!#REF!="",0,ResultsF!$AU$12-AH44) ->  | AE44: =IF(A44="","",VLOOKUP(A44,ResultsF!$A$4:$AJ$191,36,FALSE)) -> 184 | AF44: 191 | AG44: 0 | AH44: 0
B45: =IF($A45="","",CONCATENATE(VLOOKUP($A45,#REF!,4,FALSE)," ",VLOOKUP($A45,#REF!,5,FALSE))) ->  | C45: =SUM(C26:C44) -> 0 | D45: 0 | E45: 0 | F45: 0 | G45: 0 | H45: 0 | I45: 0 | J45: 0 | K45: 0 | L45: 0 | M45: 0 | N45: 0 | O45: 0 | P45: 0 | Q45: 0 | R45: 0 | X45: =SUM(X26:X44) ->  | AE45: =IF(A45="","",VLOOKUP(A45,ResultsF!$A$93:$AJ$182,32,FALSE)) -> 
C47: =C52 -> 7 | E47: =E52 -> 1 | G47: =G52 -> 6 | I47: =I52 -> 8 | K47: =K52 -> 5 | M47: =M52 -> 4 | O47: =O52 -> 2 | Q47: =Q52 -> 3 | S47: =S52 -> 0 | U47: =U52 -> 0
B48: Match Summary | C48: ='Match Day'!$F$4 -> BFD | E48: ='Match Day'!$F$6 -> B&B | G48: ='Match Day'!$F$8 -> MKN | I48: ='Match Day'!$F$10 -> NEB | K48: ='Match Day'!$F$12 -> SBH | M48: ='Match Day'!$F$14 -> STN | O48: ='Match Day'!$F$16 -> SWA | Q48: ='Match Day'!$F$18 -> TVH | S48: UNUSED | U48: TOTAL
B49: Teams | C49: =C24+D24+C45+D45 -> 106 | E49: =E24+F24+E45+F45 -> 204 | G49: =G24+H24+G45+H45 -> 148 | I49: =I24+J24+I45+J45 -> 110 | K49: =K24+L24+K45+L45 -> 149 | M49: =M24+N24+M45+N45 -> 162 | O49: =O24+P24+O45+P45 -> 185 | Q49: =Q24+R24+Q45+R45 -> 168 | S49: =S24+T24 -> 174 | U49: =SUM(C49:T49) -> 1406
B50: Officials Points | C50: 20 | E50: 20 | G50: 20 | I50: 10 | K50: 20 | M50: 20 | O50: 20 | Q50: 20 | U50: =SUM(C50:T50) -> 150
B51: Total | C51: =SUM(C49:C50)+C81 -> 126 | E51: =SUM(E49:E50)+E81 -> 224 | G51: =SUM(G49:G50)+G81 -> 168 | I51: =SUM(I49:I50)+I81 -> 120 | K51: =SUM(K49:K50)+K81 -> 169 | M51: =SUM(M49:M50)+M81 -> 182 | O51: =SUM(O49:O50)+O81 -> 205 | Q51: =SUM(Q49:Q50)+Q81 -> 188 | S51: =SUM(S49:S50) -> 174 | U51: =SUM(U49:U50) -> 1556
B52: Match Position | C52: =RANK(C51,$C$51:$R$51,0) -> 7 | E52: =RANK(E51,$C$51:$R$51,0) -> 1 | G52: =RANK(G51,$C$51:$R$51,0) -> 6 | I52: =RANK(I51,$C$51:$R$51,0) -> 8 | K52: =RANK(K51,$C$51:$R$51,0) -> 5 | M52: =RANK(M51,$C$51:$R$51,0) -> 4 | O52: =RANK(O51,$C$51:$R$51,0) -> 2 | Q52: =RANK(Q51,$C$51:$R$51,0) -> 3
B53: League Points | C53: =('Match Day'!$F$23)+1-C52 -> 2 | E53: =('Match Day'!$F$23)+1-E52 -> 8 | G53: =('Match Day'!$F$23)+1-G52 -> 3 | I53: =('Match Day'!$F$23)+1-I52 -> 1 | K53: =('Match Day'!$F$23)+1-K52 -> 4 | M53: =('Match Day'!$F$23)+1-M52 -> 5 | O53: =('Match Day'!$F$23)+1-O52 -> 7 | Q53: =('Match Day'!$F$23)+1-Q52 -> 6
C55: =C59 -> 7 | E55: =E59 -> 1 | G55: =G59 -> 8 | I55: =I59 -> 6 | K55: =K59 -> 4 | M55: =M59 -> 5 | O55: =O59 -> 2 | Q55: =Q59 -> 3
B56: Standings | C56: ='Match Day'!$F$4 -> BFD | E56: ='Match Day'!$F$6 -> B&B | G56: ='Match Day'!$F$8 -> MKN | I56: ='Match Day'!$F$10 -> NEB | K56: ='Match Day'!$F$12 -> SBH | M56: ='Match Day'!$F$14 -> STN | O56: ='Match Day'!$F$16 -> SWA | Q56: ='Match Day'!$F$18 -> TVH
B57: League Points | C57: =C53+Rounds!$K$6 -> 6 | E57: =E53+Rounds!$K$7 -> 22 | G57: =G53+Rounds!$K$8 -> 5 | I57: =I53+Rounds!$K$9 -> 7 | K57: =K53+Rounds!$K$10 -> 15 | M57: =M53+Rounds!$K$11 -> 13 | O57: =O53+Rounds!$K$12 -> 20 | Q57: =Q53+Rounds!$K$13 -> 20
B58: Match Points | C58: =C51+Rounds!$L$6 -> 378 | E58: =E51+Rounds!$L$7 -> 631 | G58: =G51+Rounds!$L$8 -> 401.5 | I58: =I51+Rounds!$L$9 -> 401 | K58: =K51+Rounds!$L$10 -> 551 | M58: =M51+Rounds!$L$11 -> 509.5 | O58: =O51+Rounds!$L$12 -> 597 | Q58: =Q51+Rounds!$L$13 -> 587
B59: League Positions | C59: =RANK(C63,$C$63:$R$63,1) -> 7 | E59: =RANK(E63,$C$63:$R$63,1) -> 1 | G59: =RANK(G63,$C$63:$R$63,1) -> 8 | I59: =RANK(I63,$C$63:$R$63,1) -> 6 | K59: =RANK(K63,$C$63:$R$63,1) -> 4 | M59: =RANK(M63,$C$63:$R$63,1) -> 5 | O59: =RANK(O63,$C$63:$R$63,1) -> 2 | Q59: =RANK(Q63,$C$63:$R$63,1) -> 3
C61: =RANK(C57,$C$57:$R$57,0) -> 7 | E61: =RANK(E57,$C$57:$R$57,0) -> 1 | G61: =RANK(G57,$C$57:$R$57,0) -> 8 | I61: =RANK(I57,$C$57:$R$57,0) -> 6 | K61: =RANK(K57,$C$57:$R$57,0) -> 4 | M61: =RANK(M57,$C$57:$R$57,0) -> 5 | O61: =RANK(O57,$C$57:$R$57,0) -> 2 | Q61: =RANK(Q57,$C$57:$R$57,0) -> 2
C62: =RANK(C58,$C$58:$R$58,0) -> 8 | E62: =RANK(E58,$C$58:$R$58,0) -> 1 | G62: =RANK(G58,$C$58:$R$58,0) -> 6 | I62: =RANK(I58,$C$58:$R$58,0) -> 7 | K62: =RANK(K58,$C$58:$R$58,0) -> 4 | M62: =RANK(M58,$C$58:$R$58,0) -> 5 | O62: =RANK(O58,$C$58:$R$58,0) -> 2 | Q62: =RANK(Q58,$C$58:$R$58,0) -> 3
C63: =(C61*10)+C62 -> 78 | E63: =(E61*10)+E62 -> 11 | G63: =(G61*10)+G62 -> 86 | I63: =(I61*10)+I62 -> 67 | K63: =(K61*10)+K62 -> 44 | M63: =(M61*10)+M62 -> 55 | O63: =(O61*10)+O62 -> 22 | Q63: =(Q61*10)+Q62 -> 23
B64: Number of Wins | C64: =COUNTIF(C5:C23,16) -> 0 | E64: 0 | G64: 0 | I64: 0 | K64: 0 | M64: 0 | O64: 0 | Q64: 0
B65: Number of 2nds | C65: =COUNTIF(C5:C23,14) -> 0 | E65: =COUNTIF(E5:E23,14) -> 0 | G65: 0 | I65: 0 | K65: 0 | M65: 0 | O65: 0 | Q65: 0
B66: Number of 3rds | C66: =COUNTIF(C5:C23,12) -> 0 | E66: =COUNTIF(E5:E23,12) -> 0 | G66: 0 | I66: 0 | K66: 0 | M66: 0 | O66: 0 | Q66: 0
B67: Number of 4ths | C67: =COUNTIF(C5:C23,10) -> 0 | E67: =COUNTIF(E5:E23,10) -> 0 | G67: 0 | I67: 0 | K67: 0 | M67: 0 | O67: 0 | Q67: 0
B68: Number of 5ths | C68: =COUNTIF(C5:C23,8) -> 0 | E68: =COUNTIF(E5:E23,8) -> 0 | G68: 0 | I68: 0 | K68: 0 | M68: 0 | O68: 0 | Q68: 0
B69: Number of 6ths | C69: =COUNTIF(C5:C23,6) -> 2 | E69: =COUNTIF(E5:E23,6) -> 5 | G69: 3 | I69: 1 | K69: 0 | M69: 3 | O69: 2 | Q69: 3
B70: Number of 7ths | C70: =COUNTIF(C5:C23,5) -> 2 | E70: =COUNTIF(E5:E23,5) -> 0 | G70: 2 | I70: 1 | K70: 3 | M70: 3 | O70: 5 | Q70: 3
B71: Number of 8ths | C71: =COUNTIF(C5:C23,4) -> 5 | E71: =COUNTIF(E5:E23,4) -> 2 | G71: 2 | I71: 2 | K71: 1 | M71: 2 | O71: 2 | Q71: 3
B73: 19 | C73: =(C64*$B73/10000) -> 0 | D73: 0 | E73: 0 | F73: 0 | G73: 0 | H73: 0 | I73: 0 | J73: 0 | K73: 0 | L73: 0 | M73: 0 | N73: 0 | O73: 0 | P73: 0 | Q73: 0 | R73: 0
B74: =B73/19 -> 1 | C74: =(C65*$B74/10000) -> 0 | E74: =(E65*$B74/10000) -> 0 | G74: =(G65*$B74/10000) -> 0 | I74: =(I65*$B74/10000) -> 0 | K74: =(K65*$B74/10000) -> 0 | M74: =(M65*$B74/10000) -> 0 | O74: =(O65*$B74/10000) -> 0 | Q74: =(Q65*$B74/10000) -> 0
B75: =B74/19 -> 0.05263157895 | C75: 0 | E75: 0 | G75: 0 | I75: 0 | K75: 0 | M75: 0 | O75: 0 | Q75: 0
B76: 0.002770083102 | C76: 0 | E76: 0 | G76: 0 | I76: 0 | K76: 0 | M76: 0 | O76: 0 | Q76: 0
B77: 0.0001457938475 | C77: 0 | E77: 0 | G77: 0 | I77: 0 | K77: 0 | M77: 0 | O77: 0 | Q77: 0
B78: 7.673360395e-06 | C78: 1.534672079e-09 | E78: 3.836680197e-09 | G78: 2.302008118e-09 | I78: 7.673360395e-10 | K78: 0 | M78: 2.302008118e-09 | O78: 1.534672079e-09 | Q78: 2.302008118e-09
B79: 4.038610734e-07 | C79: 8.077221468e-11 | E79: 0 | G79: 8.077221468e-11 | I79: 4.038610734e-11 | K79: 1.21158322e-10 | M79: 1.21158322e-10 | O79: 2.019305367e-10 | Q79: 1.21158322e-10
B80: 2.125584597e-08 | C80: 1.062792298e-11 | E80: 4.251169194e-12 | G80: 4.251169194e-12 | I80: 4.251169194e-12 | K80: 2.125584597e-12 | M80: 4.251169194e-12 | O80: 4.251169194e-12 | Q80: 6.376753791e-12
C81: =SUM(C73:C80) -> 1.626072217e-09 | D81: =SUM(D73:D80) -> 0 | E81: 3.840931367e-09 | F81: 0 | G81: 2.387031502e-09 | H81: 0 | I81: 8.11973316e-10 | J81: 0 | K81: 1.232839066e-10 | L81: 0 | M81: 2.42741761e-09 | N81: 0 | O81: 1.740853785e-09 | P81: 0 | Q81: 2.429543194e-09

Sheet Results
E1: Home | H1: ='Match Day'!I4 -> UK Womens League | R1: Home | AD1: Grades | AH1: Points | AP1: Enter Club Letter, Performance and any Wind Readings in the Yellow Boxes. Times for 800m and above should be entered as mm:ss.0 Otherwise use ss.0
E2: =CONCATENATE('Match Day'!I8," ",'Match Day'!I10," - ",'Match Day'!I12) -> Division 1 Match 3 - Winchester | I2: Perf | J2: Record | K2: Wind | L2: UKA | M2: AW | P2: ='Match Day'!I6 -> Saturday, 6th August | S2: Perf | T2: Wind | U2: UKA | V2: AW | W2: Prints | X2: Record | Y2: Division | Z2: Grade 1 | AA2: Grade 2 | AB2: Grade 3 | AC2: T/F | AD2: A String | AF2: B String | AH2: A String | AJ2: B String | AL2: Row | AN2: Validation | AT2: Points
A3: 12.43 | B3: 11.1 | C3: 0.01 | D3: 1.5 | E3: =CONCATENATE(VLOOKUP(A4,mens_handbook,3,FALSE)," A") -> Women's 100m A | H3: =IF(A4="","",IF(VLOOKUP(A4,Handbook!$A$4:$AI$24,35,FALSE)="Y","Wind=","")) -> Wind= | I3: -2.1 | O3: =CONCATENATE(VLOOKUP(A4,mens_handbook,3,FALSE)," B") -> Women's 100m B | R3: =H3 -> Wind= | S3: -2.4 | X3: =IF($A4="","",VLOOKUP($A4,Handbook!$A$4:$V$24,21,FALSE)) -> 11.1 | Y3: =IF($A4="","",VLOOKUP($A4,Handbook!$A$4:$V$24,22,FALSE)) -> 11.1 | Z3: =IF($A4="","",VLOOKUP($A4,Handbook!$A$4:$W$24,23,FALSE)) -> 13 | AA3: =IF($A4="","",VLOOKUP($A4,Handbook!$A$4:$X$24,24,FALSE)) -> 13 | AB3: =IF($A4="","",VLOOKUP($A4,Handbook!$A$4:$Y$24,25,FALSE)) -> 13 | AC3: =IF($A4="","",VLOOKUP($A4,Handbook!$A$4:$AH$24,34,FALSE)) -> T | AL3: 3 | AU3: A | AV3: B
A4: 3 | C4: =IF(F4="","",IF(F4>10,F4/11,F4)) -> 4 | D4: =IF(P4="","",IF(P4>10,P4/11,P4)) -> 3 | E4: 1 | F4: 4 | G4: =IF($F4="","",IF($F4>90,VLOOKUP(F4,eventcodes,2,FALSE),HLOOKUP(F4,declare,B6,FALSE))) -> Tope Faith-Nuqa | H4: =IF($F4="","",IF($F4>90,"",VLOOKUP(C4,matchday,2,FALSE))) -> Newham & Essex Beagles AC | I4: 12.09 | J4: =IF(I4="","",IF(AC3="T",X4,X5)) ->  | L4: =IF(OR(F4=0,F4="",I4=0,I4=""),"",IF(I4>A3,0,INT(((B3-I4)*D3/C3)+250))) -> 101 | M4: =IF(AC3="T",AD4,AE4) -> þ | O4: 1 | P4: 33 | Q4: =IF($P4="","",HLOOKUP(P4,declare,B6,FALSE)) -> Joey Duck | R4: =IF($P4="","",VLOOKUP(D4,matchday,2,FALSE)) -> Marshall Milton Keynes AC | S4: 12.23 | U4: =IF(OR(P4=0,P4="",S4=0,S4=""),"",IF(S4>A3,0,INT(((B3-S4)*D3/C3)+250))) -> 80 | V4: =IF(AC3="T",AF4,AG4) -> þ | X4: =IF(AC3="F","",IF(I4<X3,"LR",IF(I4=X3,"=LR",IF(I4<Y3,"DR",IF(I4=Y3,"=DR",""))))) ->  | AD4: =IF(I4="","",IF(AC3="F","",IF(AC3="T",IF(I4<=Z3,"þ",IF(I4<=AA3,"G2",IF(I4<=AB3,"G3","")))))) -> þ | AE4: =IF(I4="","",IF(AC3="T","",IF(AC3="F",IF(I4>=Z3,"þ",IF(I4>=AA3,"G2",IF(I4>=AB3,"G3","")))))) ->  | AF4: =IF(S4="","",IF(AC3="F","",IF(AC3="T",IF(S4<=Z3,"þ",IF(S4<=AA3,"G2",IF(S4<=AB3,"G3","")))))) -> þ | AG4: =IF(S4="","",IF(AC3="T","",IF(AC3="F",IF(S4>=Z3,"þ",IF(S4>=AA3,"G2",IF(S4>=AB3,"G3","")))))) ->  | AH4: =C4 -> 4 | AI4: =IF(F4="","",IF(LEFT(I4,1)="D",0,VLOOKUP(E4,$AT$4:$AU$40,2,FALSE))) -> 9 | AJ4: =D4 -> 3 | AK4: =IF(P4="","",IF(LEFT(S4,1)="D",0,VLOOKUP(O4,$AT$4:$AV$40,3,FALSE))) -> 9 | AL4: 4 | AN4: ='Match Day'!B4 -> 1 | AO4: 1 | AT4: Posn | AU4: Points | AV4: Points
B5: =VLOOKUP(A4,Handbook!$A$4:$AK$24,37,FALSE) -> 4 | C5: =IF(F5="","",IF(F5>10,F5/11,F5)) -> 3 | D5: 8 | E5: 2 | F5: 3 | G5: =IF($F5="","",HLOOKUP(F5,declare,B6,FALSE)) -> Kadi-Ann Thomas | H5: =IF($F5="","",VLOOKUP(C5,matchday,2,FALSE)) -> Marshall Milton Keynes AC | I5: 12.18 | J5: =IF(I5="","",IF(AND(AC3="T",I5<I4),"X",IF(AND(AC3="F",I5>I4),"X",""))) ->  | L5: =IF(OR(F5=0,F5="",I5=0,I5=""),"",IF(I5>A3,0,INT(((B3-I5)*D3/C3)+250))) -> 88 | M5: =IF(AC3="T",AD5,AE5) -> þ | O5: 2 | P5: 88 | Q5: =IF($P5="","",HLOOKUP(P5,declare,B6,FALSE)) -> Phyllis Agbo | R5: Thames Valley H | S5: 12.48 | T5: =IF(S5="","",IF(AND(AC3="T",S5<S4),"X",IF(AND(AC3="F",S5>S4),"X",""))) ->  | U5: =IF(OR(P5=0,P5="",S5=0,S5=""),"",IF(S5>A3,0,INT(((B3-S5)*D3/C3)+250))) -> 0 | V5: =IF(AC3="T",AF5,AG5) -> þ | X5: =IF(AC3="T","",IF(I4>X3,"LR",IF(I4=X3,"=LR",IF(I4>Y3,"DR",IF(I4=Y3,"=DR",""))))) ->  | AD5: =IF(I5="","",IF(AC3="F","",IF(AC3="T",IF(I5<=Z3,"þ",IF(I5<=AA3,"G2",IF(I5<=AB3,"G3","")))))) -> þ | AE5: =IF(I5="","",IF(AC3="T","",IF(AC3="F",IF(I5>=Z3,"þ",IF(I5>=AA3,"G2",IF(I5>=AB3,"G3","")))))) ->  | AF5: =IF(S5="","",IF(AC3="F","",IF(AC3="T",IF(S5<=Z3,"þ",IF(S5<=AA3,"G2",IF(S5<=AB3,"G3","")))))) -> þ | AG5: =IF(S5="","",IF(AC3="T","",IF(AC3="F",IF(S5>=Z3,"þ",IF(S5>=AA3,"G2",IF(S5>=AB3,"G3","")))))) ->  | AH5: =C5 -> 3 | AI5: 7 | AJ5: =D5 -> 8 | AK5: 7 | AL5: 5 | AN5: ='Match Day'!B6 -> 2 | AO5: 2 | AT5: 1 | AU5: ='Match Day'!C23 -> 9 | AV5: ='Match Day'!D23 -> 9
B6: =VLOOKUP(A4,declare,20,FALSE) -> 3 | C6: 2 | D6: 4 | E6: 3 | F6: 2 | G6: =IF($F6="","",HLOOKUP(F6,declare,B6,FALSE)) -> Serita Solomon | H6: Blackheath & Bromley H | I6: 12.38 | J6: =IF(I6="","",IF(AND(AC3="T",I6<I5),"X",IF(AND(AC3="F",I6>I5),"X",""))) ->  | L6: =IF(OR(F6=0,F6="",I6=0,I6=""),"",IF(I6>A3,0,INT(((B3-I6)*D3/C3)+250))) -> 57 | M6: =IF(AC3="T",AD6,AE6) -> þ | O6: 3 | P6: 44 | Q6: =IF($P6="","",HLOOKUP(P6,declare,B6,FALSE)) -> Susannah Banjo | R6: Newham & Essex Beagles AC | S6: 12.62 | T6: =IF(S6="","",IF(AND(AC3="T",S6<S5),"X",IF(AND(AC3="F",S6>S5),"X",""))) ->  | U6: =IF(OR(P6=0,P6="",S6=0,S6=""),"",IF(S6>A3,0,INT(((B3-S6)*D3/C3)+250))) -> 0 | V6: =IF(AC3="T",AF6,AG6) -> þ | AD6: =IF(I6="","",IF(AC3="F","",IF(AC3="T",IF(I6<=Z3,"þ",IF(I6<=AA3,"G2",IF(I6<=AB3,"G3","")))))) -> þ | AE6: =IF(I6="","",IF(AC3="T","",IF(AC3="F",IF(I6>=Z3,"þ",IF(I6>=AA3,"G2",IF(I6>=AB3,"G3","")))))) ->  | AF6: =IF(S6="","",IF(AC3="F","",IF(AC3="T",IF(S6<=Z3,"þ",IF(S6<=AA3,"G2",IF(S6<=AB3,"G3","")))))) -> þ | AG6: =IF(S6="","",IF(AC3="T","",IF(AC3="F",IF(S6>=Z3,"þ",IF(S6>=AA3,"G2",IF(S6>=AB3,"G3","")))))) ->  | AH6: 2 | AI6: 6 | AJ6: 4 | AK6: 6 | AL6: 6 | AN6: ='Match Day'!B8 -> 3 | AO6: 3 | AT6: 2 | AU6: ='Match Day'!C24 -> 7 | AV6: ='Match Day'!D24 -> 7
C7: 1 | D7: 6 | E7: 4 | F7: 1 | G7: =IF($F7="","",HLOOKUP(F7,declare,B6,FALSE)) -> Emma Bailey | H7: Bedford & County AC | I7: 12.47 | J7: =IF(I7="","",IF(AND(AC3="T",I7<I6),"X",IF(AND(AC3="F",I7>I6),"X",""))) ->  | L7: =IF(OR(F7=0,F7="",I7=0,I7=""),"",IF(I7>A3,0,INT(((B3-I7)*D3/C3)+250))) -> 0 | M7: =IF(AC3="T",AD7,AE7) -> þ | O7: 4 | P7: 66 | Q7: =IF($P7="","",HLOOKUP(P7,declare,B6,FALSE)) -> Becca Carozzi | R7: Southampton AC | S7: 12.66 | T7: =IF(S7="","",IF(AND(AC3="T",S7<S6),"X",IF(AND(AC3="F",S7>S6),"X",""))) ->  | U7: =IF(OR(P7=0,P7="",S7=0,S7=""),"",IF(S7>A3,0,INT(((B3-S7)*D3/C3)+250))) -> 0 | V7: =IF(AC3="T",AF7,AG7) -> þ | AD7: =IF(I7="","",IF(AC3="F","",IF(AC3="T",IF(I7<=Z3,"þ",IF(I7<=AA3,"G2",IF(I7<=AB3,"G3","")))))) -> þ | AE7: =IF(I7="","",IF(AC3="T","",IF(AC3="F",IF(I7>=Z3,"þ",IF(I7>=AA3,"G2",IF(I7>=AB3,"G3","")))))) ->  | AF7: =IF(S7="","",IF(AC3="F","",IF(AC3="T",IF(S7<=Z3,"þ",IF(S7<=AA3,"G2",IF(S7<=AB3,"G3","")))))) -> þ | AG7: =IF(S7="","",IF(AC3="T","",IF(AC3="F",IF(S7>=Z3,"þ",IF(S7>=AA3,"G2",IF(S7>=AB3,"G3","")))))) ->  | AH7: 1 | AI7: 5 | AJ7: 6 | AK7: 5 | AL7: 7 | AN7: ='Match Day'!B10 -> 4 | AO7: 4 | AT7: 3 | AU7: ='Match Day'!C25 -> 6 | AV7: ='Match Day'!D25 -> 6
C8: 8 | D8: 2 | E8: 5 | F8: 8 | G8: =IF($F8="","",HLOOKUP(F8,declare,B6,FALSE)) -> Yvette Henry | H8: Thames Valley H | I8: 12.55 | J8: =IF(I8="","",IF(AND(AC3="T",I8<I7),"X",IF(AND(AC3="F",I8>I7),"X",""))) ->  | L8: =IF(OR(F8=0,F8="",I8=0,I8=""),"",IF(I8>A3,0,INT(((B3-I8)*D3/C3)+250))) -> 0 | M8: =IF(AC3="T",AD8,AE8) -> þ | O8: 5 | P8: 22 | Q8: =IF($P8="","",HLOOKUP(P8,declare,B6,FALSE)) -> Amara Lalemi-Jacobs | R8: Blackheath & Bromley H | S8: 12.75 | T8: =IF(S8="","",IF(AND(AC3="T",S8<S7),"X",IF(AND(AC3="F",S8>S7),"X",""))) ->  | U8: =IF(OR(P8=0,P8="",S8=0,S8=""),"",IF(S8>A3,0,INT(((B3-S8)*D3/C3)+250))) -> 0 | V8: =IF(AC3="T",AF8,AG8) -> þ | AD8: =IF(I8="","",IF(AC3="F","",IF(AC3="T",IF(I8<=Z3,"þ",IF(I8<=AA3,"G2",IF(I8<=AB3,"G3","")))))) -> þ | AE8: =IF(I8="","",IF(AC3="T","",IF(AC3="F",IF(I8>=Z3,"þ",IF(I8>=AA3,"G2",IF(I8>=AB3,"G3","")))))) ->  | AF8: =IF(S8="","",IF(AC3="F","",IF(AC3="T",IF(S8<=Z3,"þ",IF(S8<=AA3,"G2",IF(S8<=AB3,"G3","")))))) -> þ | AG8: =IF(S8="","",IF(AC3="T","",IF(AC3="F",IF(S8>=Z3,"þ",IF(S8>=AA3,"G2",IF(S8>=AB3,"G3","")))))) ->  | AH8: 8 | AI8: 4 | AJ8: 2 | AK8: 4 | AL8: 8 | AN8: ='Match Day'!B12 -> 5 | AO8: 5 | AT8: 4 | AU8: ='Match Day'!C26 -> 5 | AV8: ='Match Day'!D26 -> 5
C9: 6 | D9: 7 | E9: 6 | F9: 6 | G9: =IF($F9="","",HLOOKUP(F9,declare,B6,FALSE)) -> Emily Newton | H9: Southampton AC | I9: 12.63 | J9: =IF(I9="","",IF(AND(AC3="T",I9<I8),"X",IF(AND(AC3="F",I9>I8),"X",""))) ->  | L9: =IF(OR(F9=0,F9="",I9=0,I9=""),"",IF(I9>A3,0,INT(((B3-I9)*D3/C3)+250))) -> 0 | M9: =IF(AC3="T",AD9,AE9) -> þ | O9: 6 | P9: 77 | Q9: =IF($P9="","",HLOOKUP(P9,declare,B6,FALSE)) -> Caryl Granville | R9: Swansea H | S9: 12.81 | T9: =IF(S9="","",IF(AND(AC3="T",S9<S8),"X",IF(AND(AC3="F",S9>S8),"X",""))) ->  | U9: =IF(OR(P9=0,P9="",S9=0,S9=""),"",IF(S9>A3,0,INT(((B3-S9)*D3/C3)+250))) -> 0 | V9: =IF(AC3="T",AF9,AG9) -> þ | AD9: =IF(I9="","",IF(AC3="F","",IF(AC3="T",IF(I9<=Z3,"þ",IF(I9<=AA3,"G2",IF(I9<=AB3,"G3","")))))) -> þ | AE9: =IF(I9="","",IF(AC3="T","",IF(AC3="F",IF(I9>=Z3,"þ",IF(I9>=AA3,"G2",IF(I9>=AB3,"G3","")))))) ->  | AF9: =IF(S9="","",IF(AC3="F","",IF(AC3="T",IF(S9<=Z3,"þ",IF(S9<=AA3,"G2",IF(S9<=AB3,"G3","")))))) -> þ | AG9: =IF(S9="","",IF(AC3="T","",IF(AC3="F",IF(S9>=Z3,"þ",IF(S9>=AA3,"G2",IF(S9>=AB3,"G3","")))))) ->  | AH9: 6 | AI9: 3 | AJ9: 7 | AK9: 3 | AL9: 9 | AN9: ='Match Day'!B14 -> 6 | AO9: 6 | AT9: 5 | AU9: ='Match Day'!C27 -> 4 | AV9: ='Match Day'!D27 -> 4
C10: 7 | D10: 5 | E10: 7 | F10: 7 | G10: =IF($F10="","",HLOOKUP(F10,declare,B6,FALSE)) -> Rebecca Williams | H10: Swansea H | I10: 12.64 | J10: =IF(I10="","",IF(AND(AC3="T",I10<I9),"X",IF(AND(AC3="F",I10>I9),"X",""))) ->  | L10: =IF(OR(F10=0,F10="",I10=0,I10=""),"",IF(I10>A3,0,INT(((B3-I10)*D3/C3)+250))) -> 0 | M10: =IF(AC3="T",AD10,AE10) -> þ | O10: 7 | P10: 55 | Q10: =IF($P10="","",HLOOKUP(P10,declare,B6,FALSE)) -> Makeda Lewis (U20) | R10: Shaftesbury Barnet H | S10: 12.9 | T10: =IF(S10="","",IF(AND(AC3="T",S10<S9),"X",IF(AND(AC3="F",S10>S9),"X",""))) ->  | U10: =IF(OR(P10=0,P10="",S10=0,S10=""),"",IF(S10>A3,0,INT(((B3-S10)*D3/C3)+250))) -> 0 | V10: =IF(AC3="T",AF10,AG10) -> þ | AD10: =IF(I10="","",IF(AC3="F","",IF(AC3="T",IF(I10<=Z3,"þ",IF(I10<=AA3,"G2",IF(I10<=AB3,"G3","")))))) -> þ | AE10: =IF(I10="","",IF(AC3="T","",IF(AC3="F",IF(I10>=Z3,"þ",IF(I10>=AA3,"G2",IF(I10>=AB3,"G3","")))))) ->  | AF10: =IF(S10="","",IF(AC3="F","",IF(AC3="T",IF(S10<=Z3,"þ",IF(S10<=AA3,"G2",IF(S10<=AB3,"G3","")))))) -> þ | AG10: =IF(S10="","",IF(AC3="T","",IF(AC3="F",IF(S10>=Z3,"þ",IF(S10>=AA3,"G2",IF(S10>=AB3,"G3","")))))) ->  | AH10: 7 | AI10: 2 | AJ10: 5 | AK10: 2 | AL10: 10 | AN10: ='Match Day'!B16 -> 7 | AO10: 7 | AT10: 6 | AU10: ='Match Day'!C28 -> 3 | AV10: ='Match Day'!D28 -> 3
C11: 5 | E11: 8 | F11: 5 | G11: =IF($F11="","",HLOOKUP(F11,declare,B6,FALSE)) -> Chisom Nwachukwu (U20) | H11: Shaftesbury Barnet H | I11: 12.72 | J11: =IF(I11="","",IF(AND(AC3="T",I11<I10),"X",IF(AND(AC3="F",I11>I10),"X",""))) ->  | L11: =IF(OR(F11=0,F11="",I11=0,I11=""),"",IF(I11>A3,0,INT(((B3-I11)*D3/C3)+250))) -> 0 | M11: =IF(AC3="T",AD11,AE11) -> þ | O11: 8 | Q11: =IF($P11="","",HLOOKUP(P11,declare,B6,FALSE)) ->  | T11: =IF(S11="","",IF(AND(AC3="T",S11<S10),"X",IF(AND(AC3="F",S11>S10),"X",""))) ->  | U11: =IF(OR(P11=0,P11="",S11=0,S11=""),"",IF(S11>A3,0,INT(((B3-S11)*D3/C3)+250))) ->  | V11: =IF(AC3="T",AF11,AG11) ->  | AD11: =IF(I11="","",IF(AC3="F","",IF(AC3="T",IF(I11<=Z3,"þ",IF(I11<=AA3,"G2",IF(I11<=AB3,"G3","")))))) -> þ | AE11: =IF(I11="","",IF(AC3="T","",IF(AC3="F",IF(I11>=Z3,"þ",IF(I11>=AA3,"G2",IF(I11>=AB3,"G3","")))))) ->  | AF11: =IF(S11="","",IF(AC3="F","",IF(AC3="T",IF(S11<=Z3,"þ",IF(S11<=AA3,"G2",IF(S11<=AB3,"G3","")))))) ->  | AG11: =IF(S11="","",IF(AC3="T","",IF(AC3="F",IF(S11>=Z3,"þ",IF(S11>=AA3,"G2",IF(S11>=AB3,"G3","")))))) ->  | AH11: 5 | AI11: 1 | AL11: 11 | AN11: ='Match Day'!B18 -> 8 | AO11: 8 | AT11: 7 | AU11: ='Match Day'!C29 -> 2 | AV11: ='Match Day'!D29 -> 2
AL12: 12 | AN12: =AN4*11 -> 11 | AT12: 8 | AU12: ='Match Day'!C30 -> 1 | AV12: ='Match Day'!D30 -> 1 | AW12: =SUM(AU5:AU12) -> 37 | AX12: =SUM(AV5:AV12) -> 37
A13: 25.6 | B13: 22.6 | C13: 0.01 | D13: 0.667 | E13: =CONCATENATE(VLOOKUP(A14,mens_handbook,3,FALSE)," A") -> Women's 200m A | H13: =IF(A14="","",IF(VLOOKUP(A14,Handbook!$A$4:$AI$24,35,FALSE)="Y","Wind=","")) -> Wind= | I13: -0.8 | O13: =CONCATENATE(VLOOKUP(A14,mens_handbook,3,FALSE)," B") -> Women's 200m B | R13: =H13 -> Wind= | S13: -0.7 | X13: =IF($A14="","",VLOOKUP($A14,Handbook!$A$4:$V$24,21,FALSE)) -> 23 | Y13: =IF($A14="","",VLOOKUP($A14,Handbook!$A$4:$V$24,22,FALSE)) -> 23 | Z13: =IF($A14="","",VLOOKUP($A14,Handbook!$A$4:$W$24,23,FALSE)) -> 27 | AA13: =IF($A14="","",VLOOKUP($A14,Handbook!$A$4:$X$24,24,FALSE)) -> 27 | AB13: =IF($A14="","",VLOOKUP($A14,Handbook!$A$4:$Y$24,25,FALSE)) -> 27 | AC13: =IF($A14="","",VLOOKUP($A14,Handbook!$A$4:$AH$24,34,FALSE)) -> T | AL13: 13 | AN13: =AN5*11 -> 22 | AT13: 1= | AU13: =SUM($AU$5:AU6)/2 -> 8 | AV13: =SUM($AV$5:AV6)/2 -> 8
A14: 7 | C14: =IF(F14="","",IF(F14>10,F14/11,F14)) -> 3 | D14: =IF(P14="","",IF(P14>10,P14/11,P14)) -> 3 | E14: 1 | F14: 3 | G14: =IF($F14="","",IF($F14>90,VLOOKUP(F14,eventcodes,2,FALSE),HLOOKUP(F14,declare,B16,FALSE))) -> Kadi-Ann Thomas | H14: =IF($F14="","",IF($F14>90,"",VLOOKUP(C14,matchday,2,FALSE))) -> Marshall Milton Keynes AC | I14: 24.52 | J14: =IF(I14="","",IF(AC13="T",X14,X15)) ->  | L14: =IF(OR(F14=0,F14="",I14=0,I14=""),"",IF(I14>A13,0,INT(((B13-I14)*D13/C13)+250))) -> 121 | M14: =IF(AC13="T",AD14,AE14) -> þ | O14: 1 | P14: 33 | Q14: =IF($P14="","",HLOOKUP(P14,declare,B16,FALSE)) -> Joey Duck | R14: =IF($P14="","",VLOOKUP(D14,matchday,2,FALSE)) -> Marshall Milton Keynes AC | S14: 24.53 | U14: =IF(OR(P14=0,P14="",S14=0,S14=""),"",IF(S14>A13,0,INT(((B13-S14)*D13/C13)+250))) -> 121 | V14: =IF(AC13="T",AF14,AG14) -> þ | X14: =IF(AC13="F","",IF(I14<X13,"LR",IF(I14=X13,"=LR",IF(I14<Y13,"DR",IF(I14=Y13,"=DR",""))))) ->  | AD14: =IF(I14="","",IF(AC13="F","",IF(AC13="T",IF(I14<=Z13,"þ",IF(I14<=AA13,"G2",IF(I14<=AB13,"G3","")))))) -> þ | AE14: =IF(I14="","",IF(AC13="T","",IF(AC13="F",IF(I14>=Z13,"þ",IF(I14>=AA13,"G2",IF(I14>=AB13,"G3","")))))) ->  | AF14: =IF(S14="","",IF(AC13="F","",IF(AC13="T",IF(S14<=Z13,"þ",IF(S14<=AA13,"G2",IF(S14<=AB13,"G3","")))))) -> þ | AG14: =IF(S14="","",IF(AC13="T","",IF(AC13="F",IF(S14>=Z13,"þ",IF(S14>=AA13,"G2",IF(S14>=AB13,"G3","")))))) ->  | AH14: =C14 -> 3 | AI14: =IF(F14="","",IF(LEFT(I14,1)="D",0,VLOOKUP(E14,$AT$4:$AU$40,2,FALSE))) -> 9 | AJ14: =D14 -> 3 | AK14: =IF(P14="","",IF(LEFT(S14,1)="D",0,VLOOKUP(O14,$AT$4:$AV$40,3,FALSE))) -> 9 | AL14: 14 | AN14: 33 | AT14: 1== | AU14: =SUM($AU$5:AU7)/3 -> 7.333333333 | AV14: =SUM($AV$5:AV7)/3 -> 7.333333333
B15: =VLOOKUP(A14,Handbook!$A$4:$AK$24,37,FALSE) -> 8 | C15: =IF(F15="","",IF(F15>10,F15/11,F15)) -> 4 | D15: =IF(P15="","",IF(P15>10,P15/11,P15)) -> 6 | E15: 2 | F15: 4 | G15: =IF($F15="","",HLOOKUP(F15,declare,B16,FALSE)) -> Tope Faith-Nuqa | H15: =IF($F15="","",VLOOKUP(C15,matchday,2,FALSE)) -> Newham & Essex Beagles AC | I15: 24.62 | J15: =IF(I15="","",IF(AND(AC13="T",I15<I14),"X",IF(AND(AC13="F",I15>I14),"X",""))) ->  | L15: =IF(OR(F15=0,F15="",I15=0,I15=""),"",IF(I15>A13,0,INT(((B13-I15)*D13/C13)+250))) -> 115 | M15: =IF(AC13="T",AD15,AE15) -> þ | O15: 2 | P15: 66 | Q15: =IF($P15="","",HLOOKUP(P15,declare,B16,FALSE)) -> Emily Newton | R15: Southampton AC | S15: 25.75 | T15: =IF(S15="","",IF(AND(AC13="T",S15<S14),"X",IF(AND(AC13="F",S15>S14),"X",""))) ->  | U15: =IF(OR(P15=0,P15="",S15=0,S15=""),"",IF(S15>A13,0,INT(((B13-S15)*D13/C13)+250))) -> 0 | V15: =IF(AC13="T",AF15,AG15) -> þ | X15: =IF(AC13="T","",IF(I14>X13,"LR",IF(I14=X13,"=LR",IF(I14>Y13,"DR",IF(I14=Y13,"=DR",""))))) ->  | AD15: =IF(I15="","",IF(AC13="F","",IF(AC13="T",IF(I15<=Z13,"þ",IF(I15<=AA13,"G2",IF(I15<=AB13,"G3","")))))) -> þ | AE15: =IF(I15="","",IF(AC13="T","",IF(AC13="F",IF(I15>=Z13,"þ",IF(I15>=AA13,"G2",IF(I15>=AB13,"G3","")))))) ->  | AF15: =IF(S15="","",IF(AC13="F","",IF(AC13="T",IF(S15<=Z13,"þ",IF(S15<=AA13,"G2",IF(S15<=AB13,"G3","")))))) -> þ | AG15: =IF(S15="","",IF(AC13="T","",IF(AC13="F",IF(S15>=Z13,"þ",IF(S15>=AA13,"G2",IF(S15>=AB13,"G3","")))))) ->  | AH15: =C15 -> 4 | AI15: 7 | AJ15: =D15 -> 6 | AK15: 7 | AL15: 15 | AN15: 44 | AT15: 1=== | AU15: =SUM($AU$5:AU8)/4 -> 6.75 | AV15: =SUM($AV$5:AV8)/4 -> 6.75
B16: =VLOOKUP(A14,declare,20,FALSE) -> 4 | C16: 8 | D16: 4 | E16: 3 | F16: 8 | G16: =IF($F16="","",HLOOKUP(F16,declare,B16,FALSE)) -> Ambwene Simukonda | H16: Thames Valley H | I16: 24.89 | J16: =IF(I16="","",IF(AND(AC13="T",I16<I15),"X",IF(AND(AC13="F",I16>I15),"X",""))) ->  | L16: =IF(OR(F16=0,F16="",I16=0,I16=""),"",IF(I16>A13,0,INT(((B13-I16)*D13/C13)+250))) -> 97 | M16: =IF(AC13="T",AD16,AE16) -> þ | O16: 3 | P16: 44 | Q16: =IF($P16="","",HLOOKUP(P16,declare,B16,FALSE)) -> Susannah Banjo | R16: Newham & Essex Beagles AC | S16: 25.88 | T16: =IF(S16="","",IF(AND(AC13="T",S16<S15),"X",IF(AND(AC13="F",S16>S15),"X",""))) ->  | U16: =IF(OR(P16=0,P16="",S16=0,S16=""),"",IF(S16>A13,0,INT(((B13-S16)*D13/C13)+250))) -> 0 | V16: =IF(AC13="T",AF16,AG16) -> þ | AD16: =IF(I16="","",IF(AC13="F","",IF(AC13="T",IF(I16<=Z13,"þ",IF(I16<=AA13,"G2",IF(I16<=AB13,"G3","")))))) -> þ | AE16: =IF(I16="","",IF(AC13="T","",IF(AC13="F",IF(I16>=Z13,"þ",IF(I16>=AA13,"G2",IF(I16>=AB13,"G3","")))))) ->  | AF16: =IF(S16="","",IF(AC13="F","",IF(AC13="T",IF(S16<=Z13,"þ",IF(S16<=AA13,"G2",IF(S16<=AB13,"G3","")))))) -> þ | AG16: =IF(S16="","",IF(AC13="T","",IF(AC13="F",IF(S16>=Z13,"þ",IF(S16>=AA13,"G2",IF(S16>=AB13,"G3","")))))) ->  | AH16: 8 | AI16: 6 | AJ16: 4 | AK16: 6 | AL16: 16 | AN16: 55 | AT16: 1==== | AU16: =SUM($AU$5:AU9)/5 -> 6.2 | AV16: =SUM($AV$5:AV9)/5 -> 6.2
C17: 5 | D17: 2 | E17: 4 | F17: 5 | G17: =IF($F17="","",HLOOKUP(F17,declare,B16,FALSE)) -> Chisom Nwachukwu (U20) | H17: Shaftesbury Barnet H | I17: 25.1 | J17: =IF(I17="","",IF(AND(AC13="T",I17<I16),"X",IF(AND(AC13="F",I17>I16),"X",""))) ->  | L17: =IF(OR(F17=0,F17="",I17=0,I17=""),"",IF(I17>A13,0,INT(((B13-I17)*D13/C13)+250))) -> 83 | M17: =IF(AC13="T",AD17,AE17) -> þ | O17: 4 | P17: 22 | Q17: =IF($P17="","",HLOOKUP(P17,declare,B16,FALSE)) -> Emily Martin | R17: Blackheath & Bromley H | S17: 26.01 | T17: =IF(S17="","",IF(AND(AC13="T",S17<S16),"X",IF(AND(AC13="F",S17>S16),"X",""))) ->  | U17: =IF(OR(P17=0,P17="",S17=0,S17=""),"",IF(S17>A13,0,INT(((B13-S17)*D13/C13)+250))) -> 0 | V17: =IF(AC13="T",AF17,AG17) -> þ | AD17: =IF(I17="","",IF(AC13="F","",IF(AC13="T",IF(I17<=Z13,"þ",IF(I17<=AA13,"G2",IF(I17<=AB13,"G3","")))))) -> þ | AE17: =IF(I17="","",IF(AC13="T","",IF(AC13="F",IF(I17>=Z13,"þ",IF(I17>=AA13,"G2",IF(I17>=AB13,"G3","")))))) ->  | AF17: =IF(S17="","",IF(AC13="F","",IF(AC13="T",IF(S17<=Z13,"þ",IF(S17<=AA13,"G2",IF(S17<=AB13,"G3","")))))) -> þ | AG17: =IF(S17="","",IF(AC13="T","",IF(AC13="F",IF(S17>=Z13,"þ",IF(S17>=AA13,"G2",IF(S17>=AB13,"G3","")))))) ->  | AH17: 5 | AI17: 5 | AJ17: 2 | AK17: 5 | AL17: 17 | AN17: 66 | AT17: 1===== | AU17: =SUM($AU$5:AU10)/6 -> 5.666666667 | AV17: =SUM($AV$5:AV10)/6 -> 5.666666667
C18: 7 | D18: 7 | E18: 5 | F18: 7 | G18: =IF($F18="","",HLOOKUP(F18,declare,B16,FALSE)) -> Rebecca Williams | H18: Swansea H | I18: 25.12 | J18: =IF(I18="","",IF(AND(AC13="T",I18<I17),"X",IF(AND(AC13="F",I18>I17),"X",""))) ->  | L18: =IF(OR(F18=0,F18="",I18=0,I18=""),"",IF(I18>A13,0,INT(((B13-I18)*D13/C13)+250))) -> 81 | M18: =IF(AC13="T",AD18,AE18) -> þ | O18: 5 | P18: 77 | Q18: =IF($P18="","",HLOOKUP(P18,declare,B16,FALSE)) -> Megan Rogers | R18: Swansea H | S18: 26.22 | T18: =IF(S18="","",IF(AND(AC13="T",S18<S17),"X",IF(AND(AC13="F",S18>S17),"X",""))) ->  | U18: =IF(OR(P18=0,P18="",S18=0,S18=""),"",IF(S18>A13,0,INT(((B13-S18)*D13/C13)+250))) -> 0 | V18: =IF(AC13="T",AF18,AG18) -> þ | AD18: =IF(I18="","",IF(AC13="F","",IF(AC13="T",IF(I18<=Z13,"þ",IF(I18<=AA13,"G2",IF(I18<=AB13,"G3","")))))) -> þ | AE18: =IF(I18="","",IF(AC13="T","",IF(AC13="F",IF(I18>=Z13,"þ",IF(I18>=AA13,"G2",IF(I18>=AB13,"G3","")))))) ->  | AF18: =IF(S18="","",IF(AC13="F","",IF(AC13="T",IF(S18<=Z13,"þ",IF(S18<=AA13,"G2",IF(S18<=AB13,"G3","")))))) -> þ | AG18: =IF(S18="","",IF(AC13="T","",IF(AC13="F",IF(S18>=Z13,"þ",IF(S18>=AA13,"G2",IF(S18>=AB13,"G3","")))))) ->  | AH18: 7 | AI18: 4 | AJ18: 7 | AK18: 4 | AL18: 18 | AN18: 77 | AT18: 1====== | AU18: =SUM($AU$5:AU11)/7 -> 5.142857143 | AV18: =SUM($AV$5:AV11)/7 -> 5.142857143
C19: 1 | D19: 5 | E19: 6 | F19: 1 | G19: =IF($F19="","",HLOOKUP(F19,declare,B16,FALSE)) -> Emma Bailey | H19: Bedford & County AC | I19: 25.45 | J19: =IF(I19="","",IF(AND(AC13="T",I19<I18),"X",IF(AND(AC13="F",I19>I18),"X",""))) ->  | L19: =IF(OR(F19=0,F19="",I19=0,I19=""),"",IF(I19>A13,0,INT(((B13-I19)*D13/C13)+250))) -> 59 | M19: =IF(AC13="T",AD19,AE19) -> þ | O19: 6 | P19: 55 | Q19: =IF($P19="","",HLOOKUP(P19,declare,B16,FALSE)) -> Makeda Lewis (U20) | R19: Shaftesbury Barnet H | S19: 26.31 | T19: =IF(S19="","",IF(AND(AC13="T",S19<S18),"X",IF(AND(AC13="F",S19>S18),"X",""))) ->  | U19: =IF(OR(P19=0,P19="",S19=0,S19=""),"",IF(S19>A13,0,INT(((B13-S19)*D13/C13)+250))) -> 0 | V19: =IF(AC13="T",AF19,AG19) -> þ | AD19: =IF(I19="","",IF(AC13="F","",IF(AC13="T",IF(I19<=Z13,"þ",IF(I19<=AA13,"G2",IF(I19<=AB13,"G3","")))))) -> þ | AE19: =IF(I19="","",IF(AC13="T","",IF(AC13="F",IF(I19>=Z13,"þ",IF(I19>=AA13,"G2",IF(I19>=AB13,"G3","")))))) ->  | AF19: =IF(S19="","",IF(AC13="F","",IF(AC13="T",IF(S19<=Z13,"þ",IF(S19<=AA13,"G2",IF(S19<=AB13,"G3","")))))) -> þ | AG19: =IF(S19="","",IF(AC13="T","",IF(AC13="F",IF(S19>=Z13,"þ",IF(S19>=AA13,"G2",IF(S19>=AB13,"G3","")))))) ->  | AH19: 1 | AI19: 3 | AJ19: 5 | AK19: 3 | AL19: 19 | AN19: 88 | AT19: 1======= | AU19: =SUM($AU$5:AU12)/8 -> 4.625 | AV19: =SUM($AV$5:AV12)/8 -> 4.625
C20: 6 | E20: 7 | F20: 6 | G20: =IF($F20="","",HLOOKUP(F20,declare,B16,FALSE)) -> Becca Carozzi | H20: Southampton AC | I20: 25.46 | J20: =IF(I20="","",IF(AND(AC13="T",I20<I19),"X",IF(AND(AC13="F",I20>I19),"X",""))) ->  | L20: =IF(OR(F20=0,F20="",I20=0,I20=""),"",IF(I20>A13,0,INT(((B13-I20)*D13/C13)+250))) -> 59 | M20: =IF(AC13="T",AD20,AE20) -> þ | O20: 7 | Q20: =IF($P20="","",HLOOKUP(P20,declare,B16,FALSE)) ->  | T20: =IF(S20="","",IF(AND(AC13="T",S20<S19),"X",IF(AND(AC13="F",S20>S19),"X",""))) ->  | U20: =IF(OR(P20=0,P20="",S20=0,S20=""),"",IF(S20>A13,0,INT(((B13-S20)*D13/C13)+250))) ->  | V20: =IF(AC13="T",AF20,AG20) ->  | AD20: =IF(I20="","",IF(AC13="F","",IF(AC13="T",IF(I20<=Z13,"þ",IF(I20<=AA13,"G2",IF(I20<=AB13,"G3","")))))) -> þ | AE20: =IF(I20="","",IF(AC13="T","",IF(AC13="F",IF(I20>=Z13,"þ",IF(I20>=AA13,"G2",IF(I20>=AB13,"G3","")))))) ->  | AF20: =IF(S20="","",IF(AC13="F","",IF(AC13="T",IF(S20<=Z13,"þ",IF(S20<=AA13,"G2",IF(S20<=AB13,"G3","")))))) ->  | AG20: =IF(S20="","",IF(AC13="T","",IF(AC13="F",IF(S20>=Z13,"þ",IF(S20>=AA13,"G2",IF(S20>=AB13,"G3","")))))) ->  | AH20: 6 | AI20: 2 | AL20: 20 | AN20: 99 | AT20: 2= | AU20: =SUM($AU$6:AU7)/2 -> 6.5 | AV20: =SUM($AV$6:AV7)/2 -> 6.5
C21: 2 | E21: 8 | F21: 2 | G21: =IF($F21="","",HLOOKUP(F21,declare,B16,FALSE)) -> Yimika Adewakun | H21: Blackheath & Bromley H | I21: 25.83 | J21: =IF(I21="","",IF(AND(AC13="T",I21<I20),"X",IF(AND(AC13="F",I21>I20),"X",""))) ->  | L21: =IF(OR(F21=0,F21="",I21=0,I21=""),"",IF(I21>A13,0,INT(((B13-I21)*D13/C13)+250))) -> 0 | M21: =IF(AC13="T",AD21,AE21) -> þ | O21: 8 | Q21: =IF($P21="","",HLOOKUP(P21,declare,B16,FALSE)) ->  | T21: =IF(S21="","",IF(AND(AC13="T",S21<S20),"X",IF(AND(AC13="F",S21>S20),"X",""))) ->  | U21: =IF(OR(P21=0,P21="",S21=0,S21=""),"",IF(S21>A13,0,INT(((B13-S21)*D13/C13)+250))) ->  | V21: =IF(AC13="T",AF21,AG21) ->  | AD21: =IF(I21="","",IF(AC13="F","",IF(AC13="T",IF(I21<=Z13,"þ",IF(I21<=AA13,"G2",IF(I21<=AB13,"G3","")))))) -> þ | AE21: =IF(I21="","",IF(AC13="T","",IF(AC13="F",IF(I21>=Z13,"þ",IF(I21>=AA13,"G2",IF(I21>=AB13,"G3","")))))) ->  | AF21: =IF(S21="","",IF(AC13="F","",IF(AC13="T",IF(S21<=Z13,"þ",IF(S21<=AA13,"G2",IF(S21<=AB13,"G3","")))))) ->  | AG21: =IF(S21="","",IF(AC13="T","",IF(AC13="F",IF(S21>=Z13,"þ",IF(S21>=AA13,"G2",IF(S21>=AB13,"G3","")))))) ->  | AH21: 2 | AI21: 1 | AL21: 21 | AN21: 97 | AT21: 2== | AU21: =SUM($AU$6:AU8)/3 -> 6 | AV21: =SUM($AV$6:AV8)/3 -> 6
AL22: 22 | AN22: 98 | AT22: 2=== | AU22: =SUM($AU$6:AU9)/4 -> 5.5 | AV22: =SUM($AV$6:AV9)/4 -> 5.5
A23: 58.75 | B23: 50.75 | C23: 0.1 | D23: 2.5 | E23: =CONCATENATE(VLOOKUP(A24,mens_handbook,3,FALSE)," A") -> Women's 400m A | H23: =IF(A24="","",IF(VLOOKUP(A24,Handbook!$A$4:$AI$24,35,FALSE)="Y","Wind=","")) ->  | O23: =CONCATENATE(VLOOKUP(A24,mens_handbook,3,FALSE)," B") -> Women's 400m B | R23: =H23 ->  | X23: =IF($A24="","",VLOOKUP($A24,Handbook!$A$4:$V$24,21,FALSE)) -> 51.7 | Y23: =IF($A24="","",VLOOKUP($A24,Handbook!$A$4:$V$24,22,FALSE)) -> 52.8 | Z23: =IF($A24="","",VLOOKUP($A24,Handbook!$A$4:$W$24,23,FALSE)) -> 62 | AA23: =IF($A24="","",VLOOKUP($A24,Handbook!$A$4:$X$24,24,FALSE)) -> 62 | AB23: =IF($A24="","",VLOOKUP($A24,Handbook!$A$4:$Y$24,25,FALSE)) -> 62 | AC23: =IF($A24="","",VLOOKUP($A24,Handbook!$A$4:$AH$24,34,FALSE)) -> T | AL23: 23 | AN23: 96 | AT23: 2==== | AU23: =SUM($AU$6:AU10)/5 -> 5 | AV23: =SUM($AV$6:AV10)/5 -> 5
A24: 4 | C24: =IF(F24="","",IF(F24>10,F24/11,F24)) -> 8 | D24: =IF(P24="","",IF(P24>10,P24/11,P24)) -> 6 | E24: 1 | F24: 8 | G24: =IF($F24="","",IF($F24>90,VLOOKUP(F24,eventcodes,2,FALSE),HLOOKUP(F24,declare,B26,FALSE))) -> Ambwene Simukonda | H24: =IF($F24="","",IF($F24>90,"",VLOOKUP(C24,matchday,2,FALSE))) -> Thames Valley H | I24: 54.5 | J24: =IF(I24="","",IF(AC23="T",X24,X25)) ->  | L24: =IF(OR(F24=0,F24="",I24=0,I24=""),"",IF(I24>A23,0,INT(((B23-I24)*D23/C23)+250))) -> 156 | M24: =IF(AC23="T",AD24,AE24) -> þ | O24: 1 | P24: 66 | Q24: =IF($P24="","",HLOOKUP(P24,declare,B26,FALSE)) -> Emily Bonnett | R24: =IF($P24="","",VLOOKUP(D24,matchday,2,FALSE)) -> Southampton AC | S24: 56.68 | U24: =IF(OR(P24=0,P24="",S24=0,S24=""),"",IF(S24>A23,0,INT(((B23-S24)*D23/C23)+250))) -> 101 | V24: =IF(AC23="T",AF24,AG24) -> þ | X24: =IF(AC23="F","",IF(I24<X23,"LR",IF(I24=X23,"=LR",IF(I24<Y23,"DR",IF(I24=Y23,"=DR",""))))) ->  | AD24: =IF(I24="","",IF(AC23="F","",IF(AC23="T",IF(I24<=Z23,"þ",IF(I24<=AA23,"G2",IF(I24<=AB23,"G3","")))))) -> þ | AE24: =IF(I24="","",IF(AC23="T","",IF(AC23="F",IF(I24>=Z23,"þ",IF(I24>=AA23,"G2",IF(I24>=AB23,"G3","")))))) ->  | AF24: =IF(S24="","",IF(AC23="F","",IF(AC23="T",IF(S24<=Z23,"þ",IF(S24<=AA23,"G2",IF(S24<=AB23,"G3","")))))) -> þ | AG24: =IF(S24="","",IF(AC23="T","",IF(AC23="F",IF(S24>=Z23,"þ",IF(S24>=AA23,"G2",IF(S24>=AB23,"G3","")))))) ->  | AH24: =C24 -> 8 | AI24: =IF(F24="","",IF(LEFT(I24,1)="D",0,VLOOKUP(E24,$AT$4:$AU$40,2,FALSE))) -> 9 | AJ24: =D24 -> 6 | AK24: =IF(P24="","",IF(LEFT(S24,1)="D",0,VLOOKUP(O24,$AT$4:$AV$40,3,FALSE))) -> 9 | AL24: 24 | AN24: Events Not Held Codes | AT24: 2===== | AU24: =SUM($AU$6:AU11)/6 -> 4.5 | AV24: =SUM($AV$6:AV11)/6 -> 4.5
B25: =VLOOKUP(A24,Handbook!$A$4:$AK$24,37,FALSE) -> 5 | C25: =IF(F25="","",IF(F25>10,F25/11,F25)) -> 2 | D25: =IF(P25="","",IF(P25>10,P25/11,P25)) -> 2 | E25: 2 | F25: 2 | G25: =IF($F25="","",HLOOKUP(F25,declare,B26,FALSE)) -> Yimika Adewakun | H25: =IF($F25="","",VLOOKUP(C25,matchday,2,FALSE)) -> Blackheath & Bromley H | I25: 55.65 | J25: =IF(I25="","",IF(AND(AC23="T",I25<I24),"X",IF(AND(AC23="F",I25>I24),"X",""))) ->  | L25: =IF(OR(F25=0,F25="",I25=0,I25=""),"",IF(I25>A23,0,INT(((B23-I25)*D23/C23)+250))) -> 127 | M25: =IF(AC23="T",AD25,AE25) -> þ | O25: 2 | P25: 22 | Q25: =IF($P25="","",HLOOKUP(P25,declare,B26,FALSE)) -> Krystal Galley | R25: Blackheath & Bromley H | S25: 57.08 | T25: =IF(S25="","",IF(AND(AC23="T",S25<S24),"X",IF(AND(AC23="F",S25>S24),"X",""))) ->  | U25: =IF(OR(P25=0,P25="",S25=0,S25=""),"",IF(S25>A23,0,INT(((B23-S25)*D23/C23)+250))) -> 91 | V25: =IF(AC23="T",AF25,AG25) -> þ | X25: =IF(AC23="T","",IF(I24>X23,"LR",IF(I24=X23,"=LR",IF(I24>Y23,"DR",IF(I24=Y23,"=DR",""))))) ->  | AD25: =IF(I25="","",IF(AC23="F","",IF(AC23="T",IF(I25<=Z23,"þ",IF(I25<=AA23,"G2",IF(I25<=AB23,"G3","")))))) -> þ | AE25: =IF(I25="","",IF(AC23="T","",IF(AC23="F",IF(I25>=Z23,"þ",IF(I25>=AA23,"G2",IF(I25>=AB23,"G3","")))))) ->  | AF25: =IF(S25="","",IF(AC23="F","",IF(AC23="T",IF(S25<=Z23,"þ",IF(S25<=AA23,"G2",IF(S25<=AB23,"G3","")))))) -> þ | AG25: =IF(S25="","",IF(AC23="T","",IF(AC23="F",IF(S25>=Z23,"þ",IF(S25>=AA23,"G2",IF(S25>=AB23,"G3","")))))) ->  | AH25: =C25 -> 2 | AI25: 7 | AJ25: =D25 -> 2 | AK25: 7 | AL25: 25 | AM25: 97 | AN25: Open Heights Not Cleared | AT25: 2====== | AU25: =SUM($AU$6:AU12)/7 -> 4 | AV25: =SUM($AV$6:AV12)/7 -> 4
B26: =VLOOKUP(A24,declare,20,FALSE) -> 5 | C26: 6 | D26: 4 | E26: 3 | F26: 6 | G26: =IF($F26="","",HLOOKUP(F26,declare,B26,FALSE)) -> Millie Clifford | H26: Southampton AC | I26: 56.69 | J26: =IF(I26="","",IF(AND(AC23="T",I26<I25),"X",IF(AND(AC23="F",I26>I25),"X",""))) ->  | L26: =IF(OR(F26=0,F26="",I26=0,I26=""),"",IF(I26>A23,0,INT(((B23-I26)*D23/C23)+250))) -> 101 | M26: =IF(AC23="T",AD26,AE26) -> þ | O26: 3 | P26: 44 | Q26: =IF($P26="","",HLOOKUP(P26,declare,B26,FALSE)) -> Kate Laidlow | R26: Newham & Essex Beagles AC | S26: 58.4 | T26: =IF(S26="","",IF(AND(AC23="T",S26<S25),"X",IF(AND(AC23="F",S26>S25),"X",""))) ->  | U26: =IF(OR(P26=0,P26="",S26=0,S26=""),"",IF(S26>A23,0,INT(((B23-S26)*D23/C23)+250))) -> 58 | V26: =IF(AC23="T",AF26,AG26) -> þ | AD26: =IF(I26="","",IF(AC23="F","",IF(AC23="T",IF(I26<=Z23,"þ",IF(I26<=AA23,"G2",IF(I26<=AB23,"G3","")))))) -> þ | AE26: =IF(I26="","",IF(AC23="T","",IF(AC23="F",IF(I26>=Z23,"þ",IF(I26>=AA23,"G2",IF(I26>=AB23,"G3","")))))) ->  | AF26: =IF(S26="","",IF(AC23="F","",IF(AC23="T",IF(S26<=Z23,"þ",IF(S26<=AA23,"G2",IF(S26<=AB23,"G3","")))))) -> þ | AG26: =IF(S26="","",IF(AC23="T","",IF(AC23="F",IF(S26>=Z23,"þ",IF(S26>=AA23,"G2",IF(S26>=AB23,"G3","")))))) ->  | AH26: 6 | AI26: 6 | AJ26: 4 | AK26: 6 | AL26: 26 | AM26: 98 | AN26: No Valid Performances | AT26: 3= | AU26: =SUM($AU$7:AU8)/2 -> 5.5 | AV26: =SUM($AV$7:AV8)/2 -> 5.5
C27: 7 | D27: 8 | E27: 4 | F27: 7 | G27: =IF($F27="","",HLOOKUP(F27,declare,B26,FALSE)) -> Megan Rogers | H27: Swansea H | I27: 57.15 | J27: =IF(I27="","",IF(AND(AC23="T",I27<I26),"X",IF(AND(AC23="F",I27>I26),"X",""))) ->  | L27: =IF(OR(F27=0,F27="",I27=0,I27=""),"",IF(I27>A23,0,INT(((B23-I27)*D23/C23)+250))) -> 90 | M27: =IF(AC23="T",AD27,AE27) -> þ | O27: 4 | P27: 88 | Q27: =IF($P27="","",HLOOKUP(P27,declare,B26,FALSE)) -> Cleopatra Moulon | R27: Thames Valley H | S27: 64.28 | T27: =IF(S27="","",IF(AND(AC23="T",S27<S26),"X",IF(AND(AC23="F",S27>S26),"X",""))) ->  | U27: =IF(OR(P27=0,P27="",S27=0,S27=""),"",IF(S27>A23,0,INT(((B23-S27)*D23/C23)+250))) -> 0 | V27: =IF(AC23="T",AF27,AG27) ->  | AD27: =IF(I27="","",IF(AC23="F","",IF(AC23="T",IF(I27<=Z23,"þ",IF(I27<=AA23,"G2",IF(I27<=AB23,"G3","")))))) -> þ | AE27: =IF(I27="","",IF(AC23="T","",IF(AC23="F",IF(I27>=Z23,"þ",IF(I27>=AA23,"G2",IF(I27>=AB23,"G3","")))))) ->  | AF27: =IF(S27="","",IF(AC23="F","",IF(AC23="T",IF(S27<=Z23,"þ",IF(S27<=AA23,"G2",IF(S27<=AB23,"G3","")))))) ->  | AG27: =IF(S27="","",IF(AC23="T","",IF(AC23="F",IF(S27>=Z23,"þ",IF(S27>=AA23,"G2",IF(S27>=AB23,"G3","")))))) ->  | AH27: 7 | AI27: 5 | AJ27: 8 | AK27: 5 | AL27: 27 | AM27: 99 | AN27: Event Cancelled | AT27: 3== | AU27: =SUM($AU$7:AU9)/3 -> 5 | AV27: =SUM($AV$7:AV9)/3 -> 5
C28: 4 | D28: 7 | E28: 5 | F28: 4 | G28: =IF($F28="","",HLOOKUP(F28,declare,B26,FALSE)) -> Mubarakat Akinshipo | H28: Newham & Essex Beagles AC | I28: 62.48 | J28: =IF(I28="","",IF(AND(AC23="T",I28<I27),"X",IF(AND(AC23="F",I28>I27),"X",""))) ->  | L28: =IF(OR(F28=0,F28="",I28=0,I28=""),"",IF(I28>A23,0,INT(((B23-I28)*D23/C23)+250))) -> 0 | M28: =IF(AC23="T",AD28,AE28) ->  | O28: 5 | P28: 77 | Q28: =IF($P28="","",HLOOKUP(P28,declare,B26,FALSE)) -> Elin Leyshon | R28: Swansea H | S28: 71.97 | T28: =IF(S28="","",IF(AND(AC23="T",S28<S27),"X",IF(AND(AC23="F",S28>S27),"X",""))) ->  | U28: =IF(OR(P28=0,P28="",S28=0,S28=""),"",IF(S28>A23,0,INT(((B23-S28)*D23/C23)+250))) -> 0 | V28: =IF(AC23="T",AF28,AG28) ->  | AD28: =IF(I28="","",IF(AC23="F","",IF(AC23="T",IF(I28<=Z23,"þ",IF(I28<=AA23,"G2",IF(I28<=AB23,"G3","")))))) ->  | AE28: =IF(I28="","",IF(AC23="T","",IF(AC23="F",IF(I28>=Z23,"þ",IF(I28>=AA23,"G2",IF(I28>=AB23,"G3","")))))) ->  | AF28: =IF(S28="","",IF(AC23="F","",IF(AC23="T",IF(S28<=Z23,"þ",IF(S28<=AA23,"G2",IF(S28<=AB23,"G3","")))))) ->  | AG28: =IF(S28="","",IF(AC23="T","",IF(AC23="F",IF(S28>=Z23,"þ",IF(S28>=AA23,"G2",IF(S28>=AB23,"G3","")))))) ->  | AH28: 4 | AI28: 4 | AJ28: 7 | AK28: 4 | AL28: 28 | AM28: 96 | AN28: No Competitors Entered | AT28: 3=== | AU28: =SUM($AU$7:AU10)/4 -> 4.5 | AV28: =SUM($AV$7:AV10)/4 -> 4.5
C29: 5 | E29: 6 | F29: 5 | G29: =IF($F29="","",HLOOKUP(F29,declare,B26,FALSE)) -> Gerda Vaitkaityte | H29: Shaftesbury Barnet H | I29: 63.48 | J29: =IF(I29="","",IF(AND(AC23="T",I29<I28),"X",IF(AND(AC23="F",I29>I28),"X",""))) ->  | L29: =IF(OR(F29=0,F29="",I29=0,I29=""),"",IF(I29>A23,0,INT(((B23-I29)*D23/C23)+250))) -> 0 | M29: =IF(AC23="T",AD29,AE29) ->  | O29: 6 | Q29: =IF($P29="","",HLOOKUP(P29,declare,B26,FALSE)) ->  | T29: =IF(S29="","",IF(AND(AC23="T",S29<S28),"X",IF(AND(AC23="F",S29>S28),"X",""))) ->  | U29: =IF(OR(P29=0,P29="",S29=0,S29=""),"",IF(S29>A23,0,INT(((B23-S29)*D23/C23)+250))) ->  | V29: =IF(AC23="T",AF29,AG29) ->  | AD29: =IF(I29="","",IF(AC23="F","",IF(AC23="T",IF(I29<=Z23,"þ",IF(I29<=AA23,"G2",IF(I29<=AB23,"G3","")))))) ->  | AE29: =IF(I29="","",IF(AC23="T","",IF(AC23="F",IF(I29>=Z23,"þ",IF(I29>=AA23,"G2",IF(I29>=AB23,"G3","")))))) ->  | AF29: =IF(S29="","",IF(AC23="F","",IF(AC23="T",IF(S29<=Z23,"þ",IF(S29<=AA23,"G2",IF(S29<=AB23,"G3","")))))) ->  | AG29: =IF(S29="","",IF(AC23="T","",IF(AC23="F",IF(S29>=Z23,"þ",IF(S29>=AA23,"G2",IF(S29>=AB23,"G3","")))))) ->  | AH29: 5 | AI29: 3 | AL29: 29 | AT29: 3==== | AU29: =SUM($AU$7:AU11)/5 -> 4 | AV29: =SUM($AV$7:AV11)/5 -> 4
C30: 3 | E30: 7 | F30: 3 | G30: =IF($F30="","",HLOOKUP(F30,declare,B26,FALSE)) -> Di Baldwin (V50) | H30: Marshall Milton Keynes AC | I30: 82.7 | J30: =IF(I30="","",IF(AND(AC23="T",I30<I29),"X",IF(AND(AC23="F",I30>I29),"X",""))) ->  | L30: =IF(OR(F30=0,F30="",I30=0,I30=""),"",IF(I30>A23,0,INT(((B23-I30)*D23/C23)+250))) -> 0 | M30: =IF(AC23="T",AD30,AE30) ->  | O30: 7 | Q30: =IF($P30="","",HLOOKUP(P30,declare,B26,FALSE)) ->  | T30: =IF(S30="","",IF(AND(AC23="T",S30<S29),"X",IF(AND(AC23="F",S30>S29),"X",""))) ->  | U30: =IF(OR(P30=0,P30="",S30=0,S30=""),"",IF(S30>A23,0,INT(((B23-S30)*D23/C23)+250))) ->  | V30: =IF(AC23="T",AF30,AG30) ->  | AD30: =IF(I30="","",IF(AC23="F","",IF(AC23="T",IF(I30<=Z23,"þ",IF(I30<=AA23,"G2",IF(I30<=AB23,"G3","")))))) ->  | AE30: =IF(I30="","",IF(AC23="T","",IF(AC23="F",IF(I30>=Z23,"þ",IF(I30>=AA23,"G2",IF(I30>=AB23,"G3","")))))) ->  | AF30: =IF(S30="","",IF(AC23="F","",IF(AC23="T",IF(S30<=Z23,"þ",IF(S30<=AA23,"G2",IF(S30<=AB23,"G3","")))))) ->  | AG30: =IF(S30="","",IF(AC23="T","",IF(AC23="F",IF(S30>=Z23,"þ",IF(S30>=AA23,"G2",IF(S30>=AB23,"G3","")))))) ->  | AH30: 3 | AI30: 2 | AL30: 30 | AT30: 3===== | AU30: =SUM($AU$7:AU12)/6 -> 3.5 | AV30: =SUM($AV$7:AV12)/6 -> 3.5
E31: 8 | G31: =IF($F31="","",HLOOKUP(F31,declare,B26,FALSE)) ->  | J31: =IF(I31="","",IF(AND(AC23="T",I31<I30),"X",IF(AND(AC23="F",I31>I30),"X",""))) ->  | L31: =IF(OR(F31=0,F31="",I31=0,I31=""),"",IF(I31>A23,0,INT(((B23-I31)*D23/C23)+250))) ->  | M31: =IF(AC23="T",AD31,AE31) ->  | O31: 8 | Q31: =IF($P31="","",HLOOKUP(P31,declare,B26,FALSE)) ->  | T31: =IF(S31="","",IF(AND(AC23="T",S31<S30),"X",IF(AND(AC23="F",S31>S30),"X",""))) ->  | U31: =IF(OR(P31=0,P31="",S31=0,S31=""),"",IF(S31>A23,0,INT(((B23-S31)*D23/C23)+250))) ->  | V31: =IF(AC23="T",AF31,AG31) ->  | AD31: =IF(I31="","",IF(AC23="F","",IF(AC23="T",IF(I31<=Z23,"þ",IF(I31<=AA23,"G2",IF(I31<=AB23,"G3","")))))) ->  | AE31: =IF(I31="","",IF(AC23="T","",IF(AC23="F",IF(I31>=Z23,"þ",IF(I31>=AA23,"G2",IF(I31>=AB23,"G3","")))))) ->  | AF31: =IF(S31="","",IF(AC23="F","",IF(AC23="T",IF(S31<=Z23,"þ",IF(S31<=AA23,"G2",IF(S31<=AB23,"G3","")))))) ->  | AG31: =IF(S31="","",IF(AC23="T","",IF(AC23="F",IF(S31>=Z23,"þ",IF(S31>=AA23,"G2",IF(S31>=AB23,"G3","")))))) ->  | AL31: 31 | AT31: 4= | AU31: =SUM($AU$8:AU9)/2 -> 4.5 | AV31: =SUM($AV$8:AV9)/2 -> 4.5
AL32: 32 | AT32: 4== | AU32: =SUM($AU$8:AU10)/3 -> 4 | AV32: =SUM($AV$8:AV10)/3 -> 4
A33: 00:02:14 | B33: 00:01:58 | C33: 00:00:00.080 | D33: 1 | E33: =CONCATENATE(VLOOKUP(A34,mens_handbook,3,FALSE)," A") -> Women's 800m A | H33: =IF(A34="","",IF(VLOOKUP(A34,Handbook!$A$4:$AI$24,35,FALSE)="Y","Wind=","")) ->  | O33: =CONCATENATE(VLOOKUP(A34,mens_handbook,3,FALSE)," B") -> Women's 800m B | R33: =H33 ->  | X33: =IF($A34="","",VLOOKUP($A34,Handbook!$A$4:$V$24,21,FALSE)) -> 00:02:00.740 | Y33: =IF($A34="","",VLOOKUP($A34,Handbook!$A$4:$V$24,22,FALSE)) -> 00:02:03.500 | Z33: =IF($A34="","",VLOOKUP($A34,Handbook!$A$4:$W$24,23,FALSE)) -> 00:02:25 | AA33: =IF($A34="","",VLOOKUP($A34,Handbook!$A$4:$X$24,24,FALSE)) -> 00:02:25 | AB33: =IF($A34="","",VLOOKUP($A34,Handbook!$A$4:$Y$24,25,FALSE)) -> 00:02:25 | AC33: =IF($A34="","",VLOOKUP($A34,Handbook!$A$4:$AH$24,34,FALSE)) -> T | AL33: 33 | AT33: 4=== | AU33: =SUM($AU$8:AU11)/4 -> 3.5 | AV33: =SUM($AV$8:AV11)/4 -> 3.5
A34: 2 | C34: =IF(F34="","",IF(F34>10,F34/11,F34)) -> 5 | D34: =IF(P34="","",IF(P34>10,P34/11,P34)) -> 8 | E34: 1 | F34: 5 | G34: =IF($F34="","",IF($F34>90,VLOOKUP(F34,eventcodes,2,FALSE),HLOOKUP(F34,declare,B36,FALSE))) -> Amy Campbell | H34: =IF($F34="","",IF($F34>90,"",VLOOKUP(C34,matchday,2,FALSE))) -> Shaftesbury Barnet H | I34: 00:02:11.060 | J34: =IF(I34="","",IF(AC33="T",X34,X35)) ->  | L34: =IF(OR(F34=0,F34="",I34=0,I34=""),"",IF(I34>A33,0,INT(((B33-I34)*D33/C33)+250))) -> 86 | M34: =IF(AC33="T",AD34,AE34) -> þ | O34: 1 | P34: 88 | Q34: =IF($P34="","",HLOOKUP(P34,declare,B36,FALSE)) -> Katie Good | R34: =IF($P34="","",VLOOKUP(D34,matchday,2,FALSE)) -> Thames Valley H | S34: 00:02:15.600 | U34: =IF(OR(P34=0,P34="",S34=0,S34=""),"",IF(S34>A33,0,INT(((B33-S34)*D33/C33)+250))) -> 0 | V34: =IF(AC33="T",AF34,AG34) -> þ | X34: =IF(AC33="F","",IF(I34<X33,"LR",IF(I34=X33,"=LR",IF(I34<Y33,"DR",IF(I34=Y33,"=DR",""))))) ->  | AD34: =IF(I34="","",IF(AC33="F","",IF(AC33="T",IF(I34<=Z33,"þ",IF(I34<=AA33,"G2",IF(I34<=AB33,"G3","")))))) -> þ | AE34: =IF(I34="","",IF(AC33="T","",IF(AC33="F",IF(I34>=Z33,"þ",IF(I34>=AA33,"G2",IF(I34>=AB33,"G3","")))))) ->  | AF34: =IF(S34="","",IF(AC33="F","",IF(AC33="T",IF(S34<=Z33,"þ",IF(S34<=AA33,"G2",IF(S34<=AB33,"G3","")))))) -> þ | AG34: =IF(S34="","",IF(AC33="T","",IF(AC33="F",IF(S34>=Z33,"þ",IF(S34>=AA33,"G2",IF(S34>=AB33,"G3","")))))) ->  | AH34: =C34 -> 5 | AI34: =IF(F34="","",IF(LEFT(I34,1)="D",0,VLOOKUP(E34,$AT$4:$AU$40,2,FALSE))) -> 9 | AJ34: =D34 -> 8 | AK34: =IF(P34="","",IF(LEFT(S34,1)="D",0,VLOOKUP(O34,$AT$4:$AV$40,3,FALSE))) -> 9 | AL34: 34 | AT34: 4==== | AU34: =SUM($AU$8:AU12)/5 -> 3 | AV34: =SUM($AV$8:AV12)/5 -> 3
B35: =VLOOKUP(A34,Handbook!$A$4:$AK$24,37,FALSE) -> 3 | C35: =IF(F35="","",IF(F35>10,F35/11,F35)) -> 6 | D35: =IF(P35="","",IF(P35>10,P35/11,P35)) -> 6 | E35: 2 | F35: 6 | G35: =IF($F35="","",HLOOKUP(F35,declare,B36,FALSE)) -> Jenny Beckingham | H35: =IF($F35="","",VLOOKUP(C35,matchday,2,FALSE)) -> Southampton AC | I35: 00:02:15.540 | J35: =IF(I35="","",IF(AND(AC33="T",I35<I34),"X",IF(AND(AC33="F",I35>I34),"X",""))) ->  | L35: =IF(OR(F35=0,F35="",I35=0,I35=""),"",IF(I35>A33,0,INT(((B33-I35)*D33/C33)+250))) -> 0 | M35: =IF(AC33="T",AD35,AE35) -> þ | O35: 2 | P35: 66 | Q35: =IF($P35="","",HLOOKUP(P35,declare,B36,FALSE)) -> Rhianna Parker-Simpson | R35: Southampton AC | S35: 00:02:16.500 | T35: =IF(S35="","",IF(AND(AC33="T",S35<S34),"X",IF(AND(AC33="F",S35>S34),"X",""))) ->  | U35: =IF(OR(P35=0,P35="",S35=0,S35=""),"",IF(S35>A33,0,INT(((B33-S35)*D33/C33)+250))) -> 0 | V35: =IF(AC33="T",AF35,AG35) -> þ | X35: =IF(AC33="T","",IF(I34>X33,"LR",IF(I34=X33,"=LR",IF(I34>Y33,"DR",IF(I34=Y33,"=DR",""))))) ->  | AD35: =IF(I35="","",IF(AC33="F","",IF(AC33="T",IF(I35<=Z33,"þ",IF(I35<=AA33,"G2",IF(I35<=AB33,"G3","")))))) -> þ | AE35: =IF(I35="","",IF(AC33="T","",IF(AC33="F",IF(I35>=Z33,"þ",IF(I35>=AA33,"G2",IF(I35>=AB33,"G3","")))))) ->  | AF35: =IF(S35="","",IF(AC33="F","",IF(AC33="T",IF(S35<=Z33,"þ",IF(S35<=AA33,"G2",IF(S35<=AB33,"G3","")))))) -> þ | AG35: =IF(S35="","",IF(AC33="T","",IF(AC33="F",IF(S35>=Z33,"þ",IF(S35>=AA33,"G2",IF(S35>=AB33,"G3","")))))) ->  | AH35: =C35 -> 6 | AI35: 7 | AJ35: =D35 -> 6 | AK35: 7 | AL35: 35 | AT35: 5= | AU35: =SUM($AU$9:AU10)/2 -> 3.5 | AV35: =SUM($AV$9:AV10)/2 -> 3.5
B36: =VLOOKUP(A34,declare,20,FALSE) -> 6 | C36: 7 | D36: 5 | E36: 3 | F36: 7 | G36: =IF($F36="","",HLOOKUP(F36,declare,B36,FALSE)) -> Amanda Jones | H36: Swansea H | I36: 00:02:16.250 | J36: =IF(I36="","",IF(AND(AC33="T",I36<I35),"X",IF(AND(AC33="F",I36>I35),"X",""))) ->  | L36: =IF(OR(F36=0,F36="",I36=0,I36=""),"",IF(I36>A33,0,INT(((B33-I36)*D33/C33)+250))) -> 0 | M36: =IF(AC33="T",AD36,AE36) -> þ | O36: 3 | P36: 55 | Q36: =IF($P36="","",HLOOKUP(P36,declare,B36,FALSE)) -> Lucy Aukett | R36: Shaftesbury Barnet H | S36: 00:02:20.500 | T36: =IF(S36="","",IF(AND(AC33="T",S36<S35),"X",IF(AND(AC33="F",S36>S35),"X",""))) ->  | U36: =IF(OR(P36=0,P36="",S36=0,S36=""),"",IF(S36>A33,0,INT(((B33-S36)*D33/C33)+250))) -> 0 | V36: =IF(AC33="T",AF36,AG36) -> þ | AD36: =IF(I36="","",IF(AC33="F","",IF(AC33="T",IF(I36<=Z33,"þ",IF(I36<=AA33,"G2",IF(I36<=AB33,"G3","")))))) -> þ | AE36: =IF(I36="","",IF(AC33="T","",IF(AC33="F",IF(I36>=Z33,"þ",IF(I36>=AA33,"G2",IF(I36>=AB33,"G3","")))))) ->  | AF36: =IF(S36="","",IF(AC33="F","",IF(AC33="T",IF(S36<=Z33,"þ",IF(S36<=AA33,"G2",IF(S36<=AB33,"G3","")))))) -> þ | AG36: =IF(S36="","",IF(AC33="T","",IF(AC33="F",IF(S36>=Z33,"þ",IF(S36>=AA33,"G2",IF(S36>=AB33,"G3","")))))) ->  | AH36: 7 | AI36: 6 | AJ36: 5 | AK36: 6 | AL36: 36 | AT36: 5== | AU36: =SUM($AU$9:AU11)/3 -> 3 | AV36: =SUM($AV$9:AV11)/3 -> 3
C37: 8 | D37: 2 | E37: 4 | F37: 8 | G37: =IF($F37="","",HLOOKUP(F37,declare,B36,FALSE)) -> Emma Grant | H37: Thames Valley H | I37: 00:02:16.430 | J37: =IF(I37="","",IF(AND(AC33="T",I37<I36),"X",IF(AND(AC33="F",I37>I36),"X",""))) ->  | L37: =IF(OR(F37=0,F37="",I37=0,I37=""),"",IF(I37>A33,0,INT(((B33-I37)*D33/C33)+250))) -> 0 | M37: =IF(AC33="T",AD37,AE37) -> þ | O37: 4 | P37: 22 | Q37: =IF($P37="","",HLOOKUP(P37,declare,B36,FALSE)) -> Shavaun Henry | R37: Blackheath & Bromley H | S37: 00:02:24.900 | T37: =IF(S37="","",IF(AND(AC33="T",S37<S36),"X",IF(AND(AC33="F",S37>S36),"X",""))) ->  | U37: =IF(OR(P37=0,P37="",S37=0,S37=""),"",IF(S37>A33,0,INT(((B33-S37)*D33/C33)+250))) -> 0 | V37: =IF(AC33="T",AF37,AG37) -> þ | AD37: =IF(I37="","",IF(AC33="F","",IF(AC33="T",IF(I37<=Z33,"þ",IF(I37<=AA33,"G2",IF(I37<=AB33,"G3","")))))) -> þ | AE37: =IF(I37="","",IF(AC33="T","",IF(AC33="F",IF(I37>=Z33,"þ",IF(I37>=AA33,"G2",IF(I37>=AB33,"G3","")))))) ->  | AF37: =IF(S37="","",IF(AC33="F","",IF(AC33="T",IF(S37<=Z33,"þ",IF(S37<=AA33,"G2",IF(S37<=AB33,"G3","")))))) -> þ | AG37: =IF(S37="","",IF(AC33="T","",IF(AC33="F",IF(S37>=Z33,"þ",IF(S37>=AA33,"G2",IF(S37>=AB33,"G3","")))))) ->  | AH37: 8 | AI37: 5 | AJ37: 2 | AK37: 5 | AL37: 37 | AT37: 5=== | AU37: =SUM($AU$9:AU12)/4 -> 2.5 | AV37: =SUM($AV$9:AV12)/4 -> 2.5
C38: 2 | D38: 7 | E38: 5 | F38: 2 | G38: =IF($F38="","",HLOOKUP(F38,declare,B36,FALSE)) -> Danielle Critchley | H38: Blackheath & Bromley H | I38: 00:02:22.330 | J38: =IF(I38="","",IF(AND(AC33="T",I38<I37),"X",IF(AND(AC33="F",I38>I37),"X",""))) ->  | L38: =IF(OR(F38=0,F38="",I38=0,I38=""),"",IF(I38>A33,0,INT(((B33-I38)*D33/C33)+250))) -> 0 | M38: =IF(AC33="T",AD38,AE38) -> þ | O38: 5 | P38: 77 | Q38: =IF($P38="","",HLOOKUP(P38,declare,B36,FALSE)) -> Holly Lawrence | R38: Swansea H | S38: 00:02:33.500 | T38: =IF(S38="","",IF(AND(AC33="T",S38<S37),"X",IF(AND(AC33="F",S38>S37),"X",""))) ->  | U38: =IF(OR(P38=0,P38="",S38=0,S38=""),"",IF(S38>A33,0,INT(((B33-S38)*D33/C33)+250))) -> 0 | V38: =IF(AC33="T",AF38,AG38) ->  | AD38: =IF(I38="","",IF(AC33="F","",IF(AC33="T",IF(I38<=Z33,"þ",IF(I38<=AA33,"G2",IF(I38<=AB33,"G3","")))))) -> þ | AE38: =IF(I38="","",IF(AC33="T","",IF(AC33="F",IF(I38>=Z33,"þ",IF(I38>=AA33,"G2",IF(I38>=AB33,"G3","")))))) ->  | AF38: =IF(S38="","",IF(AC33="F","",IF(AC33="T",IF(S38<=Z33,"þ",IF(S38<=AA33,"G2",IF(S38<=AB33,"G3","")))))) ->  | AG38: =IF(S38="","",IF(AC33="T","",IF(AC33="F",IF(S38>=Z33,"þ",IF(S38>=AA33,"G2",IF(S38>=AB33,"G3","")))))) ->  | AH38: 2 | AI38: 4 | AJ38: 7 | AK38: 4 | AL38: 38 | AT38: 6= | AU38: =SUM($AU$10:AU11)/2 -> 2.5 | AV38: =SUM($AV$10:AV11)/2 -> 2.5
C39: 1 | D39: 1 | E39: 6 | F39: 1 | G39: =IF($F39="","",HLOOKUP(F39,declare,B36,FALSE)) -> Emily Boast | H39: Bedford & County AC | I39: 00:02:47.030 | J39: =IF(I39="","",IF(AND(AC33="T",I39<I38),"X",IF(AND(AC33="F",I39>I38),"X",""))) ->  | L39: =IF(OR(F39=0,F39="",I39=0,I39=""),"",IF(I39>A33,0,INT(((B33-I39)*D33/C33)+250))) -> 0 | M39: =IF(AC33="T",AD39,AE39) ->  | O39: 6 | P39: 11 | Q39: =IF($P39="","",HLOOKUP(P39,declare,B36,FALSE)) -> Lucy Salter | R39: Bedford & County AC | S39: 00:03:13.600 | T39: =IF(S39="","",IF(AND(AC33="T",S39<S38),"X",IF(AND(AC33="F",S39>S38),"X",""))) ->  | U39: =IF(OR(P39=0,P39="",S39=0,S39=""),"",IF(S39>A33,0,INT(((B33-S39)*D33/C33)+250))) -> 0 | V39: =IF(AC33="T",AF39,AG39) ->  | AD39: =IF(I39="","",IF(AC33="F","",IF(AC33="T",IF(I39<=Z33,"þ",IF(I39<=AA33,"G2",IF(I39<=AB33,"G3","")))))) ->  | AE39: =IF(I39="","",IF(AC33="T","",IF(AC33="F",IF(I39>=Z33,"þ",IF(I39>=AA33,"G2",IF(I39>=AB33,"G3","")))))) ->  | AF39: =IF(S39="","",IF(AC33="F","",IF(AC33="T",IF(S39<=Z33,"þ",IF(S39<=AA33,"G2",IF(S39<=AB33,"G3","")))))) ->  | AG39: =IF(S39="","",IF(AC33="T","",IF(AC33="F",IF(S39>=Z33,"þ",IF(S39>=AA33,"G2",IF(S39>=AB33,"G3","")))))) ->  | AH39: 1 | AI39: 3 | AJ39: 1 | AK39: 3 | AL39: 39 | AT39: 6== | AU39: =SUM($AU$10:AU12)/3 -> 2 | AV39: =SUM($AV$10:AV12)/3 -> 2
C40: 3 | E40: 7 | F40: 3 | G40: =IF($F40="","",HLOOKUP(F40,declare,B36,FALSE)) -> Di Baldwin (V50) | H40: Marshall Milton Keynes AC | I40: 00:03:01.700 | J40: =IF(I40="","",IF(AND(AC33="T",I40<I39),"X",IF(AND(AC33="F",I40>I39),"X",""))) ->  | L40: =IF(OR(F40=0,F40="",I40=0,I40=""),"",IF(I40>A33,0,INT(((B33-I40)*D33/C33)+250))) -> 0 | M40: =IF(AC33="T",AD40,AE40) ->  | O40: 7 | Q40: =IF($P40="","",HLOOKUP(P40,declare,B36,FALSE)) ->  | T40: =IF(S40="","",IF(AND(AC33="T",S40<S39),"X",IF(AND(AC33="F",S40>S39),"X",""))) ->  | U40: =IF(OR(P40=0,P40="",S40=0,S40=""),"",IF(S40>A33,0,INT(((B33-S40)*D33/C33)+250))) ->  | V40: =IF(AC33="T",AF40,AG40) ->  | AD40: =IF(I40="","",IF(AC33="F","",IF(AC33="T",IF(I40<=Z33,"þ",IF(I40<=AA33,"G2",IF(I40<=AB33,"G3","")))))) ->  | AE40: =IF(I40="","",IF(AC33="T","",IF(AC33="F",IF(I40>=Z33,"þ",IF(I40>=AA33,"G2",IF(I40>=AB33,"G3","")))))) ->  | AF40: =IF(S40="","",IF(AC33="F","",IF(AC33="T",IF(S40<=Z33,"þ",IF(S40<=AA33,"G2",IF(S40<=AB33,"G3","")))))) ->  | AG40: =IF(S40="","",IF(AC33="T","",IF(AC33="F",IF(S40>=Z33,"þ",IF(S40>=AA33,"G2",IF(S40>=AB33,"G3","")))))) ->  | AH40: 3 | AI40: 2 | AL40: 40 | AT40: 7= | AU40: =SUM($AU$11:AU12)/2 -> 1.5 | AV40: =SUM($AV$11:AV12)/2 -> 1.5
E41: 8 | G41: =IF($F41="","",HLOOKUP(F41,declare,B36,FALSE)) ->  | J41: =IF(I41="","",IF(AND(AC33="T",I41<I40),"X",IF(AND(AC33="F",I41>I40),"X",""))) ->  | L41: =IF(OR(F41=0,F41="",I41=0,I41=""),"",IF(I41>A33,0,INT(((B33-I41)*D33/C33)+250))) ->  | M41: =IF(AC33="T",AD41,AE41) ->  | O41: 8 | Q41: =IF($P41="","",HLOOKUP(P41,declare,B36,FALSE)) ->  | T41: =IF(S41="","",IF(AND(AC33="T",S41<S40),"X",IF(AND(AC33="F",S41>S40),"X",""))) ->  | U41: =IF(OR(P41=0,P41="",S41=0,S41=""),"",IF(S41>A33,0,INT(((B33-S41)*D33/C33)+250))) ->  | V41: =IF(AC33="T",AF41,AG41) ->  | AD41: =IF(I41="","",IF(AC33="F","",IF(AC33="T",IF(I41<=Z33,"þ",IF(I41<=AA33,"G2",IF(I41<=AB33,"G3","")))))) ->  | AE41: =IF(I41="","",IF(AC33="T","",IF(AC33="F",IF(I41>=Z33,"þ",IF(I41>=AA33,"G2",IF(I41>=AB33,"G3","")))))) ->  | AF41: =IF(S41="","",IF(AC33="F","",IF(AC33="T",IF(S41<=Z33,"þ",IF(S41<=AA33,"G2",IF(S41<=AB33,"G3","")))))) ->  | AG41: =IF(S41="","",IF(AC33="T","",IF(AC33="F",IF(S41>=Z33,"þ",IF(S41>=AA33,"G2",IF(S41>=AB33,"G3","")))))) ->  | AL41: 41
AL42: 42
A43: 00:04:42 | B43: 00:04:02 | C43: 00:00:01 | D43: 5 | E43: =CONCATENATE(VLOOKUP(A44,mens_handbook,3,FALSE)," A") -> Women's 1500m A | H43: =IF(A44="","",IF(VLOOKUP(A44,Handbook!$A$4:$AI$24,35,FALSE)="Y","Wind=","")) ->  | O43: =CONCATENATE(VLOOKUP(A44,mens_handbook,3,FALSE)," B") -> Women's 1500m B | R43: =H43 ->  | X43: =IF($A44="","",VLOOKUP($A44,Handbook!$A$4:$V$24,21,FALSE)) -> 00:04:12.700 | Y43: =IF($A44="","",VLOOKUP($A44,Handbook!$A$4:$V$24,22,FALSE)) -> 00:04:12.700 | Z43: =IF($A44="","",VLOOKUP($A44,Handbook!$A$4:$W$24,23,FALSE)) -> 00:05:00 | AA43: =IF($A44="","",VLOOKUP($A44,Handbook!$A$4:$X$24,24,FALSE)) -> 00:05:00 | AB43: =IF($A44="","",VLOOKUP($A44,Handbook!$A$4:$Y$24,25,FALSE)) -> 00:05:00 | AC43: =IF($A44="","",VLOOKUP($A44,Handbook!$A$4:$AH$24,34,FALSE)) -> T | AL43: 43
A44: 8 | C44: =IF(F44="","",IF(F44>10,F44/11,F44)) -> 5 | D44: =IF(P44="","",IF(P44>10,P44/11,P44)) -> 7 | E44: 1 | F44: =IF(OR('1500m'!E20=0,'1500m'!E20=""),0,'1500m'!E20) -> 5 | G44: =IF(OR($F44="",F44=0),"",IF($F44>90,VLOOKUP(F44,eventcodes,2,FALSE),HLOOKUP(F44,declare,$B$46,FALSE))) -> Amy Campbell | H44: =IF(OR($F44="",F44=0),"",IF($F44>90,"",VLOOKUP(C44,matchday,2,FALSE))) -> Shaftesbury Barnet H | I44: =IF(OR('1500m'!H20="",'1500m'!H20=0),"",'1500m'!H20) -> 00:04:33.770 | J44: =IF(I44="","",IF(AC43="T",X44,X45)) ->  | L44: =IF(OR(F44=0,F44="",I44=0,I44=""),"",IF(I44>A43,0,INT(((B43-I44)*D43/C43)+250))) -> 91 | M44: =IF(AC43="T",AD44,AE44) -> þ | O44: 1 | P44: =IF(OR('1500m'!E29="",'1500m'!E29=0),"",'1500m'!E29) -> 77 | Q44: =IF($P44="","",HLOOKUP(P44,declare,B46,FALSE)) -> Ellen Butler | R44: =IF($P44="","",VLOOKUP(D44,matchday,2,FALSE)) -> Swansea H | S44: =IF(OR('1500m'!H29="",'1500m'!H29=0),"",'1500m'!H29) -> 00:04:50.720 | U44: =IF(OR(P44=0,P44="",S44=0,S44=""),"",IF(S44>A43,0,INT(((B43-S44)*D43/C43)+250))) -> 0 | V44: =IF(AC43="T",AF44,AG44) -> þ | X44: =IF(AC43="F","",IF(I44<X43,"LR",IF(I44=X43,"=LR",IF(I44<Y43,"DR",IF(I44=Y43,"=DR",""))))) ->  | AD44: =IF(I44="","",IF(AC43="F","",IF(AC43="T",IF(I44<=Z43,"þ",IF(I44<=AA43,"G2",IF(I44<=AB43,"G3","")))))) -> þ | AE44: =IF(I44="","",IF(AC43="T","",IF(AC43="F",IF(I44>=Z43,"þ",IF(I44>=AA43,"G2",IF(I44>=AB43,"G3","")))))) ->  | AF44: =IF(S44="","",IF(AC43="F","",IF(AC43="T",IF(S44<=Z43,"þ",IF(S44<=AA43,"G2",IF(S44<=AB43,"G3","")))))) -> þ | AG44: =IF(S44="","",IF(AC43="T","",IF(AC43="F",IF(S44>=Z43,"þ",IF(S44>=AA43,"G2",IF(S44>=AB43,"G3","")))))) ->  | AH44: =C44 -> 5 | AI44: =IF(F44="","",IF(LEFT(I44,1)="D",0,VLOOKUP(E44,$AT$4:$AU$40,2,FALSE))) -> 9 | AJ44: =D44 -> 7 | AK44: =IF(P44="","",IF(LEFT(S44,1)="D",0,VLOOKUP(O44,$AT$4:$AV$40,3,FALSE))) -> 9 | AL44: 44
B45: =VLOOKUP(A44,Handbook!$A$4:$AK$24,37,FALSE) -> 9 | C45: =IF(F45="","",IF(F45>10,F45/11,F45)) -> 7 | D45: =IF(P45="","",IF(P45>10,P45/11,P45)) -> 8 | E45: 2 | F45: =IF(OR('1500m'!E21=0,'1500m'!E21=""),0,'1500m'!E21) -> 7 | G45: Andrea Whitcombe | H45: Swansea H | I45: =IF(OR('1500m'!H21="",'1500m'!H21=0),"",'1500m'!H21) -> 00:04:34.790 | J45: =IF(I45="","",IF(AND(AC43="T",I45<I44),"X",IF(AND(AC43="F",I45>I44),"X",""))) ->  | L45: =IF(OR(F45=0,F45="",I45=0,I45=""),"",IF(I45>A43,0,INT(((B43-I45)*D43/C43)+250))) -> 86 | M45: =IF(AC43="T",AD45,AE45) -> þ | O45: 2 | P45: =IF(OR('1500m'!E30="",'1500m'!E30=0),"",'1500m'!E30) -> 88 | Q45: =IF($P45="","",HLOOKUP(P45,declare,B46,FALSE)) -> Lisa Da Silva | R45: Thames Valley H | S45: =IF(OR('1500m'!H30="",'1500m'!H30=0),"",'1500m'!H30) -> 00:04:52.400 | T45: =IF(S45="","",IF(AND(AC43="T",S45<S44),"X",IF(AND(AC43="F",S45>S44),"X",""))) ->  | U45: =IF(OR(P45=0,P45="",S45=0,S45=""),"",IF(S45>A43,0,INT(((B43-S45)*D43/C43)+250))) -> 0 | V45: =IF(AC43="T",AF45,AG45) -> þ | X45: =IF(AC43="T","",IF(I44>X43,"LR",IF(I44=X43,"=LR",IF(I44>Y43,"DR",IF(I44=Y43,"=DR",""))))) ->  | AD45: =IF(I45="","",IF(AC43="F","",IF(AC43="T",IF(I45<=Z43,"þ",IF(I45<=AA43,"G2",IF(I45<=AB43,"G3","")))))) -> þ | AE45: =IF(I45="","",IF(AC43="T","",IF(AC43="F",IF(I45>=Z43,"þ",IF(I45>=AA43,"G2",IF(I45>=AB43,"G3","")))))) ->  | AF45: =IF(S45="","",IF(AC43="F","",IF(AC43="T",IF(S45<=Z43,"þ",IF(S45<=AA43,"G2",IF(S45<=AB43,"G3","")))))) -> þ | AG45: =IF(S45="","",IF(AC43="T","",IF(AC43="F",IF(S45>=Z43,"þ",IF(S45>=AA43,"G2",IF(S45>=AB43,"G3","")))))) ->  | AH45: =C45 -> 7 | AI45: 7 | AJ45: =D45 -> 8 | AK45: 7 | AL45: 45
B46: =VLOOKUP(A44,declare,20,FALSE) -> 7 | C46: 1 | D46: 1 | E46: 3 | F46: =IF(OR('1500m'!E22=0,'1500m'!E22=""),0,'1500m'!E22) -> 1 | G46: Suzi Boast | H46: Bedford & County AC | I46: =IF(OR('1500m'!H22="",'1500m'!H22=0),"",'1500m'!H22) -> 00:04:40.080 | J46: =IF(I46="","",IF(AND(AC43="T",I46<I45),"X",IF(AND(AC43="F",I46>I45),"X",""))) ->  | L46: =IF(OR(F46=0,F46="",I46=0,I46=""),"",IF(I46>A43,0,INT(((B43-I46)*D43/C43)+250))) -> 59 | M46: =IF(AC43="T",AD46,AE46) -> þ | O46: 3 | P46: =IF(OR('1500m'!E31="",'1500m'!E31=0),"",'1500m'!E31) -> 11 | Q46: =IF($P46="","",HLOOKUP(P46,declare,B46,FALSE)) -> Natasha Peters | R46: Bedford & County AC | S46: =IF(OR('1500m'!H31="",'1500m'!H31=0),"",'1500m'!H31) -> 00:04:53.360 | T46: =IF(S46="","",IF(AND(AC43="T",S46<S45),"X",IF(AND(AC43="F",S46>S45),"X",""))) ->  | U46: =IF(OR(P46=0,P46="",S46=0,S46=""),"",IF(S46>A43,0,INT(((B43-S46)*D43/C43)+250))) -> 0 | V46: =IF(AC43="T",AF46,AG46) -> þ | AD46: =IF(I46="","",IF(AC43="F","",IF(AC43="T",IF(I46<=Z43,"þ",IF(I46<=AA43,"G2",IF(I46<=AB43,"G3","")))))) -> þ | AE46: =IF(I46="","",IF(AC43="T","",IF(AC43="F",IF(I46>=Z43,"þ",IF(I46>=AA43,"G2",IF(I46>=AB43,"G3","")))))) ->  | AF46: =IF(S46="","",IF(AC43="F","",IF(AC43="T",IF(S46<=Z43,"þ",IF(S46<=AA43,"G2",IF(S46<=AB43,"G3","")))))) -> þ | AG46: =IF(S46="","",IF(AC43="T","",IF(AC43="F",IF(S46>=Z43,"þ",IF(S46>=AA43,"G2",IF(S46>=AB43,"G3","")))))) ->  | AH46: 1 | AI46: 6 | AJ46: 1 | AK46: 6 | AL46: 46
C47: 8 | D47: 5 | E47: 4 | F47: =IF(OR('1500m'!E23=0,'1500m'!E23=""),0,'1500m'!E23) -> 8 | G47: Katie Good | H47: Thames Valley H | I47: =IF(OR('1500m'!H23="",'1500m'!H23=0),"",'1500m'!H23) -> 00:04:44.930 | J47: =IF(I47="","",IF(AND(AC43="T",I47<I46),"X",IF(AND(AC43="F",I47>I46),"X",""))) ->  | L47: =IF(OR(F47=0,F47="",I47=0,I47=""),"",IF(I47>A43,0,INT(((B43-I47)*D43/C43)+250))) -> 0 | M47: =IF(AC43="T",AD47,AE47) -> þ | O47: 4 | P47: =IF(OR('1500m'!E32="",'1500m'!E32=0),"",'1500m'!E32) -> 55 | Q47: =IF($P47="","",HLOOKUP(P47,declare,B46,FALSE)) -> Lucy Aukett | R47: Shaftesbury Barnet H | S47: =IF(OR('1500m'!H32="",'1500m'!H32=0),"",'1500m'!H32) -> 00:04:54.100 | T47: =IF(S47="","",IF(AND(AC43="T",S47<S46),"X",IF(AND(AC43="F",S47>S46),"X",""))) ->  | U47: =IF(OR(P47=0,P47="",S47=0,S47=""),"",IF(S47>A43,0,INT(((B43-S47)*D43/C43)+250))) -> 0 | V47: =IF(AC43="T",AF47,AG47) -> þ | AD47: =IF(I47="","",IF(AC43="F","",IF(AC43="T",IF(I47<=Z43,"þ",IF(I47<=AA43,"G2",IF(I47<=AB43,"G3","")))))) -> þ | AE47: =IF(I47="","",IF(AC43="T","",IF(AC43="F",IF(I47>=Z43,"þ",IF(I47>=AA43,"G2",IF(I47>=AB43,"G3","")))))) ->  | AF47: =IF(S47="","",IF(AC43="F","",IF(AC43="T",IF(S47<=Z43,"þ",IF(S47<=AA43,"G2",IF(S47<=AB43,"G3","")))))) -> þ | AG47: =IF(S47="","",IF(AC43="T","",IF(AC43="F",IF(S47>=Z43,"þ",IF(S47>=AA43,"G2",IF(S47>=AB43,"G3","")))))) ->  | AH47: 8 | AI47: 5 | AJ47: 5 | AK47: 5 | AL47: 47
C48: 6 | D48: 6 | E48: 5 | F48: =IF(OR('1500m'!E24=0,'1500m'!E24=""),0,'1500m'!E24) -> 66 | G48: Sophie Hall | H48: Southampton AC | I48: =IF(OR('1500m'!H24="",'1500m'!H24=0),"",'1500m'!H24) -> 00:04:57.540 | J48: =IF(I48="","",IF(AND(AC43="T",I48<I47),"X",IF(AND(AC43="F",I48>I47),"X",""))) ->  | L48: =IF(OR(F48=0,F48="",I48=0,I48=""),"",IF(I48>A43,0,INT(((B43-I48)*D43/C43)+250))) -> 0 | M48: =IF(AC43="T",AD48,AE48) -> þ | O48: 5 | P48: =IF(OR('1500m'!E33="",'1500m'!E33=0),"",'1500m'!E33) -> 6 | Q48: =IF($P48="","",HLOOKUP(P48,declare,B46,FALSE)) -> Natalie Burke | R48: Southampton AC | S48: =IF(OR('1500m'!H33="",'1500m'!H33=0),"",'1500m'!H33) -> 00:04:58.980 | T48: =IF(S48="","",IF(AND(AC43="T",S48<S47),"X",IF(AND(AC43="F",S48>S47),"X",""))) ->  | U48: =IF(OR(P48=0,P48="",S48=0,S48=""),"",IF(S48>A43,0,INT(((B43-S48)*D43/C43)+250))) -> 0 | V48: =IF(AC43="T",AF48,AG48) -> þ | AD48: =IF(I48="","",IF(AC43="F","",IF(AC43="T",IF(I48<=Z43,"þ",IF(I48<=AA43,"G2",IF(I48<=AB43,"G3","")))))) -> þ | AE48: =IF(I48="","",IF(AC43="T","",IF(AC43="F",IF(I48>=Z43,"þ",IF(I48>=AA43,"G2",IF(I48>=AB43,"G3","")))))) ->  | AF48: =IF(S48="","",IF(AC43="F","",IF(AC43="T",IF(S48<=Z43,"þ",IF(S48<=AA43,"G2",IF(S48<=AB43,"G3","")))))) -> þ | AG48: =IF(S48="","",IF(AC43="T","",IF(AC43="F",IF(S48>=Z43,"þ",IF(S48>=AA43,"G2",IF(S48>=AB43,"G3","")))))) ->  | AH48: 6 | AI48: 4 | AJ48: 6 | AK48: 4 | AL48: 48
C49: 2 | D49: 2 | E49: 6 | F49: =IF(OR('1500m'!E25=0,'1500m'!E25=""),0,'1500m'!E25) -> 2 | G49: Shavaun Henry | H49: Blackheath & Bromley H | I49: =IF(OR('1500m'!H25="",'1500m'!H25=0),"",'1500m'!H25) -> 00:05:01.680 | J49: =IF(I49="","",IF(AND(AC43="T",I49<I48),"X",IF(AND(AC43="F",I49>I48),"X",""))) ->  | L49: =IF(OR(F49=0,F49="",I49=0,I49=""),"",IF(I49>A43,0,INT(((B43-I49)*D43/C43)+250))) -> 0 | M49: =IF(AC43="T",AD49,AE49) ->  | O49: 6 | P49: =IF(OR('1500m'!E34="",'1500m'!E34=0),"",'1500m'!E34) -> 22 | Q49: =IF($P49="","",HLOOKUP(P49,declare,B46,FALSE)) -> Danielle Critchley | R49: Blackheath & Bromley H | S49: =IF(OR('1500m'!H34="",'1500m'!H34=0),"",'1500m'!H34) -> 00:05:20.310 | T49: =IF(S49="","",IF(AND(AC43="T",S49<S48),"X",IF(AND(AC43="F",S49>S48),"X",""))) ->  | U49: =IF(OR(P49=0,P49="",S49=0,S49=""),"",IF(S49>A43,0,INT(((B43-S49)*D43/C43)+250))) -> 0 | V49: =IF(AC43="T",AF49,AG49) ->  | AD49: =IF(I49="","",IF(AC43="F","",IF(AC43="T",IF(I49<=Z43,"þ",IF(I49<=AA43,"G2",IF(I49<=AB43,"G3","")))))) ->  | AE49: =IF(I49="","",IF(AC43="T","",IF(AC43="F",IF(I49>=Z43,"þ",IF(I49>=AA43,"G2",IF(I49>=AB43,"G3","")))))) ->  | AF49: =IF(S49="","",IF(AC43="F","",IF(AC43="T",IF(S49<=Z43,"þ",IF(S49<=AA43,"G2",IF(S49<=AB43,"G3","")))))) ->  | AG49: =IF(S49="","",IF(AC43="T","",IF(AC43="F",IF(S49>=Z43,"þ",IF(S49>=AA43,"G2",IF(S49>=AB43,"G3","")))))) ->  | AH49: 2 | AI49: 3 | AJ49: 2 | AK49: 3 | AL49: 49
C50: 4 | D50: 3 | E50: 7 | F50: =IF(OR('1500m'!E26=0,'1500m'!E26=""),0,'1500m'!E26) -> 4 | G50: Adele Stach-Kevitz | H50: Newham & Essex Beagles AC | I50: =IF(OR('1500m'!H26="",'1500m'!H26=0),"",'1500m'!H26) -> 00:06:18.220 | J50: =IF(I50="","",IF(AND(AC43="T",I50<I49),"X",IF(AND(AC43="F",I50>I49),"X",""))) ->  | L50: =IF(OR(F50=0,F50="",I50=0,I50=""),"",IF(I50>A43,0,INT(((B43-I50)*D43/C43)+250))) -> 0 | M50: =IF(AC43="T",AD50,AE50) ->  | O50: 7 | P50: =IF(OR('1500m'!E35="",'1500m'!E35=0),"",'1500m'!E35) -> 33 | Q50: =IF($P50="","",HLOOKUP(P50,declare,B46,FALSE)) -> Kadi-Ann Thomas | R50: Marshall Milton Keynes AC | S50: =IF(OR('1500m'!H35="",'1500m'!H35=0),"",'1500m'!H35) -> 00:07:11.320 | T50: =IF(S50="","",IF(AND(AC43="T",S50<S49),"X",IF(AND(AC43="F",S50>S49),"X",""))) ->  | U50: =IF(OR(P50=0,P50="",S50=0,S50=""),"",IF(S50>A43,0,INT(((B43-S50)*D43/C43)+250))) -> 0 | V50: =IF(AC43="T",AF50,AG50) ->  | AD50: =IF(I50="","",IF(AC43="F","",IF(AC43="T",IF(I50<=Z43,"þ",IF(I50<=AA43,"G2",IF(I50<=AB43,"G3","")))))) ->  | AE50: =IF(I50="","",IF(AC43="T","",IF(AC43="F",IF(I50>=Z43,"þ",IF(I50>=AA43,"G2",IF(I50>=AB43,"G3","")))))) ->  | AF50: =IF(S50="","",IF(AC43="F","",IF(AC43="T",IF(S50<=Z43,"þ",IF(S50<=AA43,"G2",IF(S50<=AB43,"G3","")))))) ->  | AG50: =IF(S50="","",IF(AC43="T","",IF(AC43="F",IF(S50>=Z43,"þ",IF(S50>=AA43,"G2",IF(S50>=AB43,"G3","")))))) ->  | AH50: 4 | AI50: 2 | AJ50: 3 | AK50: 2 | AL50: 50
C51: 3 | D51: 4 | E51: 8 | F51: =IF(OR('1500m'!E27=0,'1500m'!E27=""),0,'1500m'!E27) -> 3 | G51: Joey Duck | H51: Marshall Milton Keynes AC | I51: =IF(OR('1500m'!H27="",'1500m'!H27=0),"",'1500m'!H27) -> 00:06:55.470 | J51: =IF(I51="","",IF(AND(AC43="T",I51<I50),"X",IF(AND(AC43="F",I51>I50),"X",""))) ->  | L51: =IF(OR(F51=0,F51="",I51=0,I51=""),"",IF(I51>A43,0,INT(((B43-I51)*D43/C43)+250))) -> 0 | M51: =IF(AC43="T",AD51,AE51) ->  | O51: 8 | P51: =IF(OR('1500m'!E36="",'1500m'!E36=0),"",'1500m'!E36) -> 44 | Q51: =IF($P51="","",HLOOKUP(P51,declare,B46,FALSE)) -> Deborah Oyelade | R51: Newham & Essex Beagles AC | S51: =IF(OR('1500m'!H36="",'1500m'!H36=0),"",'1500m'!H36) -> 00:07:22.250 | T51: =IF(S51="","",IF(AND(AC43="T",S51<S50),"X",IF(AND(AC43="F",S51>S50),"X",""))) ->  | U51: =IF(OR(P51=0,P51="",S51=0,S51=""),"",IF(S51>A43,0,INT(((B43-S51)*D43/C43)+250))) -> 0 | V51: =IF(AC43="T",AF51,AG51) ->  | AD51: =IF(I51="","",IF(AC43="F","",IF(AC43="T",IF(I51<=Z43,"þ",IF(I51<=AA43,"G2",IF(I51<=AB43,"G3","")))))) ->  | AE51: =IF(I51="","",IF(AC43="T","",IF(AC43="F",IF(I51>=Z43,"þ",IF(I51>=AA43,"G2",IF(I51>=AB43,"G3","")))))) ->  | AF51: =IF(S51="","",IF(AC43="F","",IF(AC43="T",IF(S51<=Z43,"þ",IF(S51<=AA43,"G2",IF(S51<=AB43,"G3","")))))) ->  | AG51: =IF(S51="","",IF(AC43="T","",IF(AC43="F",IF(S51>=Z43,"þ",IF(S51>=AA43,"G2",IF(S51>=AB43,"G3","")))))) ->  | AH51: 3 | AI51: 1 | AJ51: 4 | AK51: 1 | AL51: 51
AL52: 52
A53: 00:09:55 | B53: 00:08:15 | C53: 00:00:01 | D53: 2 | E53: =CONCATENATE(VLOOKUP(A54,mens_handbook,3,FALSE)," A") -> Women's 2000 S/Chase A | H53: =IF(A54="","",IF(VLOOKUP(A54,Handbook!$A$4:$AI$24,35,FALSE)="Y","Wind=","")) ->  | O53: =CONCATENATE(VLOOKUP(A54,mens_handbook,3,FALSE)," B") -> Women's 2000 S/Chase B | R53: =H53 ->  | X53: =IF($A54="","",VLOOKUP($A54,Handbook!$A$4:$V$24,21,FALSE)) -> - | Y53: =IF($A54="","",VLOOKUP($A54,Handbook!$A$4:$V$24,22,FALSE)) -> - | Z53: =IF($A54="","",VLOOKUP($A54,Handbook!$A$4:$W$24,23,FALSE)) -> 00:10:00 | AA53: =IF($A54="","",VLOOKUP($A54,Handbook!$A$4:$X$24,24,FALSE)) -> 00:10:00 | AB53: =IF($A54="","",VLOOKUP($A54,Handbook!$A$4:$Y$24,25,FALSE)) -> 00:10:00 | AC53: =IF($A54="","",VLOOKUP($A54,Handbook!$A$4:$AH$24,34,FALSE)) -> T | AL53: 53
A54: 5 | C54: =IF(F54="","",IF(F54>10,F54/11,F54)) -> 5 | D54: =IF(P54="","",IF(P54>10,P54/11,P54)) ->  | E54: 1 | F54: =IF(OR('3kSC'!E20=0,'3kSC'!E20=""),0,'3kSC'!E20) -> 5 | G54: =IF(OR($F54="",F54=0),"",IF($F54>90,VLOOKUP(F54,eventcodes,2,FALSE),HLOOKUP(F54,declare,$B$56,FALSE))) -> Victoria Walker (U20) | H54: =IF(OR($F54="",F54=0),"",IF($F54>90,"",VLOOKUP(C54,matchday,2,FALSE))) -> Shaftesbury Barnet H | I54: =IF(OR('3kSC'!H20="",'3kSC'!H20=0),"",'3kSC'!H20) -> 00:07:27.790 | J54: =IF(I54="","",IF(AC53="T",X54,X55)) -> LR | L54: =IF(OR(F54=0,F54="",I54=0,I54=""),"",IF(I54>A53,0,INT(((B53-I54)*D53/C53)+250))) -> 344 | M54: =IF(AC53="T",AD54,AE54) -> þ | O54: 1 | P54: =IF(OR('3kSC'!E29="",'3kSC'!E29=0),"",'3kSC'!E29) ->  | Q54: =IF($P54="","",HLOOKUP(P54,declare,B56,FALSE)) ->  | R54: =IF($P54="","",VLOOKUP(D54,matchday,2,FALSE)) ->  | U54: =IF(OR(P54=0,P54="",S54=0,S54=""),"",IF(S54>A53,0,INT(((B53-S54)*D53/C53)+250))) ->  | V54: =IF(AC53="T",AF54,AG54) ->  | X54: =IF(AC53="F","",IF(I54<X53,"LR",IF(I54=X53,"=LR",IF(I54<Y53,"DR",IF(I54=Y53,"=DR",""))))) -> LR | AD54: =IF(I54="","",IF(AC53="F","",IF(AC53="T",IF(I54<=Z53,"þ",IF(I54<=AA53,"G2",IF(I54<=AB53,"G3","")))))) -> þ | AE54: =IF(I54="","",IF(AC53="T","",IF(AC53="F",IF(I54>=Z53,"þ",IF(I54>=AA53,"G2",IF(I54>=AB53,"G3","")))))) ->  | AF54: =IF(S54="","",IF(AC53="F","",IF(AC53="T",IF(S54<=Z53,"þ",IF(S54<=AA53,"G2",IF(S54<=AB53,"G3","")))))) ->  | AG54: =IF(S54="","",IF(AC53="T","",IF(AC53="F",IF(S54>=Z53,"þ",IF(S54>=AA53,"G2",IF(S54>=AB53,"G3","")))))) ->  | AH54: =C54 -> 5 | AI54: =IF(F54="","",IF(LEFT(I54,1)="D",0,VLOOKUP(E54,$AT$4:$AU$40,2,FALSE))) -> 9 | AJ54: =D54 ->  | AK54: =IF(P54="","",IF(LEFT(S54,1)="D",0,VLOOKUP(O54,$AT$4:$AV$40,3,FALSE))) ->  | AL54: 54
B55: =VLOOKUP(A54,Handbook!$A$4:$AK$24,37,FALSE) -> 6 | C55: =IF(F55="","",IF(F55>10,F55/11,F55)) -> 7 | D55: =IF(P55="","",IF(P55>10,P55/11,P55)) ->  | E55: 2 | F55: =IF(OR('3kSC'!E21=0,'3kSC'!E21=""),0,'3kSC'!E21) -> 7 | G55: Holly Lawrence | H55: Swansea H | I55: =IF(OR('3kSC'!H21="",'3kSC'!H21=0),"",'3kSC'!H21) -> 00:07:49.440 | J55: =IF(I55="","",IF(AND(AC53="T",I55<I54),"X",IF(AND(AC53="F",I55>I54),"X",""))) ->  | L55: =IF(OR(F55=0,F55="",I55=0,I55=""),"",IF(I55>A53,0,INT(((B53-I55)*D53/C53)+250))) -> 301 | M55: =IF(AC53="T",AD55,AE55) -> þ | O55: 2 | P55: =IF(OR('3kSC'!E30="",'3kSC'!E30=0),"",'3kSC'!E30) ->  | Q55: =IF($P55="","",HLOOKUP(P55,declare,B56,FALSE)) ->  | S55: =IF(OR('3kSC'!H30="",'3kSC'!H30=0),"",'3kSC'!H30) ->  | T55: =IF(S55="","",IF(AND(AC53="T",S55<S54),"X",IF(AND(AC53="F",S55>S54),"X",""))) ->  | U55: =IF(OR(P55=0,P55="",S55=0,S55=""),"",IF(S55>A53,0,INT(((B53-S55)*D53/C53)+250))) ->  | V55: =IF(AC53="T",AF55,AG55) ->  | X55: =IF(AC53="T","",IF(I54>X53,"LR",IF(I54=X53,"=LR",IF(I54>Y53,"DR",IF(I54=Y53,"=DR",""))))) ->  | AD55: =IF(I55="","",IF(AC53="F","",IF(AC53="T",IF(I55<=Z53,"þ",IF(I55<=AA53,"G2",IF(I55<=AB53,"G3","")))))) -> þ | AE55: =IF(I55="","",IF(AC53="T","",IF(AC53="F",IF(I55>=Z53,"þ",IF(I55>=AA53,"G2",IF(I55>=AB53,"G3","")))))) ->  | AF55: =IF(S55="","",IF(AC53="F","",IF(AC53="T",IF(S55<=Z53,"þ",IF(S55<=AA53,"G2",IF(S55<=AB53,"G3","")))))) ->  | AG55: =IF(S55="","",IF(AC53="T","",IF(AC53="F",IF(S55>=Z53,"þ",IF(S55>=AA53,"G2",IF(S55>=AB53,"G3","")))))) ->  | AH55: =C55 -> 7 | AI55: 7 | AJ55: =D55 ->  | AL55: 55
B56: =VLOOKUP(A54,declare,20,FALSE) -> 8 | C56: 8 | E56: 3 | F56: =IF(OR('3kSC'!E22=0,'3kSC'!E22=""),0,'3kSC'!E22) -> 8 | G56: Joanna Mobed | H56: Thames Valley H | I56: =IF(OR('3kSC'!H22="",'3kSC'!H22=0),"",'3kSC'!H22) -> 00:07:52.790 | J56: =IF(I56="","",IF(AND(AC53="T",I56<I55),"X",IF(AND(AC53="F",I56>I55),"X",""))) ->  | L56: =IF(OR(F56=0,F56="",I56=0,I56=""),"",IF(I56>A53,0,INT(((B53-I56)*D53/C53)+250))) -> 294 | M56: =IF(AC53="T",AD56,AE56) -> þ | O56: 3 | P56: =IF(OR('3kSC'!E31="",'3kSC'!E31=0),"",'3kSC'!E31) ->  | Q56: =IF($P56="","",HLOOKUP(P56,declare,B56,FALSE)) ->  | S56: =IF(OR('3kSC'!H31="",'3kSC'!H31=0),"",'3kSC'!H31) ->  | T56: =IF(S56="","",IF(AND(AC53="T",S56<S55),"X",IF(AND(AC53="F",S56>S55),"X",""))) ->  | U56: =IF(OR(P56=0,P56="",S56=0,S56=""),"",IF(S56>A53,0,INT(((B53-S56)*D53/C53)+250))) ->  | V56: =IF(AC53="T",AF56,AG56) ->  | AD56: =IF(I56="","",IF(AC53="F","",IF(AC53="T",IF(I56<=Z53,"þ",IF(I56<=AA53,"G2",IF(I56<=AB53,"G3","")))))) -> þ | AE56: =IF(I56="","",IF(AC53="T","",IF(AC53="F",IF(I56>=Z53,"þ",IF(I56>=AA53,"G2",IF(I56>=AB53,"G3","")))))) ->  | AF56: =IF(S56="","",IF(AC53="F","",IF(AC53="T",IF(S56<=Z53,"þ",IF(S56<=AA53,"G2",IF(S56<=AB53,"G3","")))))) ->  | AG56: =IF(S56="","",IF(AC53="T","",IF(AC53="F",IF(S56>=Z53,"þ",IF(S56>=AA53,"G2",IF(S56>=AB53,"G3","")))))) ->  | AH56: 8 | AI56: 6 | AL56: 56
C57: 6 | E57: 4 | F57: =IF(OR('3kSC'!E23=0,'3kSC'!E23=""),0,'3kSC'!E23) -> 6 | G57: Clemmie McAteer | H57: Southampton AC | I57: =IF(OR('3kSC'!H23="",'3kSC'!H23=0),"",'3kSC'!H23) -> 00:08:28.430 | J57: =IF(I57="","",IF(AND(AC53="T",I57<I56),"X",IF(AND(AC53="F",I57>I56),"X",""))) ->  | L57: =IF(OR(F57=0,F57="",I57=0,I57=""),"",IF(I57>A53,0,INT(((B53-I57)*D53/C53)+250))) -> 223 | M57: =IF(AC53="T",AD57,AE57) -> þ | O57: 4 | P57: =IF(OR('3kSC'!E32="",'3kSC'!E32=0),"",'3kSC'!E32) ->  | Q57: =IF($P57="","",HLOOKUP(P57,declare,B56,FALSE)) ->  | S57: =IF(OR('3kSC'!H32="",'3kSC'!H32=0),"",'3kSC'!H32) ->  | T57: =IF(S57="","",IF(AND(AC53="T",S57<S56),"X",IF(AND(AC53="F",S57>S56),"X",""))) ->  | U57: =IF(OR(P57=0,P57="",S57=0,S57=""),"",IF(S57>A53,0,INT(((B53-S57)*D53/C53)+250))) ->  | V57: =IF(AC53="T",AF57,AG57) ->  | AD57: =IF(I57="","",IF(AC53="F","",IF(AC53="T",IF(I57<=Z53,"þ",IF(I57<=AA53,"G2",IF(I57<=AB53,"G3","")))))) -> þ | AE57: =IF(I57="","",IF(AC53="T","",IF(AC53="F",IF(I57>=Z53,"þ",IF(I57>=AA53,"G2",IF(I57>=AB53,"G3","")))))) ->  | AF57: =IF(S57="","",IF(AC53="F","",IF(AC53="T",IF(S57<=Z53,"þ",IF(S57<=AA53,"G2",IF(S57<=AB53,"G3","")))))) ->  | AG57: =IF(S57="","",IF(AC53="T","",IF(AC53="F",IF(S57>=Z53,"þ",IF(S57>=AA53,"G2",IF(S57>=AB53,"G3","")))))) ->  | AH57: 6 | AI57: 5 | AL57: 57
C58: 1 | E58: 5 | F58: =IF(OR('3kSC'!E24=0,'3kSC'!E24=""),0,'3kSC'!E24) -> 1 | G58: Leanne Buxton | H58: Bedford & County AC | I58: =IF(OR('3kSC'!H24="",'3kSC'!H24=0),"",'3kSC'!H24) -> 00:08:59.780 | J58: =IF(I58="","",IF(AND(AC53="T",I58<I57),"X",IF(AND(AC53="F",I58>I57),"X",""))) ->  | L58: =IF(OR(F58=0,F58="",I58=0,I58=""),"",IF(I58>A53,0,INT(((B53-I58)*D53/C53)+250))) -> 160 | M58: =IF(AC53="T",AD58,AE58) -> þ | O58: 5 | P58: =IF(OR('3kSC'!E33="",'3kSC'!E33=0),"",'3kSC'!E33) ->  | Q58: =IF($P58="","",HLOOKUP(P58,declare,B56,FALSE)) ->  | S58: =IF(OR('3kSC'!H33="",'3kSC'!H33=0),"",'3kSC'!H33) ->  | T58: =IF(S58="","",IF(AND(AC53="T",S58<S57),"X",IF(AND(AC53="F",S58>S57),"X",""))) ->  | U58: =IF(OR(P58=0,P58="",S58=0,S58=""),"",IF(S58>A53,0,INT(((B53-S58)*D53/C53)+250))) ->  | V58: =IF(AC53="T",AF58,AG58) ->  | AD58: =IF(I58="","",IF(AC53="F","",IF(AC53="T",IF(I58<=Z53,"þ",IF(I58<=AA53,"G2",IF(I58<=AB53,"G3","")))))) -> þ | AE58: =IF(I58="","",IF(AC53="T","",IF(AC53="F",IF(I58>=Z53,"þ",IF(I58>=AA53,"G2",IF(I58>=AB53,"G3","")))))) ->  | AF58: =IF(S58="","",IF(AC53="F","",IF(AC53="T",IF(S58<=Z53,"þ",IF(S58<=AA53,"G2",IF(S58<=AB53,"G3","")))))) ->  | AG58: =IF(S58="","",IF(AC53="T","",IF(AC53="F",IF(S58>=Z53,"þ",IF(S58>=AA53,"G2",IF(S58>=AB53,"G3","")))))) ->  | AH58: 1 | AI58: 4 | AL58: 58
C59: 2 | E59: 6 | F59: =IF(OR('3kSC'!E25=0,'3kSC'!E25=""),0,'3kSC'!E25) -> 2 | G59: Sarah Abrams | H59: Blackheath & Bromley H | I59: =IF(OR('3kSC'!H25="",'3kSC'!H25=0),"",'3kSC'!H25) -> 00:09:50.660 | J59: =IF(I59="","",IF(AND(AC53="T",I59<I58),"X",IF(AND(AC53="F",I59>I58),"X",""))) ->  | L59: =IF(OR(F59=0,F59="",I59=0,I59=""),"",IF(I59>A53,0,INT(((B53-I59)*D53/C53)+250))) -> 58 | M59: =IF(AC53="T",AD59,AE59) -> þ | O59: 6 | P59: =IF(OR('3kSC'!E34="",'3kSC'!E34=0),"",'3kSC'!E34) ->  | Q59: =IF($P59="","",HLOOKUP(P59,declare,B56,FALSE)) ->  | S59: =IF(OR('3kSC'!H34="",'3kSC'!H34=0),"",'3kSC'!H34) ->  | T59: =IF(S59="","",IF(AND(AC53="T",S59<S58),"X",IF(AND(AC53="F",S59>S58),"X",""))) ->  | U59: =IF(OR(P59=0,P59="",S59=0,S59=""),"",IF(S59>A53,0,INT(((B53-S59)*D53/C53)+250))) ->  | V59: =IF(AC53="T",AF59,AG59) ->  | AD59: =IF(I59="","",IF(AC53="F","",IF(AC53="T",IF(I59<=Z53,"þ",IF(I59<=AA53,"G2",IF(I59<=AB53,"G3","")))))) -> þ | AE59: =IF(I59="","",IF(AC53="T","",IF(AC53="F",IF(I59>=Z53,"þ",IF(I59>=AA53,"G2",IF(I59>=AB53,"G3","")))))) ->  | AF59: =IF(S59="","",IF(AC53="F","",IF(AC53="T",IF(S59<=Z53,"þ",IF(S59<=AA53,"G2",IF(S59<=AB53,"G3","")))))) ->  | AG59: =IF(S59="","",IF(AC53="T","",IF(AC53="F",IF(S59>=Z53,"þ",IF(S59>=AA53,"G2",IF(S59>=AB53,"G3","")))))) ->  | AH59: 2 | AI59: 3 | AL59: 59
C60: 3 | E60: 7 | F60: =IF(OR('3kSC'!E26=0,'3kSC'!E26=""),0,'3kSC'!E26) -> 3 | G60: Di Baldwin (V50) | H60: Marshall Milton Keynes AC | I60: =IF(OR('3kSC'!H26="",'3kSC'!H26=0),"",'3kSC'!H26) -> 00:10:24.300 | J60: =IF(I60="","",IF(AND(AC53="T",I60<I59),"X",IF(AND(AC53="F",I60>I59),"X",""))) ->  | L60: =IF(OR(F60=0,F60="",I60=0,I60=""),"",IF(I60>A53,0,INT(((B53-I60)*D53/C53)+250))) -> 0 | M60: =IF(AC53="T",AD60,AE60) ->  | O60: 7 | P60: =IF(OR('3kSC'!E35="",'3kSC'!E35=0),"",'3kSC'!E35) ->  | Q60: =IF($P60="","",HLOOKUP(P60,declare,B56,FALSE)) ->  | S60: =IF(OR('3kSC'!H35="",'3kSC'!H35=0),"",'3kSC'!H35) ->  | T60: =IF(S60="","",IF(AND(AC53="T",S60<S59),"X",IF(AND(AC53="F",S60>S59),"X",""))) ->  | U60: =IF(OR(P60=0,P60="",S60=0,S60=""),"",IF(S60>A53,0,INT(((B53-S60)*D53/C53)+250))) ->  | V60: =IF(AC53="T",AF60,AG60) ->  | AD60: =IF(I60="","",IF(AC53="F","",IF(AC53="T",IF(I60<=Z53,"þ",IF(I60<=AA53,"G2",IF(I60<=AB53,"G3","")))))) ->  | AE60: =IF(I60="","",IF(AC53="T","",IF(AC53="F",IF(I60>=Z53,"þ",IF(I60>=AA53,"G2",IF(I60>=AB53,"G3","")))))) ->  | AF60: =IF(S60="","",IF(AC53="F","",IF(AC53="T",IF(S60<=Z53,"þ",IF(S60<=AA53,"G2",IF(S60<=AB53,"G3","")))))) ->  | AG60: =IF(S60="","",IF(AC53="T","",IF(AC53="F",IF(S60>=Z53,"þ",IF(S60>=AA53,"G2",IF(S60>=AB53,"G3","")))))) ->  | AH60: 3 | AI60: 2 | AL60: 60
C61: 0 | E61: 8 | F61: =IF(OR('3kSC'!E27=0,'3kSC'!E27=""),0,'3kSC'!E27) -> 0 | I61: =IF(OR('3kSC'!H27="",'3kSC'!H27=0),"",'3kSC'!H27) ->  | J61: =IF(I61="","",IF(AND(AC53="T",I61<I60),"X",IF(AND(AC53="F",I61>I60),"X",""))) ->  | L61: =IF(OR(F61=0,F61="",I61=0,I61=""),"",IF(I61>A53,0,INT(((B53-I61)*D53/C53)+250))) ->  | M61: =IF(AC53="T",AD61,AE61) ->  | O61: 8 | P61: =IF(OR('3kSC'!E36="",'3kSC'!E36=0),"",'3kSC'!E36) ->  | Q61: =IF($P61="","",HLOOKUP(P61,declare,B56,FALSE)) ->  | S61: =IF(OR('3kSC'!H36="",'3kSC'!H36=0),"",'3kSC'!H36) ->  | T61: =IF(S61="","",IF(AND(AC53="T",S61<S60),"X",IF(AND(AC53="F",S61>S60),"X",""))) ->  | U61: =IF(OR(P61=0,P61="",S61=0,S61=""),"",IF(S61>A53,0,INT(((B53-S61)*D53/C53)+250))) ->  | V61: =IF(AC53="T",AF61,AG61) ->  | AD61: =IF(I61="","",IF(AC53="F","",IF(AC53="T",IF(I61<=Z53,"þ",IF(I61<=AA53,"G2",IF(I61<=AB53,"G3","")))))) ->  | AE61: =IF(I61="","",IF(AC53="T","",IF(AC53="F",IF(I61>=Z53,"þ",IF(I61>=AA53,"G2",IF(I61>=AB53,"G3","")))))) ->  | AF61: =IF(S61="","",IF(AC53="F","",IF(AC53="T",IF(S61<=Z53,"þ",IF(S61<=AA53,"G2",IF(S61<=AB53,"G3","")))))) ->  | AG61: =IF(S61="","",IF(AC53="T","",IF(AC53="F",IF(S61>=Z53,"þ",IF(S61>=AA53,"G2",IF(S61>=AB53,"G3","")))))) ->  | AH61: 0 | AI61: 1 | AL61: 61
AL62: 62
A63: 00:10:30 | B63: 00:08:30 | C63: 00:00:01 | D63: 1.667 | E63: =CONCATENATE(VLOOKUP(A64,mens_handbook,3,FALSE)," A") -> Women's 3000m A | H63: =IF(A64="","",IF(VLOOKUP(A64,Handbook!$A$4:$AI$24,35,FALSE)="Y","Wind=","")) ->  | O63: =CONCATENATE(VLOOKUP(A64,mens_handbook,3,FALSE)," B") -> Women's 3000m B | R63: =H63 ->  | X63: =IF($A64="","",VLOOKUP($A64,Handbook!$A$4:$V$24,21,FALSE)) -> 00:09:04.900 | Y63: =IF($A64="","",VLOOKUP($A64,Handbook!$A$4:$V$24,22,FALSE)) -> 00:09:15.600 | Z63: =IF($A64="","",VLOOKUP($A64,Handbook!$A$4:$W$24,23,FALSE)) -> 00:11:00 | AA63: =IF($A64="","",VLOOKUP($A64,Handbook!$A$4:$X$24,24,FALSE)) -> 00:11:00 | AB63: =IF($A64="","",VLOOKUP($A64,Handbook!$A$4:$Y$24,25,FALSE)) -> 00:11:00 | AC63: =IF($A64="","",VLOOKUP($A64,Handbook!$A$4:$AH$24,34,FALSE)) -> T | AL63: 63
A64: 21 | C64: =IF(F64="","",IF(F64>10,F64/11,F64)) -> 7 | D64: =IF(P64="","",IF(P64>10,P64/11,P64)) -> 7 | E64: 1 | F64: =IF(OR('5000m'!E20=0,'5000m'!E20=""),0,'5000m'!E20) -> 7 | G64: =IF(OR($F64="",F64=0),"",IF($F64>90,VLOOKUP(F64,eventcodes,2,FALSE),HLOOKUP(F64,declare,$B$66,FALSE))) -> Andrea Whitcombe | H64: =IF(OR($F64="",F64=0),"",IF($F64>90,"",VLOOKUP(C64,matchday,2,FALSE))) -> Swansea H | I64: =IF(OR('5000m'!H20="",'5000m'!H20=0),"",'5000m'!H20) -> 00:09:38.900 | J64: =IF(I64="","",IF(AC63="T",X64,X65)) ->  | L64: =IF(OR(F64=0,F64="",I64=0,I64=""),"",IF(I64>A63,0,INT(((B63-I64)*D63/C63)+250))) -> 135 | M64: =IF(AC63="T",AD64,AE64) -> þ | O64: 1 | P64: =IF(OR('5000m'!E29="",'5000m'!E29=0),"",'5000m'!E29) -> 77 | Q64: =IF($P64="","",HLOOKUP(P64,declare,B66,FALSE)) -> Alaw Benyon Thomas | R64: =IF($P64="","",VLOOKUP(D64,matchday,2,FALSE)) -> Swansea H | S64: =IF(OR('5000m'!H29="",'5000m'!H29=0),"",'5000m'!H29) -> 00:10:07.030 | U64: =IF(OR(P64=0,P64="",S64=0,S64=""),"",IF(S64>A63,0,INT(((B63-S64)*D63/C63)+250))) -> 88 | V64: =IF(AC63="T",AF64,AG64) -> þ | X64: =IF(AC63="F","",IF(I64<X63,"LR",IF(I64=X63,"=LR",IF(I64<Y63,"DR",IF(I64=Y63,"=DR",""))))) ->  | AD64: =IF(I64="","",IF(AC63="F","",IF(AC63="T",IF(I64<=Z63,"þ",IF(I64<=AA63,"G2",IF(I64<=AB63,"G3","")))))) -> þ | AE64: =IF(I64="","",IF(AC63="T","",IF(AC63="F",IF(I64>=Z63,"þ",IF(I64>=AA63,"G2",IF(I64>=AB63,"G3","")))))) ->  | AF64: =IF(S64="","",IF(AC63="F","",IF(AC63="T",IF(S64<=Z63,"þ",IF(S64<=AA63,"G2",IF(S64<=AB63,"G3","")))))) -> þ | AG64: =IF(S64="","",IF(AC63="T","",IF(AC63="F",IF(S64>=Z63,"þ",IF(S64>=AA63,"G2",IF(S64>=AB63,"G3","")))))) ->  | AH64: =C64 -> 7 | AI64: =IF(F64="","",IF(LEFT(I64,1)="D",0,VLOOKUP(E64,$AT$4:$AU$40,2,FALSE))) -> 9 | AJ64: =D64 -> 7 | AK64: =IF(P64="","",IF(LEFT(S64,1)="D",0,VLOOKUP(O64,$AT$4:$AV$40,3,FALSE))) -> 9 | AL64: 64
B65: =VLOOKUP(A64,Handbook!$A$4:$AK$24,37,FALSE) -> 22 | C65: =IF(F65="","",IF(F65>10,F65/11,F65)) -> 8 | D65: =IF(P65="","",IF(P65>10,P65/11,P65)) -> 8 | E65: 2 | F65: =IF(OR('5000m'!E21=0,'5000m'!E21=""),0,'5000m'!E21) -> 8 | G65: Katie Good | H65: Thames Valley H | I65: =IF(OR('5000m'!H21="",'5000m'!H21=0),"",'5000m'!H21) -> 00:09:43.070 | J65: =IF(I65="","",IF(AND(AC63="T",I65<I64),"X",IF(AND(AC63="F",I65>I64),"X",""))) ->  | L65: =IF(OR(F65=0,F65="",I65=0,I65=""),"",IF(I65>A63,0,INT(((B63-I65)*D63/C63)+250))) -> 128 | M65: =IF(AC63="T",AD65,AE65) -> þ | O65: 2 | P65: =IF(OR('5000m'!E30="",'5000m'!E30=0),"",'5000m'!E30) -> 88 | Q65: =IF($P65="","",HLOOKUP(P65,declare,B66,FALSE)) -> Lisa Da Silva | R65: Thames Valley H | S65: =IF(OR('5000m'!H30="",'5000m'!H30=0),"",'5000m'!H30) -> 00:10:13.040 | T65: =IF(S65="","",IF(AND(AC63="T",S65<S64),"X",IF(AND(AC63="F",S65>S64),"X",""))) ->  | U65: =IF(OR(P65=0,P65="",S65=0,S65=""),"",IF(S65>A63,0,INT(((B63-S65)*D63/C63)+250))) -> 78 | V65: =IF(AC63="T",AF65,AG65) -> þ | X65: =IF(AC63="T","",IF(I64>X63,"LR",IF(I64=X63,"=LR",IF(I64>Y63,"DR",IF(I64=Y63,"=DR",""))))) ->  | AD65: =IF(I65="","",IF(AC63="F","",IF(AC63="T",IF(I65<=Z63,"þ",IF(I65<=AA63,"G2",IF(I65<=AB63,"G3","")))))) -> þ | AE65: =IF(I65="","",IF(AC63="T","",IF(AC63="F",IF(I65>=Z63,"þ",IF(I65>=AA63,"G2",IF(I65>=AB63,"G3","")))))) ->  | AF65: =IF(S65="","",IF(AC63="F","",IF(AC63="T",IF(S65<=Z63,"þ",IF(S65<=AA63,"G2",IF(S65<=AB63,"G3","")))))) -> þ | AG65: =IF(S65="","",IF(AC63="T","",IF(AC63="F",IF(S65>=Z63,"þ",IF(S65>=AA63,"G2",IF(S65>=AB63,"G3","")))))) ->  | AH65: =C65 -> 8 | AI65: 7 | AJ65: =D65 -> 8 | AK65: 7 | AL65: 65
B66: =VLOOKUP(A64,declare,20,FALSE) -> 9 | C66: 1 | D66: 1 | E66: 3 | F66: =IF(OR('5000m'!E22=0,'5000m'!E22=""),0,'5000m'!E22) -> 11 | G66: Alice Burgin | H66: Bedford & County AC | I66: =IF(OR('5000m'!H22="",'5000m'!H22=0),"",'5000m'!H22) -> 00:10:06.790 | J66: =IF(I66="","",IF(AND(AC63="T",I66<I65),"X",IF(AND(AC63="F",I66>I65),"X",""))) ->  | L66: =IF(OR(F66=0,F66="",I66=0,I66=""),"",IF(I66>A63,0,INT(((B63-I66)*D63/C63)+250))) -> 88 | M66: =IF(AC63="T",AD66,AE66) -> þ | O66: 3 | P66: =IF(OR('5000m'!E31="",'5000m'!E31=0),"",'5000m'!E31) -> 1 | Q66: =IF($P66="","",HLOOKUP(P66,declare,B66,FALSE)) -> Natasha Peters | R66: Bedford & County AC | S66: =IF(OR('5000m'!H31="",'5000m'!H31=0),"",'5000m'!H31) -> 00:10:21.310 | T66: =IF(S66="","",IF(AND(AC63="T",S66<S65),"X",IF(AND(AC63="F",S66>S65),"X",""))) ->  | U66: =IF(OR(P66=0,P66="",S66=0,S66=""),"",IF(S66>A63,0,INT(((B63-S66)*D63/C63)+250))) -> 64 | V66: =IF(AC63="T",AF66,AG66) -> þ | AD66: =IF(I66="","",IF(AC63="F","",IF(AC63="T",IF(I66<=Z63,"þ",IF(I66<=AA63,"G2",IF(I66<=AB63,"G3","")))))) -> þ | AE66: =IF(I66="","",IF(AC63="T","",IF(AC63="F",IF(I66>=Z63,"þ",IF(I66>=AA63,"G2",IF(I66>=AB63,"G3","")))))) ->  | AF66: =IF(S66="","",IF(AC63="F","",IF(AC63="T",IF(S66<=Z63,"þ",IF(S66<=AA63,"G2",IF(S66<=AB63,"G3","")))))) -> þ | AG66: =IF(S66="","",IF(AC63="T","",IF(AC63="F",IF(S66>=Z63,"þ",IF(S66>=AA63,"G2",IF(S66>=AB63,"G3","")))))) ->  | AH66: 1 | AI66: 6 | AJ66: 1 | AK66: 6 | AL66: 66
C67: 3 | D67: 2 | E67: 4 | F67: =IF(OR('5000m'!E23=0,'5000m'!E23=""),0,'5000m'!E23) -> 3 | G67: Ellie Roche (U20) | H67: Marshall Milton Keynes AC | I67: =IF(OR('5000m'!H23="",'5000m'!H23=0),"",'5000m'!H23) -> 00:10:20.700 | J67: =IF(I67="","",IF(AND(AC63="T",I67<I66),"X",IF(AND(AC63="F",I67>I66),"X",""))) ->  | L67: =IF(OR(F67=0,F67="",I67=0,I67=""),"",IF(I67>A63,0,INT(((B63-I67)*D63/C63)+250))) -> 65 | M67: =IF(AC63="T",AD67,AE67) -> þ | O67: 4 | P67: =IF(OR('5000m'!E32="",'5000m'!E32=0),"",'5000m'!E32) -> 22 | Q67: =IF($P67="","",HLOOKUP(P67,declare,B66,FALSE)) -> Rachel Robinson | R67: Blackheath & Bromley H | S67: =IF(OR('5000m'!H32="",'5000m'!H32=0),"",'5000m'!H32) -> 00:13:12.160 | T67: =IF(S67="","",IF(AND(AC63="T",S67<S66),"X",IF(AND(AC63="F",S67>S66),"X",""))) ->  | U67: =IF(OR(P67=0,P67="",S67=0,S67=""),"",IF(S67>A63,0,INT(((B63-S67)*D63/C63)+250))) -> 0 | V67: =IF(AC63="T",AF67,AG67) ->  | AD67: =IF(I67="","",IF(AC63="F","",IF(AC63="T",IF(I67<=Z63,"þ",IF(I67<=AA63,"G2",IF(I67<=AB63,"G3","")))))) -> þ | AE67: =IF(I67="","",IF(AC63="T","",IF(AC63="F",IF(I67>=Z63,"þ",IF(I67>=AA63,"G2",IF(I67>=AB63,"G3","")))))) ->  | AF67: =IF(S67="","",IF(AC63="F","",IF(AC63="T",IF(S67<=Z63,"þ",IF(S67<=AA63,"G2",IF(S67<=AB63,"G3","")))))) ->  | AG67: =IF(S67="","",IF(AC63="T","",IF(AC63="F",IF(S67>=Z63,"þ",IF(S67>=AA63,"G2",IF(S67>=AB63,"G3","")))))) ->  | AH67: 3 | AI67: 5 | AJ67: 2 | AK67: 5 | AL67: 67
C68: 6 | E68: 5 | F68: =IF(OR('5000m'!E24=0,'5000m'!E24=""),0,'5000m'!E24) -> 6 | G68: Nicci Blandford | H68: Southampton AC | I68: =IF(OR('5000m'!H24="",'5000m'!H24=0),"",'5000m'!H24) -> 00:10:22.950 | J68: =IF(I68="","",IF(AND(AC63="T",I68<I67),"X",IF(AND(AC63="F",I68>I67),"X",""))) ->  | L68: =IF(OR(F68=0,F68="",I68=0,I68=""),"",IF(I68>A63,0,INT(((B63-I68)*D63/C63)+250))) -> 61 | M68: =IF(AC63="T",AD68,AE68) -> þ | O68: 5 | P68: =IF(OR('5000m'!E33="",'5000m'!E33=0),"",'5000m'!E33) ->  | Q68: =IF($P68="","",HLOOKUP(P68,declare,B66,FALSE)) ->  | S68: =IF(OR('5000m'!H33="",'5000m'!H33=0),"",'5000m'!H33) ->  | T68: =IF(S68="","",IF(AND(AC63="T",S68<S67),"X",IF(AND(AC63="F",S68>S67),"X",""))) ->  | U68: =IF(OR(P68=0,P68="",S68=0,S68=""),"",IF(S68>A63,0,INT(((B63-S68)*D63/C63)+250))) ->  | V68: =IF(AC63="T",AF68,AG68) ->  | AD68: =IF(I68="","",IF(AC63="F","",IF(AC63="T",IF(I68<=Z63,"þ",IF(I68<=AA63,"G2",IF(I68<=AB63,"G3","")))))) -> þ | AE68: =IF(I68="","",IF(AC63="T","",IF(AC63="F",IF(I68>=Z63,"þ",IF(I68>=AA63,"G2",IF(I68>=AB63,"G3","")))))) ->  | AF68: =IF(S68="","",IF(AC63="F","",IF(AC63="T",IF(S68<=Z63,"þ",IF(S68<=AA63,"G2",IF(S68<=AB63,"G3","")))))) ->  | AG68: =IF(S68="","",IF(AC63="T","",IF(AC63="F",IF(S68>=Z63,"þ",IF(S68>=AA63,"G2",IF(S68>=AB63,"G3","")))))) ->  | AH68: 6 | AI68: 4 | AL68: 68
C69: 5 | E69: 6 | F69: =IF(OR('5000m'!E25=0,'5000m'!E25=""),0,'5000m'!E25) -> 5 | G69: Claire Miles | H69: Shaftesbury Barnet H | I69: =IF(OR('5000m'!H25="",'5000m'!H25=0),"",'5000m'!H25) -> 00:10:55.050 | J69: =IF(I69="","",IF(AND(AC63="T",I69<I68),"X",IF(AND(AC63="F",I69>I68),"X",""))) ->  | L69: =IF(OR(F69=0,F69="",I69=0,I69=""),"",IF(I69>A63,0,INT(((B63-I69)*D63/C63)+250))) -> 0 | M69: =IF(AC63="T",AD69,AE69) -> þ | O69: 6 | P69: =IF(OR('5000m'!E34="",'5000m'!E34=0),"",'5000m'!E34) ->  | Q69: =IF($P69="","",HLOOKUP(P69,declare,B66,FALSE)) ->  | S69: =IF(OR('5000m'!H34="",'5000m'!H34=0),"",'5000m'!H34) ->  | T69: =IF(S69="","",IF(AND(AC63="T",S69<S68),"X",IF(AND(AC63="F",S69>S68),"X",""))) ->  | U69: =IF(OR(P69=0,P69="",S69=0,S69=""),"",IF(S69>A63,0,INT(((B63-S69)*D63/C63)+250))) ->  | V69: =IF(AC63="T",AF69,AG69) ->  | AD69: =IF(I69="","",IF(AC63="F","",IF(AC63="T",IF(I69<=Z63,"þ",IF(I69<=AA63,"G2",IF(I69<=AB63,"G3","")))))) -> þ | AE69: =IF(I69="","",IF(AC63="T","",IF(AC63="F",IF(I69>=Z63,"þ",IF(I69>=AA63,"G2",IF(I69>=AB63,"G3","")))))) ->  | AF69: =IF(S69="","",IF(AC63="F","",IF(AC63="T",IF(S69<=Z63,"þ",IF(S69<=AA63,"G2",IF(S69<=AB63,"G3","")))))) ->  | AG69: =IF(S69="","",IF(AC63="T","",IF(AC63="F",IF(S69>=Z63,"þ",IF(S69>=AA63,"G2",IF(S69>=AB63,"G3","")))))) ->  | AH69: 5 | AI69: 3 | AL69: 69
C70: 2 | E70: 7 | F70: =IF(OR('5000m'!E26=0,'5000m'!E26=""),0,'5000m'!E26) -> 2 | G70: Jane Bradshaw | H70: Blackheath & Bromley H | I70: =IF(OR('5000m'!H26="",'5000m'!H26=0),"",'5000m'!H26) -> 00:11:01.030 | J70: =IF(I70="","",IF(AND(AC63="T",I70<I69),"X",IF(AND(AC63="F",I70>I69),"X",""))) ->  | L70: =IF(OR(F70=0,F70="",I70=0,I70=""),"",IF(I70>A63,0,INT(((B63-I70)*D63/C63)+250))) -> 0 | M70: =IF(AC63="T",AD70,AE70) ->  | O70: 7 | P70: =IF(OR('5000m'!E35="",'5000m'!E35=0),"",'5000m'!E35) ->  | Q70: =IF($P70="","",HLOOKUP(P70,declare,B66,FALSE)) ->  | S70: =IF(OR('5000m'!H35="",'5000m'!H35=0),"",'5000m'!H35) ->  | T70: =IF(S70="","",IF(AND(AC63="T",S70<S69),"X",IF(AND(AC63="F",S70>S69),"X",""))) ->  | U70: =IF(OR(P70=0,P70="",S70=0,S70=""),"",IF(S70>A63,0,INT(((B63-S70)*D63/C63)+250))) ->  | V70: =IF(AC63="T",AF70,AG70) ->  | AD70: =IF(I70="","",IF(AC63="F","",IF(AC63="T",IF(I70<=Z63,"þ",IF(I70<=AA63,"G2",IF(I70<=AB63,"G3","")))))) ->  | AE70: =IF(I70="","",IF(AC63="T","",IF(AC63="F",IF(I70>=Z63,"þ",IF(I70>=AA63,"G2",IF(I70>=AB63,"G3","")))))) ->  | AF70: =IF(S70="","",IF(AC63="F","",IF(AC63="T",IF(S70<=Z63,"þ",IF(S70<=AA63,"G2",IF(S70<=AB63,"G3","")))))) ->  | AG70: =IF(S70="","",IF(AC63="T","",IF(AC63="F",IF(S70>=Z63,"þ",IF(S70>=AA63,"G2",IF(S70>=AB63,"G3","")))))) ->  | AH70: 2 | AI70: 2 | AL70: 70
C71: 4 | E71: 8 | F71: =IF(OR('5000m'!E27=0,'5000m'!E27=""),0,'5000m'!E27) -> 44 | G71: Adele Stach-Kevitz | H71: Newham & Essex Beagles AC | I71: =IF(OR('5000m'!H27="",'5000m'!H27=0),"",'5000m'!H27) -> 00:13:12.680 | J71: =IF(I71="","",IF(AND(AC63="T",I71<I70),"X",IF(AND(AC63="F",I71>I70),"X",""))) ->  | L71: =IF(OR(F71=0,F71="",I71=0,I71=""),"",IF(I71>A63,0,INT(((B63-I71)*D63/C63)+250))) -> 0 | M71: =IF(AC63="T",AD71,AE71) ->  | O71: 8 | P71: =IF(OR('5000m'!E36="",'5000m'!E36=0),"",'5000m'!E36) ->  | Q71: =IF($P71="","",HLOOKUP(P71,declare,B66,FALSE)) ->  | S71: =IF(OR('5000m'!H36="",'5000m'!H36=0),"",'5000m'!H36) ->  | T71: =IF(S71="","",IF(AND(AC63="T",S71<S70),"X",IF(AND(AC63="F",S71>S70),"X",""))) ->  | U71: =IF(OR(P71=0,P71="",S71=0,S71=""),"",IF(S71>A63,0,INT(((B63-S71)*D63/C63)+250))) ->  | V71: =IF(AC63="T",AF71,AG71) ->  | AD71: =IF(I71="","",IF(AC63="F","",IF(AC63="T",IF(I71<=Z63,"þ",IF(I71<=AA63,"G2",IF(I71<=AB63,"G3","")))))) ->  | AE71: =IF(I71="","",IF(AC63="T","",IF(AC63="F",IF(I71>=Z63,"þ",IF(I71>=AA63,"G2",IF(I71>=AB63,"G3","")))))) ->  | AF71: =IF(S71="","",IF(AC63="F","",IF(AC63="T",IF(S71<=Z63,"þ",IF(S71<=AA63,"G2",IF(S71<=AB63,"G3","")))))) ->  | AG71: =IF(S71="","",IF(AC63="T","",IF(AC63="F",IF(S71>=Z63,"þ",IF(S71>=AA63,"G2",IF(S71>=AB63,"G3","")))))) ->  | AH71: 4 | AI71: 1 | AL71: 71
AL72: 72
A73: 66.5 | B73: 54.5 | C73: 0.12 | D73: 2 | E73: =CONCATENATE(VLOOKUP(A74,mens_handbook,3,FALSE)," A") -> Women's 400 Hurdles A | H73: =IF(A74="","",IF(VLOOKUP(A74,Handbook!$A$4:$AI$24,35,FALSE)="Y","Wind=","")) ->  | O73: =CONCATENATE(VLOOKUP(A74,mens_handbook,3,FALSE)," B") -> Women's 400 Hurdles B | R73: =H73 ->  | X73: =IF($A74="","",VLOOKUP($A74,Handbook!$A$4:$V$24,21,FALSE)) -> 56.5 | Y73: =IF($A74="","",VLOOKUP($A74,Handbook!$A$4:$V$24,22,FALSE)) -> 57.1 | Z73: =IF($A74="","",VLOOKUP($A74,Handbook!$A$4:$W$24,23,FALSE)) -> 70 | AA73: =IF($A74="","",VLOOKUP($A74,Handbook!$A$4:$X$24,24,FALSE)) -> 70 | AB73: =IF($A74="","",VLOOKUP($A74,Handbook!$A$4:$Y$24,25,FALSE)) -> 70 | AC73: =IF($A74="","",VLOOKUP($A74,Handbook!$A$4:$AH$24,34,FALSE)) -> T | AL73: 73
A74: 1 | C74: =IF(F74="","",IF(F74>10,F74/11,F74)) -> 7 | D74: =IF(P74="","",IF(P74>10,P74/11,P74)) -> 7 | E74: 1 | F74: 7 | G74: =IF($F74="","",IF($F74>90,VLOOKUP(F74,eventcodes,2,FALSE),HLOOKUP(F74,declare,B76,FALSE))) -> Caryl Granville | H74: =IF($F74="","",IF($F74>90,"",VLOOKUP(C74,matchday,2,FALSE))) -> Swansea H | I74: 60.46 | J74: =IF(I74="","",IF(AC73="T",X74,X75)) ->  | L74: =IF(OR(F74=0,F74="",I74=0,I74=""),"",IF(I74>A73,0,INT(((B73-I74)*D73/C73)+250))) -> 150 | M74: =IF(AC73="T",AD74,AE74) -> þ | O74: 1 | P74: 77 | Q74: =IF($P74="","",HLOOKUP(P74,declare,B76,FALSE)) -> Anwen Rees | R74: =IF($P74="","",VLOOKUP(D74,matchday,2,FALSE)) -> Swansea H | S74: 61.87 | U74: =IF(OR(P74=0,P74="",S74=0,S74=""),"",IF(S74>A73,0,INT(((B73-S74)*D73/C73)+250))) -> 127 | V74: =IF(AC73="T",AF74,AG74) -> þ | X74: =IF(AC73="F","",IF(I74<X73,"LR",IF(I74=X73,"=LR",IF(I74<Y73,"DR",IF(I74=Y73,"=DR",""))))) ->  | AD74: =IF(I74="","",IF(AC73="F","",IF(AC73="T",IF(I74<=Z73,"þ",IF(I74<=AA73,"G2",IF(I74<=AB73,"G3","")))))) -> þ | AE74: =IF(I74="","",IF(AC73="T","",IF(AC73="F",IF(I74>=Z73,"þ",IF(I74>=AA73,"G2",IF(I74>=AB73,"G3","")))))) ->  | AF74: =IF(S74="","",IF(AC73="F","",IF(AC73="T",IF(S74<=Z73,"þ",IF(S74<=AA73,"G2",IF(S74<=AB73,"G3","")))))) -> þ | AG74: =IF(S74="","",IF(AC73="T","",IF(AC73="F",IF(S74>=Z73,"þ",IF(S74>=AA73,"G2",IF(S74>=AB73,"G3","")))))) ->  | AH74: =C74 -> 7 | AI74: =IF(F74="","",IF(LEFT(I74,1)="D",0,VLOOKUP(E74,$AT$4:$AU$40,2,FALSE))) -> 9 | AJ74: =D74 -> 7 | AK74: =IF(P74="","",IF(LEFT(S74,1)="D",0,VLOOKUP(O74,$AT$4:$AV$40,3,FALSE))) -> 9 | AL74: 74
B75: =VLOOKUP(A74,Handbook!$A$4:$AK$24,37,FALSE) -> 2 | C75: =IF(F75="","",IF(F75>10,F75/11,F75)) -> 6 | D75: =IF(P75="","",IF(P75>10,P75/11,P75)) -> 6 | E75: 2 | F75: 6 | G75: =IF($F75="","",HLOOKUP(F75,declare,B76,FALSE)) -> Emily Bonnett | H75: =IF($F75="","",VLOOKUP(C75,matchday,2,FALSE)) -> Southampton AC | I75: 61.02 | J75: =IF(I75="","",IF(AND(AC73="T",I75<I74),"X",IF(AND(AC73="F",I75>I74),"X",""))) ->  | L75: =IF(OR(F75=0,F75="",I75=0,I75=""),"",IF(I75>A73,0,INT(((B73-I75)*D73/C73)+250))) -> 141 | M75: =IF(AC73="T",AD75,AE75) -> þ | O75: 2 | P75: 66 | Q75: =IF($P75="","",HLOOKUP(P75,declare,B76,FALSE)) -> Millie Clifford | R75: Southampton AC | S75: 62.07 | T75: =IF(S75="","",IF(AND(AC73="T",S75<S74),"X",IF(AND(AC73="F",S75>S74),"X",""))) ->  | U75: =IF(OR(P75=0,P75="",S75=0,S75=""),"",IF(S75>A73,0,INT(((B73-S75)*D73/C73)+250))) -> 123 | V75: =IF(AC73="T",AF75,AG75) -> þ | X75: =IF(AC73="T","",IF(I74>X73,"LR",IF(I74=X73,"=LR",IF(I74>Y73,"DR",IF(I74=Y73,"=DR",""))))) ->  | AD75: =IF(I75="","",IF(AC73="F","",IF(AC73="T",IF(I75<=Z73,"þ",IF(I75<=AA73,"G2",IF(I75<=AB73,"G3","")))))) -> þ | AE75: =IF(I75="","",IF(AC73="T","",IF(AC73="F",IF(I75>=Z73,"þ",IF(I75>=AA73,"G2",IF(I75>=AB73,"G3","")))))) ->  | AF75: =IF(S75="","",IF(AC73="F","",IF(AC73="T",IF(S75<=Z73,"þ",IF(S75<=AA73,"G2",IF(S75<=AB73,"G3","")))))) -> þ | AG75: =IF(S75="","",IF(AC73="T","",IF(AC73="F",IF(S75>=Z73,"þ",IF(S75>=AA73,"G2",IF(S75>=AB73,"G3","")))))) ->  | AH75: =C75 -> 6 | AI75: 7 | AJ75: =D75 -> 6 | AK75: 7 | AL75: 75
B76: =VLOOKUP(A74,declare,20,FALSE) -> 10 | C76: 2 | D76: 2 | E76: 3 | F76: 2 | G76: =IF($F76="","",HLOOKUP(F76,declare,B76,FALSE)) -> Megan Southwart | H76: Blackheath & Bromley H | I76: 61.05 | J76: =IF(I76="","",IF(AND(AC73="T",I76<I75),"X",IF(AND(AC73="F",I76>I75),"X",""))) ->  | L76: =IF(OR(F76=0,F76="",I76=0,I76=""),"",IF(I76>A73,0,INT(((B73-I76)*D73/C73)+250))) -> 140 | M76: =IF(AC73="T",AD76,AE76) -> þ | O76: 3 | P76: 22 | Q76: =IF($P76="","",HLOOKUP(P76,declare,B76,FALSE)) -> Rachel Robinson | R76: Blackheath & Bromley H | S76: 69.76 | T76: =IF(S76="","",IF(AND(AC73="T",S76<S75),"X",IF(AND(AC73="F",S76>S75),"X",""))) ->  | U76: =IF(OR(P76=0,P76="",S76=0,S76=""),"",IF(S76>A73,0,INT(((B73-S76)*D73/C73)+250))) -> 0 | V76: =IF(AC73="T",AF76,AG76) -> þ | AD76: =IF(I76="","",IF(AC73="F","",IF(AC73="T",IF(I76<=Z73,"þ",IF(I76<=AA73,"G2",IF(I76<=AB73,"G3","")))))) -> þ | AE76: =IF(I76="","",IF(AC73="T","",IF(AC73="F",IF(I76>=Z73,"þ",IF(I76>=AA73,"G2",IF(I76>=AB73,"G3","")))))) ->  | AF76: =IF(S76="","",IF(AC73="F","",IF(AC73="T",IF(S76<=Z73,"þ",IF(S76<=AA73,"G2",IF(S76<=AB73,"G3","")))))) -> þ | AG76: =IF(S76="","",IF(AC73="T","",IF(AC73="F",IF(S76>=Z73,"þ",IF(S76>=AA73,"G2",IF(S76>=AB73,"G3","")))))) ->  | AH76: 2 | AI76: 6 | AJ76: 2 | AK76: 6 | AL76: 76
C77: 4 | D77: 8 | E77: 4 | F77: 4 | G77: =IF($F77="","",HLOOKUP(F77,declare,B76,FALSE)) -> Kate Laidlow | H77: Newham & Essex Beagles AC | I77: 65.25 | J77: =IF(I77="","",IF(AND(AC73="T",I77<I76),"X",IF(AND(AC73="F",I77>I76),"X",""))) ->  | L77: =IF(OR(F77=0,F77="",I77=0,I77=""),"",IF(I77>A73,0,INT(((B73-I77)*D73/C73)+250))) -> 70 | M77: =IF(AC73="T",AD77,AE77) -> þ | O77: 4 | P77: 88 | Q77: =IF($P77="","",HLOOKUP(P77,declare,B76,FALSE)) -> Joanna Mobed | R77: Thames Valley H | S77: 73.92 | T77: =IF(S77="","",IF(AND(AC73="T",S77<S76),"X",IF(AND(AC73="F",S77>S76),"X",""))) ->  | U77: =IF(OR(P77=0,P77="",S77=0,S77=""),"",IF(S77>A73,0,INT(((B73-S77)*D73/C73)+250))) -> 0 | V77: =IF(AC73="T",AF77,AG77) ->  | AD77: =IF(I77="","",IF(AC73="F","",IF(AC73="T",IF(I77<=Z73,"þ",IF(I77<=AA73,"G2",IF(I77<=AB73,"G3","")))))) -> þ | AE77: =IF(I77="","",IF(AC73="T","",IF(AC73="F",IF(I77>=Z73,"þ",IF(I77>=AA73,"G2",IF(I77>=AB73,"G3","")))))) ->  | AF77: =IF(S77="","",IF(AC73="F","",IF(AC73="T",IF(S77<=Z73,"þ",IF(S77<=AA73,"G2",IF(S77<=AB73,"G3","")))))) ->  | AG77: =IF(S77="","",IF(AC73="T","",IF(AC73="F",IF(S77>=Z73,"þ",IF(S77>=AA73,"G2",IF(S77>=AB73,"G3","")))))) ->  | AH77: 4 | AI77: 5 | AJ77: 8 | AK77: 5 | AL77: 77
C78: 8 | E78: 5 | F78: 8 | G78: =IF($F78="","",HLOOKUP(F78,declare,B76,FALSE)) -> Ambwene Simukonda | H78: Thames Valley H | I78: 65.69 | J78: =IF(I78="","",IF(AND(AC73="T",I78<I77),"X",IF(AND(AC73="F",I78>I77),"X",""))) ->  | L78: =IF(OR(F78=0,F78="",I78=0,I78=""),"",IF(I78>A73,0,INT(((B73-I78)*D73/C73)+250))) -> 63 | M78: =IF(AC73="T",AD78,AE78) -> þ | O78: 5 | Q78: =IF($P78="","",HLOOKUP(P78,declare,B76,FALSE)) ->  | T78: =IF(S78="","",IF(AND(AC73="T",S78<S77),"X",IF(AND(AC73="F",S78>S77),"X",""))) ->  | U78: =IF(OR(P78=0,P78="",S78=0,S78=""),"",IF(S78>A73,0,INT(((B73-S78)*D73/C73)+250))) ->  | V78: =IF(AC73="T",AF78,AG78) ->  | AD78: =IF(I78="","",IF(AC73="F","",IF(AC73="T",IF(I78<=Z73,"þ",IF(I78<=AA73,"G2",IF(I78<=AB73,"G3","")))))) -> þ | AE78: =IF(I78="","",IF(AC73="T","",IF(AC73="F",IF(I78>=Z73,"þ",IF(I78>=AA73,"G2",IF(I78>=AB73,"G3","")))))) ->  | AF78: =IF(S78="","",IF(AC73="F","",IF(AC73="T",IF(S78<=Z73,"þ",IF(S78<=AA73,"G2",IF(S78<=AB73,"G3","")))))) ->  | AG78: =IF(S78="","",IF(AC73="T","",IF(AC73="F",IF(S78>=Z73,"þ",IF(S78>=AA73,"G2",IF(S78>=AB73,"G3","")))))) ->  | AH78: 8 | AI78: 4 | AL78: 78
C79: 1 | E79: 6 | F79: 1 | G79: =IF($F79="","",HLOOKUP(F79,declare,B76,FALSE)) -> Lucy Spray | H79: Bedford & County AC | I79: 66.6 | J79: =IF(I79="","",IF(AND(AC73="T",I79<I78),"X",IF(AND(AC73="F",I79>I78),"X",""))) ->  | L79: =IF(OR(F79=0,F79="",I79=0,I79=""),"",IF(I79>A73,0,INT(((B73-I79)*D73/C73)+250))) -> 0 | M79: =IF(AC73="T",AD79,AE79) -> þ | O79: 6 | Q79: =IF($P79="","",HLOOKUP(P79,declare,B76,FALSE)) ->  | T79: =IF(S79="","",IF(AND(AC73="T",S79<S78),"X",IF(AND(AC73="F",S79>S78),"X",""))) ->  | U79: =IF(OR(P79=0,P79="",S79=0,S79=""),"",IF(S79>A73,0,INT(((B73-S79)*D73/C73)+250))) ->  | V79: =IF(AC73="T",AF79,AG79) ->  | AD79: =IF(I79="","",IF(AC73="F","",IF(AC73="T",IF(I79<=Z73,"þ",IF(I79<=AA73,"G2",IF(I79<=AB73,"G3","")))))) -> þ | AE79: =IF(I79="","",IF(AC73="T","",IF(AC73="F",IF(I79>=Z73,"þ",IF(I79>=AA73,"G2",IF(I79>=AB73,"G3","")))))) ->  | AF79: =IF(S79="","",IF(AC73="F","",IF(AC73="T",IF(S79<=Z73,"þ",IF(S79<=AA73,"G2",IF(S79<=AB73,"G3","")))))) ->  | AG79: =IF(S79="","",IF(AC73="T","",IF(AC73="F",IF(S79>=Z73,"þ",IF(S79>=AA73,"G2",IF(S79>=AB73,"G3","")))))) ->  | AH79: 1 | AI79: 3 | AL79: 79
C80: 3 | E80: 7 | F80: 3 | G80: =IF($F80="","",HLOOKUP(F80,declare,B76,FALSE)) -> Chloe Walley | H80: Marshall Milton Keynes AC | I80: 72.25 | J80: =IF(I80="","",IF(AND(AC73="T",I80<I79),"X",IF(AND(AC73="F",I80>I79),"X",""))) ->  | L80: =IF(OR(F80=0,F80="",I80=0,I80=""),"",IF(I80>A73,0,INT(((B73-I80)*D73/C73)+250))) -> 0 | M80: =IF(AC73="T",AD80,AE80) ->  | O80: 7 | Q80: =IF($P80="","",HLOOKUP(P80,declare,B76,FALSE)) ->  | T80: =IF(S80="","",IF(AND(AC73="T",S80<S79),"X",IF(AND(AC73="F",S80>S79),"X",""))) ->  | U80: =IF(OR(P80=0,P80="",S80=0,S80=""),"",IF(S80>A73,0,INT(((B73-S80)*D73/C73)+250))) ->  | V80: =IF(AC73="T",AF80,AG80) ->  | AD80: =IF(I80="","",IF(AC73="F","",IF(AC73="T",IF(I80<=Z73,"þ",IF(I80<=AA73,"G2",IF(I80<=AB73,"G3","")))))) ->  | AE80: =IF(I80="","",IF(AC73="T","",IF(AC73="F",IF(I80>=Z73,"þ",IF(I80>=AA73,"G2",IF(I80>=AB73,"G3","")))))) ->  | AF80: =IF(S80="","",IF(AC73="F","",IF(AC73="T",IF(S80<=Z73,"þ",IF(S80<=AA73,"G2",IF(S80<=AB73,"G3","")))))) ->  | AG80: =IF(S80="","",IF(AC73="T","",IF(AC73="F",IF(S80>=Z73,"þ",IF(S80>=AA73,"G2",IF(S80>=AB73,"G3","")))))) ->  | AH80: 3 | AI80: 2 | AL80: 80
C81: 5 | E81: 8 | F81: 5 | G81: =IF($F81="","",HLOOKUP(F81,declare,B76,FALSE)) -> Victoria Walker (U20) | H81: Shaftesbury Barnet H | I81: 81.07 | J81: =IF(I81="","",IF(AND(AC73="T",I81<I80),"X",IF(AND(AC73="F",I81>I80),"X",""))) ->  | L81: =IF(OR(F81=0,F81="",I81=0,I81=""),"",IF(I81>A73,0,INT(((B73-I81)*D73/C73)+250))) -> 0 | M81: =IF(AC73="T",AD81,AE81) ->  | O81: 8 | Q81: =IF($P81="","",HLOOKUP(P81,declare,B76,FALSE)) ->  | T81: =IF(S81="","",IF(AND(AC73="T",S81<S80),"X",IF(AND(AC73="F",S81>S80),"X",""))) ->  | U81: =IF(OR(P81=0,P81="",S81=0,S81=""),"",IF(S81>A73,0,INT(((B73-S81)*D73/C73)+250))) ->  | V81: =IF(AC73="T",AF81,AG81) ->  | AD81: =IF(I81="","",IF(AC73="F","",IF(AC73="T",IF(I81<=Z73,"þ",IF(I81<=AA73,"G2",IF(I81<=AB73,"G3","")))))) ->  | AE81: =IF(I81="","",IF(AC73="T","",IF(AC73="F",IF(I81>=Z73,"þ",IF(I81>=AA73,"G2",IF(I81>=AB73,"G3","")))))) ->  | AF81: =IF(S81="","",IF(AC73="F","",IF(AC73="T",IF(S81<=Z73,"þ",IF(S81<=AA73,"G2",IF(S81<=AB73,"G3","")))))) ->  | AG81: =IF(S81="","",IF(AC73="T","",IF(AC73="F",IF(S81>=Z73,"þ",IF(S81>=AA73,"G2",IF(S81>=AB73,"G3","")))))) ->  | AH81: 5 | AI81: 1 | AL81: 81
AL82: 82
A83: 15.55 | B83: 12.55 | C83: 0.015 | D83: 1 | E83: =CONCATENATE(VLOOKUP(A84,mens_handbook,3,FALSE)," A") -> Women's 100 Hurdles A | H83: =IF(A84="","",IF(VLOOKUP(A84,Handbook!$A$4:$AI$24,35,FALSE)="Y","Wind=","")) -> Wind= | I83: -2.1 | O83: =CONCATENATE(VLOOKUP(A84,mens_handbook,3,FALSE)," B") -> Women's 100 Hurdles B | R83: =H83 -> Wind= | S83: -2.0 | X83: =IF($A84="","",VLOOKUP($A84,Handbook!$A$4:$V$24,21,FALSE)) -> 13.1 | Y83: =IF($A84="","",VLOOKUP($A84,Handbook!$A$4:$V$24,22,FALSE)) -> 13.18 | Z83: =IF($A84="","",VLOOKUP($A84,Handbook!$A$4:$W$24,23,FALSE)) -> 16.5 | AA83: =IF($A84="","",VLOOKUP($A84,Handbook!$A$4:$X$24,24,FALSE)) -> 16.5 | AB83: =IF($A84="","",VLOOKUP($A84,Handbook!$A$4:$Y$24,25,FALSE)) -> 16.5 | AC83: =IF($A84="","",VLOOKUP($A84,Handbook!$A$4:$AH$24,34,FALSE)) -> T | AL83: 83
A84: 6 | C84: =IF(F84="","",IF(F84>10,F84/11,F84)) -> 6 | D84: =IF(P84="","",IF(P84>10,P84/11,P84)) -> 2 | E84: 1 | F84: 6 | G84: =IF($F84="","",IF($F84>90,VLOOKUP(F84,eventcodes,2,FALSE),HLOOKUP(F84,declare,B86,FALSE))) -> Karla Drew | H84: =IF($F84="","",IF($F84>90,"",VLOOKUP(C84,matchday,2,FALSE))) -> Southampton AC | I84: 14.24 | J84: =IF(I84="","",IF(AC83="T",X84,X85)) ->  | L84: =IF(OR(F84=0,F84="",I84=0,I84=""),"",IF(I84>A83,0,INT(((B83-I84)*D83/C83)+250))) -> 137 | M84: =IF(AC83="T",AD84,AE84) -> þ | O84: 1 | P84: 22 | Q84: =IF($P84="","",HLOOKUP(P84,declare,B86,FALSE)) -> Megan Southwart | R84: =IF($P84="","",VLOOKUP(D84,matchday,2,FALSE)) -> Blackheath & Bromley H | S84: 15.16 | U84: =IF(OR(P84=0,P84="",S84=0,S84=""),"",IF(S84>A83,0,INT(((B83-S84)*D83/C83)+250))) -> 76 | V84: =IF(AC83="T",AF84,AG84) -> þ | X84: =IF(AC83="F","",IF(I84<X83,"LR",IF(I84=X83,"=LR",IF(I84<Y83,"DR",IF(I84=Y83,"=DR",""))))) ->  | AD84: =IF(I84="","",IF(AC83="F","",IF(AC83="T",IF(I84<=Z83,"þ",IF(I84<=AA83,"G2",IF(I84<=AB83,"G3","")))))) -> þ | AE84: =IF(I84="","",IF(AC83="T","",IF(AC83="F",IF(I84>=Z83,"þ",IF(I84>=AA83,"G2",IF(I84>=AB83,"G3","")))))) ->  | AF84: =IF(S84="","",IF(AC83="F","",IF(AC83="T",IF(S84<=Z83,"þ",IF(S84<=AA83,"G2",IF(S84<=AB83,"G3","")))))) -> þ | AG84: =IF(S84="","",IF(AC83="T","",IF(AC83="F",IF(S84>=Z83,"þ",IF(S84>=AA83,"G2",IF(S84>=AB83,"G3","")))))) ->  | AH84: =C84 -> 6 | AI84: =IF(F84="","",IF(LEFT(I84,1)="D",0,VLOOKUP(E84,$AT$4:$AU$40,2,FALSE))) -> 9 | AJ84: =D84 -> 2 | AK84: =IF(P84="","",IF(LEFT(S84,1)="D",0,VLOOKUP(O84,$AT$4:$AV$40,3,FALSE))) -> 9 | AL84: 84
B85: =VLOOKUP(A84,Handbook!$A$4:$AK$24,37,FALSE) -> 7 | C85: =IF(F85="","",IF(F85>10,F85/11,F85)) -> 2 | D85: =IF(P85="","",IF(P85>10,P85/11,P85)) -> 7 | E85: 2 | F85: 2 | G85: =IF($F85="","",HLOOKUP(F85,declare,B86,FALSE)) -> Serita Solomon | H85: =IF($F85="","",VLOOKUP(C85,matchday,2,FALSE)) -> Blackheath & Bromley H | I85: 14.34 | J85: =IF(I85="","",IF(AND(AC83="T",I85<I84),"X",IF(AND(AC83="F",I85>I84),"X",""))) ->  | L85: =IF(OR(F85=0,F85="",I85=0,I85=""),"",IF(I85>A83,0,INT(((B83-I85)*D83/C83)+250))) -> 130 | M85: =IF(AC83="T",AD85,AE85) -> þ | O85: 2 | P85: 77 | Q85: =IF($P85="","",HLOOKUP(P85,declare,B86,FALSE)) -> Anwen Rees | R85: Swansea H | S85: 15.6 | T85: =IF(S85="","",IF(AND(AC83="T",S85<S84),"X",IF(AND(AC83="F",S85>S84),"X",""))) ->  | U85: =IF(OR(P85=0,P85="",S85=0,S85=""),"",IF(S85>A83,0,INT(((B83-S85)*D83/C83)+250))) -> 0 | V85: =IF(AC83="T",AF85,AG85) -> þ | X85: =IF(AC83="T","",IF(I84>X83,"LR",IF(I84=X83,"=LR",IF(I84>Y83,"DR",IF(I84=Y83,"=DR",""))))) ->  | AD85: =IF(I85="","",IF(AC83="F","",IF(AC83="T",IF(I85<=Z83,"þ",IF(I85<=AA83,"G2",IF(I85<=AB83,"G3","")))))) -> þ | AE85: =IF(I85="","",IF(AC83="T","",IF(AC83="F",IF(I85>=Z83,"þ",IF(I85>=AA83,"G2",IF(I85>=AB83,"G3","")))))) ->  | AF85: =IF(S85="","",IF(AC83="F","",IF(AC83="T",IF(S85<=Z83,"þ",IF(S85<=AA83,"G2",IF(S85<=AB83,"G3","")))))) -> þ | AG85: =IF(S85="","",IF(AC83="T","",IF(AC83="F",IF(S85>=Z83,"þ",IF(S85>=AA83,"G2",IF(S85>=AB83,"G3","")))))) ->  | AH85: =C85 -> 2 | AI85: 7 | AJ85: =D85 -> 7 | AK85: 7 | AL85: 85
B86: =VLOOKUP(A84,declare,20,FALSE) -> 11 | C86: 4 | D86: 6 | E86: 3 | F86: 4 | G86: =IF($F86="","",HLOOKUP(F86,declare,B86,FALSE)) -> Holly Thomas | H86: Newham & Essex Beagles AC | I86: 14.59 | J86: =IF(I86="","",IF(AND(AC83="T",I86<I85),"X",IF(AND(AC83="F",I86>I85),"X",""))) ->  | L86: =IF(OR(F86=0,F86="",I86=0,I86=""),"",IF(I86>A83,0,INT(((B83-I86)*D83/C83)+250))) -> 114 | M86: =IF(AC83="T",AD86,AE86) -> þ | O86: 3 | P86: 66 | Q86: =IF($P86="","",HLOOKUP(P86,declare,B86,FALSE)) -> Megan Fry | R86: Southampton AC | S86: 16.51 | T86: =IF(S86="","",IF(AND(AC83="T",S86<S85),"X",IF(AND(AC83="F",S86>S85),"X",""))) ->  | U86: =IF(OR(P86=0,P86="",S86=0,S86=""),"",IF(S86>A83,0,INT(((B83-S86)*D83/C83)+250))) -> 0 | V86: =IF(AC83="T",AF86,AG86) ->  | AD86: =IF(I86="","",IF(AC83="F","",IF(AC83="T",IF(I86<=Z83,"þ",IF(I86<=AA83,"G2",IF(I86<=AB83,"G3","")))))) -> þ | AE86: =IF(I86="","",IF(AC83="T","",IF(AC83="F",IF(I86>=Z83,"þ",IF(I86>=AA83,"G2",IF(I86>=AB83,"G3","")))))) ->  | AF86: =IF(S86="","",IF(AC83="F","",IF(AC83="T",IF(S86<=Z83,"þ",IF(S86<=AA83,"G2",IF(S86<=AB83,"G3","")))))) ->  | AG86: =IF(S86="","",IF(AC83="T","",IF(AC83="F",IF(S86>=Z83,"þ",IF(S86>=AA83,"G2",IF(S86>=AB83,"G3","")))))) ->  | AH86: 4 | AI86: 6 | AJ86: 6 | AK86: 6 | AL86: 86
C87: 7 | D87: 4 | E87: 4 | F87: 7 | G87: =IF($F87="","",HLOOKUP(F87,declare,B86,FALSE)) -> Caryl Granville | H87: Swansea H | I87: 15.05 | J87: =IF(I87="","",IF(AND(AC83="T",I87<I86),"X",IF(AND(AC83="F",I87>I86),"X",""))) ->  | L87: =IF(OR(F87=0,F87="",I87=0,I87=""),"",IF(I87>A83,0,INT(((B83-I87)*D83/C83)+250))) -> 83 | M87: =IF(AC83="T",AD87,AE87) -> þ | O87: 4 | P87: 44 | Q87: =IF($P87="","",HLOOKUP(P87,declare,B86,FALSE)) -> Stephanie Ugbo | R87: Newham & Essex Beagles AC | S87: 16.7 | T87: =IF(S87="","",IF(AND(AC83="T",S87<S86),"X",IF(AND(AC83="F",S87>S86),"X",""))) ->  | U87: =IF(OR(P87=0,P87="",S87=0,S87=""),"",IF(S87>A83,0,INT(((B83-S87)*D83/C83)+250))) -> 0 | V87: =IF(AC83="T",AF87,AG87) ->  | AD87: =IF(I87="","",IF(AC83="F","",IF(AC83="T",IF(I87<=Z83,"þ",IF(I87<=AA83,"G2",IF(I87<=AB83,"G3","")))))) -> þ | AE87: =IF(I87="","",IF(AC83="T","",IF(AC83="F",IF(I87>=Z83,"þ",IF(I87>=AA83,"G2",IF(I87>=AB83,"G3","")))))) ->  | AF87: =IF(S87="","",IF(AC83="F","",IF(AC83="T",IF(S87<=Z83,"þ",IF(S87<=AA83,"G2",IF(S87<=AB83,"G3","")))))) ->  | AG87: =IF(S87="","",IF(AC83="T","",IF(AC83="F",IF(S87>=Z83,"þ",IF(S87>=AA83,"G2",IF(S87>=AB83,"G3","")))))) ->  | AH87: 7 | AI87: 5 | AJ87: 4 | AK87: 5 | AL87: 87
C88: 3 | D88: 8 | E88: 5 | F88: 3 | G88: =IF($F88="","",HLOOKUP(F88,declare,B86,FALSE)) -> Chloe Walley | H88: Marshall Milton Keynes AC | I88: 15.32 | J88: =IF(I88="","",IF(AND(AC83="T",I88<I87),"X",IF(AND(AC83="F",I88>I87),"X",""))) ->  | L88: =IF(OR(F88=0,F88="",I88=0,I88=""),"",IF(I88>A83,0,INT(((B83-I88)*D83/C83)+250))) -> 65 | M88: =IF(AC83="T",AD88,AE88) -> þ | O88: 5 | P88: 88 | Q88: =IF($P88="","",HLOOKUP(P88,declare,B86,FALSE)) -> Joanna Mobed | R88: Thames Valley H | S88: 22.78 | T88: =IF(S88="","",IF(AND(AC83="T",S88<S87),"X",IF(AND(AC83="F",S88>S87),"X",""))) ->  | U88: =IF(OR(P88=0,P88="",S88=0,S88=""),"",IF(S88>A83,0,INT(((B83-S88)*D83/C83)+250))) -> 0 | V88: =IF(AC83="T",AF88,AG88) ->  | AD88: =IF(I88="","",IF(AC83="F","",IF(AC83="T",IF(I88<=Z83,"þ",IF(I88<=AA83,"G2",IF(I88<=AB83,"G3","")))))) -> þ | AE88: =IF(I88="","",IF(AC83="T","",IF(AC83="F",IF(I88>=Z83,"þ",IF(I88>=AA83,"G2",IF(I88>=AB83,"G3","")))))) ->  | AF88: =IF(S88="","",IF(AC83="F","",IF(AC83="T",IF(S88<=Z83,"þ",IF(S88<=AA83,"G2",IF(S88<=AB83,"G3","")))))) ->  | AG88: =IF(S88="","",IF(AC83="T","",IF(AC83="F",IF(S88>=Z83,"þ",IF(S88>=AA83,"G2",IF(S88>=AB83,"G3","")))))) ->  | AH88: 3 | AI88: 4 | AJ88: 8 | AK88: 4 | AL88: 88
C89: 8 | E89: 6 | F89: 8 | G89: =IF($F89="","",HLOOKUP(F89,declare,B86,FALSE)) -> Ugne Liuksaityte | H89: Thames Valley H | I89: 19.32 | J89: =IF(I89="","",IF(AND(AC83="T",I89<I88),"X",IF(AND(AC83="F",I89>I88),"X",""))) ->  | L89: =IF(OR(F89=0,F89="",I89=0,I89=""),"",IF(I89>A83,0,INT(((B83-I89)*D83/C83)+250))) -> 0 | M89: =IF(AC83="T",AD89,AE89) ->  | O89: 6 | Q89: =IF($P89="","",HLOOKUP(P89,declare,B86,FALSE)) ->  | T89: =IF(S89="","",IF(AND(AC83="T",S89<S88),"X",IF(AND(AC83="F",S89>S88),"X",""))) ->  | U89: =IF(OR(P89=0,P89="",S89=0,S89=""),"",IF(S89>A83,0,INT(((B83-S89)*D83/C83)+250))) ->  | V89: =IF(AC83="T",AF89,AG89) ->  | AD89: =IF(I89="","",IF(AC83="F","",IF(AC83="T",IF(I89<=Z83,"þ",IF(I89<=AA83,"G2",IF(I89<=AB83,"G3","")))))) ->  | AE89: =IF(I89="","",IF(AC83="T","",IF(AC83="F",IF(I89>=Z83,"þ",IF(I89>=AA83,"G2",IF(I89>=AB83,"G3","")))))) ->  | AF89: =IF(S89="","",IF(AC83="F","",IF(AC83="T",IF(S89<=Z83,"þ",IF(S89<=AA83,"G2",IF(S89<=AB83,"G3","")))))) ->  | AG89: =IF(S89="","",IF(AC83="T","",IF(AC83="F",IF(S89>=Z83,"þ",IF(S89>=AA83,"G2",IF(S89>=AB83,"G3","")))))) ->  | AH89: 8 | AI89: 3 | AL89: 89
E90: 7 | G90: =IF($F90="","",HLOOKUP(F90,declare,B86,FALSE)) ->  | J90: =IF(I90="","",IF(AND(AC83="T",I90<I89),"X",IF(AND(AC83="F",I90>I89),"X",""))) ->  | L90: =IF(OR(F90=0,F90="",I90=0,I90=""),"",IF(I90>A83,0,INT(((B83-I90)*D83/C83)+250))) ->  | M90: =IF(AC83="T",AD90,AE90) ->  | O90: 7 | Q90: =IF($P90="","",HLOOKUP(P90,declare,B86,FALSE)) ->  | T90: =IF(S90="","",IF(AND(AC83="T",S90<S89),"X",IF(AND(AC83="F",S90>S89),"X",""))) ->  | U90: =IF(OR(P90=0,P90="",S90=0,S90=""),"",IF(S90>A83,0,INT(((B83-S90)*D83/C83)+250))) ->  | V90: =IF(AC83="T",AF90,AG90) ->  | AD90: =IF(I90="","",IF(AC83="F","",IF(AC83="T",IF(I90<=Z83,"þ",IF(I90<=AA83,"G2",IF(I90<=AB83,"G3","")))))) ->  | AE90: =IF(I90="","",IF(AC83="T","",IF(AC83="F",IF(I90>=Z83,"þ",IF(I90>=AA83,"G2",IF(I90>=AB83,"G3","")))))) ->  | AF90: =IF(S90="","",IF(AC83="F","",IF(AC83="T",IF(S90<=Z83,"þ",IF(S90<=AA83,"G2",IF(S90<=AB83,"G3","")))))) ->  | AG90: =IF(S90="","",IF(AC83="T","",IF(AC83="F",IF(S90>=Z83,"þ",IF(S90>=AA83,"G2",IF(S90>=AB83,"G3","")))))) ->  | AL90: 90
E91: 8 | G91: =IF($F91="","",HLOOKUP(F91,declare,B86,FALSE)) ->  | J91: =IF(I91="","",IF(AND(AC83="T",I91<I90),"X",IF(AND(AC83="F",I91>I90),"X",""))) ->  | L91: =IF(OR(F91=0,F91="",I91=0,I91=""),"",IF(I91>A83,0,INT(((B83-I91)*D83/C83)+250))) ->  | M91: =IF(AC83="T",AD91,AE91) ->  | O91: 8 | Q91: =IF($P91="","",HLOOKUP(P91,declare,B86,FALSE)) ->  | T91: =IF(S91="","",IF(AND(AC83="T",S91<S90),"X",IF(AND(AC83="F",S91>S90),"X",""))) ->  | U91: =IF(OR(P91=0,P91="",S91=0,S91=""),"",IF(S91>A83,0,INT(((B83-S91)*D83/C83)+250))) ->  | V91: =IF(AC83="T",AF91,AG91) ->  | AD91: =IF(I91="","",IF(AC83="F","",IF(AC83="T",IF(I91<=Z83,"þ",IF(I91<=AA83,"G2",IF(I91<=AB83,"G3","")))))) ->  | AE91: =IF(I91="","",IF(AC83="T","",IF(AC83="F",IF(I91>=Z83,"þ",IF(I91>=AA83,"G2",IF(I91>=AB83,"G3","")))))) ->  | AF91: =IF(S91="","",IF(AC83="F","",IF(AC83="T",IF(S91<=Z83,"þ",IF(S91<=AA83,"G2",IF(S91<=AB83,"G3","")))))) ->  | AG91: =IF(S91="","",IF(AC83="T","",IF(AC83="F",IF(S91>=Z83,"þ",IF(S91>=AA83,"G2",IF(S91>=AB83,"G3","")))))) ->  | AL91: 91
AL92: 92
A93: 37 | B93: 73 | C93: 1.8 | D93: 10 | E93: =CONCATENATE(VLOOKUP(A94,mens_handbook,3,FALSE)," A") -> Women's Hammer A | H93: =IF(A94="","",IF(VLOOKUP(A94,Handbook!$A$4:$AI$24,35,FALSE)="Y","Wind=","")) ->  | O93: =CONCATENATE(VLOOKUP(A94,mens_handbook,3,FALSE)," B") -> Women's Hammer B | R93: =H93 ->  | S93: =IF(I93="","",I93) ->  | X93: =IF($A94="","",VLOOKUP($A94,Handbook!$A$4:$V$24,21,FALSE)) -> 67.94 | Y93: =IF($A94="","",VLOOKUP($A94,Handbook!$A$4:$V$24,22,FALSE)) -> 67.94 | Z93: =IF($A94="","",VLOOKUP($A94,Handbook!$A$4:$W$24,23,FALSE)) -> 30 | AA93: =IF($A94="","",VLOOKUP($A94,Handbook!$A$4:$X$24,24,FALSE)) -> 30 | AB93: =IF($A94="","",VLOOKUP($A94,Handbook!$A$4:$Y$24,25,FALSE)) -> 30 | AC93: =IF($A94="","",VLOOKUP($A94,Handbook!$A$4:$AH$24,34,FALSE)) -> F | AL93: 93
A94: 11 | C94: =IF(F94="","",IF(F94>10,F94/11,F94)) -> 7 | D94: =IF(P94="","",IF(P94>10,P94/11,P94)) -> 3 | E94: =Hammer!$E$26 -> 1 | F94: =IF(Hammer!$I$26=0,"",Hammer!$F$26) -> 7 | G94: =IF(OR($F94="",$F94=0),"",IF($F94>90,VLOOKUP(F94,eventcodes,2,FALSE),HLOOKUP(F94,declare,B96,FALSE))) -> Toni Wells | H94: =IF(OR($F94="",$F94=0),"",IF($F94>90,"",VLOOKUP(C94,matchday,2,FALSE))) -> Swansea H | I94: =IF(Hammer!$I$26=0,"",Hammer!$I$26) -> 51.73 | J94: =IF(I94="","",IF(AC93="T",X94,X95)) ->  | L94: =IF(OR(F94=0,F94="",I94=0,I94=""),"",IF(I94<A93,0,INT(((I94-B93)*D93/C93)+250))) -> 131 | M94: =IF(AC93="T",AD94,AE94) -> þ | O94: =Hammer!$K$26 -> 1 | P94: =IF(Hammer!$I$26=0,"",Hammer!$L$26) -> 33 | Q94: =IF(OR($P94="",$P94=0),"",HLOOKUP(P94,declare,B96,FALSE)) -> Sadie Watts | R94: =IF(OR($P94="",$P94=0),"",VLOOKUP(D94,matchday,2,FALSE)) -> Marshall Milton Keynes AC | S94: =IF(Hammer!$I$26=0,"",Hammer!$U$26) -> 43.63 | U94: =IF(OR(P94=0,P94="",S94=0,S94=""),"",IF(S94<A93,0,INT(((S94-B93)*D93/C93)+250))) -> 86 | V94: =IF(AC93="T",AF94,AG94) -> þ | X94: =IF(AC93="F","",IF(I94<X93,"LR",IF(I94=X93,"=LR",IF(I94<Y93,"DR",IF(I94=Y93,"=DR",""))))) ->  | AD94: =IF(I94="","",IF(AC93="F","",IF(AC93="T",IF(I94<=Z93,"þ",IF(I94<=AA93,"G2",IF(I94<=AB93,"G3","")))))) ->  | AE94: =IF(I94="","",IF(AC93="T","",IF(AC93="F",IF(I94>=Z93,"þ",IF(I94>=AA93,"G2",IF(I94>=AB93,"G3","")))))) -> þ | AF94: =IF(S94="","",IF(AC93="F","",IF(AC93="T",IF(S94<=Z93,"þ",IF(S94<=AA93,"G2",IF(S94<=AB93,"G3","")))))) ->  | AG94: =IF(S94="","",IF(AC93="T","",IF(AC93="F",IF(S94>=Z93,"þ",IF(S94>=AA93,"G2",IF(S94>=AB93,"G3","")))))) -> þ | AH94: =C94 -> 7 | AI94: =IF(F94="","",IF(LEFT(I94,1)="D",0,VLOOKUP(E94,$AT$4:$AU$40,2,FALSE))) -> 9 | AJ94: =D94 -> 3 | AK94: =IF(P94="","",IF(LEFT(S94,1)="D",0,VLOOKUP(O94,$AT$4:$AV$40,3,FALSE))) -> 9 | AL94: 94
B95: =VLOOKUP(A94,Handbook!$A$4:$AK$24,37,FALSE) -> 12 | C95: =IF(F95="","",IF(F95>10,F95/11,F95)) -> 2 | D95: =IF(P95="","",IF(P95>10,P95/11,P95)) -> 2 | E95: =Hammer!$E$27 -> 2 | F95: =IF(Hammer!$I$26=0,"",Hammer!$F$27) -> 2 | G95: =IF(OR($F95="",$F95=0),"",IF($F95>90,VLOOKUP(F95,eventcodes,2,FALSE),HLOOKUP(F95,declare,B96,FALSE))) -> Shaunagh Brown | H95: Blackheath & Bromley H | I95: =IF(Hammer!$I$26=0,"",Hammer!$I$27) -> 50.25 | L95: =IF(OR(F95=0,F95="",I95=0,I95=""),"",IF(I95<A93,0,INT(((I95-B93)*D93/C93)+250))) -> 123 | M95: =IF(AC93="T",AD95,AE95) -> þ | O95: =Hammer!$K$27 -> 2 | P95: =IF(Hammer!$I$26=0,"",Hammer!$L$27) -> 22 | Q95: =IF(OR($P95="",$P95=0),"",HLOOKUP(P95,declare,B96,FALSE)) -> Sam Milner | R95: Blackheath & Bromley H | S95: =IF(Hammer!$I$26=0,"",Hammer!$U$27) -> 36.42 | U95: =IF(OR(P95=0,P95="",S95=0,S95=""),"",IF(S95<A93,0,INT(((S95-B93)*D93/C93)+250))) -> 0 | V95: =IF(AC93="T",AF95,AG95) -> þ | X95: =IF(AC93="T","",IF(I94>X93,"LR",IF(I94=X93,"=LR",IF(I94>Y93,"DR",IF(I94=Y93,"=DR",""))))) ->  | AD95: =IF(I95="","",IF(AC93="F","",IF(AC93="T",IF(I95<=Z93,"þ",IF(I95<=AA93,"G2",IF(I95<=AB93,"G3","")))))) ->  | AE95: =IF(I95="","",IF(AC93="T","",IF(AC93="F",IF(I95>=Z93,"þ",IF(I95>=AA93,"G2",IF(I95>=AB93,"G3","")))))) -> þ | AF95: =IF(S95="","",IF(AC93="F","",IF(AC93="T",IF(S95<=Z93,"þ",IF(S95<=AA93,"G2",IF(S95<=AB93,"G3","")))))) ->  | AG95: =IF(S95="","",IF(AC93="T","",IF(AC93="F",IF(S95>=Z93,"þ",IF(S95>=AA93,"G2",IF(S95>=AB93,"G3","")))))) -> þ | AH95: =C95 -> 2 | AI95: 7 | AJ95: =D95 -> 2 | AK95: 7 | AL95: 95
B96: =VLOOKUP(A94,declare,20,FALSE) -> 12 | C96: 3 | D96: 8 | E96: =Hammer!$E$28 -> 3 | F96: =IF(Hammer!$I$26=0,"",Hammer!$F$28) -> 3 | G96: =IF(OR($F96="",$F96=0),"",IF($F96>90,VLOOKUP(F96,eventcodes,2,FALSE),HLOOKUP(F96,declare,B96,FALSE))) -> Andrea Jenkins | H96: Marshall Milton Keynes AC | I96: =IF(Hammer!$I$26=0,"",Hammer!$I$28) -> 50.11 | L96: =IF(OR(F96=0,F96="",I96=0,I96=""),"",IF(I96<A93,0,INT(((I96-B93)*D93/C93)+250))) -> 122 | M96: =IF(AC93="T",AD96,AE96) -> þ | O96: =Hammer!$K$28 -> 3 | P96: =IF(Hammer!$I$26=0,"",Hammer!$L$28) -> 8 | Q96: =IF(OR($P96="",$P96=0),"",HLOOKUP(P96,declare,B96,FALSE)) -> Ellisha Dee | R96: Thames Valley H | S96: =IF(Hammer!$I$26=0,"",Hammer!$U$28) -> 35.74 | U96: =IF(OR(P96=0,P96="",S96=0,S96=""),"",IF(S96<A93,0,INT(((S96-B93)*D93/C93)+250))) -> 0 | V96: =IF(AC93="T",AF96,AG96) -> þ | AD96: =IF(I96="","",IF(AC93="F","",IF(AC93="T",IF(I96<=Z93,"þ",IF(I96<=AA93,"G2",IF(I96<=AB93,"G3","")))))) ->  | AE96: =IF(I96="","",IF(AC93="T","",IF(AC93="F",IF(I96>=Z93,"þ",IF(I96>=AA93,"G2",IF(I96>=AB93,"G3","")))))) -> þ | AF96: =IF(S96="","",IF(AC93="F","",IF(AC93="T",IF(S96<=Z93,"þ",IF(S96<=AA93,"G2",IF(S96<=AB93,"G3","")))))) ->  | AG96: =IF(S96="","",IF(AC93="T","",IF(AC93="F",IF(S96>=Z93,"þ",IF(S96>=AA93,"G2",IF(S96>=AB93,"G3","")))))) -> þ | AH96: 3 | AI96: 6 | AJ96: 8 | AK96: 6 | AL96: 96
C97: 1 | D97: 1 | E97: =Hammer!$E$29 -> 4 | F97: =IF(Hammer!$I$26=0,"",Hammer!$F$29) -> 1 | G97: =IF(OR($F97="",$F97=0),"",IF($F97>90,VLOOKUP(F97,eventcodes,2,FALSE),HLOOKUP(F97,declare,B96,FALSE))) -> Laura Duke | H97: Bedford & County AC | I97: =IF(Hammer!$I$26=0,"",Hammer!$I$29) -> 47.3 | L97: =IF(OR(F97=0,F97="",I97=0,I97=""),"",IF(I97<A93,0,INT(((I97-B93)*D93/C93)+250))) -> 107 | M97: =IF(AC93="T",AD97,AE97) -> þ | O97: =Hammer!$K$29 -> 4 | P97: =IF(Hammer!$I$26=0,"",Hammer!$L$29) -> 11 | Q97: =IF(OR($P97="",$P97=0),"",HLOOKUP(P97,declare,B96,FALSE)) -> Rachael Bennett | R97: Bedford & County AC | S97: =IF(Hammer!$I$26=0,"",Hammer!$U$29) -> 28.41 | U97: =IF(OR(P97=0,P97="",S97=0,S97=""),"",IF(S97<A93,0,INT(((S97-B93)*D93/C93)+250))) -> 0 | V97: =IF(AC93="T",AF97,AG97) ->  | AD97: =IF(I97="","",IF(AC93="F","",IF(AC93="T",IF(I97<=Z93,"þ",IF(I97<=AA93,"G2",IF(I97<=AB93,"G3","")))))) ->  | AE97: =IF(I97="","",IF(AC93="T","",IF(AC93="F",IF(I97>=Z93,"þ",IF(I97>=AA93,"G2",IF(I97>=AB93,"G3","")))))) -> þ | AF97: =IF(S97="","",IF(AC93="F","",IF(AC93="T",IF(S97<=Z93,"þ",IF(S97<=AA93,"G2",IF(S97<=AB93,"G3","")))))) ->  | AG97: =IF(S97="","",IF(AC93="T","",IF(AC93="F",IF(S97>=Z93,"þ",IF(S97>=AA93,"G2",IF(S97>=AB93,"G3","")))))) ->  | AH97: 1 | AI97: 5 | AJ97: 1 | AK97: 5 | AL97: 97
C98: 5 | D98: 5 | E98: =Hammer!$E$30 -> 5 | F98: =IF(Hammer!$I$26=0,"",Hammer!$F$30) -> 5 | G98: =IF(OR($F98="",$F98=0),"",IF($F98>90,VLOOKUP(F98,eventcodes,2,FALSE),HLOOKUP(F98,declare,B96,FALSE))) -> Amy Clemens (U20) | H98: Shaftesbury Barnet H | I98: =IF(Hammer!$I$26=0,"",Hammer!$I$30) -> 46.64 | L98: =IF(OR(F98=0,F98="",I98=0,I98=""),"",IF(I98<A93,0,INT(((I98-B93)*D93/C93)+250))) -> 103 | M98: =IF(AC93="T",AD98,AE98) -> þ | O98: =Hammer!$K$30 -> 5 | P98: =IF(Hammer!$I$26=0,"",Hammer!$L$30) -> 55 | Q98: =IF(OR($P98="",$P98=0),"",HLOOKUP(P98,declare,B96,FALSE)) -> Nneka Ofulue (U20) | R98: Shaftesbury Barnet H | S98: =IF(Hammer!$I$26=0,"",Hammer!$U$30) -> 27.31 | U98: =IF(OR(P98=0,P98="",S98=0,S98=""),"",IF(S98<A93,0,INT(((S98-B93)*D93/C93)+250))) -> 0 | V98: =IF(AC93="T",AF98,AG98) ->  | AD98: =IF(I98="","",IF(AC93="F","",IF(AC93="T",IF(I98<=Z93,"þ",IF(I98<=AA93,"G2",IF(I98<=AB93,"G3","")))))) ->  | AE98: =IF(I98="","",IF(AC93="T","",IF(AC93="F",IF(I98>=Z93,"þ",IF(I98>=AA93,"G2",IF(I98>=AB93,"G3","")))))) -> þ | AF98: =IF(S98="","",IF(AC93="F","",IF(AC93="T",IF(S98<=Z93,"þ",IF(S98<=AA93,"G2",IF(S98<=AB93,"G3","")))))) ->  | AG98: =IF(S98="","",IF(AC93="T","",IF(AC93="F",IF(S98>=Z93,"þ",IF(S98>=AA93,"G2",IF(S98>=AB93,"G3","")))))) ->  | AH98: 5 | AI98: 4 | AJ98: 5 | AK98: 4 | AL98: 98
C99: 8 | D99: 7 | E99: =Hammer!$E$31 -> 6 | F99: =IF(Hammer!$I$26=0,"",Hammer!$F$31) -> 88 | G99: =IF(OR($F99="",$F99=0),"",IF($F99>90,VLOOKUP(F99,eventcodes,2,FALSE),HLOOKUP(F99,declare,B96,FALSE))) -> Carla Letheby | H99: Thames Valley H | I99: =IF(Hammer!$I$26=0,"",Hammer!$I$31) -> 37.01 | L99: =IF(OR(F99=0,F99="",I99=0,I99=""),"",IF(I99<A93,0,INT(((I99-B93)*D93/C93)+250))) -> 50 | M99: =IF(AC93="T",AD99,AE99) -> þ | O99: =Hammer!$K$31 -> 6 | P99: =IF(Hammer!$I$26=0,"",Hammer!$L$31) -> 77 | Q99: =IF(OR($P99="",$P99=0),"",HLOOKUP(P99,declare,B96,FALSE)) -> Nina Prells | R99: Swansea H | S99: =IF(Hammer!$I$26=0,"",Hammer!$U$31) -> 24.86 | U99: =IF(OR(P99=0,P99="",S99=0,S99=""),"",IF(S99<A93,0,INT(((S99-B93)*D93/C93)+250))) -> 0 | V99: =IF(AC93="T",AF99,AG99) ->  | AD99: =IF(I99="","",IF(AC93="F","",IF(AC93="T",IF(I99<=Z93,"þ",IF(I99<=AA93,"G2",IF(I99<=AB93,"G3","")))))) ->  | AE99: =IF(I99="","",IF(AC93="T","",IF(AC93="F",IF(I99>=Z93,"þ",IF(I99>=AA93,"G2",IF(I99>=AB93,"G3","")))))) -> þ | AF99: =IF(S99="","",IF(AC93="F","",IF(AC93="T",IF(S99<=Z93,"þ",IF(S99<=AA93,"G2",IF(S99<=AB93,"G3","")))))) ->  | AG99: =IF(S99="","",IF(AC93="T","",IF(AC93="F",IF(S99>=Z93,"þ",IF(S99>=AA93,"G2",IF(S99>=AB93,"G3","")))))) ->  | AH99: 8 | AI99: 3 | AJ99: 7 | AK99: 3 | AL99: 99
C100: 4 | D100: 4 | E100: =Hammer!$E$32 -> 7 | F100: =IF(Hammer!$I$26=0,"",Hammer!$F$32) -> 4 | G100: =IF(OR($F100="",$F100=0),"",IF($F100>90,VLOOKUP(F100,eventcodes,2,FALSE),HLOOKUP(F100,declare,B96,FALSE))) -> Sue Lawrence | H100: Newham & Essex Beagles AC | I100: =IF(Hammer!$I$26=0,"",Hammer!$I$32) -> 33.92 | L100: =IF(OR(F100=0,F100="",I100=0,I100=""),"",IF(I100<A93,0,INT(((I100-B93)*D93/C93)+250))) -> 0 | M100: =IF(AC93="T",AD100,AE100) -> þ | O100: =Hammer!$K$32 -> 7 | P100: =IF(Hammer!$I$26=0,"",Hammer!$L$32) -> 44 | Q100: =IF(OR($P100="",$P100=0),"",HLOOKUP(P100,declare,B96,FALSE)) -> Adele Stach-Kevitz | R100: Newham & Essex Beagles AC | S100: =IF(Hammer!$I$26=0,"",Hammer!$U$32) -> 23.13 | U100: =IF(OR(P100=0,P100="",S100=0,S100=""),"",IF(S100<A93,0,INT(((S100-B93)*D93/C93)+250))) -> 0 | V100: =IF(AC93="T",AF100,AG100) ->  | AD100: =IF(I100="","",IF(AC93="F","",IF(AC93="T",IF(I100<=Z93,"þ",IF(I100<=AA93,"G2",IF(I100<=AB93,"G3","")))))) ->  | AE100: =IF(I100="","",IF(AC93="T","",IF(AC93="F",IF(I100>=Z93,"þ",IF(I100>=AA93,"G2",IF(I100>=AB93,"G3","")))))) -> þ | AF100: =IF(S100="","",IF(AC93="F","",IF(AC93="T",IF(S100<=Z93,"þ",IF(S100<=AA93,"G2",IF(S100<=AB93,"G3","")))))) ->  | AG100: =IF(S100="","",IF(AC93="T","",IF(AC93="F",IF(S100>=Z93,"þ",IF(S100>=AA93,"G2",IF(S100>=AB93,"G3","")))))) ->  | AH100: 4 | AI100: 2 | AJ100: 4 | AK100: 2 | AL100: 100
C101: 6 | D101: 6 | E101: =Hammer!$E$33 -> 8 | F101: =IF(Hammer!$I$26=0,"",Hammer!$F$33) -> 6 | G101: =IF(OR($F101="",$F101=0),"",IF($F101>90,VLOOKUP(F101,eventcodes,2,FALSE),HLOOKUP(F101,declare,B96,FALSE))) -> Anna Stevens | H101: Southampton AC | I101: =IF(Hammer!$I$26=0,"",Hammer!$I$33) -> 31.44 | L101: =IF(OR(F101=0,F101="",I101=0,I101=""),"",IF(I101<A93,0,INT(((I101-B93)*D93/C93)+250))) -> 0 | M101: =IF(AC93="T",AD101,AE101) -> þ | O101: =Hammer!$K$33 -> 8 | P101: =IF(Hammer!$I$26=0,"",Hammer!$L$33) -> 66 | Q101: =IF(OR($P101="",$P101=0),"",HLOOKUP(P101,declare,B96,FALSE)) -> Sarah Ellis | R101: Southampton AC | S101: =IF(Hammer!$I$26=0,"",Hammer!$U$33) -> 22.48 | U101: =IF(OR(P101=0,P101="",S101=0,S101=""),"",IF(S101<A93,0,INT(((S101-B93)*D93/C93)+250))) -> 0 | V101: =IF(AC93="T",AF101,AG101) ->  | AD101: =IF(I101="","",IF(AC93="F","",IF(AC93="T",IF(I101<=Z93,"þ",IF(I101<=AA93,"G2",IF(I101<=AB93,"G3","")))))) ->  | AE101: =IF(I101="","",IF(AC93="T","",IF(AC93="F",IF(I101>=Z93,"þ",IF(I101>=AA93,"G2",IF(I101>=AB93,"G3","")))))) -> þ | AF101: =IF(S101="","",IF(AC93="F","",IF(AC93="T",IF(S101<=Z93,"þ",IF(S101<=AA93,"G2",IF(S101<=AB93,"G3","")))))) ->  | AG101: =IF(S101="","",IF(AC93="T","",IF(AC93="F",IF(S101>=Z93,"þ",IF(S101>=AA93,"G2",IF(S101>=AB93,"G3","")))))) ->  | AH101: 6 | AI101: 1 | AJ101: 6 | AK101: 1 | AL101: 101
AL102: 102
A103: 33 | B103: 65 | C103: 1.6 | D103: 10 | E103: =CONCATENATE(VLOOKUP(A104,mens_handbook,3,FALSE)," A") -> Women's Discus A | H103: =IF(A104="","",IF(VLOOKUP(A104,Handbook!$A$4:$AI$24,35,FALSE)="Y","Wind=","")) ->  | O103: =CONCATENATE(VLOOKUP(A104,mens_handbook,3,FALSE)," B") -> Women's Discus B | R103: =H103 ->  | S103: =IF(I103="","",I103) ->  | X103: =IF($A104="","",VLOOKUP($A104,Handbook!$A$4:$V$24,21,FALSE)) -> 62.18 | Y103: =IF($A104="","",VLOOKUP($A104,Handbook!$A$4:$V$24,22,FALSE)) -> 56.26 | Z103: =IF($A104="","",VLOOKUP($A104,Handbook!$A$4:$W$24,23,FALSE)) -> 30 | AA103: =IF($A104="","",VLOOKUP($A104,Handbook!$A$4:$X$24,24,FALSE)) -> 30 | AB103: =IF($A104="","",VLOOKUP($A104,Handbook!$A$4:$Y$24,25,FALSE)) -> 30 | AC103: =IF($A104="","",VLOOKUP($A104,Handbook!$A$4:$AH$24,34,FALSE)) -> F | AL103: 103
A104: 15 | C104: =IF(F104="","",IF(F104>10,F104/11,F104)) -> 2 | D104: =IF(P104="","",IF(P104>10,P104/11,P104)) -> 2 | E104: =Discus!$E$26 -> 1 | F104: =IF(Discus!$I$26=0,"",Discus!$F$26) -> 2 | G104: =IF(OR($F104="",$F104=0),"",IF($F104>90,VLOOKUP(F104,eventcodes,2,FALSE),HLOOKUP(F104,declare,B106,FALSE))) -> Shaunagh Brown | H104: =IF(OR($F104="",$F104=0),"",IF($F104>90,"",VLOOKUP(C104,matchday,2,FALSE))) -> Blackheath & Bromley H | I104: =IF(Discus!$I$26=0,"",Discus!$I$26) -> 49.7 | J104: =IF(I104="","",IF(AC103="T",X104,X105)) ->  | L104: =IF(OR(F104=0,F104="",I104=0,I104=""),"",IF(I104<A103,0,INT(((I104-B103)*D103/C103)+250))) -> 154 | M104: =IF(AC103="T",AD104,AE104) -> þ | O104: =Discus!$K$26 -> 1 | P104: =IF(Discus!$I$26=0,"",Discus!$L$26) -> 22 | Q104: =IF(OR($P104="",$P104=0),"",HLOOKUP(P104,declare,B106,FALSE)) -> Sam Milner | R104: =IF(OR($P104="",$P104=0),"",VLOOKUP(D104,matchday,2,FALSE)) -> Blackheath & Bromley H | S104: =IF(Discus!$I$26=0,"",Discus!$U$26) -> 42.22 | U104: =IF(OR(P104=0,P104="",S104=0,S104=""),"",IF(S104<A103,0,INT(((S104-B103)*D103/C103)+250))) -> 107 | V104: =IF(AC103="T",AF104,AG104) -> þ | X104: =IF(AC103="F","",IF(I104<X103,"LR",IF(I104=X103,"=LR",IF(I104<Y103,"DR",IF(I104=Y103,"=DR",""))))) ->  | AD104: =IF(I104="","",IF(AC103="F","",IF(AC103="T",IF(I104<=Z103,"þ",IF(I104<=AA103,"G2",IF(I104<=AB103,"G3","")))))) ->  | AE104: =IF(I104="","",IF(AC103="T","",IF(AC103="F",IF(I104>=Z103,"þ",IF(I104>=AA103,"G2",IF(I104>=AB103,"G3","")))))) -> þ | AF104: =IF(S104="","",IF(AC103="F","",IF(AC103="T",IF(S104<=Z103,"þ",IF(S104<=AA103,"G2",IF(S104<=AB103,"G3","")))))) ->  | AG104: =IF(S104="","",IF(AC103="T","",IF(AC103="F",IF(S104>=Z103,"þ",IF(S104>=AA103,"G2",IF(S104>=AB103,"G3","")))))) -> þ | AH104: =C104 -> 2 | AI104: =IF(F104="","",IF(LEFT(I104,1)="D",0,VLOOKUP(E104,$AT$4:$AU$40,2,FALSE))) -> 9 | AJ104: =D104 -> 2 | AK104: =IF(P104="","",IF(LEFT(S104,1)="D",0,VLOOKUP(O104,$AT$4:$AV$40,3,FALSE))) -> 9 | AL104: 104
B105: =VLOOKUP(A104,Handbook!$A$4:$AK$24,37,FALSE) -> 16 | C105: =IF(F105="","",IF(F105>10,F105/11,F105)) -> 3 | D105: =IF(P105="","",IF(P105>10,P105/11,P105)) -> 3 | E105: =Discus!$E$27 -> 2 | F105: =IF(Discus!$I$26=0,"",Discus!$F$27) -> 3 | G105: =IF(OR($F105="",$F105=0),"",IF($F105>90,VLOOKUP(F105,eventcodes,2,FALSE),HLOOKUP(F105,declare,B106,FALSE))) -> Emma Beales (V35) | H105: Marshall Milton Keynes AC | I105: =IF(Discus!$I$26=0,"",Discus!$I$27) -> 43.14 | L105: =IF(OR(F105=0,F105="",I105=0,I105=""),"",IF(I105<A103,0,INT(((I105-B103)*D103/C103)+250))) -> 113 | M105: =IF(AC103="T",AD105,AE105) -> þ | O105: =Discus!$K$27 -> 2 | P105: =IF(Discus!$I$26=0,"",Discus!$L$27) -> 33 | Q105: =IF(OR($P105="",$P105=0),"",HLOOKUP(P105,declare,B106,FALSE)) -> Andrea Jenkins | R105: Marshall Milton Keynes AC | S105: =IF(Discus!$I$26=0,"",Discus!$U$27) -> 40.93 | U105: =IF(OR(P105=0,P105="",S105=0,S105=""),"",IF(S105<A103,0,INT(((S105-B103)*D103/C103)+250))) -> 99 | V105: =IF(AC103="T",AF105,AG105) -> þ | X105: =IF(AC103="T","",IF(I104>X103,"LR",IF(I104=X103,"=LR",IF(I104>Y103,"DR",IF(I104=Y103,"=DR",""))))) ->  | AD105: =IF(I105="","",IF(AC103="F","",IF(AC103="T",IF(I105<=Z103,"þ",IF(I105<=AA103,"G2",IF(I105<=AB103,"G3","")))))) ->  | AE105: =IF(I105="","",IF(AC103="T","",IF(AC103="F",IF(I105>=Z103,"þ",IF(I105>=AA103,"G2",IF(I105>=AB103,"G3","")))))) -> þ | AF105: =IF(S105="","",IF(AC103="F","",IF(AC103="T",IF(S105<=Z103,"þ",IF(S105<=AA103,"G2",IF(S105<=AB103,"G3","")))))) ->  | AG105: =IF(S105="","",IF(AC103="T","",IF(AC103="F",IF(S105>=Z103,"þ",IF(S105>=AA103,"G2",IF(S105>=AB103,"G3","")))))) -> þ | AH105: =C105 -> 3 | AI105: 7 | AJ105: =D105 -> 3 | AK105: 7 | AL105: 105
B106: =VLOOKUP(A104,declare,20,FALSE) -> 16 | C106: 8 | D106: 8 | E106: =Discus!$E$28 -> 3 | F106: =IF(Discus!$I$26=0,"",Discus!$F$28) -> 8 | G106: =IF(OR($F106="",$F106=0),"",IF($F106>90,VLOOKUP(F106,eventcodes,2,FALSE),HLOOKUP(F106,declare,B106,FALSE))) -> Ellisha Dee | H106: Thames Valley H | I106: =IF(Discus!$I$26=0,"",Discus!$I$28) -> 40.59 | L106: =IF(OR(F106=0,F106="",I106=0,I106=""),"",IF(I106<A103,0,INT(((I106-B103)*D103/C103)+250))) -> 97 | M106: =IF(AC103="T",AD106,AE106) -> þ | O106: =Discus!$K$28 -> 3 | P106: =IF(Discus!$I$26=0,"",Discus!$L$28) -> 88 | Q106: =IF(OR($P106="",$P106=0),"",HLOOKUP(P106,declare,B106,FALSE)) -> Carla Letheby | R106: Thames Valley H | S106: =IF(Discus!$I$26=0,"",Discus!$U$28) -> 36.83 | U106: =IF(OR(P106=0,P106="",S106=0,S106=""),"",IF(S106<A103,0,INT(((S106-B103)*D103/C103)+250))) -> 73 | V106: =IF(AC103="T",AF106,AG106) -> þ | AD106: =IF(I106="","",IF(AC103="F","",IF(AC103="T",IF(I106<=Z103,"þ",IF(I106<=AA103,"G2",IF(I106<=AB103,"G3","")))))) ->  | AE106: =IF(I106="","",IF(AC103="T","",IF(AC103="F",IF(I106>=Z103,"þ",IF(I106>=AA103,"G2",IF(I106>=AB103,"G3","")))))) -> þ | AF106: =IF(S106="","",IF(AC103="F","",IF(AC103="T",IF(S106<=Z103,"þ",IF(S106<=AA103,"G2",IF(S106<=AB103,"G3","")))))) ->  | AG106: =IF(S106="","",IF(AC103="T","",IF(AC103="F",IF(S106>=Z103,"þ",IF(S106>=AA103,"G2",IF(S106>=AB103,"G3","")))))) -> þ | AH106: 8 | AI106: 6 | AJ106: 8 | AK106: 6 | AL106: 106
C107: 6 | D107: 1 | E107: =Discus!$E$29 -> 4 | F107: =IF(Discus!$I$26=0,"",Discus!$F$29) -> 6 | G107: =IF(OR($F107="",$F107=0),"",IF($F107>90,VLOOKUP(F107,eventcodes,2,FALSE),HLOOKUP(F107,declare,B106,FALSE))) -> Debbie Callaway | H107: Southampton AC | I107: =IF(Discus!$I$26=0,"",Discus!$I$29) -> 38.85 | L107: =IF(OR(F107=0,F107="",I107=0,I107=""),"",IF(I107<A103,0,INT(((I107-B103)*D103/C103)+250))) -> 86 | M107: =IF(AC103="T",AD107,AE107) -> þ | O107: =Discus!$K$29 -> 4 | P107: =IF(Discus!$I$26=0,"",Discus!$L$29) -> 11 | Q107: =IF(OR($P107="",$P107=0),"",HLOOKUP(P107,declare,B106,FALSE)) -> Jemma Eastwood | R107: Bedford & County AC | S107: =IF(Discus!$I$26=0,"",Discus!$U$29) -> 28.71 | U107: =IF(OR(P107=0,P107="",S107=0,S107=""),"",IF(S107<A103,0,INT(((S107-B103)*D103/C103)+250))) -> 0 | V107: =IF(AC103="T",AF107,AG107) ->  | AD107: =IF(I107="","",IF(AC103="F","",IF(AC103="T",IF(I107<=Z103,"þ",IF(I107<=AA103,"G2",IF(I107<=AB103,"G3","")))))) ->  | AE107: =IF(I107="","",IF(AC103="T","",IF(AC103="F",IF(I107>=Z103,"þ",IF(I107>=AA103,"G2",IF(I107>=AB103,"G3","")))))) -> þ | AF107: =IF(S107="","",IF(AC103="F","",IF(AC103="T",IF(S107<=Z103,"þ",IF(S107<=AA103,"G2",IF(S107<=AB103,"G3","")))))) ->  | AG107: =IF(S107="","",IF(AC103="T","",IF(AC103="F",IF(S107>=Z103,"þ",IF(S107>=AA103,"G2",IF(S107>=AB103,"G3","")))))) ->  | AH107: 6 | AI107: 5 | AJ107: 1 | AK107: 5 | AL107: 107
C108: 1 | D108: 7 | E108: =Discus!$E$30 -> 5 | F108: =IF(Discus!$I$26=0,"",Discus!$F$30) -> 1 | G108: =IF(OR($F108="",$F108=0),"",IF($F108>90,VLOOKUP(F108,eventcodes,2,FALSE),HLOOKUP(F108,declare,B106,FALSE))) -> Rachael Bennett | H108: Bedford & County AC | I108: =IF(Discus!$I$26=0,"",Discus!$I$30) -> 37.36 | L108: =IF(OR(F108=0,F108="",I108=0,I108=""),"",IF(I108<A103,0,INT(((I108-B103)*D103/C103)+250))) -> 77 | M108: =IF(AC103="T",AD108,AE108) -> þ | O108: =Discus!$K$30 -> 5 | P108: =IF(Discus!$I$26=0,"",Discus!$L$30) -> 77 | Q108: =IF(OR($P108="",$P108=0),"",HLOOKUP(P108,declare,B106,FALSE)) -> Toni Wells | R108: Swansea H | S108: =IF(Discus!$I$26=0,"",Discus!$U$30) -> 28.63 | U108: =IF(OR(P108=0,P108="",S108=0,S108=""),"",IF(S108<A103,0,INT(((S108-B103)*D103/C103)+250))) -> 0 | V108: =IF(AC103="T",AF108,AG108) ->  | AD108: =IF(I108="","",IF(AC103="F","",IF(AC103="T",IF(I108<=Z103,"þ",IF(I108<=AA103,"G2",IF(I108<=AB103,"G3","")))))) ->  | AE108: =IF(I108="","",IF(AC103="T","",IF(AC103="F",IF(I108>=Z103,"þ",IF(I108>=AA103,"G2",IF(I108>=AB103,"G3","")))))) -> þ | AF108: =IF(S108="","",IF(AC103="F","",IF(AC103="T",IF(S108<=Z103,"þ",IF(S108<=AA103,"G2",IF(S108<=AB103,"G3","")))))) ->  | AG108: =IF(S108="","",IF(AC103="T","",IF(AC103="F",IF(S108>=Z103,"þ",IF(S108>=AA103,"G2",IF(S108>=AB103,"G3","")))))) ->  | AH108: 1 | AI108: 4 | AJ108: 7 | AK108: 4 | AL108: 108
C109: 4 | D109: 6 | E109: =Discus!$E$31 -> 6 | F109: =IF(Discus!$I$26=0,"",Discus!$F$31) -> 4 | G109: =IF(OR($F109="",$F109=0),"",IF($F109>90,VLOOKUP(F109,eventcodes,2,FALSE),HLOOKUP(F109,declare,B106,FALSE))) -> Sue Lawrence | H109: Newham & Essex Beagles AC | I109: =IF(Discus!$I$26=0,"",Discus!$I$31) -> 35.49 | L109: =IF(OR(F109=0,F109="",I109=0,I109=""),"",IF(I109<A103,0,INT(((I109-B103)*D103/C103)+250))) -> 65 | M109: =IF(AC103="T",AD109,AE109) -> þ | O109: =Discus!$K$31 -> 6 | P109: =IF(Discus!$I$26=0,"",Discus!$L$31) -> 66 | Q109: =IF(OR($P109="",$P109=0),"",HLOOKUP(P109,declare,B106,FALSE)) -> Anna Stevens | R109: Southampton AC | S109: =IF(Discus!$I$26=0,"",Discus!$U$31) -> 28.08 | U109: =IF(OR(P109=0,P109="",S109=0,S109=""),"",IF(S109<A103,0,INT(((S109-B103)*D103/C103)+250))) -> 0 | V109: =IF(AC103="T",AF109,AG109) ->  | AD109: =IF(I109="","",IF(AC103="F","",IF(AC103="T",IF(I109<=Z103,"þ",IF(I109<=AA103,"G2",IF(I109<=AB103,"G3","")))))) ->  | AE109: =IF(I109="","",IF(AC103="T","",IF(AC103="F",IF(I109>=Z103,"þ",IF(I109>=AA103,"G2",IF(I109>=AB103,"G3","")))))) -> þ | AF109: =IF(S109="","",IF(AC103="F","",IF(AC103="T",IF(S109<=Z103,"þ",IF(S109<=AA103,"G2",IF(S109<=AB103,"G3","")))))) ->  | AG109: =IF(S109="","",IF(AC103="T","",IF(AC103="F",IF(S109>=Z103,"þ",IF(S109>=AA103,"G2",IF(S109>=AB103,"G3","")))))) ->  | AH109: 4 | AI109: 3 | AJ109: 6 | AK109: 3 | AL109: 109
C110: 5 | D110: 5 | E110: =Discus!$E$32 -> 7 | F110: =IF(Discus!$I$26=0,"",Discus!$F$32) -> 5 | G110: =IF(OR($F110="",$F110=0),"",IF($F110>90,VLOOKUP(F110,eventcodes,2,FALSE),HLOOKUP(F110,declare,B106,FALSE))) -> Trecia Smith | H110: Shaftesbury Barnet H | I110: =IF(Discus!$I$26=0,"",Discus!$I$32) -> 35.09 | L110: =IF(OR(F110=0,F110="",I110=0,I110=""),"",IF(I110<A103,0,INT(((I110-B103)*D103/C103)+250))) -> 63 | M110: =IF(AC103="T",AD110,AE110) -> þ | O110: =Discus!$K$32 -> 7 | P110: =IF(Discus!$I$26=0,"",Discus!$L$32) -> 55 | Q110: =IF(OR($P110="",$P110=0),"",HLOOKUP(P110,declare,B106,FALSE)) -> Nneka Ofulue (U20) | R110: Shaftesbury Barnet H | S110: =IF(Discus!$I$26=0,"",Discus!$U$32) -> 23.74 | U110: =IF(OR(P110=0,P110="",S110=0,S110=""),"",IF(S110<A103,0,INT(((S110-B103)*D103/C103)+250))) -> 0 | V110: =IF(AC103="T",AF110,AG110) ->  | AD110: =IF(I110="","",IF(AC103="F","",IF(AC103="T",IF(I110<=Z103,"þ",IF(I110<=AA103,"G2",IF(I110<=AB103,"G3","")))))) ->  | AE110: =IF(I110="","",IF(AC103="T","",IF(AC103="F",IF(I110>=Z103,"þ",IF(I110>=AA103,"G2",IF(I110>=AB103,"G3","")))))) -> þ | AF110: =IF(S110="","",IF(AC103="F","",IF(AC103="T",IF(S110<=Z103,"þ",IF(S110<=AA103,"G2",IF(S110<=AB103,"G3","")))))) ->  | AG110: =IF(S110="","",IF(AC103="T","",IF(AC103="F",IF(S110>=Z103,"þ",IF(S110>=AA103,"G2",IF(S110>=AB103,"G3","")))))) ->  | AH110: 5 | AI110: 2 | AJ110: 5 | AK110: 2 | AL110: 110
C111: 7 | D111: 4 | E111: =Discus!$E$33 -> 8 | F111: =IF(Discus!$I$26=0,"",Discus!$F$33) -> 7 | G111: =IF(OR($F111="",$F111=0),"",IF($F111>90,VLOOKUP(F111,eventcodes,2,FALSE),HLOOKUP(F111,declare,B106,FALSE))) -> Nina Prells | H111: Swansea H | I111: =IF(Discus!$I$26=0,"",Discus!$I$33) -> 32.73 | L111: =IF(OR(F111=0,F111="",I111=0,I111=""),"",IF(I111<A103,0,INT(((I111-B103)*D103/C103)+250))) -> 0 | M111: =IF(AC103="T",AD111,AE111) -> þ | O111: =Discus!$K$33 -> 8 | P111: =IF(Discus!$I$26=0,"",Discus!$L$33) -> 44 | Q111: =IF(OR($P111="",$P111=0),"",HLOOKUP(P111,declare,B106,FALSE)) -> Melissa Strevens | R111: Newham & Essex Beagles AC | S111: =IF(Discus!$I$26=0,"",Discus!$U$33) -> 15.88 | U111: =IF(OR(P111=0,P111="",S111=0,S111=""),"",IF(S111<A103,0,INT(((S111-B103)*D103/C103)+250))) -> 0 | V111: =IF(AC103="T",AF111,AG111) ->  | AD111: =IF(I111="","",IF(AC103="F","",IF(AC103="T",IF(I111<=Z103,"þ",IF(I111<=AA103,"G2",IF(I111<=AB103,"G3","")))))) ->  | AE111: =IF(I111="","",IF(AC103="T","",IF(AC103="F",IF(I111>=Z103,"þ",IF(I111>=AA103,"G2",IF(I111>=AB103,"G3","")))))) -> þ | AF111: =IF(S111="","",IF(AC103="F","",IF(AC103="T",IF(S111<=Z103,"þ",IF(S111<=AA103,"G2",IF(S111<=AB103,"G3","")))))) ->  | AG111: =IF(S111="","",IF(AC103="T","",IF(AC103="F",IF(S111>=Z103,"þ",IF(S111>=AA103,"G2",IF(S111>=AB103,"G3","")))))) ->  | AH111: 7 | AI111: 1 | AJ111: 4 | AK111: 1 | AL111: 111
AL112: 112
A113: 32 | B113: 64 | C113: 1.6 | D113: 10 | E113: =CONCATENATE(VLOOKUP(A114,mens_handbook,3,FALSE)," A") -> Women's Javelin A | H113: =IF(A114="","",IF(VLOOKUP(A114,Handbook!$A$4:$AI$24,35,FALSE)="Y","Wind=","")) ->  | O113: =CONCATENATE(VLOOKUP(A114,mens_handbook,3,FALSE)," B") -> Women's Javelin B | R113: =H113 ->  | S113: =IF(I113="","",I113) ->  | X113: =IF($A114="","",VLOOKUP($A114,Handbook!$A$4:$V$24,21,FALSE)) -> 57.99 | Y113: =IF($A114="","",VLOOKUP($A114,Handbook!$A$4:$V$24,22,FALSE)) -> 53.06 | Z113: =IF($A114="","",VLOOKUP($A114,Handbook!$A$4:$W$24,23,FALSE)) -> 30 | AA113: =IF($A114="","",VLOOKUP($A114,Handbook!$A$4:$X$24,24,FALSE)) -> 30 | AB113: =IF($A114="","",VLOOKUP($A114,Handbook!$A$4:$Y$24,25,FALSE)) -> 30 | AC113: =IF($A114="","",VLOOKUP($A114,Handbook!$A$4:$AH$24,34,FALSE)) -> F | AL113: 113
A114: 18 | C114: =IF(F114="","",IF(F114>10,F114/11,F114)) -> 6 | D114: =IF(P114="","",IF(P114>10,P114/11,P114)) -> 6 | E114: =Javelin!$E$26 -> 1 | F114: =IF(Javelin!$I$26=0,"",Javelin!$F$26) -> 6 | G114: =IF(OR($F114="",$F114=0),"",IF($F114>90,VLOOKUP(F114,eventcodes,2,FALSE),HLOOKUP(F114,declare,B116,FALSE))) -> Freya Jones | H114: =IF(OR($F114="",$F114=0),"",IF($F114>90,"",VLOOKUP(C114,matchday,2,FALSE))) -> Southampton AC | I114: =IF(Javelin!$I$26=0,"",Javelin!$I$26) -> 48.33 | J114: =IF(I114="","",IF(AC113="T",X114,X115)) ->  | L114: =IF(OR(F114=0,F114="",I114=0,I114=""),"",IF(I114<A113,0,INT(((I114-B113)*D113/C113)+250))) -> 152 | M114: =IF(AC113="T",AD114,AE114) -> þ | O114: =Javelin!$K$26 -> 1 | P114: =IF(Javelin!$I$26=0,"",Javelin!$L$26) -> 66 | Q114: =IF(OR($P114="",$P114=0),"",HLOOKUP(P114,declare,B116,FALSE)) -> Sarah Ellis | R114: =IF(OR($P114="",$P114=0),"",VLOOKUP(D114,matchday,2,FALSE)) -> Southampton AC | S114: =IF(Javelin!$I$26=0,"",Javelin!$U$26) -> 39.79 | U114: =IF(OR(P114=0,P114="",S114=0,S114=""),"",IF(S114<A113,0,INT(((S114-B113)*D113/C113)+250))) -> 98 | V114: =IF(AC113="T",AF114,AG114) -> þ | X114: =IF(AC113="F","",IF(I114<X113,"LR",IF(I114=X113,"=LR",IF(I114<Y113,"DR",IF(I114=Y113,"=DR",""))))) ->  | AD114: =IF(I114="","",IF(AC113="F","",IF(AC113="T",IF(I114<=Z113,"þ",IF(I114<=AA113,"G2",IF(I114<=AB113,"G3","")))))) ->  | AE114: =IF(I114="","",IF(AC113="T","",IF(AC113="F",IF(I114>=Z113,"þ",IF(I114>=AA113,"G2",IF(I114>=AB113,"G3","")))))) -> þ | AF114: =IF(S114="","",IF(AC113="F","",IF(AC113="T",IF(S114<=Z113,"þ",IF(S114<=AA113,"G2",IF(S114<=AB113,"G3","")))))) ->  | AG114: =IF(S114="","",IF(AC113="T","",IF(AC113="F",IF(S114>=Z113,"þ",IF(S114>=AA113,"G2",IF(S114>=AB113,"G3","")))))) -> þ | AH114: =C114 -> 6 | AI114: =IF(F114="","",IF(LEFT(I114,1)="D",0,VLOOKUP(E114,$AT$4:$AU$40,2,FALSE))) -> 9 | AJ114: =D114 -> 6 | AK114: =IF(P114="","",IF(LEFT(S114,1)="D",0,VLOOKUP(O114,$AT$4:$AV$40,3,FALSE))) -> 9 | AL114: 114
B115: =VLOOKUP(A114,Handbook!$A$4:$AK$24,37,FALSE) -> 19 | C115: =IF(F115="","",IF(F115>10,F115/11,F115)) -> 3 | D115: =IF(P115="","",IF(P115>10,P115/11,P115)) -> 5 | E115: =Javelin!$E$27 -> 2 | F115: =IF(Javelin!$I$26=0,"",Javelin!$F$27) -> 3 | G115: =IF(OR($F115="",$F115=0),"",IF($F115>90,VLOOKUP(F115,eventcodes,2,FALSE),HLOOKUP(F115,declare,B116,FALSE))) -> Sadie Watts | H115: Marshall Milton Keynes AC | I115: =IF(Javelin!$I$26=0,"",Javelin!$I$27) -> 39.7 | L115: =IF(OR(F115=0,F115="",I115=0,I115=""),"",IF(I115<A113,0,INT(((I115-B113)*D113/C113)+250))) -> 98 | M115: =IF(AC113="T",AD115,AE115) -> þ | O115: =Javelin!$K$27 -> 2 | P115: =IF(Javelin!$I$26=0,"",Javelin!$L$27) -> 5 | Q115: =IF(OR($P115="",$P115=0),"",HLOOKUP(P115,declare,B116,FALSE)) -> Trecia Smith | R115: Shaftesbury Barnet H | S115: =IF(Javelin!$I$26=0,"",Javelin!$U$27) -> 30.98 | U115: =IF(OR(P115=0,P115="",S115=0,S115=""),"",IF(S115<A113,0,INT(((S115-B113)*D113/C113)+250))) -> 0 | V115: =IF(AC113="T",AF115,AG115) -> þ | X115: =IF(AC113="T","",IF(I114>X113,"LR",IF(I114=X113,"=LR",IF(I114>Y113,"DR",IF(I114=Y113,"=DR",""))))) ->  | AD115: =IF(I115="","",IF(AC113="F","",IF(AC113="T",IF(I115<=Z113,"þ",IF(I115<=AA113,"G2",IF(I115<=AB113,"G3","")))))) ->  | AE115: =IF(I115="","",IF(AC113="T","",IF(AC113="F",IF(I115>=Z113,"þ",IF(I115>=AA113,"G2",IF(I115>=AB113,"G3","")))))) -> þ | AF115: =IF(S115="","",IF(AC113="F","",IF(AC113="T",IF(S115<=Z113,"þ",IF(S115<=AA113,"G2",IF(S115<=AB113,"G3","")))))) ->  | AG115: =IF(S115="","",IF(AC113="T","",IF(AC113="F",IF(S115>=Z113,"þ",IF(S115>=AA113,"G2",IF(S115>=AB113,"G3","")))))) -> þ | AH115: =C115 -> 3 | AI115: 7 | AJ115: =D115 -> 5 | AK115: 7 | AL115: 115
B116: =VLOOKUP(A114,declare,20,FALSE) -> 19 | C116: 7 | D116: 1 | E116: =Javelin!$E$28 -> 3 | F116: =IF(Javelin!$I$26=0,"",Javelin!$F$28) -> 7 | G116: =IF(OR($F116="",$F116=0),"",IF($F116>90,VLOOKUP(F116,eventcodes,2,FALSE),HLOOKUP(F116,declare,B116,FALSE))) -> Clair Williams | H116: Swansea H | I116: =IF(Javelin!$I$26=0,"",Javelin!$I$28) -> 39.66 | L116: =IF(OR(F116=0,F116="",I116=0,I116=""),"",IF(I116<A113,0,INT(((I116-B113)*D113/C113)+250))) -> 97 | M116: =IF(AC113="T",AD116,AE116) -> þ | O116: =Javelin!$K$28 -> 3 | P116: =IF(Javelin!$I$26=0,"",Javelin!$L$28) -> 11 | Q116: =IF(OR($P116="",$P116=0),"",HLOOKUP(P116,declare,B116,FALSE)) -> Rachael Bennett | R116: Bedford & County AC | S116: =IF(Javelin!$I$26=0,"",Javelin!$U$28) -> 27.65 | U116: =IF(OR(P116=0,P116="",S116=0,S116=""),"",IF(S116<A113,0,INT(((S116-B113)*D113/C113)+250))) -> 0 | V116: =IF(AC113="T",AF116,AG116) ->  | AD116: =IF(I116="","",IF(AC113="F","",IF(AC113="T",IF(I116<=Z113,"þ",IF(I116<=AA113,"G2",IF(I116<=AB113,"G3","")))))) ->  | AE116: =IF(I116="","",IF(AC113="T","",IF(AC113="F",IF(I116>=Z113,"þ",IF(I116>=AA113,"G2",IF(I116>=AB113,"G3","")))))) -> þ | AF116: =IF(S116="","",IF(AC113="F","",IF(AC113="T",IF(S116<=Z113,"þ",IF(S116<=AA113,"G2",IF(S116<=AB113,"G3","")))))) ->  | AG116: =IF(S116="","",IF(AC113="T","",IF(AC113="F",IF(S116>=Z113,"þ",IF(S116>=AA113,"G2",IF(S116>=AB113,"G3","")))))) ->  | AH116: 7 | AI116: 6 | AJ116: 1 | AK116: 6 | AL116: 116
C117: 5 | D117: 7 | E117: =Javelin!$E$29 -> 4 | F117: =IF(Javelin!$I$26=0,"",Javelin!$F$29) -> 55 | G117: =IF(OR($F117="",$F117=0),"",IF($F117>90,VLOOKUP(F117,eventcodes,2,FALSE),HLOOKUP(F117,declare,B116,FALSE))) -> Makeda Lewis (U20) | H117: Shaftesbury Barnet H | I117: =IF(Javelin!$I$26=0,"",Javelin!$I$29) -> 32.41 | L117: =IF(OR(F117=0,F117="",I117=0,I117=""),"",IF(I117<A113,0,INT(((I117-B113)*D113/C113)+250))) -> 52 | M117: =IF(AC113="T",AD117,AE117) -> þ | O117: =Javelin!$K$29 -> 4 | P117: =IF(Javelin!$I$26=0,"",Javelin!$L$29) -> 77 | Q117: =IF(OR($P117="",$P117=0),"",HLOOKUP(P117,declare,B116,FALSE)) -> Megan Rogers | R117: Swansea H | S117: =IF(Javelin!$I$26=0,"",Javelin!$U$29) -> 26.45 | U117: =IF(OR(P117=0,P117="",S117=0,S117=""),"",IF(S117<A113,0,INT(((S117-B113)*D113/C113)+250))) -> 0 | V117: =IF(AC113="T",AF117,AG117) ->  | AD117: =IF(I117="","",IF(AC113="F","",IF(AC113="T",IF(I117<=Z113,"þ",IF(I117<=AA113,"G2",IF(I117<=AB113,"G3","")))))) ->  | AE117: =IF(I117="","",IF(AC113="T","",IF(AC113="F",IF(I117>=Z113,"þ",IF(I117>=AA113,"G2",IF(I117>=AB113,"G3","")))))) -> þ | AF117: =IF(S117="","",IF(AC113="F","",IF(AC113="T",IF(S117<=Z113,"þ",IF(S117<=AA113,"G2",IF(S117<=AB113,"G3","")))))) ->  | AG117: =IF(S117="","",IF(AC113="T","",IF(AC113="F",IF(S117>=Z113,"þ",IF(S117>=AA113,"G2",IF(S117>=AB113,"G3","")))))) ->  | AH117: 5 | AI117: 5 | AJ117: 7 | AK117: 5 | AL117: 117
C118: 8 | D118: 3 | E118: =Javelin!$E$30 -> 5 | F118: =IF(Javelin!$I$26=0,"",Javelin!$F$30) -> 8 | G118: =IF(OR($F118="",$F118=0),"",IF($F118>90,VLOOKUP(F118,eventcodes,2,FALSE),HLOOKUP(F118,declare,B116,FALSE))) -> Carla Letheby | H118: Thames Valley H | I118: =IF(Javelin!$I$26=0,"",Javelin!$I$30) -> 31.83 | L118: =IF(OR(F118=0,F118="",I118=0,I118=""),"",IF(I118<A113,0,INT(((I118-B113)*D113/C113)+250))) -> 0 | M118: =IF(AC113="T",AD118,AE118) -> þ | O118: =Javelin!$K$30 -> 5 | P118: =IF(Javelin!$I$26=0,"",Javelin!$L$30) -> 33 | Q118: =IF(OR($P118="",$P118=0),"",HLOOKUP(P118,declare,B116,FALSE)) -> Andrea Jenkins | R118: Marshall Milton Keynes AC | S118: =IF(Javelin!$I$26=0,"",Javelin!$U$30) -> 24.9 | U118: =IF(OR(P118=0,P118="",S118=0,S118=""),"",IF(S118<A113,0,INT(((S118-B113)*D113/C113)+250))) -> 0 | V118: =IF(AC113="T",AF118,AG118) ->  | AD118: =IF(I118="","",IF(AC113="F","",IF(AC113="T",IF(I118<=Z113,"þ",IF(I118<=AA113,"G2",IF(I118<=AB113,"G3","")))))) ->  | AE118: =IF(I118="","",IF(AC113="T","",IF(AC113="F",IF(I118>=Z113,"þ",IF(I118>=AA113,"G2",IF(I118>=AB113,"G3","")))))) -> þ | AF118: =IF(S118="","",IF(AC113="F","",IF(AC113="T",IF(S118<=Z113,"þ",IF(S118<=AA113,"G2",IF(S118<=AB113,"G3","")))))) ->  | AG118: =IF(S118="","",IF(AC113="T","",IF(AC113="F",IF(S118>=Z113,"þ",IF(S118>=AA113,"G2",IF(S118>=AB113,"G3","")))))) ->  | AH118: 8 | AI118: 4 | AJ118: 3 | AK118: 4 | AL118: 118
C119: 1 | D119: 8 | E119: =Javelin!$E$31 -> 6 | F119: =IF(Javelin!$I$26=0,"",Javelin!$F$31) -> 1 | G119: =IF(OR($F119="",$F119=0),"",IF($F119>90,VLOOKUP(F119,eventcodes,2,FALSE),HLOOKUP(F119,declare,B116,FALSE))) -> Leanne Buxton | H119: Bedford & County AC | I119: =IF(Javelin!$I$26=0,"",Javelin!$I$31) -> 30.79 | L119: =IF(OR(F119=0,F119="",I119=0,I119=""),"",IF(I119<A113,0,INT(((I119-B113)*D113/C113)+250))) -> 0 | M119: =IF(AC113="T",AD119,AE119) -> þ | O119: =Javelin!$K$31 -> 6 | P119: =IF(Javelin!$I$26=0,"",Javelin!$L$31) -> 88 | Q119: =IF(OR($P119="",$P119=0),"",HLOOKUP(P119,declare,B116,FALSE)) -> Juchinar Searles | R119: Thames Valley H | S119: =IF(Javelin!$I$26=0,"",Javelin!$U$31) -> 23.84 | U119: =IF(OR(P119=0,P119="",S119=0,S119=""),"",IF(S119<A113,0,INT(((S119-B113)*D113/C113)+250))) -> 0 | V119: =IF(AC113="T",AF119,AG119) ->  | AD119: =IF(I119="","",IF(AC113="F","",IF(AC113="T",IF(I119<=Z113,"þ",IF(I119<=AA113,"G2",IF(I119<=AB113,"G3","")))))) ->  | AE119: =IF(I119="","",IF(AC113="T","",IF(AC113="F",IF(I119>=Z113,"þ",IF(I119>=AA113,"G2",IF(I119>=AB113,"G3","")))))) -> þ | AF119: =IF(S119="","",IF(AC113="F","",IF(AC113="T",IF(S119<=Z113,"þ",IF(S119<=AA113,"G2",IF(S119<=AB113,"G3","")))))) ->  | AG119: =IF(S119="","",IF(AC113="T","",IF(AC113="F",IF(S119>=Z113,"þ",IF(S119>=AA113,"G2",IF(S119>=AB113,"G3","")))))) ->  | AH119: 1 | AI119: 3 | AJ119: 8 | AK119: 3 | AL119: 119
C120: 2 | D120: 2 | E120: =Javelin!$E$32 -> 7 | F120: =IF(Javelin!$I$26=0,"",Javelin!$F$32) -> 22 | G120: =IF(OR($F120="",$F120=0),"",IF($F120>90,VLOOKUP(F120,eventcodes,2,FALSE),HLOOKUP(F120,declare,B116,FALSE))) -> Sandra Alaneme | H120: Blackheath & Bromley H | I120: =IF(Javelin!$I$26=0,"",Javelin!$I$32) -> 18.49 | L120: =IF(OR(F120=0,F120="",I120=0,I120=""),"",IF(I120<A113,0,INT(((I120-B113)*D113/C113)+250))) -> 0 | M120: =IF(AC113="T",AD120,AE120) ->  | O120: =Javelin!$K$32 -> 7 | P120: =IF(Javelin!$I$26=0,"",Javelin!$L$32) -> 2 | Q120: =IF(OR($P120="",$P120=0),"",HLOOKUP(P120,declare,B116,FALSE)) -> Liz Hughes | R120: Blackheath & Bromley H | S120: =IF(Javelin!$I$26=0,"",Javelin!$U$32) -> 18.44 | U120: =IF(OR(P120=0,P120="",S120=0,S120=""),"",IF(S120<A113,0,INT(((S120-B113)*D113/C113)+250))) -> 0 | V120: =IF(AC113="T",AF120,AG120) ->  | AD120: =IF(I120="","",IF(AC113="F","",IF(AC113="T",IF(I120<=Z113,"þ",IF(I120<=AA113,"G2",IF(I120<=AB113,"G3","")))))) ->  | AE120: =IF(I120="","",IF(AC113="T","",IF(AC113="F",IF(I120>=Z113,"þ",IF(I120>=AA113,"G2",IF(I120>=AB113,"G3","")))))) ->  | AF120: =IF(S120="","",IF(AC113="F","",IF(AC113="T",IF(S120<=Z113,"þ",IF(S120<=AA113,"G2",IF(S120<=AB113,"G3","")))))) ->  | AG120: =IF(S120="","",IF(AC113="T","",IF(AC113="F",IF(S120>=Z113,"þ",IF(S120>=AA113,"G2",IF(S120>=AB113,"G3","")))))) ->  | AH120: 2 | AI120: 2 | AJ120: 2 | AK120: 2 | AL120: 120
C121: 4 | D121: 0 | E121: =Javelin!$E$33 -> 8 | F121: =IF(Javelin!$I$26=0,"",Javelin!$F$33) -> 4 | G121: =IF(OR($F121="",$F121=0),"",IF($F121>90,VLOOKUP(F121,eventcodes,2,FALSE),HLOOKUP(F121,declare,B116,FALSE))) -> Susannah Banjo | H121: Newham & Essex Beagles AC | I121: =IF(Javelin!$I$26=0,"",Javelin!$I$33) -> 10.95 | L121: =IF(OR(F121=0,F121="",I121=0,I121=""),"",IF(I121<A113,0,INT(((I121-B113)*D113/C113)+250))) -> 0 | M121: =IF(AC113="T",AD121,AE121) ->  | O121: =Javelin!$K$33 -> 8 | P121: =IF(Javelin!$I$26=0,"",Javelin!$L$33) -> 0 | Q121: =IF(OR($P121="",$P121=0),"",HLOOKUP(P121,declare,B116,FALSE)) ->  | S121: =IF(Javelin!$I$26=0,"",Javelin!$U$33) -> 0 | U121: =IF(OR(P121=0,P121="",S121=0,S121=""),"",IF(S121<A113,0,INT(((S121-B113)*D113/C113)+250))) ->  | V121: =IF(AC113="T",AF121,AG121) ->  | AD121: =IF(I121="","",IF(AC113="F","",IF(AC113="T",IF(I121<=Z113,"þ",IF(I121<=AA113,"G2",IF(I121<=AB113,"G3","")))))) ->  | AE121: =IF(I121="","",IF(AC113="T","",IF(AC113="F",IF(I121>=Z113,"þ",IF(I121>=AA113,"G2",IF(I121>=AB113,"G3","")))))) ->  | AF121: =IF(S121="","",IF(AC113="F","",IF(AC113="T",IF(S121<=Z113,"þ",IF(S121<=AA113,"G2",IF(S121<=AB113,"G3","")))))) ->  | AG121: =IF(S121="","",IF(AC113="T","",IF(AC113="F",IF(S121>=Z113,"þ",IF(S121>=AA113,"G2",IF(S121>=AB113,"G3","")))))) ->  | AH121: 4 | AI121: 1 | AJ121: 0 | AK121: 1 | AL121: 121
AL122: 122
A123: 10 | B123: 20 | C123: 0.05 | D123: 1 | E123: =CONCATENATE(VLOOKUP(A124,mens_handbook,3,FALSE)," A") -> Women's Shot Putt A | H123: =IF(A124="","",IF(VLOOKUP(A124,Handbook!$A$4:$AI$24,35,FALSE)="Y","Wind=","")) ->  | O123: =CONCATENATE(VLOOKUP(A124,mens_handbook,3,FALSE)," B") -> Women's Shot Putt B | R123: =H123 ->  | S123: =IF(I123="","",I123) ->  | X123: =IF($A124="","",VLOOKUP($A124,Handbook!$A$4:$V$24,21,FALSE)) -> 18.88 | Y123: =IF($A124="","",VLOOKUP($A124,Handbook!$A$4:$V$24,22,FALSE)) -> 17.96 | Z123: =IF($A124="","",VLOOKUP($A124,Handbook!$A$4:$W$24,23,FALSE)) -> 10 | AA123: =IF($A124="","",VLOOKUP($A124,Handbook!$A$4:$X$24,24,FALSE)) -> 10 | AB123: =IF($A124="","",VLOOKUP($A124,Handbook!$A$4:$Y$24,25,FALSE)) -> 10 | AC123: =IF($A124="","",VLOOKUP($A124,Handbook!$A$4:$AH$24,34,FALSE)) -> F | AL123: 123
A124: 17 | C124: =IF(F124="","",IF(F124>10,F124/11,F124)) -> 2 | D124: =IF(P124="","",IF(P124>10,P124/11,P124)) -> 2 | E124: =Shot!$E$26 -> 1 | F124: =IF(Shot!$I$26=0,"",Shot!$F$26) -> 2 | G124: =IF(OR($F124="",$F124=0),"",IF($F124>90,VLOOKUP(F124,eventcodes,2,FALSE),HLOOKUP(F124,declare,B126,FALSE))) -> Shaunagh Brown | H124: =IF(OR($F124="",$F124=0),"",IF($F124>90,"",VLOOKUP(C124,matchday,2,FALSE))) -> Blackheath & Bromley H | I124: =IF(Shot!$I$26=0,"",Shot!$I$26) -> 14.38 | J124: =IF(I124="","",IF(AC123="T",X124,X125)) ->  | L124: =IF(OR(F124=0,F124="",I124=0,I124=""),"",IF(I124<A123,0,INT(((I124-B123)*D123/C123)+250))) -> 137 | M124: =IF(AC123="T",AD124,AE124) -> þ | O124: =Shot!$K$26 -> 1 | P124: =IF(Shot!$I$26=0,"",Shot!$L$26) -> 22 | Q124: =IF(OR($P124="",$P124=0),"",HLOOKUP(P124,declare,B126,FALSE)) -> Sam Milner | R124: =IF(OR($P124="",$P124=0),"",VLOOKUP(D124,matchday,2,FALSE)) -> Blackheath & Bromley H | S124: =IF(Shot!$I$26=0,"",Shot!$U$26) -> 11.4 | U124: =IF(OR(P124=0,P124="",S124=0,S124=""),"",IF(S124<A123,0,INT(((S124-B123)*D123/C123)+250))) -> 78 | V124: =IF(AC123="T",AF124,AG124) -> þ | X124: =IF(AC123="F","",IF(I124<X123,"LR",IF(I124=X123,"=LR",IF(I124<Y123,"DR",IF(I124=Y123,"=DR",""))))) ->  | AD124: =IF(I124="","",IF(AC123="F","",IF(AC123="T",IF(I124<=Z123,"þ",IF(I124<=AA123,"G2",IF(I124<=AB123,"G3","")))))) ->  | AE124: =IF(I124="","",IF(AC123="T","",IF(AC123="F",IF(I124>=Z123,"þ",IF(I124>=AA123,"G2",IF(I124>=AB123,"G3","")))))) -> þ | AF124: =IF(S124="","",IF(AC123="F","",IF(AC123="T",IF(S124<=Z123,"þ",IF(S124<=AA123,"G2",IF(S124<=AB123,"G3","")))))) ->  | AG124: =IF(S124="","",IF(AC123="T","",IF(AC123="F",IF(S124>=Z123,"þ",IF(S124>=AA123,"G2",IF(S124>=AB123,"G3","")))))) -> þ | AH124: =C124 -> 2 | AI124: =IF(F124="","",IF(LEFT(I124,1)="D",0,VLOOKUP(E124,$AT$4:$AU$40,2,FALSE))) -> 9 | AJ124: =D124 -> 2 | AK124: =IF(P124="","",IF(LEFT(S124,1)="D",0,VLOOKUP(O124,$AT$4:$AV$40,3,FALSE))) -> 9 | AL124: 124
B125: =VLOOKUP(A124,Handbook!$A$4:$AK$24,37,FALSE) -> 18 | C125: =IF(F125="","",IF(F125>10,F125/11,F125)) -> 8 | D125: =IF(P125="","",IF(P125>10,P125/11,P125)) -> 8 | E125: =Shot!$E$27 -> 2 | F125: =IF(Shot!$I$26=0,"",Shot!$F$27) -> 8 | G125: =IF(OR($F125="",$F125=0),"",IF($F125>90,VLOOKUP(F125,eventcodes,2,FALSE),HLOOKUP(F125,declare,B126,FALSE))) -> Phyllis Agbo | H125: Thames Valley H | I125: =IF(Shot!$I$26=0,"",Shot!$I$27) -> 13.24 | L125: =IF(OR(F125=0,F125="",I125=0,I125=""),"",IF(I125<A123,0,INT(((I125-B123)*D123/C123)+250))) -> 114 | M125: =IF(AC123="T",AD125,AE125) -> þ | O125: =Shot!$K$27 -> 2 | P125: =IF(Shot!$I$26=0,"",Shot!$L$27) -> 88 | Q125: =IF(OR($P125="",$P125=0),"",HLOOKUP(P125,declare,B126,FALSE)) -> Abigail Moronkeji | R125: Thames Valley H | S125: =IF(Shot!$I$26=0,"",Shot!$U$27) -> 11.12 | U125: =IF(OR(P125=0,P125="",S125=0,S125=""),"",IF(S125<A123,0,INT(((S125-B123)*D123/C123)+250))) -> 72 | V125: =IF(AC123="T",AF125,AG125) -> þ | X125: =IF(AC123="T","",IF(I124>X123,"LR",IF(I124=X123,"=LR",IF(I124>Y123,"DR",IF(I124=Y123,"=DR",""))))) ->  | AD125: =IF(I125="","",IF(AC123="F","",IF(AC123="T",IF(I125<=Z123,"þ",IF(I125<=AA123,"G2",IF(I125<=AB123,"G3","")))))) ->  | AE125: =IF(I125="","",IF(AC123="T","",IF(AC123="F",IF(I125>=Z123,"þ",IF(I125>=AA123,"G2",IF(I125>=AB123,"G3","")))))) -> þ | AF125: =IF(S125="","",IF(AC123="F","",IF(AC123="T",IF(S125<=Z123,"þ",IF(S125<=AA123,"G2",IF(S125<=AB123,"G3","")))))) ->  | AG125: =IF(S125="","",IF(AC123="T","",IF(AC123="F",IF(S125>=Z123,"þ",IF(S125>=AA123,"G2",IF(S125>=AB123,"G3","")))))) -> þ | AH125: =C125 -> 8 | AI125: 7 | AJ125: =D125 -> 8 | AK125: 7 | AL125: 125
B126: =VLOOKUP(A124,declare,20,FALSE) -> 18 | C126: 6 | D126: 1 | E126: =Shot!$E$28 -> 3 | F126: =IF(Shot!$I$26=0,"",Shot!$F$28) -> 6 | G126: =IF(OR($F126="",$F126=0),"",IF($F126>90,VLOOKUP(F126,eventcodes,2,FALSE),HLOOKUP(F126,declare,B126,FALSE))) -> Freya Jones | H126: Southampton AC | I126: =IF(Shot!$I$26=0,"",Shot!$I$28) -> 12.03 | L126: =IF(OR(F126=0,F126="",I126=0,I126=""),"",IF(I126<A123,0,INT(((I126-B123)*D123/C123)+250))) -> 90 | M126: =IF(AC123="T",AD126,AE126) -> þ | O126: =Shot!$K$28 -> 3 | P126: =IF(Shot!$I$26=0,"",Shot!$L$28) -> 11 | Q126: =IF(OR($P126="",$P126=0),"",HLOOKUP(P126,declare,B126,FALSE)) -> Laura Duke | R126: Bedford & County AC | S126: =IF(Shot!$I$26=0,"",Shot!$U$28) -> 10.57 | U126: =IF(OR(P126=0,P126="",S126=0,S126=""),"",IF(S126<A123,0,INT(((S126-B123)*D123/C123)+250))) -> 61 | V126: =IF(AC123="T",AF126,AG126) -> þ | AD126: =IF(I126="","",IF(AC123="F","",IF(AC123="T",IF(I126<=Z123,"þ",IF(I126<=AA123,"G2",IF(I126<=AB123,"G3","")))))) ->  | AE126: =IF(I126="","",IF(AC123="T","",IF(AC123="F",IF(I126>=Z123,"þ",IF(I126>=AA123,"G2",IF(I126>=AB123,"G3","")))))) -> þ | AF126: =IF(S126="","",IF(AC123="F","",IF(AC123="T",IF(S126<=Z123,"þ",IF(S126<=AA123,"G2",IF(S126<=AB123,"G3","")))))) ->  | AG126: =IF(S126="","",IF(AC123="T","",IF(AC123="F",IF(S126>=Z123,"þ",IF(S126>=AA123,"G2",IF(S126>=AB123,"G3","")))))) -> þ | AH126: 6 | AI126: 6 | AJ126: 1 | AK126: 6 | AL126: 126
C127: 5 | D127: 6 | E127: =Shot!$E$29 -> 4 | F127: =IF(Shot!$I$26=0,"",Shot!$F$29) -> 5 | G127: =IF(OR($F127="",$F127=0),"",IF($F127>90,VLOOKUP(F127,eventcodes,2,FALSE),HLOOKUP(F127,declare,B126,FALSE))) -> Lucy Boggis | H127: Shaftesbury Barnet H | I127: =IF(Shot!$I$26=0,"",Shot!$I$29) -> 11.2 | L127: =IF(OR(F127=0,F127="",I127=0,I127=""),"",IF(I127<A123,0,INT(((I127-B123)*D123/C123)+250))) -> 74 | M127: =IF(AC123="T",AD127,AE127) -> þ | O127: =Shot!$K$29 -> 4 | P127: =IF(Shot!$I$26=0,"",Shot!$L$29) -> 66 | Q127: =IF(OR($P127="",$P127=0),"",HLOOKUP(P127,declare,B126,FALSE)) -> Debbie Callaway | R127: Southampton AC | S127: =IF(Shot!$I$26=0,"",Shot!$U$29) -> 9.87 | U127: =IF(OR(P127=0,P127="",S127=0,S127=""),"",IF(S127<A123,0,INT(((S127-B123)*D123/C123)+250))) -> 0 | V127: =IF(AC123="T",AF127,AG127) ->  | AD127: =IF(I127="","",IF(AC123="F","",IF(AC123="T",IF(I127<=Z123,"þ",IF(I127<=AA123,"G2",IF(I127<=AB123,"G3","")))))) ->  | AE127: =IF(I127="","",IF(AC123="T","",IF(AC123="F",IF(I127>=Z123,"þ",IF(I127>=AA123,"G2",IF(I127>=AB123,"G3","")))))) -> þ | AF127: =IF(S127="","",IF(AC123="F","",IF(AC123="T",IF(S127<=Z123,"þ",IF(S127<=AA123,"G2",IF(S127<=AB123,"G3","")))))) ->  | AG127: =IF(S127="","",IF(AC123="T","",IF(AC123="F",IF(S127>=Z123,"þ",IF(S127>=AA123,"G2",IF(S127>=AB123,"G3","")))))) ->  | AH127: 5 | AI127: 5 | AJ127: 6 | AK127: 5 | AL127: 127
C128: 1 | D128: 3 | E128: =Shot!$E$30 -> 5 | F128: =IF(Shot!$I$26=0,"",Shot!$F$30) -> 1 | G128: =IF(OR($F128="",$F128=0),"",IF($F128>90,VLOOKUP(F128,eventcodes,2,FALSE),HLOOKUP(F128,declare,B126,FALSE))) -> Leanne Buxton | H128: Bedford & County AC | I128: =IF(Shot!$I$26=0,"",Shot!$I$30) -> 10.6 | L128: =IF(OR(F128=0,F128="",I128=0,I128=""),"",IF(I128<A123,0,INT(((I128-B123)*D123/C123)+250))) -> 62 | M128: =IF(AC123="T",AD128,AE128) -> þ | O128: =Shot!$K$30 -> 5 | P128: =IF(Shot!$I$26=0,"",Shot!$L$30) -> 33 | Q128: =IF(OR($P128="",$P128=0),"",HLOOKUP(P128,declare,B126,FALSE)) -> Sadie Watts | R128: Marshall Milton Keynes AC | S128: =IF(Shot!$I$26=0,"",Shot!$U$30) -> 9.6 | U128: =IF(OR(P128=0,P128="",S128=0,S128=""),"",IF(S128<A123,0,INT(((S128-B123)*D123/C123)+250))) -> 0 | V128: =IF(AC123="T",AF128,AG128) ->  | AD128: =IF(I128="","",IF(AC123="F","",IF(AC123="T",IF(I128<=Z123,"þ",IF(I128<=AA123,"G2",IF(I128<=AB123,"G3","")))))) ->  | AE128: =IF(I128="","",IF(AC123="T","",IF(AC123="F",IF(I128>=Z123,"þ",IF(I128>=AA123,"G2",IF(I128>=AB123,"G3","")))))) -> þ | AF128: =IF(S128="","",IF(AC123="F","",IF(AC123="T",IF(S128<=Z123,"þ",IF(S128<=AA123,"G2",IF(S128<=AB123,"G3","")))))) ->  | AG128: =IF(S128="","",IF(AC123="T","",IF(AC123="F",IF(S128>=Z123,"þ",IF(S128>=AA123,"G2",IF(S128>=AB123,"G3","")))))) ->  | AH128: 1 | AI128: 4 | AJ128: 3 | AK128: 4 | AL128: 128
C129: 3 | D129: 5 | E129: =Shot!$E$31 -> 6 | F129: =IF(Shot!$I$26=0,"",Shot!$F$31) -> 3 | G129: =IF(OR($F129="",$F129=0),"",IF($F129>90,VLOOKUP(F129,eventcodes,2,FALSE),HLOOKUP(F129,declare,B126,FALSE))) -> Emma Beales (vV35) | H129: Marshall Milton Keynes AC | I129: =IF(Shot!$I$26=0,"",Shot!$I$31) -> 10.45 | L129: =IF(OR(F129=0,F129="",I129=0,I129=""),"",IF(I129<A123,0,INT(((I129-B123)*D123/C123)+250))) -> 59 | M129: =IF(AC123="T",AD129,AE129) -> þ | O129: =Shot!$K$31 -> 6 | P129: =IF(Shot!$I$26=0,"",Shot!$L$31) -> 55 | Q129: =IF(OR($P129="",$P129=0),"",HLOOKUP(P129,declare,B126,FALSE)) -> Makeda Lewis (U20) | R129: Shaftesbury Barnet H | S129: =IF(Shot!$I$26=0,"",Shot!$U$31) -> 9.28 | U129: =IF(OR(P129=0,P129="",S129=0,S129=""),"",IF(S129<A123,0,INT(((S129-B123)*D123/C123)+250))) -> 0 | V129: =IF(AC123="T",AF129,AG129) ->  | AD129: =IF(I129="","",IF(AC123="F","",IF(AC123="T",IF(I129<=Z123,"þ",IF(I129<=AA123,"G2",IF(I129<=AB123,"G3","")))))) ->  | AE129: =IF(I129="","",IF(AC123="T","",IF(AC123="F",IF(I129>=Z123,"þ",IF(I129>=AA123,"G2",IF(I129>=AB123,"G3","")))))) -> þ | AF129: =IF(S129="","",IF(AC123="F","",IF(AC123="T",IF(S129<=Z123,"þ",IF(S129<=AA123,"G2",IF(S129<=AB123,"G3","")))))) ->  | AG129: =IF(S129="","",IF(AC123="T","",IF(AC123="F",IF(S129>=Z123,"þ",IF(S129>=AA123,"G2",IF(S129>=AB123,"G3","")))))) ->  | AH129: 3 | AI129: 3 | AJ129: 5 | AK129: 3 | AL129: 129
C130: 7 | D130: 7 | E130: =Shot!$E$32 -> 7 | F130: =IF(Shot!$I$26=0,"",Shot!$F$32) -> 7 | G130: =IF(OR($F130="",$F130=0),"",IF($F130>90,VLOOKUP(F130,eventcodes,2,FALSE),HLOOKUP(F130,declare,B126,FALSE))) -> Toni Wells | H130: Swansea H | I130: =IF(Shot!$I$26=0,"",Shot!$I$32) -> 10.33 | L130: =IF(OR(F130=0,F130="",I130=0,I130=""),"",IF(I130<A123,0,INT(((I130-B123)*D123/C123)+250))) -> 56 | M130: =IF(AC123="T",AD130,AE130) -> þ | O130: =Shot!$K$32 -> 7 | P130: =IF(Shot!$I$26=0,"",Shot!$L$32) -> 77 | Q130: =IF(OR($P130="",$P130=0),"",HLOOKUP(P130,declare,B126,FALSE)) -> Nina Prells | R130: Swansea H | S130: =IF(Shot!$I$26=0,"",Shot!$U$32) -> 8.9 | U130: =IF(OR(P130=0,P130="",S130=0,S130=""),"",IF(S130<A123,0,INT(((S130-B123)*D123/C123)+250))) -> 0 | V130: =IF(AC123="T",AF130,AG130) ->  | AD130: =IF(I130="","",IF(AC123="F","",IF(AC123="T",IF(I130<=Z123,"þ",IF(I130<=AA123,"G2",IF(I130<=AB123,"G3","")))))) ->  | AE130: =IF(I130="","",IF(AC123="T","",IF(AC123="F",IF(I130>=Z123,"þ",IF(I130>=AA123,"G2",IF(I130>=AB123,"G3","")))))) -> þ | AF130: =IF(S130="","",IF(AC123="F","",IF(AC123="T",IF(S130<=Z123,"þ",IF(S130<=AA123,"G2",IF(S130<=AB123,"G3","")))))) ->  | AG130: =IF(S130="","",IF(AC123="T","",IF(AC123="F",IF(S130>=Z123,"þ",IF(S130>=AA123,"G2",IF(S130>=AB123,"G3","")))))) ->  | AH130: 7 | AI130: 2 | AJ130: 7 | AK130: 2 | AL130: 130
C131: 4 | D131: 4 | E131: =Shot!$E$33 -> 8 | F131: =IF(Shot!$I$26=0,"",Shot!$F$33) -> 4 | G131: =IF(OR($F131="",$F131=0),"",IF($F131>90,VLOOKUP(F131,eventcodes,2,FALSE),HLOOKUP(F131,declare,B126,FALSE))) -> Sue Lawrence | H131: Newham & Essex Beagles AC | I131: =IF(Shot!$I$26=0,"",Shot!$I$33) -> 8.55 | L131: =IF(OR(F131=0,F131="",I131=0,I131=""),"",IF(I131<A123,0,INT(((I131-B123)*D123/C123)+250))) -> 0 | M131: =IF(AC123="T",AD131,AE131) ->  | O131: =Shot!$K$33 -> 8 | P131: =IF(Shot!$I$26=0,"",Shot!$L$33) -> 44 | Q131: =IF(OR($P131="",$P131=0),"",HLOOKUP(P131,declare,B126,FALSE)) -> Kate Laidlow | R131: Newham & Essex Beagles AC | S131: =IF(Shot!$I$26=0,"",Shot!$U$33) -> 7.72 | U131: =IF(OR(P131=0,P131="",S131=0,S131=""),"",IF(S131<A123,0,INT(((S131-B123)*D123/C123)+250))) -> 0 | V131: =IF(AC123="T",AF131,AG131) ->  | AD131: =IF(I131="","",IF(AC123="F","",IF(AC123="T",IF(I131<=Z123,"þ",IF(I131<=AA123,"G2",IF(I131<=AB123,"G3","")))))) ->  | AE131: =IF(I131="","",IF(AC123="T","",IF(AC123="F",IF(I131>=Z123,"þ",IF(I131>=AA123,"G2",IF(I131>=AB123,"G3","")))))) ->  | AF131: =IF(S131="","",IF(AC123="F","",IF(AC123="T",IF(S131<=Z123,"þ",IF(S131<=AA123,"G2",IF(S131<=AB123,"G3","")))))) ->  | AG131: =IF(S131="","",IF(AC123="T","",IF(AC123="F",IF(S131>=Z123,"þ",IF(S131>=AA123,"G2",IF(S131>=AB123,"G3","")))))) ->  | AH131: 4 | AI131: 1 | AJ131: 4 | AK131: 1 | AL131: 131
AL132: 132
A133: 5.3 | B133: 6.9 | C133: 0.08 | D133: 10 | E133: =CONCATENATE(VLOOKUP(A134,mens_handbook,3,FALSE)," A") -> Women's Long Jump A | H133: =IF(A134="","",IF(VLOOKUP(A134,Handbook!$A$4:$AI$24,35,FALSE)="Y","Wind=","")) ->  | O133: =CONCATENATE(VLOOKUP(A134,mens_handbook,3,FALSE)," B") -> Women's Long Jump B | R133: =H133 ->  | S133: =IF(I133="","",I133) ->  | X133: =IF($A134="","",VLOOKUP($A134,Handbook!$A$4:$V$24,21,FALSE)) -> 6.69 | Y133: =IF($A134="","",VLOOKUP($A134,Handbook!$A$4:$V$24,22,FALSE)) -> 6.38 | Z133: =IF($A134="","",VLOOKUP($A134,Handbook!$A$4:$W$24,23,FALSE)) -> 5 | AA133: =IF($A134="","",VLOOKUP($A134,Handbook!$A$4:$X$24,24,FALSE)) -> 5 | AB133: =IF($A134="","",VLOOKUP($A134,Handbook!$A$4:$Y$24,25,FALSE)) -> 5 | AC133: =IF($A134="","",VLOOKUP($A134,Handbook!$A$4:$AH$24,34,FALSE)) -> F | AL133: 133
A134: 13 | C134: =IF(F134="","",IF(F134>10,F134/11,F134)) -> 8 | D134: =IF(P134="","",IF(P134>10,P134/11,P134)) -> 5 | E134: =LJ!$E$26 -> 1 | F134: =IF(LJ!$I$26=0,"",LJ!$F$26) -> 8 | G134: =IF(OR($F134="",$F134=0),"",IF($F134>90,VLOOKUP(F134,eventcodes,2,FALSE),HLOOKUP(F134,declare,B136,FALSE))) -> Phyllis Agbo | H134: =IF(OR($F134="",$F134=0),"",IF($F134>90,"",VLOOKUP(C134,matchday,2,FALSE))) -> Thames Valley H | I134: =IF(LJ!$I$26=0,"",LJ!$I$26) -> 6.24 | J134: =IF(I134="","",IF(AC133="T",X134,X135)) ->  | K134: +2.6 | L134: =IF(OR(F134=0,F134="",I134=0,I134=""),"",IF(I134<A133,0,INT(((I134-B133)*D133/C133)+250))) -> 167 | M134: =IF(AC133="T",AD134,AE134) -> þ | O134: =LJ!$K$26 -> 1 | P134: =IF(LJ!$I$26=0,"",LJ!$L$26) -> 55 | Q134: =IF(OR($P134="",$P134=0),"",HLOOKUP(P134,declare,B136,FALSE)) -> Gaby Rowsell (U20) | R134: =IF(OR($P134="",$P134=0),"",VLOOKUP(D134,matchday,2,FALSE)) -> Shaftesbury Barnet H | S134: =IF(LJ!$I$26=0,"",LJ!$U$26) -> 5.36 | T134: +2.2 | U134: =IF(OR(P134=0,P134="",S134=0,S134=""),"",IF(S134<A133,0,INT(((S134-B133)*D133/C133)+250))) -> 57 | V134: =IF(AC133="T",AF134,AG134) -> þ | X134: =IF(AC133="F","",IF(I134<X133,"LR",IF(I134=X133,"=LR",IF(I134<Y133,"DR",IF(I134=Y133,"=DR",""))))) ->  | AD134: =IF(I134="","",IF(AC133="F","",IF(AC133="T",IF(I134<=Z133,"þ",IF(I134<=AA133,"G2",IF(I134<=AB133,"G3","")))))) ->  | AE134: =IF(I134="","",IF(AC133="T","",IF(AC133="F",IF(I134>=Z133,"þ",IF(I134>=AA133,"G2",IF(I134>=AB133,"G3","")))))) -> þ | AF134: =IF(S134="","",IF(AC133="F","",IF(AC133="T",IF(S134<=Z133,"þ",IF(S134<=AA133,"G2",IF(S134<=AB133,"G3","")))))) ->  | AG134: =IF(S134="","",IF(AC133="T","",IF(AC133="F",IF(S134>=Z133,"þ",IF(S134>=AA133,"G2",IF(S134>=AB133,"G3","")))))) -> þ | AH134: =C134 -> 8 | AI134: =IF(F134="","",IF(LEFT(I134,1)="D",0,VLOOKUP(E134,$AT$4:$AU$40,2,FALSE))) -> 9 | AJ134: =D134 -> 5 | AK134: =IF(P134="","",IF(LEFT(S134,1)="D",0,VLOOKUP(O134,$AT$4:$AV$40,3,FALSE))) -> 9 | AL134: 134
B135: =VLOOKUP(A134,Handbook!$A$4:$AK$24,37,FALSE) -> 14 | C135: =IF(F135="","",IF(F135>10,F135/11,F135)) -> 5 | D135: =IF(P135="","",IF(P135>10,P135/11,P135)) -> 2 | E135: =LJ!$E$27 -> 2 | F135: =IF(LJ!$I$26=0,"",LJ!$F$27) -> 5 | G135: =IF(OR($F135="",$F135=0),"",IF($F135>90,VLOOKUP(F135,eventcodes,2,FALSE),HLOOKUP(F135,declare,B136,FALSE))) -> Lucy Boggis | H135: Shaftesbury Barnet H | I135: =IF(LJ!$I$26=0,"",LJ!$I$27) -> 5.59 | K135: +1.4 | L135: =IF(OR(F135=0,F135="",I135=0,I135=""),"",IF(I135<A133,0,INT(((I135-B133)*D133/C133)+250))) -> 86 | M135: =IF(AC133="T",AD135,AE135) -> þ | O135: =LJ!$K$27 -> 2 | P135: =IF(LJ!$I$26=0,"",LJ!$L$27) -> 22 | Q135: =IF(OR($P135="",$P135=0),"",HLOOKUP(P135,declare,B136,FALSE)) -> Lauren Blackie | R135: Blackheath & Bromley H | S135: =IF(LJ!$I$26=0,"",LJ!$U$27) -> 5.35 | T135: -1.7 | U135: =IF(OR(P135=0,P135="",S135=0,S135=""),"",IF(S135<A133,0,INT(((S135-B133)*D133/C133)+250))) -> 56 | V135: =IF(AC133="T",AF135,AG135) -> þ | X135: =IF(AC133="T","",IF(I134>X133,"LR",IF(I134=X133,"=LR",IF(I134>Y133,"DR",IF(I134=Y133,"=DR",""))))) ->  | AD135: =IF(I135="","",IF(AC133="F","",IF(AC133="T",IF(I135<=Z133,"þ",IF(I135<=AA133,"G2",IF(I135<=AB133,"G3","")))))) ->  | AE135: =IF(I135="","",IF(AC133="T","",IF(AC133="F",IF(I135>=Z133,"þ",IF(I135>=AA133,"G2",IF(I135>=AB133,"G3","")))))) -> þ | AF135: =IF(S135="","",IF(AC133="F","",IF(AC133="T",IF(S135<=Z133,"þ",IF(S135<=AA133,"G2",IF(S135<=AB133,"G3","")))))) ->  | AG135: =IF(S135="","",IF(AC133="T","",IF(AC133="F",IF(S135>=Z133,"þ",IF(S135>=AA133,"G2",IF(S135>=AB133,"G3","")))))) -> þ | AH135: =C135 -> 5 | AI135: 7 | AJ135: =D135 -> 2 | AK135: 7 | AL135: 135
B136: =VLOOKUP(A134,declare,20,FALSE) -> 14 | C136: 3 | D136: 4 | E136: =LJ!$E$28 -> 3 | F136: =IF(LJ!$I$26=0,"",LJ!$F$28) -> 3 | G136: =IF(OR($F136="",$F136=0),"",IF($F136>90,VLOOKUP(F136,eventcodes,2,FALSE),HLOOKUP(F136,declare,B136,FALSE))) -> Sophie Wilkins | H136: Marshall Milton Keynes AC | I136: =IF(LJ!$I$26=0,"",LJ!$I$28) -> 5.56 | K136: +0.8 | L136: =IF(OR(F136=0,F136="",I136=0,I136=""),"",IF(I136<A133,0,INT(((I136-B133)*D133/C133)+250))) -> 82 | M136: =IF(AC133="T",AD136,AE136) -> þ | O136: =LJ!$K$28 -> 3 | P136: =IF(LJ!$I$26=0,"",LJ!$L$28) -> 4 | Q136: =IF(OR($P136="",$P136=0),"",HLOOKUP(P136,declare,B136,FALSE)) -> Chioma Matthews | R136: Newham & Essex Beagles AC | S136: =IF(LJ!$I$26=0,"",LJ!$U$28) -> 4.94 | T136: +0.0 | U136: =IF(OR(P136=0,P136="",S136=0,S136=""),"",IF(S136<A133,0,INT(((S136-B133)*D133/C133)+250))) -> 0 | V136: =IF(AC133="T",AF136,AG136) ->  | AD136: =IF(I136="","",IF(AC133="F","",IF(AC133="T",IF(I136<=Z133,"þ",IF(I136<=AA133,"G2",IF(I136<=AB133,"G3","")))))) ->  | AE136: =IF(I136="","",IF(AC133="T","",IF(AC133="F",IF(I136>=Z133,"þ",IF(I136>=AA133,"G2",IF(I136>=AB133,"G3","")))))) -> þ | AF136: =IF(S136="","",IF(AC133="F","",IF(AC133="T",IF(S136<=Z133,"þ",IF(S136<=AA133,"G2",IF(S136<=AB133,"G3","")))))) ->  | AG136: =IF(S136="","",IF(AC133="T","",IF(AC133="F",IF(S136>=Z133,"þ",IF(S136>=AA133,"G2",IF(S136>=AB133,"G3","")))))) ->  | AH136: 3 | AI136: 6 | AJ136: 4 | AK136: 6 | AL136: 136
C137: 6 | D137: 7 | E137: =LJ!$E$29 -> 4 | F137: =IF(LJ!$I$26=0,"",LJ!$F$29) -> 6 | G137: =IF(OR($F137="",$F137=0),"",IF($F137>90,VLOOKUP(F137,eventcodes,2,FALSE),HLOOKUP(F137,declare,B136,FALSE))) -> Karla Drew | H137: Southampton AC | I137: =IF(LJ!$I$26=0,"",LJ!$I$29) -> 5.53 | K137: +1.8 | L137: =IF(OR(F137=0,F137="",I137=0,I137=""),"",IF(I137<A133,0,INT(((I137-B133)*D133/C133)+250))) -> 78 | M137: =IF(AC133="T",AD137,AE137) -> þ | O137: =LJ!$K$29 -> 4 | P137: =IF(LJ!$I$26=0,"",LJ!$L$29) -> 7 | Q137: =IF(OR($P137="",$P137=0),"",HLOOKUP(P137,declare,B136,FALSE)) -> Rebecca Williams | R137: Swansea H | S137: =IF(LJ!$I$26=0,"",LJ!$U$29) -> 4.68 | T137: +0.9 | U137: =IF(OR(P137=0,P137="",S137=0,S137=""),"",IF(S137<A133,0,INT(((S137-B133)*D133/C133)+250))) -> 0 | V137: =IF(AC133="T",AF137,AG137) ->  | AD137: =IF(I137="","",IF(AC133="F","",IF(AC133="T",IF(I137<=Z133,"þ",IF(I137<=AA133,"G2",IF(I137<=AB133,"G3","")))))) ->  | AE137: =IF(I137="","",IF(AC133="T","",IF(AC133="F",IF(I137>=Z133,"þ",IF(I137>=AA133,"G2",IF(I137>=AB133,"G3","")))))) -> þ | AF137: =IF(S137="","",IF(AC133="F","",IF(AC133="T",IF(S137<=Z133,"þ",IF(S137<=AA133,"G2",IF(S137<=AB133,"G3","")))))) ->  | AG137: =IF(S137="","",IF(AC133="T","",IF(AC133="F",IF(S137>=Z133,"þ",IF(S137>=AA133,"G2",IF(S137>=AB133,"G3","")))))) ->  | AH137: 6 | AI137: 5 | AJ137: 7 | AK137: 5 | AL137: 137
C138: 2 | D138: 8 | E138: =LJ!$E$30 -> 5 | F138: =IF(LJ!$I$26=0,"",LJ!$F$30) -> 2 | G138: =IF(OR($F138="",$F138=0),"",IF($F138>90,VLOOKUP(F138,eventcodes,2,FALSE),HLOOKUP(F138,declare,B136,FALSE))) -> Emily Martin | H138: Blackheath & Bromley H | I138: =IF(LJ!$I$26=0,"",LJ!$I$30) -> 5.48 | K138: +0.3 | L138: =IF(OR(F138=0,F138="",I138=0,I138=""),"",IF(I138<A133,0,INT(((I138-B133)*D133/C133)+250))) -> 72 | M138: =IF(AC133="T",AD138,AE138) -> þ | O138: =LJ!$K$30 -> 5 | P138: =IF(LJ!$I$26=0,"",LJ!$L$30) -> 88 | Q138: =IF(OR($P138="",$P138=0),"",HLOOKUP(P138,declare,B136,FALSE)) -> Esther Aije | R138: Thames Valley H | S138: =IF(LJ!$I$26=0,"",LJ!$U$30) -> 4.5 | T138: +1.5 | U138: =IF(OR(P138=0,P138="",S138=0,S138=""),"",IF(S138<A133,0,INT(((S138-B133)*D133/C133)+250))) -> 0 | V138: =IF(AC133="T",AF138,AG138) ->  | AD138: =IF(I138="","",IF(AC133="F","",IF(AC133="T",IF(I138<=Z133,"þ",IF(I138<=AA133,"G2",IF(I138<=AB133,"G3","")))))) ->  | AE138: =IF(I138="","",IF(AC133="T","",IF(AC133="F",IF(I138>=Z133,"þ",IF(I138>=AA133,"G2",IF(I138>=AB133,"G3","")))))) -> þ | AF138: =IF(S138="","",IF(AC133="F","",IF(AC133="T",IF(S138<=Z133,"þ",IF(S138<=AA133,"G2",IF(S138<=AB133,"G3","")))))) ->  | AG138: =IF(S138="","",IF(AC133="T","",IF(AC133="F",IF(S138>=Z133,"þ",IF(S138>=AA133,"G2",IF(S138>=AB133,"G3","")))))) ->  | AH138: 2 | AI138: 4 | AJ138: 8 | AK138: 4 | AL138: 138
C139: 4 | D139: 3 | E139: =LJ!$E$31 -> 6 | F139: =IF(LJ!$I$26=0,"",LJ!$F$31) -> 44 | G139: =IF(OR($F139="",$F139=0),"",IF($F139>90,VLOOKUP(F139,eventcodes,2,FALSE),HLOOKUP(F139,declare,B136,FALSE))) -> Rochelle Jones | H139: Newham & Essex Beagles AC | I139: =IF(LJ!$I$26=0,"",LJ!$I$31) -> 5.16 | K139: +1.1 | L139: =IF(OR(F139=0,F139="",I139=0,I139=""),"",IF(I139<A133,0,INT(((I139-B133)*D133/C133)+250))) -> 0 | M139: =IF(AC133="T",AD139,AE139) -> þ | O139: =LJ!$K$31 -> 6 | P139: =IF(LJ!$I$26=0,"",LJ!$L$31) -> 33 | Q139: =IF(OR($P139="",$P139=0),"",HLOOKUP(P139,declare,B136,FALSE)) -> Chloe Walley | R139: Marshall Milton Keynes AC | S139: =IF(LJ!$I$26=0,"",LJ!$U$31) -> 4.44 | T139: +2.1 | U139: =IF(OR(P139=0,P139="",S139=0,S139=""),"",IF(S139<A133,0,INT(((S139-B133)*D133/C133)+250))) -> 0 | V139: =IF(AC133="T",AF139,AG139) ->  | AD139: =IF(I139="","",IF(AC133="F","",IF(AC133="T",IF(I139<=Z133,"þ",IF(I139<=AA133,"G2",IF(I139<=AB133,"G3","")))))) ->  | AE139: =IF(I139="","",IF(AC133="T","",IF(AC133="F",IF(I139>=Z133,"þ",IF(I139>=AA133,"G2",IF(I139>=AB133,"G3","")))))) -> þ | AF139: =IF(S139="","",IF(AC133="F","",IF(AC133="T",IF(S139<=Z133,"þ",IF(S139<=AA133,"G2",IF(S139<=AB133,"G3","")))))) ->  | AG139: =IF(S139="","",IF(AC133="T","",IF(AC133="F",IF(S139>=Z133,"þ",IF(S139>=AA133,"G2",IF(S139>=AB133,"G3","")))))) ->  | AH139: 4 | AI139: 3 | AJ139: 3 | AK139: 3 | AL139: 139
C140: 7 | D140: 6 | E140: =LJ!$E$32 -> 7 | F140: =IF(LJ!$I$26=0,"",LJ!$F$32) -> 77 | G140: =IF(OR($F140="",$F140=0),"",IF($F140>90,VLOOKUP(F140,eventcodes,2,FALSE),HLOOKUP(F140,declare,B136,FALSE))) -> Donna Jones | H140: Swansea H | I140: =IF(LJ!$I$26=0,"",LJ!$I$32) -> 5.07 | K140: -0.6 | L140: =IF(OR(F140=0,F140="",I140=0,I140=""),"",IF(I140<A133,0,INT(((I140-B133)*D133/C133)+250))) -> 0 | M140: =IF(AC133="T",AD140,AE140) -> þ | O140: =LJ!$K$32 -> 7 | P140: =IF(LJ!$I$26=0,"",LJ!$L$32) -> 66 | Q140: =IF(OR($P140="",$P140=0),"",HLOOKUP(P140,declare,B136,FALSE)) -> Megan Fry | R140: Southampton AC | S140: =IF(LJ!$I$26=0,"",LJ!$U$32) -> 4.33 | T140: +1.1 | U140: =IF(OR(P140=0,P140="",S140=0,S140=""),"",IF(S140<A133,0,INT(((S140-B133)*D133/C133)+250))) -> 0 | V140: =IF(AC133="T",AF140,AG140) ->  | AD140: =IF(I140="","",IF(AC133="F","",IF(AC133="T",IF(I140<=Z133,"þ",IF(I140<=AA133,"G2",IF(I140<=AB133,"G3","")))))) ->  | AE140: =IF(I140="","",IF(AC133="T","",IF(AC133="F",IF(I140>=Z133,"þ",IF(I140>=AA133,"G2",IF(I140>=AB133,"G3","")))))) -> þ | AF140: =IF(S140="","",IF(AC133="F","",IF(AC133="T",IF(S140<=Z133,"þ",IF(S140<=AA133,"G2",IF(S140<=AB133,"G3","")))))) ->  | AG140: =IF(S140="","",IF(AC133="T","",IF(AC133="F",IF(S140>=Z133,"þ",IF(S140>=AA133,"G2",IF(S140>=AB133,"G3","")))))) ->  | AH140: 7 | AI140: 2 | AJ140: 6 | AK140: 2 | AL140: 140
C141: 1 | D141: 0 | E141: =LJ!$E$33 -> 8 | F141: =IF(LJ!$I$26=0,"",LJ!$F$33) -> 1 | G141: =IF(OR($F141="",$F141=0),"",IF($F141>90,VLOOKUP(F141,eventcodes,2,FALSE),HLOOKUP(F141,declare,B136,FALSE))) -> Emma Bailey | H141: Bedford & County AC | I141: =IF(LJ!$I$26=0,"",LJ!$I$33) -> 3.67 | K141: +1.3 | L141: =IF(OR(F141=0,F141="",I141=0,I141=""),"",IF(I141<A133,0,INT(((I141-B133)*D133/C133)+250))) -> 0 | M141: =IF(AC133="T",AD141,AE141) ->  | O141: =LJ!$K$33 -> 8 | P141: =IF(LJ!$I$26=0,"",LJ!$L$33) -> 0 | Q141: =IF(OR($P141="",$P141=0),"",HLOOKUP(P141,declare,B136,FALSE)) ->  | S141: =IF(LJ!$I$26=0,"",LJ!$U$33) -> 0 | U141: =IF(OR(P141=0,P141="",S141=0,S141=""),"",IF(S141<A133,0,INT(((S141-B133)*D133/C133)+250))) ->  | V141: =IF(AC133="T",AF141,AG141) ->  | AD141: =IF(I141="","",IF(AC133="F","",IF(AC133="T",IF(I141<=Z133,"þ",IF(I141<=AA133,"G2",IF(I141<=AB133,"G3","")))))) ->  | AE141: =IF(I141="","",IF(AC133="T","",IF(AC133="F",IF(I141>=Z133,"þ",IF(I141>=AA133,"G2",IF(I141>=AB133,"G3","")))))) ->  | AF141: =IF(S141="","",IF(AC133="F","",IF(AC133="T",IF(S141<=Z133,"þ",IF(S141<=AA133,"G2",IF(S141<=AB133,"G3","")))))) ->  | AG141: =IF(S141="","",IF(AC133="T","",IF(AC133="F",IF(S141>=Z133,"þ",IF(S141>=AA133,"G2",IF(S141>=AB133,"G3","")))))) ->  | AH141: 1 | AI141: 1 | AJ141: 0 | AK141: 1 | AL141: 141
AL142: 142
A143: 10.75 | B143: 14.75 | C143: 0.2 | D143: 10 | E143: =CONCATENATE(VLOOKUP(A144,mens_handbook,3,FALSE)," A") -> Women's Triple Jump A | H143: =IF(A144="","",IF(VLOOKUP(A144,Handbook!$A$4:$AI$24,35,FALSE)="Y","Wind=","")) ->  | O143: =CONCATENATE(VLOOKUP(A144,mens_handbook,3,FALSE)," B") -> Women's Triple Jump B | R143: =H143 ->  | S143: =IF(I143="","",I143) ->  | X143: =IF($A144="","",VLOOKUP($A144,Handbook!$A$4:$V$24,21,FALSE)) -> 14.55 | Y143: =IF($A144="","",VLOOKUP($A144,Handbook!$A$4:$V$24,22,FALSE)) -> 14.55 | Z143: =IF($A144="","",VLOOKUP($A144,Handbook!$A$4:$W$24,23,FALSE)) -> 10 | AA143: =IF($A144="","",VLOOKUP($A144,Handbook!$A$4:$X$24,24,FALSE)) -> 10 | AB143: =IF($A144="","",VLOOKUP($A144,Handbook!$A$4:$Y$24,25,FALSE)) -> 10 | AC143: =IF($A144="","",VLOOKUP($A144,Handbook!$A$4:$AH$24,34,FALSE)) -> F | AL143: 143
A144: 16 | C144: =IF(F144="","",IF(F144>10,F144/11,F144)) -> 5 | D144: =IF(P144="","",IF(P144>10,P144/11,P144)) -> 5 | E144: =TJ!$E$26 -> 1 | F144: =IF(TJ!$I$26=0,"",TJ!$F$26) -> 55 | G144: =IF(OR($F144="",$F144=0),"",IF($F144>90,VLOOKUP(F144,eventcodes,2,FALSE),HLOOKUP(F144,declare,B146,FALSE))) -> Yamille Aldama | H144: =IF(OR($F144="",$F144=0),"",IF($F144>90,"",VLOOKUP(C144,matchday,2,FALSE))) -> Shaftesbury Barnet H | I144: =IF(TJ!$I$26=0,"",TJ!$I$26) -> 14.3 | J144: =IF(I144="","",IF(AC143="T",X144,X145)) ->  | K144: +2.6 | L144: =IF(OR(F144=0,F144="",I144=0,I144=""),"",IF(I144<A143,0,INT(((I144-B143)*D143/C143)+250))) -> 227 | M144: =IF(AC143="T",AD144,AE144) -> þ | O144: =TJ!$K$26 -> 1 | P144: =IF(TJ!$I$26=0,"",TJ!$L$26) -> 5 | Q144: =IF(OR($P144="",$P144=0),"",HLOOKUP(P144,declare,B146,FALSE)) -> Trecia Smith | R144: =IF(OR($P144="",$P144=0),"",VLOOKUP(D144,matchday,2,FALSE)) -> Shaftesbury Barnet H | S144: =IF(TJ!$I$26=0,"",TJ!$U$26) -> 12.27 | T144: +1.6 | U144: =IF(OR(P144=0,P144="",S144=0,S144=""),"",IF(S144<A143,0,INT(((S144-B143)*D143/C143)+250))) -> 126 | V144: =IF(AC143="T",AF144,AG144) -> þ | X144: =IF(AC143="F","",IF(I144<X143,"LR",IF(I144=X143,"=LR",IF(I144<Y143,"DR",IF(I144=Y143,"=DR",""))))) ->  | AD144: =IF(I144="","",IF(AC143="F","",IF(AC143="T",IF(I144<=Z143,"þ",IF(I144<=AA143,"G2",IF(I144<=AB143,"G3","")))))) ->  | AE144: =IF(I144="","",IF(AC143="T","",IF(AC143="F",IF(I144>=Z143,"þ",IF(I144>=AA143,"G2",IF(I144>=AB143,"G3","")))))) -> þ | AF144: =IF(S144="","",IF(AC143="F","",IF(AC143="T",IF(S144<=Z143,"þ",IF(S144<=AA143,"G2",IF(S144<=AB143,"G3","")))))) ->  | AG144: =IF(S144="","",IF(AC143="T","",IF(AC143="F",IF(S144>=Z143,"þ",IF(S144>=AA143,"G2",IF(S144>=AB143,"G3","")))))) -> þ | AH144: =C144 -> 5 | AI144: =IF(F144="","",IF(LEFT(I144,1)="D",0,VLOOKUP(E144,$AT$4:$AU$40,2,FALSE))) -> 9 | AJ144: =D144 -> 5 | AK144: =IF(P144="","",IF(LEFT(S144,1)="D",0,VLOOKUP(O144,$AT$4:$AV$40,3,FALSE))) -> 9 | AL144: 144
B145: =VLOOKUP(A144,Handbook!$A$4:$AK$24,37,FALSE) -> 17 | C145: =IF(F145="","",IF(F145>10,F145/11,F145)) -> 4 | D145: =IF(P145="","",IF(P145>10,P145/11,P145)) -> 2 | E145: =TJ!$E$27 -> 2 | F145: =IF(TJ!$I$26=0,"",TJ!$F$27) -> 4 | G145: =IF(OR($F145="",$F145=0),"",IF($F145>90,VLOOKUP(F145,eventcodes,2,FALSE),HLOOKUP(F145,declare,B146,FALSE))) -> Chioma Matthews | H145: Newham & Essex Beagles AC | I145: =IF(TJ!$I$26=0,"",TJ!$I$27) -> 12.6 | K145: +1.0 | L145: =IF(OR(F145=0,F145="",I145=0,I145=""),"",IF(I145<A143,0,INT(((I145-B143)*D143/C143)+250))) -> 142 | M145: =IF(AC143="T",AD145,AE145) -> þ | O145: =TJ!$K$27 -> 2 | P145: =IF(TJ!$I$26=0,"",TJ!$L$27) -> 2 | Q145: =IF(OR($P145="",$P145=0),"",HLOOKUP(P145,declare,B146,FALSE)) -> Sandra Alaneme | R145: Blackheath & Bromley H | S145: =IF(TJ!$I$26=0,"",TJ!$U$27) -> 11.93 | T145: +1.9 | U145: =IF(OR(P145=0,P145="",S145=0,S145=""),"",IF(S145<A143,0,INT(((S145-B143)*D143/C143)+250))) -> 109 | V145: =IF(AC143="T",AF145,AG145) -> þ | X145: =IF(AC143="T","",IF(I144>X143,"LR",IF(I144=X143,"=LR",IF(I144>Y143,"DR",IF(I144=Y143,"=DR",""))))) ->  | AD145: =IF(I145="","",IF(AC143="F","",IF(AC143="T",IF(I145<=Z143,"þ",IF(I145<=AA143,"G2",IF(I145<=AB143,"G3","")))))) ->  | AE145: =IF(I145="","",IF(AC143="T","",IF(AC143="F",IF(I145>=Z143,"þ",IF(I145>=AA143,"G2",IF(I145>=AB143,"G3","")))))) -> þ | AF145: =IF(S145="","",IF(AC143="F","",IF(AC143="T",IF(S145<=Z143,"þ",IF(S145<=AA143,"G2",IF(S145<=AB143,"G3","")))))) ->  | AG145: =IF(S145="","",IF(AC143="T","",IF(AC143="F",IF(S145>=Z143,"þ",IF(S145>=AA143,"G2",IF(S145>=AB143,"G3","")))))) -> þ | AH145: =C145 -> 4 | AI145: 7 | AJ145: =D145 -> 2 | AK145: 7 | AL145: 145
B146: =VLOOKUP(A144,declare,20,FALSE) -> 17 | C146: 2 | D146: 7 | E146: =TJ!$E$28 -> 3 | F146: =IF(TJ!$I$26=0,"",TJ!$F$28) -> 22 | G146: =IF(OR($F146="",$F146=0),"",IF($F146>90,VLOOKUP(F146,eventcodes,2,FALSE),HLOOKUP(F146,declare,B146,FALSE))) -> Lauren Blackie | H146: Blackheath & Bromley H | I146: =IF(TJ!$I$26=0,"",TJ!$I$28) -> 11.95 | K146: +2.1 | L146: =IF(OR(F146=0,F146="",I146=0,I146=""),"",IF(I146<A143,0,INT(((I146-B143)*D143/C143)+250))) -> 110 | M146: =IF(AC143="T",AD146,AE146) -> þ | O146: =TJ!$K$28 -> 3 | P146: =IF(TJ!$I$26=0,"",TJ!$L$28) -> 77 | Q146: =IF(OR($P146="",$P146=0),"",HLOOKUP(P146,declare,B146,FALSE)) -> Donna Jones | R146: Swansea H | S146: =IF(TJ!$I$26=0,"",TJ!$U$28) -> 10.44 | T146: +0.9 | U146: =IF(OR(P146=0,P146="",S146=0,S146=""),"",IF(S146<A143,0,INT(((S146-B143)*D143/C143)+250))) -> 0 | V146: =IF(AC143="T",AF146,AG146) -> þ | AD146: =IF(I146="","",IF(AC143="F","",IF(AC143="T",IF(I146<=Z143,"þ",IF(I146<=AA143,"G2",IF(I146<=AB143,"G3","")))))) ->  | AE146: =IF(I146="","",IF(AC143="T","",IF(AC143="F",IF(I146>=Z143,"þ",IF(I146>=AA143,"G2",IF(I146>=AB143,"G3","")))))) -> þ | AF146: =IF(S146="","",IF(AC143="F","",IF(AC143="T",IF(S146<=Z143,"þ",IF(S146<=AA143,"G2",IF(S146<=AB143,"G3","")))))) ->  | AG146: =IF(S146="","",IF(AC143="T","",IF(AC143="F",IF(S146>=Z143,"þ",IF(S146>=AA143,"G2",IF(S146>=AB143,"G3","")))))) -> þ | AH146: 2 | AI146: 6 | AJ146: 7 | AK146: 6 | AL146: 146
C147: 7 | D147: 3 | E147: =TJ!$E$29 -> 4 | F147: =IF(TJ!$I$26=0,"",TJ!$F$29) -> 7 | G147: =IF(OR($F147="",$F147=0),"",IF($F147>90,VLOOKUP(F147,eventcodes,2,FALSE),HLOOKUP(F147,declare,B146,FALSE))) -> Sian Swanson | H147: Swansea H | I147: =IF(TJ!$I$26=0,"",TJ!$I$29) -> 10.46 | K147: +0.3 | L147: =IF(OR(F147=0,F147="",I147=0,I147=""),"",IF(I147<A143,0,INT(((I147-B143)*D143/C143)+250))) -> 0 | M147: =IF(AC143="T",AD147,AE147) -> þ | O147: =TJ!$K$29 -> 4 | P147: =IF(TJ!$I$26=0,"",TJ!$L$29) -> 3 | Q147: =IF(OR($P147="",$P147=0),"",HLOOKUP(P147,declare,B146,FALSE)) -> Rachel Gibbens | R147: Marshall Milton Keynes AC | S147: =IF(TJ!$I$26=0,"",TJ!$U$29) -> 9.65 | T147: +1.5 | U147: =IF(OR(P147=0,P147="",S147=0,S147=""),"",IF(S147<A143,0,INT(((S147-B143)*D143/C143)+250))) -> 0 | V147: =IF(AC143="T",AF147,AG147) ->  | AD147: =IF(I147="","",IF(AC143="F","",IF(AC143="T",IF(I147<=Z143,"þ",IF(I147<=AA143,"G2",IF(I147<=AB143,"G3","")))))) ->  | AE147: =IF(I147="","",IF(AC143="T","",IF(AC143="F",IF(I147>=Z143,"þ",IF(I147>=AA143,"G2",IF(I147>=AB143,"G3","")))))) -> þ | AF147: =IF(S147="","",IF(AC143="F","",IF(AC143="T",IF(S147<=Z143,"þ",IF(S147<=AA143,"G2",IF(S147<=AB143,"G3","")))))) ->  | AG147: =IF(S147="","",IF(AC143="T","",IF(AC143="F",IF(S147>=Z143,"þ",IF(S147>=AA143,"G2",IF(S147>=AB143,"G3","")))))) ->  | AH147: 7 | AI147: 5 | AJ147: 3 | AK147: 5 | AL147: 147
C148: 3 | D148: 8 | E148: =TJ!$E$30 -> 5 | F148: =IF(TJ!$I$26=0,"",TJ!$F$30) -> 33 | G148: =IF(OR($F148="",$F148=0),"",IF($F148>90,VLOOKUP(F148,eventcodes,2,FALSE),HLOOKUP(F148,declare,B146,FALSE))) -> Sophie Wilkins | H148: Marshall Milton Keynes AC | I148: =IF(TJ!$I$26=0,"",TJ!$I$30) -> 10.22 | K148: +1.1 | L148: =IF(OR(F148=0,F148="",I148=0,I148=""),"",IF(I148<A143,0,INT(((I148-B143)*D143/C143)+250))) -> 0 | M148: =IF(AC143="T",AD148,AE148) -> þ | O148: =TJ!$K$30 -> 5 | P148: =IF(TJ!$I$26=0,"",TJ!$L$30) -> 8 | Q148: =IF(OR($P148="",$P148=0),"",HLOOKUP(P148,declare,B146,FALSE)) -> Esther Aije | R148: Thames Valley H | S148: =IF(TJ!$I$26=0,"",TJ!$U$30) -> 8.91 | T148: +0.0 | U148: =IF(OR(P148=0,P148="",S148=0,S148=""),"",IF(S148<A143,0,INT(((S148-B143)*D143/C143)+250))) -> 0 | V148: =IF(AC143="T",AF148,AG148) ->  | AD148: =IF(I148="","",IF(AC143="F","",IF(AC143="T",IF(I148<=Z143,"þ",IF(I148<=AA143,"G2",IF(I148<=AB143,"G3","")))))) ->  | AE148: =IF(I148="","",IF(AC143="T","",IF(AC143="F",IF(I148>=Z143,"þ",IF(I148>=AA143,"G2",IF(I148>=AB143,"G3","")))))) -> þ | AF148: =IF(S148="","",IF(AC143="F","",IF(AC143="T",IF(S148<=Z143,"þ",IF(S148<=AA143,"G2",IF(S148<=AB143,"G3","")))))) ->  | AG148: =IF(S148="","",IF(AC143="T","",IF(AC143="F",IF(S148>=Z143,"þ",IF(S148>=AA143,"G2",IF(S148>=AB143,"G3","")))))) ->  | AH148: 3 | AI148: 4 | AJ148: 8 | AK148: 4 | AL148: 148
C149: 8 | D149: 6 | E149: =TJ!$E$31 -> 6 | F149: =IF(TJ!$I$26=0,"",TJ!$F$31) -> 88 | G149: =IF(OR($F149="",$F149=0),"",IF($F149>90,VLOOKUP(F149,eventcodes,2,FALSE),HLOOKUP(F149,declare,B146,FALSE))) -> Ugne Liuksaityte | H149: Thames Valley H | I149: =IF(TJ!$I$26=0,"",TJ!$I$31) -> 9.38 | K149: +1.3 | L149: =IF(OR(F149=0,F149="",I149=0,I149=""),"",IF(I149<A143,0,INT(((I149-B143)*D143/C143)+250))) -> 0 | M149: =IF(AC143="T",AD149,AE149) ->  | O149: =TJ!$K$31 -> 6 | P149: =IF(TJ!$I$26=0,"",TJ!$L$31) -> 66 | Q149: =IF(OR($P149="",$P149=0),"",HLOOKUP(P149,declare,B146,FALSE)) -> Jenny Beckingham | R149: Southampton AC | S149: =IF(TJ!$I$26=0,"",TJ!$U$31) -> 7.93 | T149: +1.1 | U149: =IF(OR(P149=0,P149="",S149=0,S149=""),"",IF(S149<A143,0,INT(((S149-B143)*D143/C143)+250))) -> 0 | V149: =IF(AC143="T",AF149,AG149) ->  | AD149: =IF(I149="","",IF(AC143="F","",IF(AC143="T",IF(I149<=Z143,"þ",IF(I149<=AA143,"G2",IF(I149<=AB143,"G3","")))))) ->  | AE149: =IF(I149="","",IF(AC143="T","",IF(AC143="F",IF(I149>=Z143,"þ",IF(I149>=AA143,"G2",IF(I149>=AB143,"G3","")))))) ->  | AF149: =IF(S149="","",IF(AC143="F","",IF(AC143="T",IF(S149<=Z143,"þ",IF(S149<=AA143,"G2",IF(S149<=AB143,"G3","")))))) ->  | AG149: =IF(S149="","",IF(AC143="T","",IF(AC143="F",IF(S149>=Z143,"þ",IF(S149>=AA143,"G2",IF(S149>=AB143,"G3","")))))) ->  | AH149: 8 | AI149: 3 | AJ149: 6 | AK149: 3 | AL149: 149
C150: 6 | D150: 0 | E150: =TJ!$E$32 -> 7 | F150: =IF(TJ!$I$26=0,"",TJ!$F$32) -> 6 | G150: =IF(OR($F150="",$F150=0),"",IF($F150>90,VLOOKUP(F150,eventcodes,2,FALSE),HLOOKUP(F150,declare,B146,FALSE))) -> Vicki Vinter | H150: Southampton AC | I150: =IF(TJ!$I$26=0,"",TJ!$I$32) -> 9.28 | K150: +0.5 | L150: =IF(OR(F150=0,F150="",I150=0,I150=""),"",IF(I150<A143,0,INT(((I150-B143)*D143/C143)+250))) -> 0 | M150: =IF(AC143="T",AD150,AE150) ->  | O150: =TJ!$K$32 -> 7 | P150: =IF(TJ!$I$26=0,"",TJ!$L$32) -> 0 | Q150: =IF(OR($P150="",$P150=0),"",HLOOKUP(P150,declare,B146,FALSE)) ->  | S150: =IF(TJ!$I$26=0,"",TJ!$U$32) -> 0 | U150: =IF(OR(P150=0,P150="",S150=0,S150=""),"",IF(S150<A143,0,INT(((S150-B143)*D143/C143)+250))) ->  | V150: =IF(AC143="T",AF150,AG150) ->  | AD150: =IF(I150="","",IF(AC143="F","",IF(AC143="T",IF(I150<=Z143,"þ",IF(I150<=AA143,"G2",IF(I150<=AB143,"G3","")))))) ->  | AE150: =IF(I150="","",IF(AC143="T","",IF(AC143="F",IF(I150>=Z143,"þ",IF(I150>=AA143,"G2",IF(I150>=AB143,"G3","")))))) ->  | AF150: =IF(S150="","",IF(AC143="F","",IF(AC143="T",IF(S150<=Z143,"þ",IF(S150<=AA143,"G2",IF(S150<=AB143,"G3","")))))) ->  | AG150: =IF(S150="","",IF(AC143="T","",IF(AC143="F",IF(S150>=Z143,"þ",IF(S150>=AA143,"G2",IF(S150>=AB143,"G3","")))))) ->  | AH150: 6 | AI150: 2 | AJ150: 0 | AK150: 2 | AL150: 150
C151: 1 | D151: 0 | E151: =TJ!$E$33 -> 8 | F151: =IF(TJ!$I$26=0,"",TJ!$F$33) -> 1 | G151: =IF(OR($F151="",$F151=0),"",IF($F151>90,VLOOKUP(F151,eventcodes,2,FALSE),HLOOKUP(F151,declare,B146,FALSE))) -> Jemma Eastwood | H151: Bedford & County AC | I151: =IF(TJ!$I$26=0,"",TJ!$I$33) -> 8.54 | K151: +0.8 | L151: =IF(OR(F151=0,F151="",I151=0,I151=""),"",IF(I151<A143,0,INT(((I151-B143)*D143/C143)+250))) -> 0 | M151: =IF(AC143="T",AD151,AE151) ->  | O151: =TJ!$K$33 -> 8 | P151: =IF(TJ!$I$26=0,"",TJ!$L$33) -> 0 | Q151: =IF(OR($P151="",$P151=0),"",HLOOKUP(P151,declare,B146,FALSE)) ->  | S151: =IF(TJ!$I$26=0,"",TJ!$U$33) -> 0 | U151: =IF(OR(P151=0,P151="",S151=0,S151=""),"",IF(S151<A143,0,INT(((S151-B143)*D143/C143)+250))) ->  | V151: =IF(AC143="T",AF151,AG151) ->  | AD151: =IF(I151="","",IF(AC143="F","",IF(AC143="T",IF(I151<=Z143,"þ",IF(I151<=AA143,"G2",IF(I151<=AB143,"G3","")))))) ->  | AE151: =IF(I151="","",IF(AC143="T","",IF(AC143="F",IF(I151>=Z143,"þ",IF(I151>=AA143,"G2",IF(I151>=AB143,"G3","")))))) ->  | AF151: =IF(S151="","",IF(AC143="F","",IF(AC143="T",IF(S151<=Z143,"þ",IF(S151<=AA143,"G2",IF(S151<=AB143,"G3","")))))) ->  | AG151: =IF(S151="","",IF(AC143="T","",IF(AC143="F",IF(S151>=Z143,"þ",IF(S151>=AA143,"G2",IF(S151>=AB143,"G3","")))))) ->  | AH151: 1 | AI151: 1 | AJ151: 0 | AK151: 1 | AL151: 151
AL152: 152
A153: 1.56 | B153: 1.96 | C153: 0.02 | D153: 10 | E153: =CONCATENATE(VLOOKUP(A154,mens_handbook,3,FALSE)," A") -> Women's High Jump A | H153: =IF(A154="","",IF(VLOOKUP(A154,Handbook!$A$4:$AI$24,35,FALSE)="Y","Wind=","")) ->  | O153: =CONCATENATE(VLOOKUP(A154,mens_handbook,3,FALSE)," B") -> Women's High Jump B | R153: =H153 ->  | S153: =IF(I153="","",I153) ->  | X153: =IF($A154="","",VLOOKUP($A154,Handbook!$A$4:$V$24,21,FALSE)) -> 1.91 | Y153: =IF($A154="","",VLOOKUP($A154,Handbook!$A$4:$V$24,22,FALSE)) -> 1.9 | Z153: =IF($A154="","",VLOOKUP($A154,Handbook!$A$4:$W$24,23,FALSE)) -> 1.55 | AA153: =IF($A154="","",VLOOKUP($A154,Handbook!$A$4:$X$24,24,FALSE)) -> 1.55 | AB153: =IF($A154="","",VLOOKUP($A154,Handbook!$A$4:$Y$24,25,FALSE)) -> 1.55 | AC153: =IF($A154="","",VLOOKUP($A154,Handbook!$A$4:$AH$24,34,FALSE)) -> F | AL153: 153
